Workbook

Sheet TCIC Overview
A3: Transmission Cost Information Center Version 14.0 (7/11/2023)
A5: Tab Descriptions
A6: v | B6: Overview & Aggregate Cost Summary Tabs
B7: Ø | C7: TCIC Overview | E7: Describes the contents of the TCIC, highlights the main features of the tool that users may adjust and provides a glossary of terms along with links to relevant information.
B8: Ø | C8: Cost Summary By Customer | E8: Summarizes the estimated current, future and incremental monthly transmission costs by Responsible Zone for a user-selected future billing month.
A9: v | B9: Input Tabs
B10: Ø | C10: Formula Rate Filing Information | E10: Provides default Carrying Charges and Estimated Useful Lives of the transmission facilities of each Transmission Owner; provides the start date of the Rate Year for each Transmission Owner. Also provides Weighted Cost of Capitalization for each Transmission Owner.
B11: Ø | C11: Upgrade Information | E11: Provides information specific to each RTEP Baseline and Supplemental Upgrade such as its ID, description, projected in-service date, cost estimate, Transmission Owner, default useful life, cost allocation, etc.
B12: Ø | C12: Network Service Peak Loads | E12: Provides the Network Service Peak Loads and associated load-ratio-share for each PJM transmission zone.
B13: Ø | C13: Planning Allocations | E13: Provides Schedule 12 cost allocations to each Responsible Zone for each RTEP Baseline Upgrade.
A14: v | B14: Detailed Cost Summary Tabs
B15: Ø | C15: Projected Revenue Requirements | E15: Provides estimates of the Annual Revenue Requirement for each RTEP Baseline and Supplemental Upgrade for the current Rate Year and 10 years into the future based on information contained within the Upgrade Information and Formula Rate Filing Information tabs.
B16: Ø | C16: Current Monthly Zonal Charges | E16: Provides estimates of the transmission costs for each Responsible Zone for each RTEP Baseline and Supplemental Upgrade for the current month; transmission costs are displayed in both total dollars and dollars per MW.
B17: Ø | C17: Future Monthly Zonal Charges | E17: Provides estimates of the transmission costs for each Responsible Zone for each RTEP Baseline and Supplemental Upgrade for a user-defined future month; transmission costs are displayed in both total dollars and dollars per MW.
B18: Ø | C18: Incr Monthly Zonal Charges | E18: Provides estimates of the transmission cost increases for each Responsible Zone for each RTEP Baseline and Supplemental Upgrade from the current month to a user-defined future month; incremental transmission costs are displayed in both total dollars and dollars per MW.
A19: Glossary
B20: Ø | C20: Annual Revenue Requirement | E20: The amount of money that a Transmission Owner needs to collect each year in order to cover its transmission related costs and earn a fair rate of return on its rate base.
B21: Ø | C21: Carrying Charge | E21: The Annual Revenue Requirement, less Depreciation Expenses, that a Transmission Owner seeks to recover for each dollar of transmission Carrying Value. The Carrying Charge is multiplied by the Carrying Value of each in-service upgrade and the product when added to the annual Depreciation Expenses associated with the upgrade is the Transmission Owner's Annual Revenue Requirement for the upgrade.
B22: Ø | C22: Carrying Value | E22: The remaining useful value of a transmission facility calculated by subtracting the accumulated annual Depreciation Expenses from the original cost of the facility.
B23: Ø | C23: Depreciation Expense | E23: The annual reduction in the remaining useful value of a transmission facility.
B24: Ø | C24: In-Service Date | E24: Represents the actual in-service date for upgrades already in service or the projected in-service date, when available, for upgrades not yet in service; if a projected in-service date for an upgrade not yet in service is unavailable then the required in-service date is used.
B25: Ø | C25: N/A | E25: Used throughout the workbook in cells to denote information that is not available or applicable.
B26: Ø | C26: NSPL | E26: Stands for Network Service Peak Load. For each PJM transmission zone it is the metered demand coincident with the zonal peak load hour for the 12-month period beginning November 1 and ending October 31 of the current year.
B27: Ø | C27: Planning Allocation | E27: Represents the cost allocation for Baseline Upgrades found in Schedule 12 of the PJM OATT. RTEP Baseline Upgrades that are not in Schedule 12 and Supplement Upgrades are always assigned 100% to the zone in which the upgrade is located.
B28: Ø | C28: Rate Year | E28: The 12-month period beginning either January 1 or June 1 for which projected transmission charges are developed.
B29: Ø | C29: Responsible Zone / Customer | E29: The customer load (MW) in a PJM transmission zone or the power withdrawn (MW) from PJM by a controllable merchant transmission facility.
B30: Ø | C30: RTEP Baseline Upgrade | E30: Upgrades that are included in PJM's Regional Transmission Expansion Plan (RTEP), approved by the PJM Board and individually listed in Schedule 12 of the PJM OATT. These upgrades have a minimum of a five character identifier that begins with a "b".
B31: Ø | C31: Supplemental Upgrade | E31: Upgrades that are initiated by a PJM Transmission Owner and not required for compliance with PJM Criteria. These upgrades have a minimum of a five character identifier that begins with an "s" or "TOI". The latter identifier is no longer assigned to new Supplemental Upgrades and was used when Supplemental Upgrades were called Transmission Owner Identified upgrades.
B32: Ø | C32: Upgrade Status | E32: The Upgrade Information tab has five status indicators that provide the developmental stage for each upgrade. Upgrades that are Cancelled or On Hold are included for informational purposes only and the costs associated with these upgrades are not included in the TCIC calculations. Only upgrades that are listed as In Service (IS), Engineering Procurement (EP) or Under Construction (UC) are included in the TCIC calculations.
A33: Relevant Links
B34: Ø | C34: Formula Rate Filings | E34: Formula Rates
B35: Ø | C35: NSPLs | E35: Billing, Settlements & Credit
B36: Ø | C36: PJM Tariff | E36: Open Access Transmission Tariff
B37: Ø | C37: PJM Manuals | E37: Manuals
B38: Ø | C38: PJM TEAC Material | E38: PJM TEAC
B39: Ø | C39: TEC Worksheets | E39: Billing, Settlements & Credit
B40: Ø | C40: FERC Filings | E40: PJM Filings & Orders
B41: Ø | C41: FERC Docket Search | E41: FERC Docket Search

Sheet Cost Summary By Customer
A1: Current Billing Date ==> | B1: =DATE(YEAR(TODAY()),MONTH(TODAY()),1) -> 2023-07-01 | C1: R E S P O N S I B L E Z O N E S
A2: (Updates automatically - do not change)
A3: Future Billing Date ==> | B3: 2028-07-01 | C3: AEC | D3: AEP | E3: APS | F3: ATSI | G3: BGE | H3: ComEd | I3: Dayton | J3: DEOK | K3: DL | L3: Dominion | M3: DPL | N3: ECP | O3: EKPC | P3: HTP | Q3: JCPL | R3: ME | S3: Neptune | T3: OVEC | U3: PECO | V3: PENELEC | W3: PEPCO | X3: PPL | Y3: PSEG | Z3: RE | AA3: TOTAL
A4: ="(Must be between "&TEXT(B1,"mm/dd/yyyy")&" -"&TEXT(DATE(YEAR(B1)+10,12,1),"mm/dd/yyyy")&")" -> (Must be between 07/01/2023 -12/01/2033)
A5: Network Service Peak Loads (MW) | C5: ='Current Monthly Zonal Charges'!AG2 -> 2614 | D5: ='Current Monthly Zonal Charges'!AH2 -> 21717.1 | E5: ='Current Monthly Zonal Charges'!AI2 -> 9154.3 | F5: ='Current Monthly Zonal Charges'!AJ2 -> 12771.1 | G5: ='Current Monthly Zonal Charges'!AK2 -> 6520 | H5: ='Current Monthly Zonal Charges'!AL2 -> 21262.3 | I5: ='Current Monthly Zonal Charges'!AM2 -> 3361.6 | J5: ='Current Monthly Zonal Charges'!AN2 -> 5166.1 | K5: ='Current Monthly Zonal Charges'!AO2 -> 2714.7 | L5: ='Current Monthly Zonal Charges'!AP2 -> 21156.3 | M5: ='Current Monthly Zonal Charges'!AQ2 -> 4125.3 | N5: ='Current Monthly Zonal Charges'!AR2 -> 0 | O5: ='Current Monthly Zonal Charges'!AS2 -> 2993.5 | P5: ='Current Monthly Zonal Charges'!AT2 -> 0 | Q5: ='Current Monthly Zonal Charges'!AU2 -> 6122.9 | R5: ='Current Monthly Zonal Charges'!AV2 -> 3021.3 | S5: ='Current Monthly Zonal Charges'!AW2 -> 673.8 | T5: ='Current Monthly Zonal Charges'!AX2 -> 121 | U5: ='Current Monthly Zonal Charges'!AY2 -> 8582.6 | V5: ='Current Monthly Zonal Charges'!AZ2 -> 2830.3 | W5: ='Current Monthly Zonal Charges'!BA2 -> 5833.8 | X5: ='Current Monthly Zonal Charges'!BB2 -> 7488.6 | Y5: ='Current Monthly Zonal Charges'!BC2 -> 10147 | Z5: ='Current Monthly Zonal Charges'!BD2 -> 407.4 | AA5: =SUM(C5:Z5) -> 158785
A6: Estimated Monthly Zonal Charges Due To Baseline & Supplemental Upgrades
A7: Current Transmission ($) | C7: =SUM(C8,C13) -> 13322459.56 | D7: =SUM(D8,D13) -> 151763412.8 | E7: 15639585.02 | F7: 41688527.07 | G7: 13964330.07 | H7: 40815649.12 | I7: 4687975.62 | J7: 10952842.51 | K7: 10491549.67 | L7: 66687517.91 | M7: 9521347.73 | N7: 235524.136 | O7: 3736368.336 | P7: 1211360.059 | Q7: 9861475.67 | R7: 9896128.96 | S7: 1803656.472 | T7: 86458.8692 | U7: 18897993.42 | V7: 10912731.07 | W7: 13897857.74 | X7: 28672662.46 | Y7: 130687587.4 | Z7: 1871033.02 | AA7: 611306034.7
A8: 1. RTEP Baseline Upgrades | C8: =SUM(C9,C12) -> 6442363.939 | D8: =SUM(D9,D12) -> 52774725.95 | E8: 13716348.95 | F8: 20523212.55 | G8: 8887553.127 | H8: 21583116.89 | I8: 2532084.259 | J8: 2436733.963 | K8: 6032658.478 | L8: 50147658.87 | M8: 5287872.066 | N8: =SUM(N9,N12) -> 235524.136 | O8: 1782392.402 | P8: =SUM(P9,P12) -> 1211360.059 | Q8: 8858749.826 | R8: 3699501.499 | S8: 1803656.472 | T8: =SUM(T9,T12) -> 34935.75273 | U8: 10062166.74 | V8: 5107840.888 | W8: 10091083.96 | X8: 12326582.54 | Y8: 59764431.55 | Z8: =SUM(Z9,Z12) -> 1871033.02 | AA8: =SUM(C8:Z8) -> 307213587.9
A9: a. Upgrades Constructed By Local Transmission Owner | C9: =SUM(C10,C11) -> 4250865.25 | D9: =SUM(D10,D11) -> 48041421.74 | E9: 3360007.969 | F9: 16964811.73 | G9: 5004540.824 | H9: 17232792.66 | I9: 1410507.156 | J9: 1413744.114 | K9: 4375845.885 | L9: 43960226.71 | M9: 3849653.778 | N9: =SUM(N10,N11) -> 0 | O9: 657424.4633 | P9: =SUM(P10,P11) -> 0 | Q9: 2329743.821 | R9: 2793522.756 | S9: 0 | T9: =SUM(T10,T11) -> 1870.423215 | U9: 3411983.983 | V9: 2616922.337 | W9: 5336948.005 | X9: 10206186.98 | Y9: 55067904.63 | Z9: =SUM(Z10,Z11) -> 12385.55913 | AA9: 232299310.8
A10: (1) Upgrades Allocated 100% To Zone | C10: =SUMPRODUCT( (LEFT('Current Monthly Zonal Charges'!$A$5:$A$10000,1)="b")* ('Current Monthly Zonal Charges'!$B$5:$B$10000=C$3)* ('Current Monthly Zonal Charges'!H$5:H$10000='Current Monthly Zonal Charges'!$F$5:$F$10000)* ('Current Monthly Zonal Charges'!H$5:H$10000) ) -> 3806726.713 | D10: =SUMPRODUCT( (LEFT('Current Monthly Zonal Charges'!$A$5:$A$10000,1)="b")* ('Current Monthly Zonal Charges'!$B$5:$B$10000=D$3)* ('Current Monthly Zonal Charges'!I$5:I$10000='Current Monthly Zonal Charges'!$F$5:$F$10000)* ('Current Monthly Zonal Charges'!I$5:I$10000) ) -> 37369857.22 | E10: =SUMPRODUCT( (LEFT('Current Monthly Zonal Charges'!$A$5:$A$10000,1)="b")* ('Current Monthly Zonal Charges'!$B$5:$B$10000=E$3)* ('Current Monthly Zonal Charges'!J$5:J$10000='Current Monthly Zonal Charges'!$F$5:$F$10000)* ('Current Monthly Zonal Charges'!J$5:J$10000) ) -> 2313354.445 | F10: =SUMPRODUCT( (LEFT('Current Monthly Zonal Charges'!$A$5:$A$10000,1)="b")* ('Current Monthly Zonal Charges'!$B$5:$B$10000=F$3)* ('Current Monthly Zonal Charges'!K$5:K$10000='Current Monthly Zonal Charges'!$F$5:$F$10000)* ('Current Monthly Zonal Charges'!K$5:K$10000) ) -> 15574245.61 | G10: =SUMPRODUCT( (LEFT('Current Monthly Zonal Charges'!$A$5:$A$10000,1)="b")* ('Current Monthly Zonal Charges'!$B$5:$B$10000=G$3)* ('Current Monthly Zonal Charges'!L$5:L$10000='Current Monthly Zonal Charges'!$F$5:$F$10000)* ('Current Monthly Zonal Charges'!L$5:L$10000) ) -> 3241534.52 | H10: =SUMPRODUCT( (LEFT('Current Monthly Zonal Charges'!$A$5:$A$10000,1)="b")* ('Current Monthly Zonal Charges'!$B$5:$B$10000=H$3)* ('Current Monthly Zonal Charges'!M$5:M$10000='Current Monthly Zonal Charges'!$F$5:$F$10000)*('Current Monthly Zonal Charges'!M$5:M$10000) ) -> 15784274.74 | I10: =SUMPRODUCT( (LEFT('Current Monthly Zonal Charges'!$A$5:$A$10000,1)="b")* ('Current Monthly Zonal Charges'!$B$5:$B$10000=I$3)* ('Current Monthly Zonal Charges'!N$5:N$10000='Current Monthly Zonal Charges'!$F$5:$F$10000)*('Current Monthly Zonal Charges'!N$5:N$10000) ) -> 1191312.239 | J10: =SUMPRODUCT( (LEFT('Current Monthly Zonal Charges'!$A$5:$A$10000,1)="b")* ('Current Monthly Zonal Charges'!$B$5:$B$10000=J$3)* ('Current Monthly Zonal Charges'!O$5:O$10000='Current Monthly Zonal Charges'!$F$5:$F$10000)*('Current Monthly Zonal Charges'!O$5:O$10000) ) -> 1279116.913 | K10: =SUMPRODUCT( (LEFT('Current Monthly Zonal Charges'!$A$5:$A$10000,1)="b")* ('Current Monthly Zonal Charges'!$B$5:$B$10000=K$3)* ('Current Monthly Zonal Charges'!P$5:P$10000='Current Monthly Zonal Charges'!$F$5:$F$10000)*('Current Monthly Zonal Charges'!P$5:P$10000) ) -> 2000471.156 | L10: =SUMPRODUCT( (LEFT('Current Monthly Zonal Charges'!$A$5:$A$10000,1)="b")* ('Current Monthly Zonal Charges'!$B$5:$B$10000=L$3)* ('Current Monthly Zonal Charges'!Q$5:Q$10000='Current Monthly Zonal Charges'!$F$5:$F$10000)*('Current Monthly Zonal Charges'!Q$5:Q$10000) ) -> 31958793.7 | M10: =SUMPRODUCT( (LEFT('Current Monthly Zonal Charges'!$A$5:$A$10000,1)="b")* ('Current Monthly Zonal Charges'!$B$5:$B$10000=M$3)* ('Current Monthly Zonal Charges'!R$5:R$10000='Current Monthly Zonal Charges'!$F$5:$F$10000)*('Current Monthly Zonal Charges'!R$5:R$10000) ) + SUMPRODUCT( (LEFT('Current Monthly Zonal Charges'!$A$5:$A$10000,1)="b")* ('Current Monthly Zonal Charges'!$B$5:$B$10000="ODEC")* ('Current Monthly Zonal Charges'!R$5:R$10000='Current Monthly Zonal Charges'!$F$5:$F$10000)*('Current Monthly Zonal Charges'!R$5:R$10000) ) -> 3588543.918 | N10: =SUMPRODUCT( (LEFT('Current Monthly Zonal Charges'!$A$5:$A$10000,1)="b")* ('Current Monthly Zonal Charges'!$B$5:$B$10000=N$3)* ('Current Monthly Zonal Charges'!S$5:S$10000='Current Monthly Zonal Charges'!$F$5:$F$10000)*('Current Monthly Zonal Charges'!S$5:S$10000) ) -> 0 | O10: =SUMPRODUCT( (LEFT('Current Monthly Zonal Charges'!$A$5:$A$10000,1)="b")* ('Current Monthly Zonal Charges'!$B$5:$B$10000=O$3)* ('Current Monthly Zonal Charges'!T$5:T$10000='Current Monthly Zonal Charges'!$F$5:$F$10000)*('Current Monthly Zonal Charges'!T$5:T$10000) ) -> 657424.4633 | P10: =SUMPRODUCT( (LEFT('Current Monthly Zonal Charges'!$A$5:$A$10000,1)="b")* ('Current Monthly Zonal Charges'!$B$5:$B$10000=P$3)* ('Current Monthly Zonal Charges'!U$5:U$10000='Current Monthly Zonal Charges'!$F$5:$F$10000)*('Current Monthly Zonal Charges'!U$5:U$10000) ) -> 0 | Q10: =SUMPRODUCT( (LEFT('Current Monthly Zonal Charges'!$A$5:$A$10000,1)="b")* ('Current Monthly Zonal Charges'!$B$5:$B$10000=Q$3)* ('Current Monthly Zonal Charges'!V$5:V$10000='Current Monthly Zonal Charges'!$F$5:$F$10000)*('Current Monthly Zonal Charges'!V$5:V$10000) ) -> 1907526.566 | R10: =($R$5/($R$5+$V$5))* ( SUMPRODUCT( (LEFT('Current Monthly Zonal Charges'!$A$5:$A$10000,1)="b")* ('Current Monthly Zonal Charges'!$B$5:$B$10000=R$3)* ('Current Monthly Zonal Charges'!W$5:W$10000='Current Monthly Zonal Charges'!$F$5:$F$10000)* ('Current Monthly Zonal Charges'!W$5:W$10000) ) + SUMPRODUCT( (LEFT('Current Monthly Zonal Charges'!$A$5:$A$10000,1)="b")* ('Current Monthly Zonal Charges'!$B$5:$B$10000=V$3)* ('Current Monthly Zonal Charges'!AA$5:AA$10000='Current Monthly Zonal Charges'!$F$5:$F$10000)* ('Current Monthly Zonal Charges'!AA$5:AA$10000) ) ) -> 2115587.824 | S10: =SUMPRODUCT( (LEFT('Current Monthly Zonal Charges'!$A$5:$A$10000,1)="b")* ('Current Monthly Zonal Charges'!$B$5:$B$10000=S$3)* ('Current Monthly Zonal Charges'!X$5:X$10000='Current Monthly Zonal Charges'!$F$5:$F$10000)*('Current Monthly Zonal Charges'!X$5:X$10000) ) -> 0 | T10: =SUMPRODUCT( (LEFT('Current Monthly Zonal Charges'!$A$5:$A$10000,1)="b")* ('Current Monthly Zonal Charges'!$B$5:$B$10000=T$3)* ('Current Monthly Zonal Charges'!Y$5:Y$10000='Current Monthly Zonal Charges'!$F$5:$F$10000)*('Current Monthly Zonal Charges'!Y$5:Y$10000) ) -> 1870.423215 | U10: =SUMPRODUCT( (LEFT('Current Monthly Zonal Charges'!$A$5:$A$10000,1)="b")* ('Current Monthly Zonal Charges'!$B$5:$B$10000=U$3)* ('Current Monthly Zonal Charges'!Z$5:Z$10000='Current Monthly Zonal Charges'!$F$5:$F$10000)*('Current Monthly Zonal Charges'!Z$5:Z$10000) ) -> 1797109.163 | V10: =(V$5/R$5)*R10 -> 1981844.974 | W10: =SUMPRODUCT( (LEFT('Current Monthly Zonal Charges'!$A$5:$A$10000,1)="b")* ('Current Monthly Zonal Charges'!$B$5:$B$10000=W$3)* ('Current Monthly Zonal Charges'!AB$5:AB$10000='Current Monthly Zonal Charges'!$F$5:$F$10000)*('Current Monthly Zonal Charges'!AB$5:AB$10000) ) -> 2512514.917 | X10: =SUMPRODUCT( (LEFT('Current Monthly Zonal Charges'!$A$5:$A$10000,1)="b")* ('Current Monthly Zonal Charges'!$B$5:$B$10000=X$3)* ('Current Monthly Zonal Charges'!AC$5:AC$10000='Current Monthly Zonal Charges'!$F$5:$F$10000)*('Current Monthly Zonal Charges'!AC$5:AC$10000) ) + SUMPRODUCT( (LEFT('Current Monthly Zonal Charges'!$A$5:$A$10000,1)="b")* ('Current Monthly Zonal Charges'!$B$5:$B$10000="UGI")* ('Current Monthly Zonal Charges'!AC$5:AC$10000='Current Monthly Zonal Charges'!$F$5:$F$10000)*('Current Monthly Zonal Charges'!AC$5:AC$10000) ) -> 9519056.655 | Y10: =SUMPRODUCT( (LEFT('Current Monthly Zonal Charges'!$A$5:$A$10000,1)="b")* ('Current Monthly Zonal Charges'!$B$5:$B$10000=Y$3)* ('Current Monthly Zonal Charges'!AD$5:AD$10000='Current Monthly Zonal Charges'!$F$5:$F$10000)*('Current Monthly Zonal Charges'!AD$5:AD$10000) ) -> 12824847.98 | Z10: =SUMPRODUCT( (LEFT('Current Monthly Zonal Charges'!$A$5:$A$10000,1)="b")* ('Current Monthly Zonal Charges'!$B$5:$B$10000=Z$3)* ('Current Monthly Zonal Charges'!AE$5:AE$10000='Current Monthly Zonal Charges'!$F$5:$F$10000)*('Current Monthly Zonal Charges'!AE$5:AE$10000) ) -> 3010.54769 | AA10: 151429024.7
A11: (2) Upgrades Allocated Less Than 100% To Zone | C11: =SUMPRODUCT( (LEFT('Current Monthly Zonal Charges'!$A$5:$A$10000,1)="b")* ('Current Monthly Zonal Charges'!$B$5:$B$10000=C$3)* ('Current Monthly Zonal Charges'!H$5:H$10000<>'Current Monthly Zonal Charges'!$F$5:$F$10000)* ('Current Monthly Zonal Charges'!H$5:H$10000) ) -> 444138.5368 | D11: =SUMPRODUCT( (LEFT('Current Monthly Zonal Charges'!$A$5:$A$10000,1)="b")* ('Current Monthly Zonal Charges'!$B$5:$B$10000=D$3)* ('Current Monthly Zonal Charges'!I$5:I$10000<>'Current Monthly Zonal Charges'!$F$5:$F$10000)* ('Current Monthly Zonal Charges'!I$5:I$10000) ) -> 10671564.51 | E11: =SUMPRODUCT( (LEFT('Current Monthly Zonal Charges'!$A$5:$A$10000,1)="b")* ('Current Monthly Zonal Charges'!$B$5:$B$10000=E$3)* ('Current Monthly Zonal Charges'!J$5:J$10000<>'Current Monthly Zonal Charges'!$F$5:$F$10000)* ('Current Monthly Zonal Charges'!J$5:J$10000) ) -> 1046653.524 | F11: =SUMPRODUCT( (LEFT('Current Monthly Zonal Charges'!$A$5:$A$10000,1)="b")* ('Current Monthly Zonal Charges'!$B$5:$B$10000=F$3)* ('Current Monthly Zonal Charges'!K$5:K$10000<>'Current Monthly Zonal Charges'!$F$5:$F$10000)* ('Current Monthly Zonal Charges'!K$5:K$10000) ) -> 1390566.111 | G11: =SUMPRODUCT( (LEFT('Current Monthly Zonal Charges'!$A$5:$A$10000,1)="b")* ('Current Monthly Zonal Charges'!$B$5:$B$10000=G$3)* ('Current Monthly Zonal Charges'!L$5:L$10000<>'Current Monthly Zonal Charges'!$F$5:$F$10000)* ('Current Monthly Zonal Charges'!L$5:L$10000) ) -> 1763006.303 | H11: =SUMPRODUCT( (LEFT('Current Monthly Zonal Charges'!$A$5:$A$10000,1)="b")* ('Current Monthly Zonal Charges'!$B$5:$B$10000=H$3)* ('Current Monthly Zonal Charges'!M$5:M$10000<>'Current Monthly Zonal Charges'!$F$5:$F$10000)* ('Current Monthly Zonal Charges'!M$5:M$10000) ) -> 1448517.914 | I11: =SUMPRODUCT( (LEFT('Current Monthly Zonal Charges'!$A$5:$A$10000,1)="b")* ('Current Monthly Zonal Charges'!$B$5:$B$10000=I$3)* ('Current Monthly Zonal Charges'!N$5:N$10000<>'Current Monthly Zonal Charges'!$F$5:$F$10000)* ('Current Monthly Zonal Charges'!N$5:N$10000) ) -> 219194.9168 | J11: =SUMPRODUCT( (LEFT('Current Monthly Zonal Charges'!$A$5:$A$10000,1)="b")* ('Current Monthly Zonal Charges'!$B$5:$B$10000=J$3)* ('Current Monthly Zonal Charges'!O$5:O$10000<>'Current Monthly Zonal Charges'!$F$5:$F$10000)* ('Current Monthly Zonal Charges'!O$5:O$10000) ) -> 134627.2008 | K11: =SUMPRODUCT( (LEFT('Current Monthly Zonal Charges'!$A$5:$A$10000,1)="b")* ('Current Monthly Zonal Charges'!$B$5:$B$10000=K$3)* ('Current Monthly Zonal Charges'!P$5:P$10000<>'Current Monthly Zonal Charges'!$F$5:$F$10000)* ('Current Monthly Zonal Charges'!P$5:P$10000) ) -> 2375374.729 | L11: =SUMPRODUCT( (LEFT('Current Monthly Zonal Charges'!$A$5:$A$10000,1)="b")* ('Current Monthly Zonal Charges'!$B$5:$B$10000=L$3)* ('Current Monthly Zonal Charges'!Q$5:Q$10000<>'Current Monthly Zonal Charges'!$F$5:$F$10000)* ('Current Monthly Zonal Charges'!Q$5:Q$10000) ) -> 12001433.01 | M11: =SUMPRODUCT( (LEFT('Current Monthly Zonal Charges'!$A$5:$A$10000,1)="b")* ('Current Monthly Zonal Charges'!$B$5:$B$10000=M$3)* ('Current Monthly Zonal Charges'!R$5:R$10000<>'Current Monthly Zonal Charges'!$F$5:$F$10000)* ('Current Monthly Zonal Charges'!R$5:R$10000) ) + SUMPRODUCT( (LEFT('Current Monthly Zonal Charges'!$A$5:$A$10000,1)="b")* ('Current Monthly Zonal Charges'!$B$5:$B$10000="ODEC")* ('Current Monthly Zonal Charges'!R$5:R$10000<>'Current Monthly Zonal Charges'!$F$5:$F$10000)* ('Current Monthly Zonal Charges'!R$5:R$10000) ) -> 261109.8596 | N11: =SUMPRODUCT( (LEFT('Current Monthly Zonal Charges'!$A$5:$A$10000,1)="b")* ('Current Monthly Zonal Charges'!$B$5:$B$10000=N$3)* ('Current Monthly Zonal Charges'!S$5:S$10000<>'Current Monthly Zonal Charges'!$F$5:$F$10000)* ('Current Monthly Zonal Charges'!S$5:S$10000) ) -> 0 | O11: =SUMPRODUCT( (LEFT('Current Monthly Zonal Charges'!$A$5:$A$10000,1)="b")* ('Current Monthly Zonal Charges'!$B$5:$B$10000=O$3)* ('Current Monthly Zonal Charges'!T$5:T$10000<>'Current Monthly Zonal Charges'!$F$5:$F$10000)* ('Current Monthly Zonal Charges'!T$5:T$10000) ) -> 0 | P11: =SUMPRODUCT( (LEFT('Current Monthly Zonal Charges'!$A$5:$A$10000,1)="b")* ('Current Monthly Zonal Charges'!$B$5:$B$10000=P$3)* ('Current Monthly Zonal Charges'!U$5:U$10000<>'Current Monthly Zonal Charges'!$F$5:$F$10000)* ('Current Monthly Zonal Charges'!U$5:U$10000) ) -> 0 | Q11: =SUMPRODUCT( (LEFT('Current Monthly Zonal Charges'!$A$5:$A$10000,1)="b")* ('Current Monthly Zonal Charges'!$B$5:$B$10000=Q$3)* ('Current Monthly Zonal Charges'!V$5:V$10000<>'Current Monthly Zonal Charges'!$F$5:$F$10000)* ('Current Monthly Zonal Charges'!V$5:V$10000) ) -> 422217.2552 | R11: =($R$5/($R$5+$V$5))* ( SUMPRODUCT( (LEFT('Current Monthly Zonal Charges'!$A$5:$A$10000,1)="b")* ('Current Monthly Zonal Charges'!$B$5:$B$10000=R$3)* ('Current Monthly Zonal Charges'!W$5:W$10000<>'Current Monthly Zonal Charges'!$F$5:$F$10000)* ('Current Monthly Zonal Charges'!W$5:W$10000) ) + SUMPRODUCT( (LEFT('Current Monthly Zonal Charges'!$A$5:$A$10000,1)="b")* ('Current Monthly Zonal Charges'!$B$5:$B$10000=V$3)* ('Current Monthly Zonal Charges'!AA$5:AA$10000<>'Current Monthly Zonal Charges'!$F$5:$F$10000)* ('Current Monthly Zonal Charges'!AA$5:AA$10000) ) ) -> 677934.9315 | S11: =SUMPRODUCT( (LEFT('Current Monthly Zonal Charges'!$A$5:$A$10000,1)="b")* ('Current Monthly Zonal Charges'!$B$5:$B$10000=S$3)* ('Current Monthly Zonal Charges'!X$5:X$10000<>'Current Monthly Zonal Charges'!$F$5:$F$10000)* ('Current Monthly Zonal Charges'!X$5:X$10000) ) -> 0 | T11: =SUMPRODUCT( (LEFT('Current Monthly Zonal Charges'!$A$5:$A$10000,1)="b")* ('Current Monthly Zonal Charges'!$B$5:$B$10000=T$3)* ('Current Monthly Zonal Charges'!Y$5:Y$10000<>'Current Monthly Zonal Charges'!$F$5:$F$10000)* ('Current Monthly Zonal Charges'!Y$5:Y$10000) ) -> 0 | U11: =SUMPRODUCT( (LEFT('Current Monthly Zonal Charges'!$A$5:$A$10000,1)="b")* ('Current Monthly Zonal Charges'!$B$5:$B$10000=U$3)* ('Current Monthly Zonal Charges'!Z$5:Z$10000<>'Current Monthly Zonal Charges'!$F$5:$F$10000)* ('Current Monthly Zonal Charges'!Z$5:Z$10000) ) -> 1614874.821 | V11: =(V$5/R$5)*R11 -> 635077.3629 | W11: =SUMPRODUCT( (LEFT('Current Monthly Zonal Charges'!$A$5:$A$10000,1)="b")* ('Current Monthly Zonal Charges'!$B$5:$B$10000=W$3)* ('Current Monthly Zonal Charges'!AB$5:AB$10000<>'Current Monthly Zonal Charges'!$F$5:$F$10000)* ('Current Monthly Zonal Charges'!AB$5:AB$10000) ) -> 2824433.088 | X11: =SUMPRODUCT( (LEFT('Current Monthly Zonal Charges'!$A$5:$A$10000,1)="b")* ('Current Monthly Zonal Charges'!$B$5:$B$10000=X$3)* ('Current Monthly Zonal Charges'!AC$5:AC$10000<>'Current Monthly Zonal Charges'!$F$5:$F$10000)* ('Current Monthly Zonal Charges'!AC$5:AC$10000) ) + SUMPRODUCT( (LEFT('Current Monthly Zonal Charges'!$A$5:$A$10000,1)="b")* ('Current Monthly Zonal Charges'!$B$5:$B$10000="UGI")* ('Current Monthly Zonal Charges'!AC$5:AC$10000<>'Current Monthly Zonal Charges'!$F$5:$F$10000)* ('Current Monthly Zonal Charges'!AC$5:AC$10000) ) -> 687130.3274 | Y11: =SUMPRODUCT( (LEFT('Current Monthly Zonal Charges'!$A$5:$A$10000,1)="b")* ('Current Monthly Zonal Charges'!$B$5:$B$10000=Y$3)* ('Current Monthly Zonal Charges'!AD$5:AD$10000<>'Current Monthly Zonal Charges'!$F$5:$F$10000)* ('Current Monthly Zonal Charges'!AD$5:AD$10000) ) -> 42243056.65 | Z11: =SUMPRODUCT( (LEFT('Current Monthly Zonal Charges'!$A$5:$A$10000,1)="b")* ('Current Monthly Zonal Charges'!$B$5:$B$10000=Z$3)* ('Current Monthly Zonal Charges'!AE$5:AE$10000<>'Current Monthly Zonal Charges'!$F$5:$F$10000)* ('Current Monthly Zonal Charges'!AE$5:AE$10000) ) -> 9375.011435 | AA11: 80870286.07
A12: b. Upgrades Not Constructed By Local Transmission Owner | C12: =SUMPRODUCT( (LEFT('Current Monthly Zonal Charges'!$A$5:$A$10000,1)="b")* ('Current Monthly Zonal Charges'!$B$5:$B$10000<>C$3)* ('Current Monthly Zonal Charges'!H$5:H$10000) ) -> 2191498.69 | D12: =SUMPRODUCT( (LEFT('Current Monthly Zonal Charges'!$A$5:$A$10000,1)="b")* ('Current Monthly Zonal Charges'!$B$5:$B$10000<>D$3)* ('Current Monthly Zonal Charges'!I$5:I$10000) ) -> 4733304.208 | E12: =SUMPRODUCT( (LEFT('Current Monthly Zonal Charges'!$A$5:$A$10000,1)="b")* ('Current Monthly Zonal Charges'!$B$5:$B$10000<>E$3)* ('Current Monthly Zonal Charges'!J$5:J$10000) ) -> 10356340.98 | F12: =SUMPRODUCT( (LEFT('Current Monthly Zonal Charges'!$A$5:$A$10000,1)="b")* ('Current Monthly Zonal Charges'!$B$5:$B$10000<>F$3)* ('Current Monthly Zonal Charges'!K$5:K$10000) ) -> 3558400.822 | G12: =SUMPRODUCT( (LEFT('Current Monthly Zonal Charges'!$A$5:$A$10000,1)="b")* ('Current Monthly Zonal Charges'!$B$5:$B$10000<>G$3)* ('Current Monthly Zonal Charges'!L$5:L$10000) ) -> 3883012.303 | H12: =SUMPRODUCT( (LEFT('Current Monthly Zonal Charges'!$A$5:$A$10000,1)="b")* ('Current Monthly Zonal Charges'!$B$5:$B$10000<>H$3)* ('Current Monthly Zonal Charges'!M$5:M$10000) ) -> 4350324.236 | I12: =SUMPRODUCT( (LEFT('Current Monthly Zonal Charges'!$A$5:$A$10000,1)="b")* ('Current Monthly Zonal Charges'!$B$5:$B$10000<>I$3)* ('Current Monthly Zonal Charges'!N$5:N$10000) ) -> 1121577.103 | J12: =SUMPRODUCT( (LEFT('Current Monthly Zonal Charges'!$A$5:$A$10000,1)="b")* ('Current Monthly Zonal Charges'!$B$5:$B$10000<>J$3)* ('Current Monthly Zonal Charges'!O$5:O$10000) ) -> 1022989.848 | K12: =SUMPRODUCT( (LEFT('Current Monthly Zonal Charges'!$A$5:$A$10000,1)="b")* ('Current Monthly Zonal Charges'!$B$5:$B$10000<>K$3)* ('Current Monthly Zonal Charges'!P$5:P$10000) ) -> 1656812.593 | L12: =SUMPRODUCT( (LEFT('Current Monthly Zonal Charges'!$A$5:$A$10000,1)="b")* ('Current Monthly Zonal Charges'!$B$5:$B$10000<>L$3)* ('Current Monthly Zonal Charges'!Q$5:Q$10000) ) -> 6187432.154 | M12: =SUMPRODUCT( (LEFT('Current Monthly Zonal Charges'!$A$5:$A$10000,1)="b")* ('Current Monthly Zonal Charges'!$B$5:$B$10000<>M$3)* ('Current Monthly Zonal Charges'!$B$5:$B$10000<>"ODEC")* ('Current Monthly Zonal Charges'!R$5:R$10000) ) -> 1438218.288 | N12: =SUMPRODUCT( (LEFT('Current Monthly Zonal Charges'!$A$5:$A$10000,1)="b")* ('Current Monthly Zonal Charges'!$B$5:$B$10000<>N$3)* ('Current Monthly Zonal Charges'!S$5:S$10000) ) -> 235524.136 | O12: =SUMPRODUCT( (LEFT('Current Monthly Zonal Charges'!$A$5:$A$10000,1)="b")* ('Current Monthly Zonal Charges'!$B$5:$B$10000<>O$3)* ('Current Monthly Zonal Charges'!T$5:T$10000) ) -> 1124967.938 | P12: =SUMPRODUCT( (LEFT('Current Monthly Zonal Charges'!$A$5:$A$10000,1)="b")* ('Current Monthly Zonal Charges'!$B$5:$B$10000<>P$3)* ('Current Monthly Zonal Charges'!U$5:U$10000) ) -> 1211360.059 | Q12: =SUMPRODUCT( (LEFT('Current Monthly Zonal Charges'!$A$5:$A$10000,1)="b")* ('Current Monthly Zonal Charges'!$B$5:$B$10000<>Q$3)* ('Current Monthly Zonal Charges'!V$5:V$10000) ) -> 6529006.005 | R12: =SUMPRODUCT( (LEFT('Current Monthly Zonal Charges'!$A$5:$A$10000,1)="b")* ('Current Monthly Zonal Charges'!$B$5:$B$10000<>R$3)* ('Current Monthly Zonal Charges'!$B$5:$B$10000<>V$3)* ('Current Monthly Zonal Charges'!W$5:W$10000) ) -> 905978.743 | S12: =SUMPRODUCT( (LEFT('Current Monthly Zonal Charges'!$A$5:$A$10000,1)="b")* ('Current Monthly Zonal Charges'!$B$5:$B$10000<>S$3)* ('Current Monthly Zonal Charges'!X$5:X$10000) ) -> 1803656.472 | T12: =SUMPRODUCT( (LEFT('Current Monthly Zonal Charges'!$A$5:$A$10000,1)="b")* ('Current Monthly Zonal Charges'!$B$5:$B$10000<>T$3)* ('Current Monthly Zonal Charges'!Y$5:Y$10000) ) -> 33065.32951 | U12: =SUMPRODUCT( (LEFT('Current Monthly Zonal Charges'!$A$5:$A$10000,1)="b")* ('Current Monthly Zonal Charges'!$B$5:$B$10000<>U$3)* ('Current Monthly Zonal Charges'!Z$5:Z$10000) ) -> 6650182.758 | V12: =SUMPRODUCT( (LEFT('Current Monthly Zonal Charges'!$A$5:$A$10000,1)="b")* ('Current Monthly Zonal Charges'!$B$5:$B$10000<>V$3)* ('Current Monthly Zonal Charges'!$B$5:$B$10000<>R$3)* ('Current Monthly Zonal Charges'!AA$5:AA$10000) ) -> 2490918.551 | W12: =SUMPRODUCT( (LEFT('Current Monthly Zonal Charges'!$A$5:$A$10000,1)="b")* ('Current Monthly Zonal Charges'!$B$5:$B$10000<>W$3)* ('Current Monthly Zonal Charges'!AB$5:AB$10000) ) -> 4754135.951 | X12: =SUMPRODUCT( (LEFT('Current Monthly Zonal Charges'!$A$5:$A$10000,1)="b")* ('Current Monthly Zonal Charges'!$B$5:$B$10000<>X$3)* ('Current Monthly Zonal Charges'!$B$5:$B$10000<>"UGI")* ('Current Monthly Zonal Charges'!AC$5:AC$10000) ) -> 2120395.555 | Y12: =SUMPRODUCT( (LEFT('Current Monthly Zonal Charges'!$A$5:$A$10000,1)="b")* ('Current Monthly Zonal Charges'!$B$5:$B$10000<>Y$3)* ('Current Monthly Zonal Charges'!AD$5:AD$10000) ) -> 4696526.914 | Z12: =SUMPRODUCT( (LEFT('Current Monthly Zonal Charges'!$A$5:$A$10000,1)="b")* ('Current Monthly Zonal Charges'!$B$5:$B$10000<>Z$3)* ('Current Monthly Zonal Charges'!AE$5:AE$10000) ) -> 1858647.46 | AA12: 74914277.1
A13: 2. Supplemental Upgrades | C13: =SUMPRODUCT( ( (LEFT('Current Monthly Zonal Charges'!$A$5:$A$10000,1)="s")+(LEFT('Current Monthly Zonal Charges'!$A$5:$A$10000,1)="t") )* ('Current Monthly Zonal Charges'!$B$5:$B$10000=C$3)*('Current Monthly Zonal Charges'!H$5:H$10000) ) -> 6880095.62 | D13: =SUMPRODUCT( ( (LEFT('Current Monthly Zonal Charges'!$A$5:$A$10000,1)="s")+(LEFT('Current Monthly Zonal Charges'!$A$5:$A$10000,1)="t") )* ('Current Monthly Zonal Charges'!$B$5:$B$10000=D$3)*('Current Monthly Zonal Charges'!I$5:I$10000) ) -> 98988686.85 | E13: =SUMPRODUCT( ( (LEFT('Current Monthly Zonal Charges'!$A$5:$A$10000,1)="s")+(LEFT('Current Monthly Zonal Charges'!$A$5:$A$10000,1)="t") )* ('Current Monthly Zonal Charges'!$B$5:$B$10000=E$3)*('Current Monthly Zonal Charges'!J$5:J$10000) ) -> 1923236.074 | F13: =SUMPRODUCT( ( (LEFT('Current Monthly Zonal Charges'!$A$5:$A$10000,1)="s")+(LEFT('Current Monthly Zonal Charges'!$A$5:$A$10000,1)="t") )* ('Current Monthly Zonal Charges'!$B$5:$B$10000=F$3)*('Current Monthly Zonal Charges'!K$5:K$10000) ) -> 21165314.52 | G13: =SUMPRODUCT( ( (LEFT('Current Monthly Zonal Charges'!$A$5:$A$10000,1)="s")+(LEFT('Current Monthly Zonal Charges'!$A$5:$A$10000,1)="t") )* ('Current Monthly Zonal Charges'!$B$5:$B$10000=G$3)*('Current Monthly Zonal Charges'!L$5:L$10000) ) -> 5076776.942 | H13: =SUMPRODUCT( ( (LEFT('Current Monthly Zonal Charges'!$A$5:$A$10000,1)="s")+(LEFT('Current Monthly Zonal Charges'!$A$5:$A$10000,1)="t") )* ('Current Monthly Zonal Charges'!$B$5:$B$10000=H$3)*('Current Monthly Zonal Charges'!M$5:M$10000) ) -> 19232532.23 | I13: =SUMPRODUCT( ( (LEFT('Current Monthly Zonal Charges'!$A$5:$A$10000,1)="s")+(LEFT('Current Monthly Zonal Charges'!$A$5:$A$10000,1)="t") )* ('Current Monthly Zonal Charges'!$B$5:$B$10000=I$3)*('Current Monthly Zonal Charges'!N$5:N$10000) ) -> 2155891.361 | J13: =SUMPRODUCT( ( (LEFT('Current Monthly Zonal Charges'!$A$5:$A$10000,1)="s")+(LEFT('Current Monthly Zonal Charges'!$A$5:$A$10000,1)="t") )* ('Current Monthly Zonal Charges'!$B$5:$B$10000=J$3)*('Current Monthly Zonal Charges'!O$5:O$10000) ) -> 8516108.546 | K13: =SUMPRODUCT( ( (LEFT('Current Monthly Zonal Charges'!$A$5:$A$10000,1)="s")+(LEFT('Current Monthly Zonal Charges'!$A$5:$A$10000,1)="t") )* ('Current Monthly Zonal Charges'!$B$5:$B$10000=K$3)*('Current Monthly Zonal Charges'!P$5:P$10000) ) -> 4458891.195 | L13: =SUMPRODUCT( ( (LEFT('Current Monthly Zonal Charges'!$A$5:$A$10000,1)="s")+(LEFT('Current Monthly Zonal Charges'!$A$5:$A$10000,1)="t") )* ('Current Monthly Zonal Charges'!$B$5:$B$10000=L$3)*('Current Monthly Zonal Charges'!Q$5:Q$10000) ) -> 16539859.04 | M13: =SUMPRODUCT( ( (LEFT('Current Monthly Zonal Charges'!$A$5:$A$10000,1)="s")+(LEFT('Current Monthly Zonal Charges'!$A$5:$A$10000,1)="t") )* ('Current Monthly Zonal Charges'!$B$5:$B$10000=M$3)*('Current Monthly Zonal Charges'!R$5:R$10000) ) + SUMPRODUCT( ( (LEFT('Current Monthly Zonal Charges'!$A$5:$A$10000,1)="s")+(LEFT('Current Monthly Zonal Charges'!$A$5:$A$10000,1)="t") )* ('Current Monthly Zonal Charges'!$B$5:$B$10000="ODEC")*('Current Monthly Zonal Charges'!R$5:R$10000) ) -> 4233475.665 | N13: =SUMPRODUCT( ( (LEFT('Current Monthly Zonal Charges'!$A$5:$A$10000,1)="s")+(LEFT('Current Monthly Zonal Charges'!$A$5:$A$10000,1)="t") )* ('Current Monthly Zonal Charges'!$B$5:$B$10000=N$3)*('Current Monthly Zonal Charges'!S$5:S$10000) ) -> 0 | O13: =SUMPRODUCT( ( (LEFT('Current Monthly Zonal Charges'!$A$5:$A$10000,1)="s")+(LEFT('Current Monthly Zonal Charges'!$A$5:$A$10000,1)="t") )* ('Current Monthly Zonal Charges'!$B$5:$B$10000=O$3)*('Current Monthly Zonal Charges'!T$5:T$10000) ) -> 1953975.934 | P13: =SUMPRODUCT( ( (LEFT('Current Monthly Zonal Charges'!$A$5:$A$10000,1)="s")+(LEFT('Current Monthly Zonal Charges'!$A$5:$A$10000,1)="t") )* ('Current Monthly Zonal Charges'!$B$5:$B$10000=P$3)*('Current Monthly Zonal Charges'!U$5:U$10000) ) -> 0 | Q13: =SUMPRODUCT( ( (LEFT('Current Monthly Zonal Charges'!$A$5:$A$10000,1)="s")+(LEFT('Current Monthly Zonal Charges'!$A$5:$A$10000,1)="t") )* ('Current Monthly Zonal Charges'!$B$5:$B$10000=Q$3)*('Current Monthly Zonal Charges'!V$5:V$10000) ) -> 1002725.844 | R13: =($R$5/($R$5+$V$5))* (SUMPRODUCT( ( (LEFT('Current Monthly Zonal Charges'!$A$5:$A$10000,1)="s") + (LEFT('Current Monthly Zonal Charges'!$A$5:$A$10000,1)="t") )* ('Current Monthly Zonal Charges'!$B$5:$B$10000=R$3)* ('Current Monthly Zonal Charges'!W$5:W$10000) ) + SUMPRODUCT( ( (LEFT('Current Monthly Zonal Charges'!$A$5:$A$10000,1)="s") + (LEFT('Current Monthly Zonal Charges'!$A$5:$A$10000,1)="t") )* ('Current Monthly Zonal Charges'!$B$5:$B$10000=V$3)* ('Current Monthly Zonal Charges'!AA$5:AA$10000) ) ) -> 6196627.461 | S13: =SUMPRODUCT( ( (LEFT('Current Monthly Zonal Charges'!$A$5:$A$10000,1)="s")+(LEFT('Current Monthly Zonal Charges'!$A$5:$A$10000,1)="t") )* ('Current Monthly Zonal Charges'!$B$5:$B$10000=S$3)*('Current Monthly Zonal Charges'!X$5:X$10000) ) -> 0 | T13: =SUMPRODUCT( ( (LEFT('Current Monthly Zonal Charges'!$A$5:$A$10000,1)="s")+(LEFT('Current Monthly Zonal Charges'!$A$5:$A$10000,1)="t") )* ('Current Monthly Zonal Charges'!$B$5:$B$10000=T$3)*('Current Monthly Zonal Charges'!Y$5:Y$10000) ) -> 51523.11647 | U13: =SUMPRODUCT( ( (LEFT('Current Monthly Zonal Charges'!$A$5:$A$10000,1)="s")+(LEFT('Current Monthly Zonal Charges'!$A$5:$A$10000,1)="t") )* ('Current Monthly Zonal Charges'!$B$5:$B$10000=U$3)*('Current Monthly Zonal Charges'!Z$5:Z$10000) ) -> 8835826.682 | V13: =(V$5/R$5)*R13 -> 5804890.18 | W13: =SUMPRODUCT( ( (LEFT('Current Monthly Zonal Charges'!$A$5:$A$10000,1)="s")+(LEFT('Current Monthly Zonal Charges'!$A$5:$A$10000,1)="t") )* ('Current Monthly Zonal Charges'!$B$5:$B$10000=W$3)*('Current Monthly Zonal Charges'!AB$5:AB$10000) ) -> 3806773.782 | X13: =SUMPRODUCT( ( (LEFT('Current Monthly Zonal Charges'!$A$5:$A$10000,1)="s")+(LEFT('Current Monthly Zonal Charges'!$A$5:$A$10000,1)="t") )* ('Current Monthly Zonal Charges'!$B$5:$B$10000=X$3)*('Current Monthly Zonal Charges'!AC$5:AC$10000) ) + SUMPRODUCT( ( (LEFT('Current Monthly Zonal Charges'!$A$5:$A$10000,1)="s")+(LEFT('Current Monthly Zonal Charges'!$A$5:$A$10000,1)="t") )* ('Current Monthly Zonal Charges'!$B$5:$B$10000="UGI")*('Current Monthly Zonal Charges'!AC$5:AC$10000) ) -> 16346079.92 | Y13: =SUMPRODUCT( ( (LEFT('Current Monthly Zonal Charges'!$A$5:$A$10000,1)="s")+(LEFT('Current Monthly Zonal Charges'!$A$5:$A$10000,1)="t") )* ('Current Monthly Zonal Charges'!$B$5:$B$10000=Y$3)*('Current Monthly Zonal Charges'!AD$5:AD$10000) ) -> 70923155.85 | Z13: =SUMPRODUCT( ( (LEFT('Current Monthly Zonal Charges'!$A$5:$A$10000,1)="s")+(LEFT('Current Monthly Zonal Charges'!$A$5:$A$10000,1)="t") )* ('Current Monthly Zonal Charges'!$B$5:$B$10000=Z$3)*('Current Monthly Zonal Charges'!AE$5:AE$10000) ) -> 0 | AA13: 304092446.8
A14: Current Transmission ($/MW) | C14: =IF(C$5>0,C7/C$5,0) -> 5096.579785 | D14: =IF(D$5>0,D7/D$5,0) -> 6988.198829 | E14: 1708.441391 | F14: 3264.286324 | G14: 2141.768416 | H14: 1919.625305 | I14: 1394.56676 | J14: 2120.137533 | K14: 3864.717896 | L14: 3152.135199 | M14: 2308.037653 | N14: 0 | O14: 1248.16046 | P14: 0 | Q14: 1610.589046 | R14: 3275.45393 | S14: 2676.842493 | T14: 714.5361091 | U14: 2201.896095 | V14: 3855.679987 | W14: 2382.299314 | X14: 3828.8415 | Y14: 12879.4311 | Z14: 4592.619096
A16: Future Transmission ($) | C16: =SUM(C17,C22) -> 16366058.52 | D16: =SUM(D17,D22) -> 211561894 | E16: 16771483.81 | F16: 53971199.65 | G16: 23778709.69 | H16: 43749987.18 | I16: 7844374.448 | J16: 12806553.39 | K16: 13762127.88 | L16: 89165707.96 | M16: 12068589.58 | N16: 213064.7139 | O16: 5117707.68 | P16: 1091714.536 | Q16: 14834263.96 | R16: 14812886.08 | S16: 1987623.586 | T16: 79484.61674 | U16: 18427192.82 | V16: 15242296.46 | W16: 21940593.82 | X16: 36582525.43 | Y16: 135402045.8 | Z16: 1830285.488 | AA16: 769408371.1
A17: 1. RTEP Baseline Upgrades | C17: =SUM(C18,C21) -> 6670282.739 | D17: =SUM(D18,D21) -> 56414103.22 | E17: 14086568.2 | F17: 19198190.04 | G17: 8455383.865 | H17: 20077173.44 | I17: 2871717.916 | J17: 2902902.955 | K17: 6105079.149 | L17: 58685628.54 | M17: 6168246.205 | N17: =SUM(N18,N21) -> 213064.7139 | O17: =SUM(O18,O21) -> 1860425.883 | P17: =SUM(P18,P21) -> 1091714.536 | Q17: =SUM(Q18,Q21) -> 13191012.78 | R17: 4915208.793 | S17: 1987623.586 | T17: 32733.19 | U17: 9284989.009 | V17: 5970328.755 | W17: 9023649.853 | X17: 11396351.17 | Y17: 59456500.36 | Z17: =SUM(Z18,Z21) -> 1830285.488 | AA17: =SUM(C17:Z17) -> 321889164.4
A18: a. Upgrades Constructed By Local Transmission Owner | C18: =SUM(C19,C20) -> 3820123.113 | D18: =SUM(D19,D20) -> 51845453.6 | E18: 4523271.926 | F18: 15857947.53 | G18: 4890168.193 | H18: 15944251.38 | I18: 1765049.468 | J18: 1858344.734 | K18: 4574356.762 | L18: 53051347.38 | M18: 4816118.286 | N18: =SUM(N19,N20) -> 0 | O18: =SUM(O19,O20) -> 788361.3525 | P18: =SUM(P19,P20) -> 0 | Q18: =SUM(Q19,Q20) -> 7134071.647 | R18: 3950998.589 | S18: 0 | T18: 1680.714906 | U18: 3163902.435 | V18: 3701225.071 | W18: 4461353.309 | X18: 9186922.806 | Y18: 52137213.11 | Z18: =SUM(Z19,Z20) -> 10998.20419 | AA18: 247483159.6
A19: (1) Upgrades Allocated 100% To Zone | C19: =SUMPRODUCT( (LEFT('Future Monthly Zonal Charges'!$A$5:$A$10000,1)="b")* ('Future Monthly Zonal Charges'!$B$5:$B$10000=C$3)* ('Future Monthly Zonal Charges'!H$5:H$10000='Future Monthly Zonal Charges'!$F$5:$F$10000)* ('Future Monthly Zonal Charges'!H$5:H$10000) ) -> 3443404.355 | D19: =SUMPRODUCT( (LEFT('Future Monthly Zonal Charges'!$A$5:$A$10000,1)="b")* ('Future Monthly Zonal Charges'!$B$5:$B$10000=D$3)* ('Future Monthly Zonal Charges'!I$5:I$10000='Future Monthly Zonal Charges'!$F$5:$F$10000)* ('Future Monthly Zonal Charges'!I$5:I$10000) ) -> 42520764.51 | E19: =SUMPRODUCT( (LEFT('Future Monthly Zonal Charges'!$A$5:$A$10000,1)="b")* ('Future Monthly Zonal Charges'!$B$5:$B$10000=E$3)* ('Future Monthly Zonal Charges'!J$5:J$10000='Future Monthly Zonal Charges'!$F$5:$F$10000)* ('Future Monthly Zonal Charges'!J$5:J$10000) ) -> 3570783.96 | F19: =SUMPRODUCT( (LEFT('Future Monthly Zonal Charges'!$A$5:$A$10000,1)="b")* ('Future Monthly Zonal Charges'!$B$5:$B$10000=F$3)* ('Future Monthly Zonal Charges'!K$5:K$10000='Future Monthly Zonal Charges'!$F$5:$F$10000)* ('Future Monthly Zonal Charges'!K$5:K$10000) ) -> 14641802.24 | G19: =SUMPRODUCT( (LEFT('Future Monthly Zonal Charges'!$A$5:$A$10000,1)="b")* ('Future Monthly Zonal Charges'!$B$5:$B$10000=G$3)* ('Future Monthly Zonal Charges'!L$5:L$10000='Future Monthly Zonal Charges'!$F$5:$F$10000)* ('Future Monthly Zonal Charges'!L$5:L$10000) ) -> 2927623.6 | H19: =SUMPRODUCT( (LEFT('Future Monthly Zonal Charges'!$A$5:$A$10000,1)="b")* ('Future Monthly Zonal Charges'!$B$5:$B$10000=H$3)* ('Future Monthly Zonal Charges'!M$5:M$10000='Future Monthly Zonal Charges'!$F$5:$F$10000)*('Future Monthly Zonal Charges'!M$5:M$10000) ) -> 14313398.51 | I19: =SUMPRODUCT( (LEFT('Future Monthly Zonal Charges'!$A$5:$A$10000,1)="b")* ('Future Monthly Zonal Charges'!$B$5:$B$10000=I$3)* ('Future Monthly Zonal Charges'!N$5:N$10000='Future Monthly Zonal Charges'!$F$5:$F$10000)*('Future Monthly Zonal Charges'!N$5:N$10000) ) -> 1566552.223 | J19: =SUMPRODUCT( (LEFT('Future Monthly Zonal Charges'!$A$5:$A$10000,1)="b")* ('Future Monthly Zonal Charges'!$B$5:$B$10000=J$3)* ('Future Monthly Zonal Charges'!O$5:O$10000='Future Monthly Zonal Charges'!$F$5:$F$10000)*('Future Monthly Zonal Charges'!O$5:O$10000) ) -> 1734971.096 | K19: =SUMPRODUCT( (LEFT('Future Monthly Zonal Charges'!$A$5:$A$10000,1)="b")* ('Future Monthly Zonal Charges'!$B$5:$B$10000=K$3)* ('Future Monthly Zonal Charges'!P$5:P$10000='Future Monthly Zonal Charges'!$F$5:$F$10000)*('Future Monthly Zonal Charges'!P$5:P$10000) ) -> 2504756.751 | L19: =SUMPRODUCT( (LEFT('Future Monthly Zonal Charges'!$A$5:$A$10000,1)="b")* ('Future Monthly Zonal Charges'!$B$5:$B$10000=L$3)* ('Future Monthly Zonal Charges'!Q$5:Q$10000='Future Monthly Zonal Charges'!$F$5:$F$10000)*('Future Monthly Zonal Charges'!Q$5:Q$10000) ) -> 39376140.81 | M19: =SUMPRODUCT( (LEFT('Future Monthly Zonal Charges'!$A$5:$A$10000,1)="b")* ('Future Monthly Zonal Charges'!$B$5:$B$10000=M$3)* ('Future Monthly Zonal Charges'!R$5:R$10000='Future Monthly Zonal Charges'!$F$5:$F$10000)*('Future Monthly Zonal Charges'!R$5:R$10000) ) + SUMPRODUCT( (LEFT('Future Monthly Zonal Charges'!$A$5:$A$10000,1)="b")* ('Future Monthly Zonal Charges'!$B$5:$B$10000="ODEC")* ('Future Monthly Zonal Charges'!R$5:R$10000='Future Monthly Zonal Charges'!$F$5:$F$10000)*('Future Monthly Zonal Charges'!R$5:R$10000) ) -> 4594813.05 | N19: =SUMPRODUCT( (LEFT('Future Monthly Zonal Charges'!$A$5:$A$10000,1)="b")* ('Future Monthly Zonal Charges'!$B$5:$B$10000=N$3)* ('Future Monthly Zonal Charges'!S$5:S$10000='Future Monthly Zonal Charges'!$F$5:$F$10000)*('Future Monthly Zonal Charges'!S$5:S$10000) ) -> 0 | O19: =SUMPRODUCT( (LEFT('Future Monthly Zonal Charges'!$A$5:$A$10000,1)="b")* ('Future Monthly Zonal Charges'!$B$5:$B$10000=O$3)* ('Future Monthly Zonal Charges'!T$5:T$10000='Future Monthly Zonal Charges'!$F$5:$F$10000)*('Future Monthly Zonal Charges'!T$5:T$10000) ) -> 788361.3525 | P19: =SUMPRODUCT( (LEFT('Future Monthly Zonal Charges'!$A$5:$A$10000,1)="b")* ('Future Monthly Zonal Charges'!$B$5:$B$10000=P$3)* ('Future Monthly Zonal Charges'!U$5:U$10000='Future Monthly Zonal Charges'!$F$5:$F$10000)*('Future Monthly Zonal Charges'!U$5:U$10000) ) -> 0 | Q19: =SUMPRODUCT( (LEFT('Future Monthly Zonal Charges'!$A$5:$A$10000,1)="b")* ('Future Monthly Zonal Charges'!$B$5:$B$10000=Q$3)* ('Future Monthly Zonal Charges'!V$5:V$10000='Future Monthly Zonal Charges'!$F$5:$F$10000)*('Future Monthly Zonal Charges'!V$5:V$10000) ) -> 4916628.307 | R19: =($R$5/($R$5+$V$5))* ( SUMPRODUCT( (LEFT('Future Monthly Zonal Charges'!$A$5:$A$10000,1)="b")* ('Future Monthly Zonal Charges'!$B$5:$B$10000=R$3)* ('Future Monthly Zonal Charges'!W$5:W$10000='Future Monthly Zonal Charges'!$F$5:$F$10000)* ('Future Monthly Zonal Charges'!W$5:W$10000) ) + SUMPRODUCT( (LEFT('Future Monthly Zonal Charges'!$A$5:$A$10000,1)="b")* ('Future Monthly Zonal Charges'!$B$5:$B$10000=V$3)* ('Future Monthly Zonal Charges'!AA$5:AA$10000='Future Monthly Zonal Charges'!$F$5:$F$10000)* ('Future Monthly Zonal Charges'!AA$5:AA$10000) ) ) -> 3252818.959 | S19: =SUMPRODUCT( (LEFT('Future Monthly Zonal Charges'!$A$5:$A$10000,1)="b")* ('Future Monthly Zonal Charges'!$B$5:$B$10000=S$3)* ('Future Monthly Zonal Charges'!X$5:X$10000='Future Monthly Zonal Charges'!$F$5:$F$10000)*('Future Monthly Zonal Charges'!X$5:X$10000) ) -> 0 | T19: =SUMPRODUCT( (LEFT('Future Monthly Zonal Charges'!$A$5:$A$10000,1)="b")* ('Future Monthly Zonal Charges'!$B$5:$B$10000=T$3)* ('Future Monthly Zonal Charges'!Y$5:Y$10000='Future Monthly Zonal Charges'!$F$5:$F$10000)*('Future Monthly Zonal Charges'!Y$5:Y$10000) ) -> 1680.714906 | U19: =SUMPRODUCT( (LEFT('Future Monthly Zonal Charges'!$A$5:$A$10000,1)="b")* ('Future Monthly Zonal Charges'!$B$5:$B$10000=U$3)* ('Future Monthly Zonal Charges'!Z$5:Z$10000='Future Monthly Zonal Charges'!$F$5:$F$10000)*('Future Monthly Zonal Charges'!Z$5:Z$10000) ) -> 1669397.08 | V19: =(V$5/R$5)*R19 -> 3047182.835 | W19: =SUMPRODUCT( (LEFT('Future Monthly Zonal Charges'!$A$5:$A$10000,1)="b")* ('Future Monthly Zonal Charges'!$B$5:$B$10000=W$3)* ('Future Monthly Zonal Charges'!AB$5:AB$10000='Future Monthly Zonal Charges'!$F$5:$F$10000)*('Future Monthly Zonal Charges'!AB$5:AB$10000) ) -> 2081978.288 | X19: =SUMPRODUCT( (LEFT('Future Monthly Zonal Charges'!$A$5:$A$10000,1)="b")* ('Future Monthly Zonal Charges'!$B$5:$B$10000=X$3)* ('Future Monthly Zonal Charges'!AC$5:AC$10000='Future Monthly Zonal Charges'!$F$5:$F$10000)*('Future Monthly Zonal Charges'!AC$5:AC$10000) ) + SUMPRODUCT( (LEFT('Future Monthly Zonal Charges'!$A$5:$A$10000,1)="b")* ('Future Monthly Zonal Charges'!$B$5:$B$10000="UGI")* ('Future Monthly Zonal Charges'!AC$5:AC$10000='Future Monthly Zonal Charges'!$F$5:$F$10000)*('Future Monthly Zonal Charges'!AC$5:AC$10000) ) -> 8577214.314 | Y19: =SUMPRODUCT( (LEFT('Future Monthly Zonal Charges'!$A$5:$A$10000,1)="b")* ('Future Monthly Zonal Charges'!$B$5:$B$10000=Y$3)* ('Future Monthly Zonal Charges'!AD$5:AD$10000='Future Monthly Zonal Charges'!$F$5:$F$10000)*('Future Monthly Zonal Charges'!AD$5:AD$10000) ) -> 13737554.81 | Z19: =SUMPRODUCT( (LEFT('Future Monthly Zonal Charges'!$A$5:$A$10000,1)="b")* ('Future Monthly Zonal Charges'!$B$5:$B$10000=Z$3)* ('Future Monthly Zonal Charges'!AE$5:AE$10000='Future Monthly Zonal Charges'!$F$5:$F$10000)*('Future Monthly Zonal Charges'!AE$5:AE$10000) ) -> 2587.091643 | AA19: 169270414.9
A20: (2) Upgrades Allocated Less Than 100% To Zone | C20: =SUMPRODUCT( (LEFT('Future Monthly Zonal Charges'!$A$5:$A$10000,1)="b")* ('Future Monthly Zonal Charges'!$B$5:$B$10000=C$3)* ('Future Monthly Zonal Charges'!H$5:H$10000<>'Future Monthly Zonal Charges'!$F$5:$F$10000)* ('Future Monthly Zonal Charges'!H$5:H$10000) ) -> 376718.7578 | D20: =SUMPRODUCT( (LEFT('Future Monthly Zonal Charges'!$A$5:$A$10000,1)="b")* ('Future Monthly Zonal Charges'!$B$5:$B$10000=D$3)* ('Future Monthly Zonal Charges'!I$5:I$10000<>'Future Monthly Zonal Charges'!$F$5:$F$10000)* ('Future Monthly Zonal Charges'!I$5:I$10000) ) -> 9324689.092 | E20: =SUMPRODUCT( (LEFT('Future Monthly Zonal Charges'!$A$5:$A$10000,1)="b")* ('Future Monthly Zonal Charges'!$B$5:$B$10000=E$3)* ('Future Monthly Zonal Charges'!J$5:J$10000<>'Future Monthly Zonal Charges'!$F$5:$F$10000)* ('Future Monthly Zonal Charges'!J$5:J$10000) ) -> 952487.9659 | F20: =SUMPRODUCT( (LEFT('Future Monthly Zonal Charges'!$A$5:$A$10000,1)="b")* ('Future Monthly Zonal Charges'!$B$5:$B$10000=F$3)* ('Future Monthly Zonal Charges'!K$5:K$10000<>'Future Monthly Zonal Charges'!$F$5:$F$10000)* ('Future Monthly Zonal Charges'!K$5:K$10000) ) -> 1216145.291 | G20: =SUMPRODUCT( (LEFT('Future Monthly Zonal Charges'!$A$5:$A$10000,1)="b")* ('Future Monthly Zonal Charges'!$B$5:$B$10000=G$3)* ('Future Monthly Zonal Charges'!L$5:L$10000<>'Future Monthly Zonal Charges'!$F$5:$F$10000)* ('Future Monthly Zonal Charges'!L$5:L$10000) ) -> 1962544.593 | H20: =SUMPRODUCT( (LEFT('Future Monthly Zonal Charges'!$A$5:$A$10000,1)="b")* ('Future Monthly Zonal Charges'!$B$5:$B$10000=H$3)* ('Future Monthly Zonal Charges'!M$5:M$10000<>'Future Monthly Zonal Charges'!$F$5:$F$10000)* ('Future Monthly Zonal Charges'!M$5:M$10000) ) -> 1630852.876 | I20: =SUMPRODUCT( (LEFT('Future Monthly Zonal Charges'!$A$5:$A$10000,1)="b")* ('Future Monthly Zonal Charges'!$B$5:$B$10000=I$3)* ('Future Monthly Zonal Charges'!N$5:N$10000<>'Future Monthly Zonal Charges'!$F$5:$F$10000)* ('Future Monthly Zonal Charges'!N$5:N$10000) ) -> 198497.2445 | J20: =SUMPRODUCT( (LEFT('Future Monthly Zonal Charges'!$A$5:$A$10000,1)="b")* ('Future Monthly Zonal Charges'!$B$5:$B$10000=J$3)* ('Future Monthly Zonal Charges'!O$5:O$10000<>'Future Monthly Zonal Charges'!$F$5:$F$10000)* ('Future Monthly Zonal Charges'!O$5:O$10000) ) -> 123373.6379 | K20: =SUMPRODUCT( (LEFT('Future Monthly Zonal Charges'!$A$5:$A$10000,1)="b")* ('Future Monthly Zonal Charges'!$B$5:$B$10000=K$3)* ('Future Monthly Zonal Charges'!P$5:P$10000<>'Future Monthly Zonal Charges'!$F$5:$F$10000)* ('Future Monthly Zonal Charges'!P$5:P$10000) ) -> 2069600.012 | L20: =SUMPRODUCT( (LEFT('Future Monthly Zonal Charges'!$A$5:$A$10000,1)="b")* ('Future Monthly Zonal Charges'!$B$5:$B$10000=L$3)* ('Future Monthly Zonal Charges'!Q$5:Q$10000<>'Future Monthly Zonal Charges'!$F$5:$F$10000)* ('Future Monthly Zonal Charges'!Q$5:Q$10000) ) -> 13675206.57 | M20: =SUMPRODUCT( (LEFT('Future Monthly Zonal Charges'!$A$5:$A$10000,1)="b")* ('Future Monthly Zonal Charges'!$B$5:$B$10000=M$3)* ('Future Monthly Zonal Charges'!R$5:R$10000<>'Future Monthly Zonal Charges'!$F$5:$F$10000)* ('Future Monthly Zonal Charges'!R$5:R$10000) ) + SUMPRODUCT( (LEFT('Future Monthly Zonal Charges'!$A$5:$A$10000,1)="b")* ('Future Monthly Zonal Charges'!$B$5:$B$10000="ODEC")* ('Future Monthly Zonal Charges'!R$5:R$10000<>'Future Monthly Zonal Charges'!$F$5:$F$10000)* ('Future Monthly Zonal Charges'!R$5:R$10000) ) -> 221305.2355 | N20: =SUMPRODUCT( (LEFT('Future Monthly Zonal Charges'!$A$5:$A$10000,1)="b")* ('Future Monthly Zonal Charges'!$B$5:$B$10000=N$3)* ('Future Monthly Zonal Charges'!S$5:S$10000<>'Future Monthly Zonal Charges'!$F$5:$F$10000)* ('Future Monthly Zonal Charges'!S$5:S$10000) ) -> 0 | O20: =SUMPRODUCT( (LEFT('Future Monthly Zonal Charges'!$A$5:$A$10000,1)="b")* ('Future Monthly Zonal Charges'!$B$5:$B$10000=O$3)* ('Future Monthly Zonal Charges'!T$5:T$10000<>'Future Monthly Zonal Charges'!$F$5:$F$10000)* ('Future Monthly Zonal Charges'!T$5:T$10000) ) -> 0 | P20: =SUMPRODUCT( (LEFT('Future Monthly Zonal Charges'!$A$5:$A$10000,1)="b")* ('Future Monthly Zonal Charges'!$B$5:$B$10000=P$3)* ('Future Monthly Zonal Charges'!U$5:U$10000<>'Future Monthly Zonal Charges'!$F$5:$F$10000)* ('Future Monthly Zonal Charges'!U$5:U$10000) ) -> 0 | Q20: =SUMPRODUCT( (LEFT('Future Monthly Zonal Charges'!$A$5:$A$10000,1)="b")* ('Future Monthly Zonal Charges'!$B$5:$B$10000=Q$3)* ('Future Monthly Zonal Charges'!V$5:V$10000<>'Future Monthly Zonal Charges'!$F$5:$F$10000)* ('Future Monthly Zonal Charges'!V$5:V$10000) ) -> 2217443.34 | R20: =($R$5/($R$5+$V$5))* ( SUMPRODUCT( (LEFT('Future Monthly Zonal Charges'!$A$5:$A$10000,1)="b")* ('Future Monthly Zonal Charges'!$B$5:$B$10000=R$3)* ('Future Monthly Zonal Charges'!W$5:W$10000<>'Future Monthly Zonal Charges'!$F$5:$F$10000)* ('Future Monthly Zonal Charges'!W$5:W$10000) ) + SUMPRODUCT( (LEFT('Future Monthly Zonal Charges'!$A$5:$A$10000,1)="b")* ('Future Monthly Zonal Charges'!$B$5:$B$10000=V$3)* ('Future Monthly Zonal Charges'!AA$5:AA$10000<>'Future Monthly Zonal Charges'!$F$5:$F$10000)* ('Future Monthly Zonal Charges'!AA$5:AA$10000) ) ) -> 698179.63 | S20: =SUMPRODUCT( (LEFT('Future Monthly Zonal Charges'!$A$5:$A$10000,1)="b")* ('Future Monthly Zonal Charges'!$B$5:$B$10000=S$3)* ('Future Monthly Zonal Charges'!X$5:X$10000<>'Future Monthly Zonal Charges'!$F$5:$F$10000)* ('Future Monthly Zonal Charges'!X$5:X$10000) ) -> 0 | T20: =SUMPRODUCT( (LEFT('Future Monthly Zonal Charges'!$A$5:$A$10000,1)="b")* ('Future Monthly Zonal Charges'!$B$5:$B$10000=T$3)* ('Future Monthly Zonal Charges'!Y$5:Y$10000<>'Future Monthly Zonal Charges'!$F$5:$F$10000)* ('Future Monthly Zonal Charges'!Y$5:Y$10000) ) -> 0 | U20: =SUMPRODUCT( (LEFT('Future Monthly Zonal Charges'!$A$5:$A$10000,1)="b")* ('Future Monthly Zonal Charges'!$B$5:$B$10000=U$3)* ('Future Monthly Zonal Charges'!Z$5:Z$10000<>'Future Monthly Zonal Charges'!$F$5:$F$10000)* ('Future Monthly Zonal Charges'!Z$5:Z$10000) ) -> 1494505.355 | V20: =(V$5/R$5)*R20 -> 654042.2357 | W20: =SUMPRODUCT( (LEFT('Future Monthly Zonal Charges'!$A$5:$A$10000,1)="b")* ('Future Monthly Zonal Charges'!$B$5:$B$10000=W$3)* ('Future Monthly Zonal Charges'!AB$5:AB$10000<>'Future Monthly Zonal Charges'!$F$5:$F$10000)* ('Future Monthly Zonal Charges'!AB$5:AB$10000) ) -> 2379375.021 | X20: =SUMPRODUCT( (LEFT('Future Monthly Zonal Charges'!$A$5:$A$10000,1)="b")* ('Future Monthly Zonal Charges'!$B$5:$B$10000=X$3)* ('Future Monthly Zonal Charges'!AC$5:AC$10000<>'Future Monthly Zonal Charges'!$F$5:$F$10000)* ('Future Monthly Zonal Charges'!AC$5:AC$10000) ) + SUMPRODUCT( (LEFT('Future Monthly Zonal Charges'!$A$5:$A$10000,1)="b")* ('Future Monthly Zonal Charges'!$B$5:$B$10000="UGI")* ('Future Monthly Zonal Charges'!AC$5:AC$10000<>'Future Monthly Zonal Charges'!$F$5:$F$10000)* ('Future Monthly Zonal Charges'!AC$5:AC$10000) ) -> 609708.4924 | Y20: =SUMPRODUCT( (LEFT('Future Monthly Zonal Charges'!$A$5:$A$10000,1)="b")* ('Future Monthly Zonal Charges'!$B$5:$B$10000=Y$3)* ('Future Monthly Zonal Charges'!AD$5:AD$10000<>'Future Monthly Zonal Charges'!$F$5:$F$10000)* ('Future Monthly Zonal Charges'!AD$5:AD$10000) ) -> 38399658.3 | Z20: =SUMPRODUCT( (LEFT('Future Monthly Zonal Charges'!$A$5:$A$10000,1)="b")* ('Future Monthly Zonal Charges'!$B$5:$B$10000=Z$3)* ('Future Monthly Zonal Charges'!AE$5:AE$10000<>'Future Monthly Zonal Charges'!$F$5:$F$10000)* ('Future Monthly Zonal Charges'!AE$5:AE$10000) ) -> 8411.112551 | AA20: 78212744.76
A21: b. Upgrades Not Constructed By Local Transmission Owner | C21: =SUMPRODUCT( (LEFT('Future Monthly Zonal Charges'!$A$5:$A$10000,1)="b")* ('Future Monthly Zonal Charges'!$B$5:$B$10000<>C$3)* ('Future Monthly Zonal Charges'!H$5:H$10000) ) -> 2850159.627 | D21: =SUMPRODUCT( (LEFT('Future Monthly Zonal Charges'!$A$5:$A$10000,1)="b")* ('Future Monthly Zonal Charges'!$B$5:$B$10000<>D$3)* ('Future Monthly Zonal Charges'!I$5:I$10000) ) -> 4568649.619 | E21: =SUMPRODUCT( (LEFT('Future Monthly Zonal Charges'!$A$5:$A$10000,1)="b")* ('Future Monthly Zonal Charges'!$B$5:$B$10000<>E$3)* ('Future Monthly Zonal Charges'!J$5:J$10000) ) -> 9563296.269 | F21: =SUMPRODUCT( (LEFT('Future Monthly Zonal Charges'!$A$5:$A$10000,1)="b")* ('Future Monthly Zonal Charges'!$B$5:$B$10000<>F$3)* ('Future Monthly Zonal Charges'!K$5:K$10000) ) -> 3340242.508 | G21: =SUMPRODUCT( (LEFT('Future Monthly Zonal Charges'!$A$5:$A$10000,1)="b")* ('Future Monthly Zonal Charges'!$B$5:$B$10000<>G$3)* ('Future Monthly Zonal Charges'!L$5:L$10000) ) -> 3565215.672 | H21: =SUMPRODUCT( (LEFT('Future Monthly Zonal Charges'!$A$5:$A$10000,1)="b")* ('Future Monthly Zonal Charges'!$B$5:$B$10000<>H$3)* ('Future Monthly Zonal Charges'!M$5:M$10000) ) -> 4132922.051 | I21: =SUMPRODUCT( (LEFT('Future Monthly Zonal Charges'!$A$5:$A$10000,1)="b")* ('Future Monthly Zonal Charges'!$B$5:$B$10000<>I$3)* ('Future Monthly Zonal Charges'!N$5:N$10000) ) -> 1106668.448 | J21: =SUMPRODUCT( (LEFT('Future Monthly Zonal Charges'!$A$5:$A$10000,1)="b")* ('Future Monthly Zonal Charges'!$B$5:$B$10000<>J$3)* ('Future Monthly Zonal Charges'!O$5:O$10000) ) -> 1044558.221 | K21: =SUMPRODUCT( (LEFT('Future Monthly Zonal Charges'!$A$5:$A$10000,1)="b")* ('Future Monthly Zonal Charges'!$B$5:$B$10000<>K$3)* ('Future Monthly Zonal Charges'!P$5:P$10000) ) -> 1530722.387 | L21: =SUMPRODUCT( (LEFT('Future Monthly Zonal Charges'!$A$5:$A$10000,1)="b")* ('Future Monthly Zonal Charges'!$B$5:$B$10000<>L$3)* ('Future Monthly Zonal Charges'!Q$5:Q$10000) ) -> 5634281.159 | M21: =SUMPRODUCT( (LEFT('Future Monthly Zonal Charges'!$A$5:$A$10000,1)="b")* ('Future Monthly Zonal Charges'!$B$5:$B$10000<>M$3)* ('Future Monthly Zonal Charges'!$B$5:$B$10000<>"ODEC")* ('Future Monthly Zonal Charges'!R$5:R$10000) ) -> 1352127.919 | N21: =SUMPRODUCT( (LEFT('Future Monthly Zonal Charges'!$A$5:$A$10000,1)="b")* ('Future Monthly Zonal Charges'!$B$5:$B$10000<>N$3)* ('Future Monthly Zonal Charges'!S$5:S$10000) ) -> 213064.7139 | O21: =SUMPRODUCT( (LEFT('Future Monthly Zonal Charges'!$A$5:$A$10000,1)="b")* ('Future Monthly Zonal Charges'!$B$5:$B$10000<>O$3)* ('Future Monthly Zonal Charges'!T$5:T$10000) ) -> 1072064.53 | P21: =SUMPRODUCT( (LEFT('Future Monthly Zonal Charges'!$A$5:$A$10000,1)="b")* ('Future Monthly Zonal Charges'!$B$5:$B$10000<>P$3)* ('Future Monthly Zonal Charges'!U$5:U$10000) ) -> 1091714.536 | Q21: =SUMPRODUCT( (LEFT('Future Monthly Zonal Charges'!$A$5:$A$10000,1)="b")* ('Future Monthly Zonal Charges'!$B$5:$B$10000<>Q$3)* ('Future Monthly Zonal Charges'!V$5:V$10000) ) -> 6056941.13 | R21: =SUMPRODUCT( (LEFT('Future Monthly Zonal Charges'!$A$5:$A$10000,1)="b")* ('Future Monthly Zonal Charges'!$B$5:$B$10000<>R$3)* ('Future Monthly Zonal Charges'!$B$5:$B$10000<>V$3)* ('Future Monthly Zonal Charges'!W$5:W$10000) ) -> 964210.2035 | S21: =SUMPRODUCT( (LEFT('Future Monthly Zonal Charges'!$A$5:$A$10000,1)="b")* ('Future Monthly Zonal Charges'!$B$5:$B$10000<>S$3)* ('Future Monthly Zonal Charges'!X$5:X$10000) ) -> 1987623.586 | T21: =SUMPRODUCT( (LEFT('Future Monthly Zonal Charges'!$A$5:$A$10000,1)="b")* ('Future Monthly Zonal Charges'!$B$5:$B$10000<>T$3)* ('Future Monthly Zonal Charges'!Y$5:Y$10000) ) -> 31052.47509 | U21: =SUMPRODUCT( (LEFT('Future Monthly Zonal Charges'!$A$5:$A$10000,1)="b")* ('Future Monthly Zonal Charges'!$B$5:$B$10000<>U$3)* ('Future Monthly Zonal Charges'!Z$5:Z$10000) ) -> 6121086.573 | V21: =SUMPRODUCT( (LEFT('Future Monthly Zonal Charges'!$A$5:$A$10000,1)="b")* ('Future Monthly Zonal Charges'!$B$5:$B$10000<>V$3)* ('Future Monthly Zonal Charges'!$B$5:$B$10000<>R$3)* ('Future Monthly Zonal Charges'!AA$5:AA$10000) ) -> 2269103.684 | W21: =SUMPRODUCT( (LEFT('Future Monthly Zonal Charges'!$A$5:$A$10000,1)="b")* ('Future Monthly Zonal Charges'!$B$5:$B$10000<>W$3)* ('Future Monthly Zonal Charges'!AB$5:AB$10000) ) -> 4562296.545 | X21: =SUMPRODUCT( (LEFT('Future Monthly Zonal Charges'!$A$5:$A$10000,1)="b")* ('Future Monthly Zonal Charges'!$B$5:$B$10000<>X$3)* ('Future Monthly Zonal Charges'!$B$5:$B$10000<>"UGI")* ('Future Monthly Zonal Charges'!AC$5:AC$10000) ) -> 2209428.367 | Y21: =SUMPRODUCT( (LEFT('Future Monthly Zonal Charges'!$A$5:$A$10000,1)="b")* ('Future Monthly Zonal Charges'!$B$5:$B$10000<>Y$3)* ('Future Monthly Zonal Charges'!AD$5:AD$10000) ) -> 7319287.248 | Z21: =SUMPRODUCT( (LEFT('Future Monthly Zonal Charges'!$A$5:$A$10000,1)="b")* ('Future Monthly Zonal Charges'!$B$5:$B$10000<>Z$3)* ('Future Monthly Zonal Charges'!AE$5:AE$10000) ) -> 1819287.284 | AA21: 74406004.76
A22: 2. Supplemental Upgrades | C22: =SUMPRODUCT( ( (LEFT('Future Monthly Zonal Charges'!$A$5:$A$10000,1)="s")+(LEFT('Future Monthly Zonal Charges'!$A$5:$A$10000,1)="t") )* ('Future Monthly Zonal Charges'!$B$5:$B$10000=C$3)*('Future Monthly Zonal Charges'!H$5:H$10000) ) -> 9695775.78 | D22: =SUMPRODUCT( ( (LEFT('Future Monthly Zonal Charges'!$A$5:$A$10000,1)="s")+(LEFT('Future Monthly Zonal Charges'!$A$5:$A$10000,1)="t") )* ('Future Monthly Zonal Charges'!$B$5:$B$10000=D$3)*('Future Monthly Zonal Charges'!I$5:I$10000) ) -> 155147790.8 | E22: =SUMPRODUCT( ( (LEFT('Future Monthly Zonal Charges'!$A$5:$A$10000,1)="s")+(LEFT('Future Monthly Zonal Charges'!$A$5:$A$10000,1)="t") )* ('Future Monthly Zonal Charges'!$B$5:$B$10000=E$3)*('Future Monthly Zonal Charges'!J$5:J$10000) ) -> 2684915.612 | F22: =SUMPRODUCT( ( (LEFT('Future Monthly Zonal Charges'!$A$5:$A$10000,1)="s")+(LEFT('Future Monthly Zonal Charges'!$A$5:$A$10000,1)="t") )* ('Future Monthly Zonal Charges'!$B$5:$B$10000=F$3)*('Future Monthly Zonal Charges'!K$5:K$10000) ) -> 34773009.61 | G22: =SUMPRODUCT( ( (LEFT('Future Monthly Zonal Charges'!$A$5:$A$10000,1)="s")+(LEFT('Future Monthly Zonal Charges'!$A$5:$A$10000,1)="t") )* ('Future Monthly Zonal Charges'!$B$5:$B$10000=G$3)*('Future Monthly Zonal Charges'!L$5:L$10000) ) -> 15323325.83 | H22: =SUMPRODUCT( ( (LEFT('Future Monthly Zonal Charges'!$A$5:$A$10000,1)="s")+(LEFT('Future Monthly Zonal Charges'!$A$5:$A$10000,1)="t") )* ('Future Monthly Zonal Charges'!$B$5:$B$10000=H$3)*('Future Monthly Zonal Charges'!M$5:M$10000) ) -> 23672813.75 | I22: =SUMPRODUCT( ( (LEFT('Future Monthly Zonal Charges'!$A$5:$A$10000,1)="s")+(LEFT('Future Monthly Zonal Charges'!$A$5:$A$10000,1)="t") )* ('Future Monthly Zonal Charges'!$B$5:$B$10000=I$3)*('Future Monthly Zonal Charges'!N$5:N$10000) ) -> 4972656.533 | J22: =SUMPRODUCT( ( (LEFT('Future Monthly Zonal Charges'!$A$5:$A$10000,1)="s")+(LEFT('Future Monthly Zonal Charges'!$A$5:$A$10000,1)="t") )* ('Future Monthly Zonal Charges'!$B$5:$B$10000=J$3)*('Future Monthly Zonal Charges'!O$5:O$10000) ) -> 9903650.433 | K22: =SUMPRODUCT( ( (LEFT('Future Monthly Zonal Charges'!$A$5:$A$10000,1)="s")+(LEFT('Future Monthly Zonal Charges'!$A$5:$A$10000,1)="t") )* ('Future Monthly Zonal Charges'!$B$5:$B$10000=K$3)*('Future Monthly Zonal Charges'!P$5:P$10000) ) -> 7657048.735 | L22: =SUMPRODUCT( ( (LEFT('Future Monthly Zonal Charges'!$A$5:$A$10000,1)="s")+(LEFT('Future Monthly Zonal Charges'!$A$5:$A$10000,1)="t") )* ('Future Monthly Zonal Charges'!$B$5:$B$10000=L$3)*('Future Monthly Zonal Charges'!Q$5:Q$10000) ) -> 30480079.42 | M22: =SUMPRODUCT( ( (LEFT('Future Monthly Zonal Charges'!$A$5:$A$10000,1)="s")+(LEFT('Future Monthly Zonal Charges'!$A$5:$A$10000,1)="t") )* ('Future Monthly Zonal Charges'!$B$5:$B$10000=M$3)*('Future Monthly Zonal Charges'!R$5:R$10000) ) + SUMPRODUCT( ( (LEFT('Future Monthly Zonal Charges'!$A$5:$A$10000,1)="s")+(LEFT('Future Monthly Zonal Charges'!$A$5:$A$10000,1)="t") )* ('Future Monthly Zonal Charges'!$B$5:$B$10000="ODEC")*('Future Monthly Zonal Charges'!R$5:R$10000) ) -> 5900343.377 | N22: =SUMPRODUCT( ( (LEFT('Future Monthly Zonal Charges'!$A$5:$A$10000,1)="s")+(LEFT('Future Monthly Zonal Charges'!$A$5:$A$10000,1)="t") )* ('Future Monthly Zonal Charges'!$B$5:$B$10000=N$3)*('Future Monthly Zonal Charges'!S$5:S$10000) ) -> 0 | O22: =SUMPRODUCT( ( (LEFT('Future Monthly Zonal Charges'!$A$5:$A$10000,1)="s")+(LEFT('Future Monthly Zonal Charges'!$A$5:$A$10000,1)="t") )* ('Future Monthly Zonal Charges'!$B$5:$B$10000=O$3)*('Future Monthly Zonal Charges'!T$5:T$10000) ) -> 3257281.797 | P22: =SUMPRODUCT( ( (LEFT('Future Monthly Zonal Charges'!$A$5:$A$10000,1)="s")+(LEFT('Future Monthly Zonal Charges'!$A$5:$A$10000,1)="t") )* ('Future Monthly Zonal Charges'!$B$5:$B$10000=P$3)*('Future Monthly Zonal Charges'!U$5:U$10000) ) -> 0 | Q22: =SUMPRODUCT( ( (LEFT('Future Monthly Zonal Charges'!$A$5:$A$10000,1)="s")+(LEFT('Future Monthly Zonal Charges'!$A$5:$A$10000,1)="t") )* ('Future Monthly Zonal Charges'!$B$5:$B$10000=Q$3)*('Future Monthly Zonal Charges'!V$5:V$10000) ) -> 1643251.184 | R22: =($R$5/($R$5+$V$5))* (SUMPRODUCT( ( (LEFT('Future Monthly Zonal Charges'!$A$5:$A$10000,1)="s") + (LEFT('Future Monthly Zonal Charges'!$A$5:$A$10000,1)="t") )* ('Future Monthly Zonal Charges'!$B$5:$B$10000=R$3)* ('Future Monthly Zonal Charges'!W$5:W$10000) ) + SUMPRODUCT( ( (LEFT('Future Monthly Zonal Charges'!$A$5:$A$10000,1)="s") + (LEFT('Future Monthly Zonal Charges'!$A$5:$A$10000,1)="t") )* ('Future Monthly Zonal Charges'!$B$5:$B$10000=V$3)* ('Future Monthly Zonal Charges'!AA$5:AA$10000) ) ) -> 9897677.289 | S22: =SUMPRODUCT( ( (LEFT('Future Monthly Zonal Charges'!$A$5:$A$10000,1)="s")+(LEFT('Future Monthly Zonal Charges'!$A$5:$A$10000,1)="t") )* ('Future Monthly Zonal Charges'!$B$5:$B$10000=S$3)*('Future Monthly Zonal Charges'!X$5:X$10000) ) -> 0 | T22: =SUMPRODUCT( ( (LEFT('Future Monthly Zonal Charges'!$A$5:$A$10000,1)="s")+(LEFT('Future Monthly Zonal Charges'!$A$5:$A$10000,1)="t") )* ('Future Monthly Zonal Charges'!$B$5:$B$10000=T$3)*('Future Monthly Zonal Charges'!Y$5:Y$10000) ) -> 46751.42675 | U22: =SUMPRODUCT( ( (LEFT('Future Monthly Zonal Charges'!$A$5:$A$10000,1)="s")+(LEFT('Future Monthly Zonal Charges'!$A$5:$A$10000,1)="t") )* ('Future Monthly Zonal Charges'!$B$5:$B$10000=U$3)*('Future Monthly Zonal Charges'!Z$5:Z$10000) ) -> 9142203.814 | V22: =(V$5/R$5)*R22 -> 9271967.707 | W22: =SUMPRODUCT( ( (LEFT('Future Monthly Zonal Charges'!$A$5:$A$10000,1)="s")+(LEFT('Future Monthly Zonal Charges'!$A$5:$A$10000,1)="t") )* ('Future Monthly Zonal Charges'!$B$5:$B$10000=W$3)*('Future Monthly Zonal Charges'!AB$5:AB$10000) ) -> 12916943.97 | X22: =SUMPRODUCT( ( (LEFT('Future Monthly Zonal Charges'!$A$5:$A$10000,1)="s")+(LEFT('Future Monthly Zonal Charges'!$A$5:$A$10000,1)="t") )* ('Future Monthly Zonal Charges'!$B$5:$B$10000=X$3)*('Future Monthly Zonal Charges'!AC$5:AC$10000) ) + SUMPRODUCT( ( (LEFT('Future Monthly Zonal Charges'!$A$5:$A$10000,1)="s")+(LEFT('Future Monthly Zonal Charges'!$A$5:$A$10000,1)="t") )* ('Future Monthly Zonal Charges'!$B$5:$B$10000="UGI")*('Future Monthly Zonal Charges'!AC$5:AC$10000) ) -> 25186174.26 | Y22: =SUMPRODUCT( ( (LEFT('Future Monthly Zonal Charges'!$A$5:$A$10000,1)="s")+(LEFT('Future Monthly Zonal Charges'!$A$5:$A$10000,1)="t") )* ('Future Monthly Zonal Charges'!$B$5:$B$10000=Y$3)*('Future Monthly Zonal Charges'!AD$5:AD$10000) ) -> 75945545.44 | Z22: =SUMPRODUCT( ( (LEFT('Future Monthly Zonal Charges'!$A$5:$A$10000,1)="s")+(LEFT('Future Monthly Zonal Charges'!$A$5:$A$10000,1)="t") )* ('Future Monthly Zonal Charges'!$B$5:$B$10000=Z$3)*('Future Monthly Zonal Charges'!AE$5:AE$10000) ) -> 0 | AA22: 447519206.8
A23: FutureTransmission ($/MW) | C23: =IF(C$5>0,C16/C$5,0) -> 6260.925218 | D23: 9741.719384 | E23: 1832.088069 | F23: 4226.041582 | G23: 3647.041364 | H23: 2057.63192 | I23: 2333.52405 | J23: 2478.959638 | K23: 5069.483878 | L23: 4214.617299 | M23: 2925.505922 | N23: 0 | O23: 1709.606708 | P23: 0 | Q23: 2422.751304 | R23: 4902.818681 | S23: 2949.871751 | T23: 656.897659 | U23: 2147.040853 | V23: 5385.399591 | W23: 3760.943779 | X23: 4885.095402 | Y23: 13344.04709 | Z23: 4492.60061
A25: Incremental Transmission ($) | C25: =C16-C7 -> 3043598.961 | D25: 59798481.23 | E25: 1131898.784 | F25: 12282672.58 | G25: 9814379.623 | H25: 2934338.059 | I25: 3156398.829 | J25: 1853710.879 | K25: 3270578.212 | L25: 22478190.05 | M25: 2547241.851 | N25: -22459.42215 | O25: 1381339.345 | P25: -119645.5229 | Q25: 4972788.291 | R25: 4916757.123 | S25: 183967.1136 | T25: -6974.252456 | U25: -470800.6013 | V25: 4329565.394 | W25: 8042736.081 | X25: 7909862.974 | Y25: 4714458.403 | Z25: -40747.53106 | AA25: =SUM(C25:Z25) -> 158102336.5
A26: 1. RTEP Baseline Upgrades | C26: =C17-C8 -> 227918.8004 | D26: 3639377.272 | E26: 370219.246 | F26: -1325022.511 | G26: -432169.2618 | H26: -1505943.459 | I26: 339633.6566 | J26: 466168.9924 | K26: 72420.67169 | L26: 8537969.674 | M26: 880374.1388 | N26: -22459.42215 | O26: 78033.48119 | P26: -119645.5229 | Q26: 4332262.951 | R26: 1215707.294 | S26: 183967.1136 | T26: -2202.562732 | U26: -777177.7327 | V26: 862487.8677 | W26: -1067434.103 | X26: -930231.3633 | Y26: -307931.1898 | Z26: -40747.53106 | AA26: 14675576.5
A27: a. Upgrades Constructed By Local Transmission Owner | C27: =C18-C9 -> -430742.1368 | D27: 3804031.861 | E27: 1163263.958 | F27: -1106864.198 | G27: -114372.631 | H27: -1288541.274 | I27: 354542.3114 | J27: 444600.6197 | K27: 198510.8778 | L27: 9091120.67 | M27: 966464.5083 | N27: 0 | O27: 130936.8892 | P27: 0 | Q27: 4804327.826 | R27: 1157475.833 | S27: 0 | T27: -189.708309 | U27: -248081.5484 | V27: 1084302.734 | W27: -875594.6963 | X27: -1019264.176 | Y27: -2930691.524 | Z27: -1387.354931 | AA27: 15183848.84
A28: (1) Upgrades Allocated 100% To Zone | C28: =C19-C10 -> -363322.3578 | D28: 5150907.284 | E28: 1257429.516 | F28: -932443.378 | G28: -313910.9204 | H28: -1470876.236 | I28: 375239.9837 | J28: 455854.1826 | K28: 504285.5945 | L28: 7417347.116 | M28: 1006269.132 | N28: 0 | O28: 130936.8892 | P28: 0 | Q28: 3009101.741 | R28: 1137231.135 | S28: 0 | T28: -189.708309 | U28: -127712.0832 | V28: 1065337.861 | W28: -430536.6295 | X28: -941842.3409 | Y28: 912706.8305 | Z28: -423.4560469 | AA28: 17841390.15
A29: (2) Upgrades Allocated Less Than 100% To Zone | C29: =C20-C11 -> -67419.77902 | D29: -1346875.422 | E29: -94165.55787 | F29: -174420.8196 | G29: 199538.2895 | H29: 182334.9625 | I29: -20697.67229 | J29: -11253.56289 | K29: -305774.7166 | L29: 1673773.554 | M29: -39804.62412 | N29: 0 | O29: 0 | P29: 0 | Q29: 1795226.085 | R29: 20244.69851 | S29: 0 | T29: 0 | U29: -120369.4652 | V29: 18964.8728 | W29: -445058.0669 | X29: -77421.83505 | Y29: -3843398.355 | Z29: -963.8988844 | AA29: -2657541.313
A30: b. Upgrades Not Constructed By Local Transmission Owner | C30: =C21-C12 -> 658660.9371 | D30: -164654.5896 | E30: -793044.7117 | F30: -218158.3138 | G30: -317796.6309 | H30: -217402.185 | I30: -14908.65474 | J30: 21568.37267 | K30: -126090.2061 | L30: -553150.9954 | M30: -86090.36944 | N30: -22459.42215 | O30: -52903.408 | P30: -119645.5229 | Q30: -472064.875 | R30: 58231.46052 | S30: 183967.1136 | T30: -2012.854423 | U30: -529096.1843 | V30: -221814.8665 | W30: -191839.4064 | X30: 89032.81269 | Y30: 2622760.334 | Z30: -39360.17613 | AA30: -508272.3414
A31: 2. Supplemental Upgrades | C31: =C22-C13 -> 2815680.16 | D31: 56159103.96 | E31: 761679.5381 | F31: 13607695.09 | G31: 10246548.88 | H31: 4440281.518 | I31: 2816765.172 | J31: 1387541.887 | K31: 3198157.54 | L31: 13940220.37 | M31: 1666867.712 | N31: 0 | O31: 1303305.863 | P31: 0 | Q31: 640525.3396 | R31: 3701049.829 | S31: 0 | T31: -4771.689723 | U31: 306377.1313 | V31: 3467077.526 | W31: 9110170.183 | X31: 8840094.338 | Y31: 5022389.593 | Z31: 0 | AA31: 143426760
A32: Incremental Transmission ($/MW) | C32: =C23-C14 -> 1164.345433 | D32: 2753.520554 | E32: 123.646678 | F32: 961.7552585 | G32: 1505.272948 | H32: 138.0066154 | I32: 938.9572907 | J32: 358.8221055 | K32: 1204.765982 | L32: 1062.4821 | M32: 617.4682693 | N32: 0 | O32: 461.4462484 | P32: 0 | Q32: 812.1622582 | R32: 1627.364751 | S32: 273.0292574 | T32: -57.63845005 | U32: -54.85524216 | V32: 1529.719604 | W32: 1378.644465 | X32: 1056.253903 | Y32: 464.6159853 | Z32: -100.0184857
A33: Note 1: For the ME and PENELEC zones, the costs associated with transmission facilities constructed by MAIT and completely allocated to the zone are allocated between ME and PENELEC based on their respective load ratio shares and not based on the zone in which the transmission facilities are constructed.
A34: Note 2: AE Coop, AMTP, ODEC, NAEA, SMECO and UGI ARR has been added to the total zonal charges for the zone into which they are integrated.

Sheet Upgrade Information
A4: Project Name | B4: Upgrade ID | C4: Description | D4: In-Service Date | E4: Latest Cost Estimate ($M) | F4: Transmission Owner | G4: Estimated Useful Life Of Project (Years) | H4: Annual Depreciation Expense | I4: Status | J4: % Complete | K4: Latest TEAC Cost Estimate ($M) | L4: Initial TEAC Cost Estimate ($M) | M4: Initial TEAC Date | N4: Driver | O4: Board Approval Date | P4: ='Planning Allocations'!B4 -> Schedule 12 Location | Q4: Schedule 12 Section For Appendix-A Cost Allocation | R4: Schedule 12 Allocation Type | S4: Non-Load-Ratio-Share Allocation | T4: Load-Ratio-Share Allocation
B5: b0002 | C5: Increase emergency rating of Windy Edge - Lakespring - Texas 115 kV | D5: 2006-01-01 | E5: 3.77 | F5: BGE | G5: =IF( ISERROR( VLOOKUP(F5,'Formula Rate Filing Information'!$A$4:$A$57,1,FALSE) ),'Formula Rate Filing Information'!$J$58, VLOOKUP(F5,'Formula Rate Filing Information'!$A$4:$J$57,'Formula Rate Filing Information'!$J$1,FALSE) ) -> 44 | H5: =IF(OR(I5="Cancelled",I5="On Hold"),0,1000000*E5/G5) -> 85681.81818 | I5: IS | J5: 1 | K5: 0 | L5: 3.77 | M5: 2005-05-09 | N5: Baseline Load Growth Deliverability & Reliability | O5: 2005-05-09 | P5: =IF(LEFT($B5,1)<>"b","N/A",'Planning Allocations'!B5) -> N/A | Q5: =IF(LEFT($B5,1)<>"b","N/A",'Planning Allocations'!C5) -> N/A | R5: =IF(LEFT($B5,1)<>"b","N/A",'Planning Allocations'!D5) -> Single Zone | S5: =IF(OR(LEFT($B5,1)<>"b",'Planning Allocations'!$F5=""), $F5&" (100.00%)", MID('Planning Allocations'!$F5,1,LEN('Planning Allocations'!$F5)-2) ) -> BGE (100.00%) | T5: =IF(OR(LEFT($B5,1)<>"b",'Planning Allocations'!$E5=""), "", MID('Planning Allocations'!$E5,1,LEN('Planning Allocations'!$E5)-2) ) -> 
B6: b0004 | C6: Increase rating of Collins - Cly Tap - Newberry - Round Top 115 kV | D6: 2002-04-01 | E6: 0.33 | F6: ME | G6: =IF( ISERROR( VLOOKUP(F6,'Formula Rate Filing Information'!$A$4:$A$57,1,FALSE) ),'Formula Rate Filing Information'!$J$58, VLOOKUP(F6,'Formula Rate Filing Information'!$A$4:$J$57,'Formula Rate Filing Information'!$J$1,FALSE) ) -> 45.35896734 | H6: =IF(OR(I6="Cancelled",I6="On Hold"),0,1000000*E6/G6) -> 7275.297903 | I6: IS | J6: 1 | K6: 0 | L6: 0.33 | M6: 2005-05-09 | N6: Baseline Load Growth Deliverability & Reliability | O6: 2005-05-09 | P6: =IF(LEFT($B6,1)<>"b","N/A",'Planning Allocations'!B6) -> N/A | Q6: =IF(LEFT($B6,1)<>"b","N/A",'Planning Allocations'!C6) -> N/A | R6: =IF(LEFT($B6,1)<>"b","N/A",'Planning Allocations'!D6) -> Single Zone | S6: =IF(OR(LEFT($B6,1)<>"b",'Planning Allocations'!$F6=""), $F6&" (100.00%)", MID('Planning Allocations'!$F6,1,LEN('Planning Allocations'!$F6)-2) ) -> ME (100.00%) | T6: =IF(OR(LEFT($B6,1)<>"b",'Planning Allocations'!$E6=""), "", MID('Planning Allocations'!$E6,1,LEN('Planning Allocations'!$E6)-2) ) -> 
B7: b0005 | C7: Upgrade two 230 kV breakers at Whitpain #235 and #325 | D7: 2006-01-01 | E7: 0.89 | F7: PECO | G7: =IF( ISERROR( VLOOKUP(F7,'Formula Rate Filing Information'!$A$4:$A$57,1,FALSE) ),'Formula Rate Filing Information'!$J$58, VLOOKUP(F7,'Formula Rate Filing Information'!$A$4:$J$57,'Formula Rate Filing Information'!$J$1,FALSE) ) -> 68.97724685 | H7: 12902.8055 | I7: IS | J7: 1 | K7: 0 | L7: 0.89 | M7: 2005-05-09 | N7: Baseline Load Growth Deliverability & Reliability | O7: 2005-05-09 | P7: =IF(LEFT($B7,1)<>"b","N/A",'Planning Allocations'!B7) -> N/A | Q7: =IF(LEFT($B7,1)<>"b","N/A",'Planning Allocations'!C7) -> N/A | R7: =IF(LEFT($B7,1)<>"b","N/A",'Planning Allocations'!D7) -> Single Zone | S7: =IF(OR(LEFT($B7,1)<>"b",'Planning Allocations'!$F7=""), $F7&" (100.00%)", MID('Planning Allocations'!$F7,1,LEN('Planning Allocations'!$F7)-2) ) -> PECO (100.00%) | T7: =IF(OR(LEFT($B7,1)<>"b",'Planning Allocations'!$E7=""), "", MID('Planning Allocations'!$E7,1,LEN('Planning Allocations'!$E7)-2) ) -> 
B8: b0008 | C8: Install 2-12 MVAR capacitors at Mansfield 115 kV | D8: 2003-05-30 | E8: 0.9 | F8: PENELEC | G8: =IF( ISERROR( VLOOKUP(F8,'Formula Rate Filing Information'!$A$4:$A$57,1,FALSE) ),'Formula Rate Filing Information'!$J$58, VLOOKUP(F8,'Formula Rate Filing Information'!$A$4:$J$57,'Formula Rate Filing Information'!$J$1,FALSE) ) -> 45.35896734 | H8: 19841.72155 | I8: IS | J8: 1 | K8: 0 | L8: 0.9 | M8: 2005-05-09 | N8: Baseline Load Growth Deliverability & Reliability | O8: 2005-05-09 | P8: =IF(LEFT($B8,1)<>"b","N/A",'Planning Allocations'!B8) -> N/A | Q8: =IF(LEFT($B8,1)<>"b","N/A",'Planning Allocations'!C8) -> N/A | R8: =IF(LEFT($B8,1)<>"b","N/A",'Planning Allocations'!D8) -> Single Zone | S8: =IF(OR(LEFT($B8,1)<>"b",'Planning Allocations'!$F8=""), $F8&" (100.00%)", MID('Planning Allocations'!$F8,1,LEN('Planning Allocations'!$F8)-2) ) -> PENELEC (100.00%) | T8: =IF(OR(LEFT($B8,1)<>"b",'Planning Allocations'!$E8=""), "", MID('Planning Allocations'!$E8,1,LEN('Planning Allocations'!$E8)-2) ) -> 
B9: b0009 | C9: Loop 230 kV into North Meshoppen install second 230/115 kV | D9: 2003-10-27 | E9: 2.07 | F9: PENELEC | G9: =IF( ISERROR( VLOOKUP(F9,'Formula Rate Filing Information'!$A$4:$A$57,1,FALSE) ),'Formula Rate Filing Information'!$J$58, VLOOKUP(F9,'Formula Rate Filing Information'!$A$4:$J$57,'Formula Rate Filing Information'!$J$1,FALSE) ) -> 45.35896734 | H9: 45635.95958 | I9: IS | J9: 1 | K9: 0 | L9: 2.07 | M9: 2005-05-09 | N9: Baseline Load Growth Deliverability & Reliability | O9: 2005-05-09 | P9: =IF(LEFT($B9,1)<>"b","N/A",'Planning Allocations'!B9) -> N/A | Q9: =IF(LEFT($B9,1)<>"b","N/A",'Planning Allocations'!C9) -> N/A | R9: =IF(LEFT($B9,1)<>"b","N/A",'Planning Allocations'!D9) -> Single Zone | S9: =IF(OR(LEFT($B9,1)<>"b",'Planning Allocations'!$F9=""), $F9&" (100.00%)", MID('Planning Allocations'!$F9,1,LEN('Planning Allocations'!$F9)-2) ) -> PENELEC (100.00%) | T9: =IF(OR(LEFT($B9,1)<>"b",'Planning Allocations'!$E9=""), "", MID('Planning Allocations'!$E9,1,LEN('Planning Allocations'!$E9)-2) ) -> 
B10: b0010 | C10: Replace Northwest 230/115 kV transformers with 500 MVA transformers | D10: 2003-05-01 | E10: 9.06 | F10: BGE | G10: =IF( ISERROR( VLOOKUP(F10,'Formula Rate Filing Information'!$A$4:$A$57,1,FALSE) ),'Formula Rate Filing Information'!$J$58, VLOOKUP(F10,'Formula Rate Filing Information'!$A$4:$J$57,'Formula Rate Filing Information'!$J$1,FALSE) ) -> 44 | H10: 205909.0909 | I10: IS | J10: 1 | K10: 0 | L10: 9.06 | M10: 2005-05-09 | N10: Baseline Load Growth Deliverability & Reliability | O10: 2005-05-09 | P10: =IF(LEFT($B10,1)<>"b","N/A",'Planning Allocations'!B10) -> N/A | Q10: =IF(LEFT($B10,1)<>"b","N/A",'Planning Allocations'!C10) -> N/A | R10: =IF(LEFT($B10,1)<>"b","N/A",'Planning Allocations'!D10) -> Single Zone | S10: =IF(OR(LEFT($B10,1)<>"b",'Planning Allocations'!$F10=""), $F10&" (100.00%)", MID('Planning Allocations'!$F10,1,LEN('Planning Allocations'!$F10)-2) ) -> BGE (100.00%) | T10: =IF(OR(LEFT($B10,1)<>"b",'Planning Allocations'!$E10=""), "", MID('Planning Allocations'!$E10,1,LEN('Planning Allocations'!$E10)-2) ) -> 
B11: b0011 | C11: Install a single 24 MVAR capacitors bank at Round Top 115 kV | D11: 2003-08-29 | E11: 0.5 | F11: ME | G11: =IF( ISERROR( VLOOKUP(F11,'Formula Rate Filing Information'!$A$4:$A$57,1,FALSE) ),'Formula Rate Filing Information'!$J$58, VLOOKUP(F11,'Formula Rate Filing Information'!$A$4:$J$57,'Formula Rate Filing Information'!$J$1,FALSE) ) -> 45.35896734 | H11: 11023.17864 | I11: IS | J11: 1 | K11: 0 | L11: 0.5 | M11: 2005-05-09 | N11: Baseline Load Growth Deliverability & Reliability | O11: 2005-05-09 | P11: =IF(LEFT($B11,1)<>"b","N/A",'Planning Allocations'!B11) -> N/A | Q11: =IF(LEFT($B11,1)<>"b","N/A",'Planning Allocations'!C11) -> N/A | R11: =IF(LEFT($B11,1)<>"b","N/A",'Planning Allocations'!D11) -> Single Zone | S11: =IF(OR(LEFT($B11,1)<>"b",'Planning Allocations'!$F11=""), $F11&" (100.00%)", MID('Planning Allocations'!$F11,1,LEN('Planning Allocations'!$F11)-2) ) -> ME (100.00%) | T11: =IF(OR(LEFT($B11,1)<>"b",'Planning Allocations'!$E11=""), "", MID('Planning Allocations'!$E11,1,LEN('Planning Allocations'!$E11)-2) ) -> 
B12: b0012 | C12: Install distribution capacitors in South Akron and South Manheim area | D12: 2004-06-30 | E12: 0.405 | F12: PPL | G12: =IF( ISERROR( VLOOKUP(F12,'Formula Rate Filing Information'!$A$4:$A$57,1,FALSE) ),'Formula Rate Filing Information'!$J$58, VLOOKUP(F12,'Formula Rate Filing Information'!$A$4:$J$57,'Formula Rate Filing Information'!$J$1,FALSE) ) -> 42 | H12: 9642.857143 | I12: IS | J12: 1 | K12: 0 | L12: 0.405 | M12: 2005-05-09 | N12: Baseline Load Growth Deliverability & Reliability | O12: 2005-05-09 | P12: =IF(LEFT($B12,1)<>"b","N/A",'Planning Allocations'!B12) -> N/A | Q12: =IF(LEFT($B12,1)<>"b","N/A",'Planning Allocations'!C12) -> N/A | R12: =IF(LEFT($B12,1)<>"b","N/A",'Planning Allocations'!D12) -> Single Zone | S12: =IF(OR(LEFT($B12,1)<>"b",'Planning Allocations'!$F12=""), $F12&" (100.00%)", MID('Planning Allocations'!$F12,1,LEN('Planning Allocations'!$F12)-2) ) -> PPL (100.00%) | T12: =IF(OR(LEFT($B12,1)<>"b",'Planning Allocations'!$E12=""), "", MID('Planning Allocations'!$E12,1,LEN('Planning Allocations'!$E12)-2) ) -> 
B13: b0013 | C13: Construct Yorkanna - Otter Creek 230 kV and Otter Creek substation | D13: 2004-05-20 | E13: 22.3 | F13: PPL | G13: =IF( ISERROR( VLOOKUP(F13,'Formula Rate Filing Information'!$A$4:$A$57,1,FALSE) ),'Formula Rate Filing Information'!$J$58, VLOOKUP(F13,'Formula Rate Filing Information'!$A$4:$J$57,'Formula Rate Filing Information'!$J$1,FALSE) ) -> 42 | H13: 530952.381 | I13: IS | J13: 1 | K13: 0 | L13: 22.3 | M13: 2005-05-09 | N13: Baseline Load Growth Deliverability & Reliability | O13: 2005-05-09 | P13: =IF(LEFT($B13,1)<>"b","N/A",'Planning Allocations'!B13) -> N/A | Q13: =IF(LEFT($B13,1)<>"b","N/A",'Planning Allocations'!C13) -> N/A | R13: =IF(LEFT($B13,1)<>"b","N/A",'Planning Allocations'!D13) -> Single Zone | S13: =IF(OR(LEFT($B13,1)<>"b",'Planning Allocations'!$F13=""), $F13&" (100.00%)", MID('Planning Allocations'!$F13,1,LEN('Planning Allocations'!$F13)-2) ) -> PPL (100.00%) | T13: =IF(OR(LEFT($B13,1)<>"b",'Planning Allocations'!$E13=""), "", MID('Planning Allocations'!$E13,1,LEN('Planning Allocations'!$E13)-2) ) -> 
B14: b0015 | C14: Replace one Athenia 230 kV breaker #B-2228-5 | D14: 2002-05-31 | E14: 0.35 | F14: PSEG | G14: =IF( ISERROR( VLOOKUP(F14,'Formula Rate Filing Information'!$A$4:$A$57,1,FALSE) ),'Formula Rate Filing Information'!$J$58, VLOOKUP(F14,'Formula Rate Filing Information'!$A$4:$J$57,'Formula Rate Filing Information'!$J$1,FALSE) ) -> 47 | H14: 7446.808511 | I14: IS | J14: 1 | K14: 0 | L14: 0.35 | M14: 2005-05-09 | N14: Baseline Load Growth Deliverability & Reliability | O14: 2005-05-09 | P14: =IF(LEFT($B14,1)<>"b","N/A",'Planning Allocations'!B14) -> N/A | Q14: =IF(LEFT($B14,1)<>"b","N/A",'Planning Allocations'!C14) -> N/A | R14: =IF(LEFT($B14,1)<>"b","N/A",'Planning Allocations'!D14) -> Single Zone | S14: =IF(OR(LEFT($B14,1)<>"b",'Planning Allocations'!$F14=""), $F14&" (100.00%)", MID('Planning Allocations'!$F14,1,LEN('Planning Allocations'!$F14)-2) ) -> PSEG (100.00%) | T14: =IF(OR(LEFT($B14,1)<>"b",'Planning Allocations'!$E14=""), "", MID('Planning Allocations'!$E14,1,LEN('Planning Allocations'!$E14)-2) ) -> 
B15: b0016 | C15: Replace one Hudson 230 kV breaker #BS1-6 | D15: 2002-06-30 | E15: 0.35 | F15: PSEG | G15: =IF( ISERROR( VLOOKUP(F15,'Formula Rate Filing Information'!$A$4:$A$57,1,FALSE) ),'Formula Rate Filing Information'!$J$58, VLOOKUP(F15,'Formula Rate Filing Information'!$A$4:$J$57,'Formula Rate Filing Information'!$J$1,FALSE) ) -> 47 | H15: 7446.808511 | I15: IS | J15: 1 | K15: 0 | L15: 0.35 | M15: 2005-05-09 | N15: Baseline Load Growth Deliverability & Reliability | O15: 2005-05-09 | P15: =IF(LEFT($B15,1)<>"b","N/A",'Planning Allocations'!B15) -> N/A | Q15: =IF(LEFT($B15,1)<>"b","N/A",'Planning Allocations'!C15) -> N/A | R15: =IF(LEFT($B15,1)<>"b","N/A",'Planning Allocations'!D15) -> Single Zone | S15: =IF(OR(LEFT($B15,1)<>"b",'Planning Allocations'!$F15=""), $F15&" (100.00%)", MID('Planning Allocations'!$F15,1,LEN('Planning Allocations'!$F15)-2) ) -> PSEG (100.00%) | T15: =IF(OR(LEFT($B15,1)<>"b",'Planning Allocations'!$E15=""), "", MID('Planning Allocations'!$E15,1,LEN('Planning Allocations'!$E15)-2) ) -> 
B16: b0017 | C16: Replace four Roseland 230 kV breakers #BS3-4 #BS4-5 #BS5-6 #BS1-7 with 50KA | D16: 2005-05-01 | E16: 1.4 | F16: PSEG | G16: =IF( ISERROR( VLOOKUP(F16,'Formula Rate Filing Information'!$A$4:$A$57,1,FALSE) ),'Formula Rate Filing Information'!$J$58, VLOOKUP(F16,'Formula Rate Filing Information'!$A$4:$J$57,'Formula Rate Filing Information'!$J$1,FALSE) ) -> 47 | H16: 29787.23404 | I16: IS | J16: 1 | K16: 0 | L16: 1.4 | M16: 2005-05-09 | N16: Baseline Load Growth Deliverability & Reliability | O16: 2005-05-09 | P16: =IF(LEFT($B16,1)<>"b","N/A",'Planning Allocations'!B16) -> N/A | Q16: =IF(LEFT($B16,1)<>"b","N/A",'Planning Allocations'!C16) -> N/A | R16: =IF(LEFT($B16,1)<>"b","N/A",'Planning Allocations'!D16) -> Single Zone | S16: =IF(OR(LEFT($B16,1)<>"b",'Planning Allocations'!$F16=""), $F16&" (100.00%)", MID('Planning Allocations'!$F16,1,LEN('Planning Allocations'!$F16)-2) ) -> PSEG (100.00%) | T16: =IF(OR(LEFT($B16,1)<>"b",'Planning Allocations'!$E16=""), "", MID('Planning Allocations'!$E16,1,LEN('Planning Allocations'!$E16)-2) ) -> 
B17: b0018 | C17: Provide additional cooling for Hudson 230/138 kV #2 transformer | D17: 2005-01-10 | E17: 0.1 | F17: PSEG | G17: =IF( ISERROR( VLOOKUP(F17,'Formula Rate Filing Information'!$A$4:$A$57,1,FALSE) ),'Formula Rate Filing Information'!$J$58, VLOOKUP(F17,'Formula Rate Filing Information'!$A$4:$J$57,'Formula Rate Filing Information'!$J$1,FALSE) ) -> 47 | H17: 2127.659574 | I17: IS | J17: 1 | K17: 0 | L17: 0.1 | M17: 2005-05-09 | N17: Baseline Load Growth Deliverability & Reliability | O17: 2005-05-09 | P17: =IF(LEFT($B17,1)<>"b","N/A",'Planning Allocations'!B17) -> N/A | Q17: =IF(LEFT($B17,1)<>"b","N/A",'Planning Allocations'!C17) -> N/A | R17: =IF(LEFT($B17,1)<>"b","N/A",'Planning Allocations'!D17) -> Single Zone | S17: =IF(OR(LEFT($B17,1)<>"b",'Planning Allocations'!$F17=""), $F17&" (100.00%)", MID('Planning Allocations'!$F17,1,LEN('Planning Allocations'!$F17)-2) ) -> PSEG (100.00%) | T17: =IF(OR(LEFT($B17,1)<>"b",'Planning Allocations'!$E17=""), "", MID('Planning Allocations'!$E17,1,LEN('Planning Allocations'!$E17)-2) ) -> 
B18: b0022 | C18: Upgrade Plymouth Meeting 230 kV breakers #215 | D18: 2003-05-31 | E18: 0.1 | F18: PECO | G18: =IF( ISERROR( VLOOKUP(F18,'Formula Rate Filing Information'!$A$4:$A$57,1,FALSE) ),'Formula Rate Filing Information'!$J$58, VLOOKUP(F18,'Formula Rate Filing Information'!$A$4:$J$57,'Formula Rate Filing Information'!$J$1,FALSE) ) -> 68.97724685 | H18: 1449.753427 | I18: IS | J18: 1 | K18: 0 | L18: 0.1 | M18: 2005-05-09 | N18: Baseline Load Growth Deliverability & Reliability | O18: 2005-05-09 | P18: =IF(LEFT($B18,1)<>"b","N/A",'Planning Allocations'!B18) -> N/A | Q18: =IF(LEFT($B18,1)<>"b","N/A",'Planning Allocations'!C18) -> N/A | R18: =IF(LEFT($B18,1)<>"b","N/A",'Planning Allocations'!D18) -> Single Zone | S18: =IF(OR(LEFT($B18,1)<>"b",'Planning Allocations'!$F18=""), $F18&" (100.00%)", MID('Planning Allocations'!$F18,1,LEN('Planning Allocations'!$F18)-2) ) -> PECO (100.00%) | T18: =IF(OR(LEFT($B18,1)<>"b",'Planning Allocations'!$E18=""), "", MID('Planning Allocations'!$E18,1,LEN('Planning Allocations'!$E18)-2) ) -> 
B19: b0023 | C19: Construct four breaker ring bus and install SVC at Cardiff | D19: 2003-04-24 | E19: 13.9 | F19: AEC | G19: =IF( ISERROR( VLOOKUP(F19,'Formula Rate Filing Information'!$A$4:$A$57,1,FALSE) ),'Formula Rate Filing Information'!$J$58, VLOOKUP(F19,'Formula Rate Filing Information'!$A$4:$J$57,'Formula Rate Filing Information'!$J$1,FALSE) ) -> 35 | H19: 397142.8571 | I19: IS | J19: 1 | K19: 0 | L19: 13.9 | M19: 2005-05-09 | N19: Baseline Load Growth Deliverability & Reliability | O19: 2005-05-09 | P19: =IF(LEFT($B19,1)<>"b","N/A",'Planning Allocations'!B19) -> N/A | Q19: =IF(LEFT($B19,1)<>"b","N/A",'Planning Allocations'!C19) -> N/A | R19: =IF(LEFT($B19,1)<>"b","N/A",'Planning Allocations'!D19) -> Single Zone | S19: =IF(OR(LEFT($B19,1)<>"b",'Planning Allocations'!$F19=""), $F19&" (100.00%)", MID('Planning Allocations'!$F19,1,LEN('Planning Allocations'!$F19)-2) ) -> AEC (100.00%) | T19: =IF(OR(LEFT($B19,1)<>"b",'Planning Allocations'!$E19=""), "", MID('Planning Allocations'!$E19,1,LEN('Planning Allocations'!$E19)-2) ) -> 
B20: b0024 | C20: Construct new 230 kV circuit between Cardiff and Oyster Creek | D20: 2005-06-29 | E20: 58 | F20: AEC | G20: =IF( ISERROR( VLOOKUP(F20,'Formula Rate Filing Information'!$A$4:$A$57,1,FALSE) ),'Formula Rate Filing Information'!$J$58, VLOOKUP(F20,'Formula Rate Filing Information'!$A$4:$J$57,'Formula Rate Filing Information'!$J$1,FALSE) ) -> 35 | H20: 1657142.857 | I20: IS | J20: 1 | K20: 0 | L20: 58 | M20: 2005-05-09 | N20: Baseline Load Growth Deliverability & Reliability | O20: 2005-05-09 | P20: =IF(LEFT($B20,1)<>"b","N/A",'Planning Allocations'!B20) -> N/A | Q20: =IF(LEFT($B20,1)<>"b","N/A",'Planning Allocations'!C20) -> N/A | R20: =IF(LEFT($B20,1)<>"b","N/A",'Planning Allocations'!D20) -> Single Zone | S20: =IF(OR(LEFT($B20,1)<>"b",'Planning Allocations'!$F20=""), $F20&" (100.00%)", MID('Planning Allocations'!$F20,1,LEN('Planning Allocations'!$F20)-2) ) -> AEC (100.00%) | T20: =IF(OR(LEFT($B20,1)<>"b",'Planning Allocations'!$E20=""), "", MID('Planning Allocations'!$E20,1,LEN('Planning Allocations'!$E20)-2) ) -> 
B21: b0025 | C21: Convert the Bergen-Leonia 138kV circuit to 230kV circuit. | D21: 2008-05-23 | E21: 25 | F21: PSEG | G21: =IF( ISERROR( VLOOKUP(F21,'Formula Rate Filing Information'!$A$4:$A$57,1,FALSE) ),'Formula Rate Filing Information'!$J$58, VLOOKUP(F21,'Formula Rate Filing Information'!$A$4:$J$57,'Formula Rate Filing Information'!$J$1,FALSE) ) -> 47 | H21: 531914.8936 | I21: IS | J21: 1 | K21: 0 | L21: 25 | M21: 2005-09-22 | N21: Baseline Load Growth Deliverability & Reliability | O21: 2005-09-22 | P21: =IF(LEFT($B21,1)<>"b","N/A",'Planning Allocations'!B21) -> Appendix | Q21: =IF(LEFT($B21,1)<>"b","N/A",'Planning Allocations'!C21) -> N/A | R21: =IF(LEFT($B21,1)<>"b","N/A",'Planning Allocations'!D21) -> Single Zone | S21: =IF(OR(LEFT($B21,1)<>"b",'Planning Allocations'!$F21=""), $F21&" (100.00%)", MID('Planning Allocations'!$F21,1,LEN('Planning Allocations'!$F21)-2) ) -> PSEG (100.00%) | T21: =IF(OR(LEFT($B21,1)<>"b",'Planning Allocations'!$E21=""), "", MID('Planning Allocations'!$E21,1,LEN('Planning Allocations'!$E21)-2) ) -> 
B22: b0026 | C22: Install a breaker at Brunner Island 230 kV on the Yorkanna circuit | D22: 2003-11-09 | E22: 0.8 | F22: PPL | G22: =IF( ISERROR( VLOOKUP(F22,'Formula Rate Filing Information'!$A$4:$A$57,1,FALSE) ),'Formula Rate Filing Information'!$J$58, VLOOKUP(F22,'Formula Rate Filing Information'!$A$4:$J$57,'Formula Rate Filing Information'!$J$1,FALSE) ) -> 42 | H22: 19047.61905 | I22: IS | J22: 1 | K22: 0 | L22: 0.8 | M22: 2005-05-09 | N22: Baseline Load Growth Deliverability & Reliability | O22: 2005-05-09 | P22: =IF(LEFT($B22,1)<>"b","N/A",'Planning Allocations'!B22) -> N/A | Q22: =IF(LEFT($B22,1)<>"b","N/A",'Planning Allocations'!C22) -> N/A | R22: =IF(LEFT($B22,1)<>"b","N/A",'Planning Allocations'!D22) -> Single Zone | S22: =IF(OR(LEFT($B22,1)<>"b",'Planning Allocations'!$F22=""), $F22&" (100.00%)", MID('Planning Allocations'!$F22,1,LEN('Planning Allocations'!$F22)-2) ) -> PPL (100.00%) | T22: =IF(OR(LEFT($B22,1)<>"b",'Planning Allocations'!$E22=""), "", MID('Planning Allocations'!$E22,1,LEN('Planning Allocations'!$E22)-2) ) -> 
B23: b0027 | C23: Replace two Manor 230 kV Breakers WH-N WH-S | D23: 2003-05-23 | E23: 1 | F23: PPL | G23: =IF( ISERROR( VLOOKUP(F23,'Formula Rate Filing Information'!$A$4:$A$57,1,FALSE) ),'Formula Rate Filing Information'!$J$58, VLOOKUP(F23,'Formula Rate Filing Information'!$A$4:$J$57,'Formula Rate Filing Information'!$J$1,FALSE) ) -> 42 | H23: 23809.52381 | I23: IS | J23: 1 | K23: 0 | L23: 1 | M23: 2005-05-09 | N23: Baseline Load Growth Deliverability & Reliability | O23: 2005-05-09 | P23: =IF(LEFT($B23,1)<>"b","N/A",'Planning Allocations'!B23) -> N/A | Q23: =IF(LEFT($B23,1)<>"b","N/A",'Planning Allocations'!C23) -> N/A | R23: =IF(LEFT($B23,1)<>"b","N/A",'Planning Allocations'!D23) -> Single Zone | S23: =IF(OR(LEFT($B23,1)<>"b",'Planning Allocations'!$F23=""), $F23&" (100.00%)", MID('Planning Allocations'!$F23,1,LEN('Planning Allocations'!$F23)-2) ) -> PPL (100.00%) | T23: =IF(OR(LEFT($B23,1)<>"b",'Planning Allocations'!$E23=""), "", MID('Planning Allocations'!$E23,1,LEN('Planning Allocations'!$E23)-2) ) -> 
B24: b0030 | C24: Construct a new 230kV tower line to separate the existing Brandon Shores-Riverside DCTL to eliminate MAAC 2C violation | D24: 2006-11-06 | E24: 4 | F24: BGE | G24: =IF( ISERROR( VLOOKUP(F24,'Formula Rate Filing Information'!$A$4:$A$57,1,FALSE) ),'Formula Rate Filing Information'!$J$58, VLOOKUP(F24,'Formula Rate Filing Information'!$A$4:$J$57,'Formula Rate Filing Information'!$J$1,FALSE) ) -> 44 | H24: 90909.09091 | I24: IS | J24: 1 | K24: 0 | L24: 4 | M24: 2005-05-09 | N24: Baseline Load Growth Deliverability & Reliability | O24: 2005-05-09 | P24: =IF(LEFT($B24,1)<>"b","N/A",'Planning Allocations'!B24) -> N/A | Q24: =IF(LEFT($B24,1)<>"b","N/A",'Planning Allocations'!C24) -> N/A | R24: =IF(LEFT($B24,1)<>"b","N/A",'Planning Allocations'!D24) -> Single Zone | S24: =IF(OR(LEFT($B24,1)<>"b",'Planning Allocations'!$F24=""), $F24&" (100.00%)", MID('Planning Allocations'!$F24,1,LEN('Planning Allocations'!$F24)-2) ) -> BGE (100.00%) | T24: =IF(OR(LEFT($B24,1)<>"b",'Planning Allocations'!$E24=""), "", MID('Planning Allocations'!$E24,1,LEN('Planning Allocations'!$E24)-2) ) -> 
B25: b0031.1 | C25: Replace one (1) Conastone 230 kV breaker #6 (GCB) (2322/2302 line) | D25: 2004-05-14 | E25: 0.5 | F25: BGE | G25: =IF( ISERROR( VLOOKUP(F25,'Formula Rate Filing Information'!$A$4:$A$57,1,FALSE) ),'Formula Rate Filing Information'!$J$58, VLOOKUP(F25,'Formula Rate Filing Information'!$A$4:$J$57,'Formula Rate Filing Information'!$J$1,FALSE) ) -> 44 | H25: 11363.63636 | I25: IS | J25: 1 | K25: 0 | L25: 0.5 | M25: 2005-05-09 | N25: Baseline Load Growth Deliverability & Reliability | O25: 2005-05-09 | P25: =IF(LEFT($B25,1)<>"b","N/A",'Planning Allocations'!B25) -> N/A | Q25: =IF(LEFT($B25,1)<>"b","N/A",'Planning Allocations'!C25) -> N/A | R25: =IF(LEFT($B25,1)<>"b","N/A",'Planning Allocations'!D25) -> Single Zone | S25: =IF(OR(LEFT($B25,1)<>"b",'Planning Allocations'!$F25=""), $F25&" (100.00%)", MID('Planning Allocations'!$F25,1,LEN('Planning Allocations'!$F25)-2) ) -> BGE (100.00%) | T25: =IF(OR(LEFT($B25,1)<>"b",'Planning Allocations'!$E25=""), "", MID('Planning Allocations'!$E25,1,LEN('Planning Allocations'!$E25)-2) ) -> 
B26: b0031.2 | C26: Replace one (1) Conastone 230 kV breaker #5(ATB) (500-2/2322 line) | D26: 2003-03-07 | E26: 0.22 | F26: BGE | G26: =IF( ISERROR( VLOOKUP(F26,'Formula Rate Filing Information'!$A$4:$A$57,1,FALSE) ),'Formula Rate Filing Information'!$J$58, VLOOKUP(F26,'Formula Rate Filing Information'!$A$4:$J$57,'Formula Rate Filing Information'!$J$1,FALSE) ) -> 44 | H26: 5000 | I26: IS | J26: 1 | K26: 0 | L26: 0.22 | M26: 2005-05-09 | N26: Baseline Load Growth Deliverability & Reliability | O26: 2005-05-09 | P26: =IF(LEFT($B26,1)<>"b","N/A",'Planning Allocations'!B26) -> N/A | Q26: =IF(LEFT($B26,1)<>"b","N/A",'Planning Allocations'!C26) -> N/A | R26: =IF(LEFT($B26,1)<>"b","N/A",'Planning Allocations'!D26) -> Single Zone | S26: =IF(OR(LEFT($B26,1)<>"b",'Planning Allocations'!$F26=""), $F26&" (100.00%)", MID('Planning Allocations'!$F26,1,LEN('Planning Allocations'!$F26)-2) ) -> BGE (100.00%) | T26: =IF(OR(LEFT($B26,1)<>"b",'Planning Allocations'!$E26=""), "", MID('Planning Allocations'!$E26,1,LEN('Planning Allocations'!$E26)-2) ) -> 
B27: b0032 | C27: Upgrade two Waugh Chapel 230 kV breakers | D27: 2006-01-01 | E27: 0 | F27: BGE | G27: =IF( ISERROR( VLOOKUP(F27,'Formula Rate Filing Information'!$A$4:$A$57,1,FALSE) ),'Formula Rate Filing Information'!$J$58, VLOOKUP(F27,'Formula Rate Filing Information'!$A$4:$J$57,'Formula Rate Filing Information'!$J$1,FALSE) ) -> 44 | H27: 0 | I27: IS | J27: 1 | K27: 0 | L27: 0 | M27: 2005-05-09 | N27: Baseline Load Growth Deliverability & Reliability | O27: 2005-05-09 | P27: =IF(LEFT($B27,1)<>"b","N/A",'Planning Allocations'!B27) -> N/A | Q27: =IF(LEFT($B27,1)<>"b","N/A",'Planning Allocations'!C27) -> N/A | R27: =IF(LEFT($B27,1)<>"b","N/A",'Planning Allocations'!D27) -> Single Zone | S27: =IF(OR(LEFT($B27,1)<>"b",'Planning Allocations'!$F27=""), $F27&" (100.00%)", MID('Planning Allocations'!$F27,1,LEN('Planning Allocations'!$F27)-2) ) -> BGE (100.00%) | T27: =IF(OR(LEFT($B27,1)<>"b",'Planning Allocations'!$E27=""), "", MID('Planning Allocations'!$E27,1,LEN('Planning Allocations'!$E27)-2) ) -> 
B28: b0034 | C28: Replace one Sewaren 230 kV breaker | D28: 2002-10-31 | E28: 0.35 | F28: PSEG | G28: =IF( ISERROR( VLOOKUP(F28,'Formula Rate Filing Information'!$A$4:$A$57,1,FALSE) ),'Formula Rate Filing Information'!$J$58, VLOOKUP(F28,'Formula Rate Filing Information'!$A$4:$J$57,'Formula Rate Filing Information'!$J$1,FALSE) ) -> 47 | H28: 7446.808511 | I28: IS | J28: 1 | K28: 0 | L28: 0.35 | M28: 2005-05-09 | N28: Baseline Load Growth Deliverability & Reliability | O28: 2005-05-09 | P28: =IF(LEFT($B28,1)<>"b","N/A",'Planning Allocations'!B28) -> N/A | Q28: =IF(LEFT($B28,1)<>"b","N/A",'Planning Allocations'!C28) -> N/A | R28: =IF(LEFT($B28,1)<>"b","N/A",'Planning Allocations'!D28) -> Single Zone | S28: =IF(OR(LEFT($B28,1)<>"b",'Planning Allocations'!$F28=""), $F28&" (100.00%)", MID('Planning Allocations'!$F28,1,LEN('Planning Allocations'!$F28)-2) ) -> PSEG (100.00%) | T28: =IF(OR(LEFT($B28,1)<>"b",'Planning Allocations'!$E28=""), "", MID('Planning Allocations'!$E28,1,LEN('Planning Allocations'!$E28)-2) ) -> 
B29: b0035 | C29: Change Calvert Cliffs unit 1 & 2 GSU tap settings | D29: 2004-05-01 | E29: 0 | F29: BGE | G29: =IF( ISERROR( VLOOKUP(F29,'Formula Rate Filing Information'!$A$4:$A$57,1,FALSE) ),'Formula Rate Filing Information'!$J$58, VLOOKUP(F29,'Formula Rate Filing Information'!$A$4:$J$57,'Formula Rate Filing Information'!$J$1,FALSE) ) -> 44 | H29: 0 | I29: IS | J29: 1 | K29: 0 | L29: 0 | M29: 2005-05-09 | N29: Baseline Load Growth Deliverability & Reliability | O29: 2005-05-09 | P29: =IF(LEFT($B29,1)<>"b","N/A",'Planning Allocations'!B29) -> N/A | Q29: =IF(LEFT($B29,1)<>"b","N/A",'Planning Allocations'!C29) -> N/A | R29: =IF(LEFT($B29,1)<>"b","N/A",'Planning Allocations'!D29) -> Single Zone | S29: =IF(OR(LEFT($B29,1)<>"b",'Planning Allocations'!$F29=""), $F29&" (100.00%)", MID('Planning Allocations'!$F29,1,LEN('Planning Allocations'!$F29)-2) ) -> BGE (100.00%) | T29: =IF(OR(LEFT($B29,1)<>"b",'Planning Allocations'!$E29=""), "", MID('Planning Allocations'!$E29,1,LEN('Planning Allocations'!$E29)-2) ) -> 
B30: b0036 | C30: Install a second 230/138 kV transformer at Indian River | D30: 2004-06-01 | E30: 5.043 | F30: DPL | G30: =IF( ISERROR( VLOOKUP(F30,'Formula Rate Filing Information'!$A$4:$A$57,1,FALSE) ),'Formula Rate Filing Information'!$J$58, VLOOKUP(F30,'Formula Rate Filing Information'!$A$4:$J$57,'Formula Rate Filing Information'!$J$1,FALSE) ) -> 35 | H30: 144085.7143 | I30: IS | J30: 1 | K30: 0 | L30: 5.043 | M30: 2005-05-09 | N30: Baseline Load Growth Deliverability & Reliability | O30: 2005-05-09 | P30: =IF(LEFT($B30,1)<>"b","N/A",'Planning Allocations'!B30) -> N/A | Q30: =IF(LEFT($B30,1)<>"b","N/A",'Planning Allocations'!C30) -> N/A | R30: =IF(LEFT($B30,1)<>"b","N/A",'Planning Allocations'!D30) -> Single Zone | S30: =IF(OR(LEFT($B30,1)<>"b",'Planning Allocations'!$F30=""), $F30&" (100.00%)", MID('Planning Allocations'!$F30,1,LEN('Planning Allocations'!$F30)-2) ) -> DPL (100.00%) | T30: =IF(OR(LEFT($B30,1)<>"b",'Planning Allocations'!$E30=""), "", MID('Planning Allocations'!$E30,1,LEN('Planning Allocations'!$E30)-2) ) -> 
B31: b0039.1 | C31: BGE Reactive Upgrades | D31: 2004-06-01 | E31: 9.12 | F31: BGE | G31: =IF( ISERROR( VLOOKUP(F31,'Formula Rate Filing Information'!$A$4:$A$57,1,FALSE) ),'Formula Rate Filing Information'!$J$58, VLOOKUP(F31,'Formula Rate Filing Information'!$A$4:$J$57,'Formula Rate Filing Information'!$J$1,FALSE) ) -> 44 | H31: 207272.7273 | I31: IS | J31: 1 | K31: 0 | L31: 9.12 | M31: 2005-05-09 | N31: Baseline Load Growth Deliverability & Reliability | O31: 2005-05-09 | P31: =IF(LEFT($B31,1)<>"b","N/A",'Planning Allocations'!B31) -> N/A | Q31: =IF(LEFT($B31,1)<>"b","N/A",'Planning Allocations'!C31) -> N/A | R31: =IF(LEFT($B31,1)<>"b","N/A",'Planning Allocations'!D31) -> Single Zone | S31: =IF(OR(LEFT($B31,1)<>"b",'Planning Allocations'!$F31=""), $F31&" (100.00%)", MID('Planning Allocations'!$F31,1,LEN('Planning Allocations'!$F31)-2) ) -> BGE (100.00%) | T31: =IF(OR(LEFT($B31,1)<>"b",'Planning Allocations'!$E31=""), "", MID('Planning Allocations'!$E31,1,LEN('Planning Allocations'!$E31)-2) ) -> 
B32: b0039.2 | C32: PEPCO Reactive Upgrades | D32: 2005-05-31 | E32: 2.64 | F32: PEPCO | G32: =IF( ISERROR( VLOOKUP(F32,'Formula Rate Filing Information'!$A$4:$A$57,1,FALSE) ),'Formula Rate Filing Information'!$J$58, VLOOKUP(F32,'Formula Rate Filing Information'!$A$4:$J$57,'Formula Rate Filing Information'!$J$1,FALSE) ) -> 35 | H32: 75428.57143 | I32: IS | J32: 1 | K32: 0 | L32: 2.64 | M32: 2005-05-09 | N32: Baseline Load Growth Deliverability & Reliability | O32: 2005-05-09 | P32: =IF(LEFT($B32,1)<>"b","N/A",'Planning Allocations'!B32) -> N/A | Q32: =IF(LEFT($B32,1)<>"b","N/A",'Planning Allocations'!C32) -> N/A | R32: =IF(LEFT($B32,1)<>"b","N/A",'Planning Allocations'!D32) -> Single Zone | S32: =IF(OR(LEFT($B32,1)<>"b",'Planning Allocations'!$F32=""), $F32&" (100.00%)", MID('Planning Allocations'!$F32,1,LEN('Planning Allocations'!$F32)-2) ) -> PEPCO (100.00%) | T32: =IF(OR(LEFT($B32,1)<>"b",'Planning Allocations'!$E32=""), "", MID('Planning Allocations'!$E32,1,LEN('Planning Allocations'!$E32)-2) ) -> 
B33: b0039.5 | C33: Install Waugh Chapel 230kV 360MVAR capacitor bank | D33: 2006-06-29 | E33: 1.7 | F33: BGE | G33: =IF( ISERROR( VLOOKUP(F33,'Formula Rate Filing Information'!$A$4:$A$57,1,FALSE) ),'Formula Rate Filing Information'!$J$58, VLOOKUP(F33,'Formula Rate Filing Information'!$A$4:$J$57,'Formula Rate Filing Information'!$J$1,FALSE) ) -> 44 | H33: 38636.36364 | I33: IS | J33: 1 | K33: 0 | L33: 1.7 | M33: 2005-05-09 | N33: Baseline Load Growth Deliverability & Reliability | O33: 2006-11-01 | P33: =IF(LEFT($B33,1)<>"b","N/A",'Planning Allocations'!B33) -> N/A | Q33: =IF(LEFT($B33,1)<>"b","N/A",'Planning Allocations'!C33) -> N/A | R33: =IF(LEFT($B33,1)<>"b","N/A",'Planning Allocations'!D33) -> Single Zone | S33: =IF(OR(LEFT($B33,1)<>"b",'Planning Allocations'!$F33=""), $F33&" (100.00%)", MID('Planning Allocations'!$F33,1,LEN('Planning Allocations'!$F33)-2) ) -> BGE (100.00%) | T33: =IF(OR(LEFT($B33,1)<>"b",'Planning Allocations'!$E33=""), "", MID('Planning Allocations'!$E33,1,LEN('Planning Allocations'!$E33)-2) ) -> 
B34: b0040 | C34: Replace Doubs 500/230 kv transformer #1 | D34: 2005-12-31 | E34: 4.1 | F34: APS | G34: =IF( ISERROR( VLOOKUP(F34,'Formula Rate Filing Information'!$A$4:$A$57,1,FALSE) ),'Formula Rate Filing Information'!$J$58, VLOOKUP(F34,'Formula Rate Filing Information'!$A$4:$J$57,'Formula Rate Filing Information'!$J$1,FALSE) ) -> 51.94436374 | H34: 78930.60391 | I34: IS | J34: 1 | K34: 0 | L34: 4.1 | M34: 2005-05-09 | N34: Baseline Load Growth Deliverability & Reliability | O34: 2005-05-09 | P34: =IF(LEFT($B34,1)<>"b","N/A",'Planning Allocations'!B34) -> N/A | Q34: =IF(LEFT($B34,1)<>"b","N/A",'Planning Allocations'!C34) -> N/A | R34: =IF(LEFT($B34,1)<>"b","N/A",'Planning Allocations'!D34) -> Single Zone | S34: =IF(OR(LEFT($B34,1)<>"b",'Planning Allocations'!$F34=""), $F34&" (100.00%)", MID('Planning Allocations'!$F34,1,LEN('Planning Allocations'!$F34)-2) ) -> APS (100.00%) | T34: =IF(OR(LEFT($B34,1)<>"b",'Planning Allocations'!$E34=""), "", MID('Planning Allocations'!$E34,1,LEN('Planning Allocations'!$E34)-2) ) -> 
B35: b0042 | C35: Upgrade Midd Jct - Zions View 115 kV | D35: 2005-06-01 | E35: 0.95 | F35: ME | G35: =IF( ISERROR( VLOOKUP(F35,'Formula Rate Filing Information'!$A$4:$A$57,1,FALSE) ),'Formula Rate Filing Information'!$J$58, VLOOKUP(F35,'Formula Rate Filing Information'!$A$4:$J$57,'Formula Rate Filing Information'!$J$1,FALSE) ) -> 45.35896734 | H35: 20944.03942 | I35: IS | J35: 1 | K35: 0 | L35: 0.95 | M35: 2005-05-09 | N35: Baseline Load Growth Deliverability & Reliability | O35: 2005-05-09 | P35: =IF(LEFT($B35,1)<>"b","N/A",'Planning Allocations'!B35) -> N/A | Q35: =IF(LEFT($B35,1)<>"b","N/A",'Planning Allocations'!C35) -> N/A | R35: =IF(LEFT($B35,1)<>"b","N/A",'Planning Allocations'!D35) -> Single Zone | S35: =IF(OR(LEFT($B35,1)<>"b",'Planning Allocations'!$F35=""), $F35&" (100.00%)", MID('Planning Allocations'!$F35,1,LEN('Planning Allocations'!$F35)-2) ) -> ME (100.00%) | T35: =IF(OR(LEFT($B35,1)<>"b",'Planning Allocations'!$E35=""), "", MID('Planning Allocations'!$E35,1,LEN('Planning Allocations'!$E35)-2) ) -> 
B36: b0043.1 | C36: Add capacitors in north Philadelphia - Buckingham | D36: 2003-06-01 | E36: 1.38 | F36: PECO | G36: =IF( ISERROR( VLOOKUP(F36,'Formula Rate Filing Information'!$A$4:$A$57,1,FALSE) ),'Formula Rate Filing Information'!$J$58, VLOOKUP(F36,'Formula Rate Filing Information'!$A$4:$J$57,'Formula Rate Filing Information'!$J$1,FALSE) ) -> 68.97724685 | H36: 20006.59729 | I36: IS | J36: 1 | K36: 0 | L36: 1.38 | M36: 2005-05-09 | N36: Baseline Load Growth Deliverability & Reliability | O36: 2005-05-09 | P36: =IF(LEFT($B36,1)<>"b","N/A",'Planning Allocations'!B36) -> N/A | Q36: =IF(LEFT($B36,1)<>"b","N/A",'Planning Allocations'!C36) -> N/A | R36: =IF(LEFT($B36,1)<>"b","N/A",'Planning Allocations'!D36) -> Single Zone | S36: =IF(OR(LEFT($B36,1)<>"b",'Planning Allocations'!$F36=""), $F36&" (100.00%)", MID('Planning Allocations'!$F36,1,LEN('Planning Allocations'!$F36)-2) ) -> PECO (100.00%) | T36: =IF(OR(LEFT($B36,1)<>"b",'Planning Allocations'!$E36=""), "", MID('Planning Allocations'!$E36,1,LEN('Planning Allocations'!$E36)-2) ) -> 
B37: b0043.2 | C37: Add capacitors in north Philadelphia - Woodburne | D37: 2004-05-14 | E37: 1.38 | F37: PECO | G37: =IF( ISERROR( VLOOKUP(F37,'Formula Rate Filing Information'!$A$4:$A$57,1,FALSE) ),'Formula Rate Filing Information'!$J$58, VLOOKUP(F37,'Formula Rate Filing Information'!$A$4:$J$57,'Formula Rate Filing Information'!$J$1,FALSE) ) -> 68.97724685 | H37: 20006.59729 | I37: IS | J37: 1 | K37: 0 | L37: 1.38 | M37: 2005-05-09 | N37: Baseline Load Growth Deliverability & Reliability | O37: 2005-05-09 | P37: =IF(LEFT($B37,1)<>"b","N/A",'Planning Allocations'!B37) -> N/A | Q37: =IF(LEFT($B37,1)<>"b","N/A",'Planning Allocations'!C37) -> N/A | R37: =IF(LEFT($B37,1)<>"b","N/A",'Planning Allocations'!D37) -> Single Zone | S37: =IF(OR(LEFT($B37,1)<>"b",'Planning Allocations'!$F37=""), $F37&" (100.00%)", MID('Planning Allocations'!$F37,1,LEN('Planning Allocations'!$F37)-2) ) -> PECO (100.00%) | T37: =IF(OR(LEFT($B37,1)<>"b",'Planning Allocations'!$E37=""), "", MID('Planning Allocations'!$E37,1,LEN('Planning Allocations'!$E37)-2) ) -> 
B38: b0043.3 | C38: Add capacitors in north Philadelphia - North Wales | D38: 2005-05-31 | E38: 1.38 | F38: PECO | G38: =IF( ISERROR( VLOOKUP(F38,'Formula Rate Filing Information'!$A$4:$A$57,1,FALSE) ),'Formula Rate Filing Information'!$J$58, VLOOKUP(F38,'Formula Rate Filing Information'!$A$4:$J$57,'Formula Rate Filing Information'!$J$1,FALSE) ) -> 68.97724685 | H38: 20006.59729 | I38: IS | J38: 1 | K38: 0 | L38: 1.38 | M38: 2005-05-09 | N38: Baseline Load Growth Deliverability & Reliability | O38: 2005-05-09 | P38: =IF(LEFT($B38,1)<>"b","N/A",'Planning Allocations'!B38) -> N/A | Q38: =IF(LEFT($B38,1)<>"b","N/A",'Planning Allocations'!C38) -> N/A | R38: =IF(LEFT($B38,1)<>"b","N/A",'Planning Allocations'!D38) -> Single Zone | S38: =IF(OR(LEFT($B38,1)<>"b",'Planning Allocations'!$F38=""), $F38&" (100.00%)", MID('Planning Allocations'!$F38,1,LEN('Planning Allocations'!$F38)-2) ) -> PECO (100.00%) | T38: =IF(OR(LEFT($B38,1)<>"b",'Planning Allocations'!$E38=""), "", MID('Planning Allocations'!$E38,1,LEN('Planning Allocations'!$E38)-2) ) -> 
B39: b0044 | C39: Replace Richmond 69KV breaker #20 with 40,000 A | D39: 2004-02-01 | E39: 0.1 | F39: PECO | G39: =IF( ISERROR( VLOOKUP(F39,'Formula Rate Filing Information'!$A$4:$A$57,1,FALSE) ),'Formula Rate Filing Information'!$J$58, VLOOKUP(F39,'Formula Rate Filing Information'!$A$4:$J$57,'Formula Rate Filing Information'!$J$1,FALSE) ) -> 68.97724685 | H39: 1449.753427 | I39: IS | J39: 1 | K39: 0 | L39: 0.1 | M39: 2005-05-09 | N39: Baseline Load Growth Deliverability & Reliability | O39: 2005-05-09 | P39: =IF(LEFT($B39,1)<>"b","N/A",'Planning Allocations'!B39) -> N/A | Q39: =IF(LEFT($B39,1)<>"b","N/A",'Planning Allocations'!C39) -> N/A | R39: =IF(LEFT($B39,1)<>"b","N/A",'Planning Allocations'!D39) -> Single Zone | S39: =IF(OR(LEFT($B39,1)<>"b",'Planning Allocations'!$F39=""), $F39&" (100.00%)", MID('Planning Allocations'!$F39,1,LEN('Planning Allocations'!$F39)-2) ) -> PECO (100.00%) | T39: =IF(OR(LEFT($B39,1)<>"b",'Planning Allocations'!$E39=""), "", MID('Planning Allocations'!$E39,1,LEN('Planning Allocations'!$E39)-2) ) -> 
B40: b0045 | C40: Jumper out Richmond 69KV breaker #40 | D40: 2003-12-12 | E40: 0 | F40: PECO | G40: =IF( ISERROR( VLOOKUP(F40,'Formula Rate Filing Information'!$A$4:$A$57,1,FALSE) ),'Formula Rate Filing Information'!$J$58, VLOOKUP(F40,'Formula Rate Filing Information'!$A$4:$J$57,'Formula Rate Filing Information'!$J$1,FALSE) ) -> 68.97724685 | H40: 0 | I40: IS | J40: 1 | K40: 0 | L40: 0 | M40: 2005-05-09 | N40: Baseline Load Growth Deliverability & Reliability | O40: 2005-05-09 | P40: =IF(LEFT($B40,1)<>"b","N/A",'Planning Allocations'!B40) -> N/A | Q40: =IF(LEFT($B40,1)<>"b","N/A",'Planning Allocations'!C40) -> N/A | R40: =IF(LEFT($B40,1)<>"b","N/A",'Planning Allocations'!D40) -> Single Zone | S40: =IF(OR(LEFT($B40,1)<>"b",'Planning Allocations'!$F40=""), $F40&" (100.00%)", MID('Planning Allocations'!$F40,1,LEN('Planning Allocations'!$F40)-2) ) -> PECO (100.00%) | T40: =IF(OR(LEFT($B40,1)<>"b",'Planning Allocations'!$E40=""), "", MID('Planning Allocations'!$E40,1,LEN('Planning Allocations'!$E40)-2) ) -> 
B41: b0047 | C41: Replace Richmond 69KV breaker #120 with 40,000 A | D41: 2003-11-18 | E41: 0.1 | F41: PECO | G41: =IF( ISERROR( VLOOKUP(F41,'Formula Rate Filing Information'!$A$4:$A$57,1,FALSE) ),'Formula Rate Filing Information'!$J$58, VLOOKUP(F41,'Formula Rate Filing Information'!$A$4:$J$57,'Formula Rate Filing Information'!$J$1,FALSE) ) -> 68.97724685 | H41: 1449.753427 | I41: IS | J41: 1 | K41: 0 | L41: 0.1 | M41: 2005-05-09 | N41: Baseline Load Growth Deliverability & Reliability | O41: 2005-05-09 | P41: =IF(LEFT($B41,1)<>"b","N/A",'Planning Allocations'!B41) -> N/A | Q41: =IF(LEFT($B41,1)<>"b","N/A",'Planning Allocations'!C41) -> N/A | R41: =IF(LEFT($B41,1)<>"b","N/A",'Planning Allocations'!D41) -> Single Zone | S41: =IF(OR(LEFT($B41,1)<>"b",'Planning Allocations'!$F41=""), $F41&" (100.00%)", MID('Planning Allocations'!$F41,1,LEN('Planning Allocations'!$F41)-2) ) -> PECO (100.00%) | T41: =IF(OR(LEFT($B41,1)<>"b",'Planning Allocations'!$E41=""), "", MID('Planning Allocations'!$E41,1,LEN('Planning Allocations'!$E41)-2) ) -> 
B42: b0049 | C42: Modify 21 structures for Canaan Valley-Williams 138KV circuit | D42: 2003-11-03 | E42: 0.4 | F42: APS | G42: =IF( ISERROR( VLOOKUP(F42,'Formula Rate Filing Information'!$A$4:$A$57,1,FALSE) ),'Formula Rate Filing Information'!$J$58, VLOOKUP(F42,'Formula Rate Filing Information'!$A$4:$J$57,'Formula Rate Filing Information'!$J$1,FALSE) ) -> 51.94436374 | H42: 7700.546723 | I42: IS | J42: 1 | K42: 0 | L42: 0.4 | M42: 2005-05-09 | N42: Baseline Load Growth Deliverability & Reliability | O42: 2005-05-09 | P42: =IF(LEFT($B42,1)<>"b","N/A",'Planning Allocations'!B42) -> N/A | Q42: =IF(LEFT($B42,1)<>"b","N/A",'Planning Allocations'!C42) -> N/A | R42: =IF(LEFT($B42,1)<>"b","N/A",'Planning Allocations'!D42) -> Single Zone | S42: =IF(OR(LEFT($B42,1)<>"b",'Planning Allocations'!$F42=""), $F42&" (100.00%)", MID('Planning Allocations'!$F42,1,LEN('Planning Allocations'!$F42)-2) ) -> APS (100.00%) | T42: =IF(OR(LEFT($B42,1)<>"b",'Planning Allocations'!$E42=""), "", MID('Planning Allocations'!$E42,1,LEN('Planning Allocations'!$E42)-2) ) -> 
B43: b0050.1 | C43: Add 5.1 MVAR cap at W. Waynesboro 34.5KV | D43: 2003-08-01 | E43: 0.05 | F43: APS | G43: =IF( ISERROR( VLOOKUP(F43,'Formula Rate Filing Information'!$A$4:$A$57,1,FALSE) ),'Formula Rate Filing Information'!$J$58, VLOOKUP(F43,'Formula Rate Filing Information'!$A$4:$J$57,'Formula Rate Filing Information'!$J$1,FALSE) ) -> 51.94436374 | H43: 962.5683403 | I43: IS | J43: 1 | K43: 0 | L43: 0.05 | M43: 2005-05-09 | N43: Baseline Load Growth Deliverability & Reliability | O43: 2005-05-09 | P43: =IF(LEFT($B43,1)<>"b","N/A",'Planning Allocations'!B43) -> N/A | Q43: =IF(LEFT($B43,1)<>"b","N/A",'Planning Allocations'!C43) -> N/A | R43: =IF(LEFT($B43,1)<>"b","N/A",'Planning Allocations'!D43) -> Single Zone | S43: =IF(OR(LEFT($B43,1)<>"b",'Planning Allocations'!$F43=""), $F43&" (100.00%)", MID('Planning Allocations'!$F43,1,LEN('Planning Allocations'!$F43)-2) ) -> APS (100.00%) | T43: =IF(OR(LEFT($B43,1)<>"b",'Planning Allocations'!$E43=""), "", MID('Planning Allocations'!$E43,1,LEN('Planning Allocations'!$E43)-2) ) -> 
B44: b0050.2 | C44: 5.1 MVAR cap at Lime Kiln 34.5 KV | D44: 2003-08-01 | E44: 0.05 | F44: APS | G44: =IF( ISERROR( VLOOKUP(F44,'Formula Rate Filing Information'!$A$4:$A$57,1,FALSE) ),'Formula Rate Filing Information'!$J$58, VLOOKUP(F44,'Formula Rate Filing Information'!$A$4:$J$57,'Formula Rate Filing Information'!$J$1,FALSE) ) -> 51.94436374 | H44: 962.5683403 | I44: IS | J44: 1 | K44: 0 | L44: 0.05 | M44: 2005-05-09 | N44: Baseline Load Growth Deliverability & Reliability | O44: 2005-05-09 | P44: =IF(LEFT($B44,1)<>"b","N/A",'Planning Allocations'!B44) -> N/A | Q44: =IF(LEFT($B44,1)<>"b","N/A",'Planning Allocations'!C44) -> N/A | R44: =IF(LEFT($B44,1)<>"b","N/A",'Planning Allocations'!D44) -> Single Zone | S44: =IF(OR(LEFT($B44,1)<>"b",'Planning Allocations'!$F44=""), $F44&" (100.00%)", MID('Planning Allocations'!$F44,1,LEN('Planning Allocations'!$F44)-2) ) -> APS (100.00%) | T44: =IF(OR(LEFT($B44,1)<>"b",'Planning Allocations'!$E44=""), "", MID('Planning Allocations'!$E44,1,LEN('Planning Allocations'!$E44)-2) ) -> 
B45: b0050.3 | C45: 2.1 MVAR cap at Chamber's No. 5 | D45: 2003-05-23 | E45: 0.05 | F45: APS | G45: =IF( ISERROR( VLOOKUP(F45,'Formula Rate Filing Information'!$A$4:$A$57,1,FALSE) ),'Formula Rate Filing Information'!$J$58, VLOOKUP(F45,'Formula Rate Filing Information'!$A$4:$J$57,'Formula Rate Filing Information'!$J$1,FALSE) ) -> 51.94436374 | H45: 962.5683403 | I45: IS | J45: 1 | K45: 0 | L45: 0.05 | M45: 2005-05-09 | N45: Baseline Load Growth Deliverability & Reliability | O45: 2005-05-09 | P45: =IF(LEFT($B45,1)<>"b","N/A",'Planning Allocations'!B45) -> N/A | Q45: =IF(LEFT($B45,1)<>"b","N/A",'Planning Allocations'!C45) -> N/A | R45: =IF(LEFT($B45,1)<>"b","N/A",'Planning Allocations'!D45) -> Single Zone | S45: =IF(OR(LEFT($B45,1)<>"b",'Planning Allocations'!$F45=""), $F45&" (100.00%)", MID('Planning Allocations'!$F45,1,LEN('Planning Allocations'!$F45)-2) ) -> APS (100.00%) | T45: =IF(OR(LEFT($B45,1)<>"b",'Planning Allocations'!$E45=""), "", MID('Planning Allocations'!$E45,1,LEN('Planning Allocations'!$E45)-2) ) -> 
B46: b0051 | C46: Add 10.2 MVAR cap at Aqueduct 34.5KV | D46: 2003-08-26 | E46: 0.15 | F46: APS | G46: =IF( ISERROR( VLOOKUP(F46,'Formula Rate Filing Information'!$A$4:$A$57,1,FALSE) ),'Formula Rate Filing Information'!$J$58, VLOOKUP(F46,'Formula Rate Filing Information'!$A$4:$J$57,'Formula Rate Filing Information'!$J$1,FALSE) ) -> 51.94436374 | H46: 2887.705021 | I46: IS | J46: 1 | K46: 0 | L46: 0.15 | M46: 2005-05-09 | N46: Baseline Load Growth Deliverability & Reliability | O46: 2005-05-09 | P46: =IF(LEFT($B46,1)<>"b","N/A",'Planning Allocations'!B46) -> N/A | Q46: =IF(LEFT($B46,1)<>"b","N/A",'Planning Allocations'!C46) -> N/A | R46: =IF(LEFT($B46,1)<>"b","N/A",'Planning Allocations'!D46) -> Single Zone | S46: =IF(OR(LEFT($B46,1)<>"b",'Planning Allocations'!$F46=""), $F46&" (100.00%)", MID('Planning Allocations'!$F46,1,LEN('Planning Allocations'!$F46)-2) ) -> APS (100.00%) | T46: =IF(OR(LEFT($B46,1)<>"b",'Planning Allocations'!$E46=""), "", MID('Planning Allocations'!$E46,1,LEN('Planning Allocations'!$E46)-2) ) -> 
B47: b0052.1 | C47: Add a second 10.2 MVAR at Montgomery 34.5 KV for a total of 20.4 MVAR (eff.) | D47: 2006-06-15 | E47: 0.335 | F47: APS | G47: =IF( ISERROR( VLOOKUP(F47,'Formula Rate Filing Information'!$A$4:$A$57,1,FALSE) ),'Formula Rate Filing Information'!$J$58, VLOOKUP(F47,'Formula Rate Filing Information'!$A$4:$J$57,'Formula Rate Filing Information'!$J$1,FALSE) ) -> 51.94436374 | H47: 6449.20788 | I47: IS | J47: 1 | K47: 0 | L47: 0.335 | M47: 2005-05-09 | N47: Baseline Load Growth Deliverability & Reliability | O47: 2005-05-09 | P47: =IF(LEFT($B47,1)<>"b","N/A",'Planning Allocations'!B47) -> N/A | Q47: =IF(LEFT($B47,1)<>"b","N/A",'Planning Allocations'!C47) -> N/A | R47: =IF(LEFT($B47,1)<>"b","N/A",'Planning Allocations'!D47) -> Single Zone | S47: =IF(OR(LEFT($B47,1)<>"b",'Planning Allocations'!$F47=""), $F47&" (100.00%)", MID('Planning Allocations'!$F47,1,LEN('Planning Allocations'!$F47)-2) ) -> APS (100.00%) | T47: =IF(OR(LEFT($B47,1)<>"b",'Planning Allocations'!$E47=""), "", MID('Planning Allocations'!$E47,1,LEN('Planning Allocations'!$E47)-2) ) -> 
B48: b0052.2 | C48: 5.1 MVAR cap at Boonsboro 34.5 KV | D48: 2004-09-16 | E48: 0.335 | F48: APS | G48: =IF( ISERROR( VLOOKUP(F48,'Formula Rate Filing Information'!$A$4:$A$57,1,FALSE) ),'Formula Rate Filing Information'!$J$58, VLOOKUP(F48,'Formula Rate Filing Information'!$A$4:$J$57,'Formula Rate Filing Information'!$J$1,FALSE) ) -> 51.94436374 | H48: 6449.20788 | I48: IS | J48: 1 | K48: 0 | L48: 0.335 | M48: 2005-05-09 | N48: Baseline Load Growth Deliverability & Reliability | O48: 2005-05-09 | P48: =IF(LEFT($B48,1)<>"b","N/A",'Planning Allocations'!B48) -> N/A | Q48: =IF(LEFT($B48,1)<>"b","N/A",'Planning Allocations'!C48) -> N/A | R48: =IF(LEFT($B48,1)<>"b","N/A",'Planning Allocations'!D48) -> Single Zone | S48: =IF(OR(LEFT($B48,1)<>"b",'Planning Allocations'!$F48=""), $F48&" (100.00%)", MID('Planning Allocations'!$F48,1,LEN('Planning Allocations'!$F48)-2) ) -> APS (100.00%) | T48: =IF(OR(LEFT($B48,1)<>"b",'Planning Allocations'!$E48=""), "", MID('Planning Allocations'!$E48,1,LEN('Planning Allocations'!$E48)-2) ) -> 
B49: b0052.3 | C49: Add a second 10.2 MVAR cap at Mt. Airy 34.5 KV for a total of 20.4 MVAR (eff.) | D49: 2004-10-27 | E49: 0.335 | F49: APS | G49: =IF( ISERROR( VLOOKUP(F49,'Formula Rate Filing Information'!$A$4:$A$57,1,FALSE) ),'Formula Rate Filing Information'!$J$58, VLOOKUP(F49,'Formula Rate Filing Information'!$A$4:$J$57,'Formula Rate Filing Information'!$J$1,FALSE) ) -> 51.94436374 | H49: 6449.20788 | I49: IS | J49: 1 | K49: 0 | L49: 0.335 | M49: 2005-05-09 | N49: Baseline Load Growth Deliverability & Reliability | O49: 2005-05-09 | P49: =IF(LEFT($B49,1)<>"b","N/A",'Planning Allocations'!B49) -> N/A | Q49: =IF(LEFT($B49,1)<>"b","N/A",'Planning Allocations'!C49) -> N/A | R49: =IF(LEFT($B49,1)<>"b","N/A",'Planning Allocations'!D49) -> Single Zone | S49: =IF(OR(LEFT($B49,1)<>"b",'Planning Allocations'!$F49=""), $F49&" (100.00%)", MID('Planning Allocations'!$F49,1,LEN('Planning Allocations'!$F49)-2) ) -> APS (100.00%) | T49: =IF(OR(LEFT($B49,1)<>"b",'Planning Allocations'!$E49=""), "", MID('Planning Allocations'!$E49,1,LEN('Planning Allocations'!$E49)-2) ) -> 
B50: b0052.4 | C50: Increase the 8.2 MVAR capacitor to 10.2 MVAR (eff.) at Antietam 34.5 KV | D50: 2004-11-01 | E50: 0.335 | F50: APS | G50: =IF( ISERROR( VLOOKUP(F50,'Formula Rate Filing Information'!$A$4:$A$57,1,FALSE) ),'Formula Rate Filing Information'!$J$58, VLOOKUP(F50,'Formula Rate Filing Information'!$A$4:$J$57,'Formula Rate Filing Information'!$J$1,FALSE) ) -> 51.94436374 | H50: 6449.20788 | I50: IS | J50: 1 | K50: 0 | L50: 0.335 | M50: 2005-05-09 | N50: Baseline Load Growth Deliverability & Reliability | O50: 2005-05-09 | P50: =IF(LEFT($B50,1)<>"b","N/A",'Planning Allocations'!B50) -> N/A | Q50: =IF(LEFT($B50,1)<>"b","N/A",'Planning Allocations'!C50) -> N/A | R50: =IF(LEFT($B50,1)<>"b","N/A",'Planning Allocations'!D50) -> Single Zone | S50: =IF(OR(LEFT($B50,1)<>"b",'Planning Allocations'!$F50=""), $F50&" (100.00%)", MID('Planning Allocations'!$F50,1,LEN('Planning Allocations'!$F50)-2) ) -> APS (100.00%) | T50: =IF(OR(LEFT($B50,1)<>"b",'Planning Allocations'!$E50=""), "", MID('Planning Allocations'!$E50,1,LEN('Planning Allocations'!$E50)-2) ) -> 
B51: b0052.5 | C51: Install 10.2 MVAR (effective) 34.5 kV Capacitor at McCain Substation | D51: 2005-02-02 | E51: 0.192 | F51: APS | G51: =IF( ISERROR( VLOOKUP(F51,'Formula Rate Filing Information'!$A$4:$A$57,1,FALSE) ),'Formula Rate Filing Information'!$J$58, VLOOKUP(F51,'Formula Rate Filing Information'!$A$4:$J$57,'Formula Rate Filing Information'!$J$1,FALSE) ) -> 51.94436374 | H51: 3696.262427 | I51: IS | J51: 1 | K51: 0 | L51: 0.192 | M51: 2005-05-09 | N51: Baseline Load Growth Deliverability & Reliability | O51: 2005-05-09 | P51: =IF(LEFT($B51,1)<>"b","N/A",'Planning Allocations'!B51) -> N/A | Q51: =IF(LEFT($B51,1)<>"b","N/A",'Planning Allocations'!C51) -> N/A | R51: =IF(LEFT($B51,1)<>"b","N/A",'Planning Allocations'!D51) -> Single Zone | S51: =IF(OR(LEFT($B51,1)<>"b",'Planning Allocations'!$F51=""), $F51&" (100.00%)", MID('Planning Allocations'!$F51,1,LEN('Planning Allocations'!$F51)-2) ) -> APS (100.00%) | T51: =IF(OR(LEFT($B51,1)<>"b",'Planning Allocations'!$E51=""), "", MID('Planning Allocations'!$E51,1,LEN('Planning Allocations'!$E51)-2) ) -> 
B52: b0053 | C52: Add a second 10.2 MVAR capacitor for a total of 20.4 MVAR (eff.) at Davis Mill 34.5 KV | D52: 2005-08-03 | E52: 0.3 | F52: APS | G52: =IF( ISERROR( VLOOKUP(F52,'Formula Rate Filing Information'!$A$4:$A$57,1,FALSE) ),'Formula Rate Filing Information'!$J$58, VLOOKUP(F52,'Formula Rate Filing Information'!$A$4:$J$57,'Formula Rate Filing Information'!$J$1,FALSE) ) -> 51.94436374 | H52: 5775.410042 | I52: IS | J52: 1 | K52: 0 | L52: 0.3 | M52: 2005-05-09 | N52: Baseline Load Growth Deliverability & Reliability | O52: 2005-05-09 | P52: =IF(LEFT($B52,1)<>"b","N/A",'Planning Allocations'!B52) -> N/A | Q52: =IF(LEFT($B52,1)<>"b","N/A",'Planning Allocations'!C52) -> N/A | R52: =IF(LEFT($B52,1)<>"b","N/A",'Planning Allocations'!D52) -> Single Zone | S52: =IF(OR(LEFT($B52,1)<>"b",'Planning Allocations'!$F52=""), $F52&" (100.00%)", MID('Planning Allocations'!$F52,1,LEN('Planning Allocations'!$F52)-2) ) -> APS (100.00%) | T52: =IF(OR(LEFT($B52,1)<>"b",'Planning Allocations'!$E52=""), "", MID('Planning Allocations'!$E52,1,LEN('Planning Allocations'!$E52)-2) ) -> 
B53: b0054 | C53: Add 22 MVAR of capacitance at Ringgold 138 KV for a total of 66 MVAR (eff.) | D53: 2005-06-30 | E53: 0.17 | F53: APS | G53: =IF( ISERROR( VLOOKUP(F53,'Formula Rate Filing Information'!$A$4:$A$57,1,FALSE) ),'Formula Rate Filing Information'!$J$58, VLOOKUP(F53,'Formula Rate Filing Information'!$A$4:$J$57,'Formula Rate Filing Information'!$J$1,FALSE) ) -> 51.94436374 | H53: 3272.732357 | I53: IS | J53: 1 | K53: 0 | L53: 0.17 | M53: 2005-05-09 | N53: Baseline Load Growth Deliverability & Reliability | O53: 2005-05-09 | P53: =IF(LEFT($B53,1)<>"b","N/A",'Planning Allocations'!B53) -> N/A | Q53: =IF(LEFT($B53,1)<>"b","N/A",'Planning Allocations'!C53) -> N/A | R53: =IF(LEFT($B53,1)<>"b","N/A",'Planning Allocations'!D53) -> Single Zone | S53: =IF(OR(LEFT($B53,1)<>"b",'Planning Allocations'!$F53=""), $F53&" (100.00%)", MID('Planning Allocations'!$F53,1,LEN('Planning Allocations'!$F53)-2) ) -> APS (100.00%) | T53: =IF(OR(LEFT($B53,1)<>"b",'Planning Allocations'!$E53=""), "", MID('Planning Allocations'!$E53,1,LEN('Planning Allocations'!$E53)-2) ) -> 
B54: b0055 | C54: Add 44 MVAR cap at Carroll 138 KV | D54: 2006-05-23 | E54: 0.4 | F54: APS | G54: =IF( ISERROR( VLOOKUP(F54,'Formula Rate Filing Information'!$A$4:$A$57,1,FALSE) ),'Formula Rate Filing Information'!$J$58, VLOOKUP(F54,'Formula Rate Filing Information'!$A$4:$J$57,'Formula Rate Filing Information'!$J$1,FALSE) ) -> 51.94436374 | H54: 7700.546723 | I54: IS | J54: 1 | K54: 0 | L54: 0.4 | M54: 2005-05-09 | N54: Baseline Load Growth Deliverability & Reliability | O54: 2005-05-09 | P54: =IF(LEFT($B54,1)<>"b","N/A",'Planning Allocations'!B54) -> N/A | Q54: =IF(LEFT($B54,1)<>"b","N/A",'Planning Allocations'!C54) -> N/A | R54: =IF(LEFT($B54,1)<>"b","N/A",'Planning Allocations'!D54) -> Single Zone | S54: =IF(OR(LEFT($B54,1)<>"b",'Planning Allocations'!$F54=""), $F54&" (100.00%)", MID('Planning Allocations'!$F54,1,LEN('Planning Allocations'!$F54)-2) ) -> APS (100.00%) | T54: =IF(OR(LEFT($B54,1)<>"b",'Planning Allocations'!$E54=""), "", MID('Planning Allocations'!$E54,1,LEN('Planning Allocations'!$E54)-2) ) -> 
B55: b0057 | C55: Install two breakers at Lake Nelson 230kV | D55: 2006-06-09 | E55: 5.2 | F55: PSEG | G55: =IF( ISERROR( VLOOKUP(F55,'Formula Rate Filing Information'!$A$4:$A$57,1,FALSE) ),'Formula Rate Filing Information'!$J$58, VLOOKUP(F55,'Formula Rate Filing Information'!$A$4:$J$57,'Formula Rate Filing Information'!$J$1,FALSE) ) -> 47 | H55: 110638.2979 | I55: IS | J55: 1 | K55: 0 | L55: 5.2 | M55: 2005-05-09 | N55: Baseline Load Growth Deliverability & Reliability | O55: 2005-05-09 | P55: =IF(LEFT($B55,1)<>"b","N/A",'Planning Allocations'!B55) -> N/A | Q55: =IF(LEFT($B55,1)<>"b","N/A",'Planning Allocations'!C55) -> N/A | R55: =IF(LEFT($B55,1)<>"b","N/A",'Planning Allocations'!D55) -> Single Zone | S55: =IF(OR(LEFT($B55,1)<>"b",'Planning Allocations'!$F55=""), $F55&" (100.00%)", MID('Planning Allocations'!$F55,1,LEN('Planning Allocations'!$F55)-2) ) -> PSEG (100.00%) | T55: =IF(OR(LEFT($B55,1)<>"b",'Planning Allocations'!$E55=""), "", MID('Planning Allocations'!$E55,1,LEN('Planning Allocations'!$E55)-2) ) -> 
B56: b0058 | C56: Replace two Athenia 230/138KV transformers | D56: 2005-06-01 | E56: 6 | F56: PSEG | G56: =IF( ISERROR( VLOOKUP(F56,'Formula Rate Filing Information'!$A$4:$A$57,1,FALSE) ),'Formula Rate Filing Information'!$J$58, VLOOKUP(F56,'Formula Rate Filing Information'!$A$4:$J$57,'Formula Rate Filing Information'!$J$1,FALSE) ) -> 47 | H56: 127659.5745 | I56: IS | J56: 1 | K56: 0 | L56: 6 | M56: 2005-05-09 | N56: Baseline Load Growth Deliverability & Reliability | O56: 2005-05-09 | P56: =IF(LEFT($B56,1)<>"b","N/A",'Planning Allocations'!B56) -> N/A | Q56: =IF(LEFT($B56,1)<>"b","N/A",'Planning Allocations'!C56) -> N/A | R56: =IF(LEFT($B56,1)<>"b","N/A",'Planning Allocations'!D56) -> Single Zone | S56: =IF(OR(LEFT($B56,1)<>"b",'Planning Allocations'!$F56=""), $F56&" (100.00%)", MID('Planning Allocations'!$F56,1,LEN('Planning Allocations'!$F56)-2) ) -> PSEG (100.00%) | T56: =IF(OR(LEFT($B56,1)<>"b",'Planning Allocations'!$E56=""), "", MID('Planning Allocations'!$E56,1,LEN('Planning Allocations'!$E56)-2) ) -> 
B57: b0059 | C57: Add a new Roxborough 69kV breaker (#215) | D57: 2003-01-01 | E57: 0.25 | F57: PECO | G57: =IF( ISERROR( VLOOKUP(F57,'Formula Rate Filing Information'!$A$4:$A$57,1,FALSE) ),'Formula Rate Filing Information'!$J$58, VLOOKUP(F57,'Formula Rate Filing Information'!$A$4:$J$57,'Formula Rate Filing Information'!$J$1,FALSE) ) -> 68.97724685 | H57: 3624.383567 | I57: IS | J57: 1 | K57: 0 | L57: 0.25 | M57: 2005-05-09 | N57: Baseline Load Growth Deliverability & Reliability | O57: 2005-05-09 | P57: =IF(LEFT($B57,1)<>"b","N/A",'Planning Allocations'!B57) -> N/A | Q57: =IF(LEFT($B57,1)<>"b","N/A",'Planning Allocations'!C57) -> N/A | R57: =IF(LEFT($B57,1)<>"b","N/A",'Planning Allocations'!D57) -> Single Zone | S57: =IF(OR(LEFT($B57,1)<>"b",'Planning Allocations'!$F57=""), $F57&" (100.00%)", MID('Planning Allocations'!$F57,1,LEN('Planning Allocations'!$F57)-2) ) -> PECO (100.00%) | T57: =IF(OR(LEFT($B57,1)<>"b",'Planning Allocations'!$E57=""), "", MID('Planning Allocations'!$E57,1,LEN('Planning Allocations'!$E57)-2) ) -> 
B58: b0060 | C58: Replace Deans 230KV circuit breaker #2-10 | D58: 2006-04-07 | E58: 0.475 | F58: PSEG | G58: =IF( ISERROR( VLOOKUP(F58,'Formula Rate Filing Information'!$A$4:$A$57,1,FALSE) ),'Formula Rate Filing Information'!$J$58, VLOOKUP(F58,'Formula Rate Filing Information'!$A$4:$J$57,'Formula Rate Filing Information'!$J$1,FALSE) ) -> 47 | H58: 10106.38298 | I58: IS | J58: 1 | K58: 0 | L58: 0.475 | M58: 2005-05-09 | N58: Baseline Load Growth Deliverability & Reliability | O58: 2005-05-09 | P58: =IF(LEFT($B58,1)<>"b","N/A",'Planning Allocations'!B58) -> N/A | Q58: =IF(LEFT($B58,1)<>"b","N/A",'Planning Allocations'!C58) -> N/A | R58: =IF(LEFT($B58,1)<>"b","N/A",'Planning Allocations'!D58) -> Single Zone | S58: =IF(OR(LEFT($B58,1)<>"b",'Planning Allocations'!$F58=""), $F58&" (100.00%)", MID('Planning Allocations'!$F58,1,LEN('Planning Allocations'!$F58)-2) ) -> PSEG (100.00%) | T58: =IF(OR(LEFT($B58,1)<>"b",'Planning Allocations'!$E58=""), "", MID('Planning Allocations'!$E58,1,LEN('Planning Allocations'!$E58)-2) ) -> 
B59: b0061 | C59: Replace Deans 230KV circuit breaker #2-8 | D59: 2006-03-24 | E59: 0.475 | F59: PSEG | G59: =IF( ISERROR( VLOOKUP(F59,'Formula Rate Filing Information'!$A$4:$A$57,1,FALSE) ),'Formula Rate Filing Information'!$J$58, VLOOKUP(F59,'Formula Rate Filing Information'!$A$4:$J$57,'Formula Rate Filing Information'!$J$1,FALSE) ) -> 47 | H59: 10106.38298 | I59: IS | J59: 1 | K59: 0 | L59: 0.475 | M59: 2005-05-09 | N59: Baseline Load Growth Deliverability & Reliability | O59: 2005-05-09 | P59: =IF(LEFT($B59,1)<>"b","N/A",'Planning Allocations'!B59) -> N/A | Q59: =IF(LEFT($B59,1)<>"b","N/A",'Planning Allocations'!C59) -> N/A | R59: =IF(LEFT($B59,1)<>"b","N/A",'Planning Allocations'!D59) -> Single Zone | S59: =IF(OR(LEFT($B59,1)<>"b",'Planning Allocations'!$F59=""), $F59&" (100.00%)", MID('Planning Allocations'!$F59,1,LEN('Planning Allocations'!$F59)-2) ) -> PSEG (100.00%) | T59: =IF(OR(LEFT($B59,1)<>"b",'Planning Allocations'!$E59=""), "", MID('Planning Allocations'!$E59,1,LEN('Planning Allocations'!$E59)-2) ) -> 
B60: b0062 | C60: Replace Deans 230KV circuit breaker #5-6 | D60: 2006-04-21 | E60: 0.475 | F60: PSEG | G60: =IF( ISERROR( VLOOKUP(F60,'Formula Rate Filing Information'!$A$4:$A$57,1,FALSE) ),'Formula Rate Filing Information'!$J$58, VLOOKUP(F60,'Formula Rate Filing Information'!$A$4:$J$57,'Formula Rate Filing Information'!$J$1,FALSE) ) -> 47 | H60: 10106.38298 | I60: IS | J60: 1 | K60: 0 | L60: 0.475 | M60: 2005-05-09 | N60: Baseline Load Growth Deliverability & Reliability | O60: 2005-05-09 | P60: =IF(LEFT($B60,1)<>"b","N/A",'Planning Allocations'!B60) -> N/A | Q60: =IF(LEFT($B60,1)<>"b","N/A",'Planning Allocations'!C60) -> N/A | R60: =IF(LEFT($B60,1)<>"b","N/A",'Planning Allocations'!D60) -> Single Zone | S60: =IF(OR(LEFT($B60,1)<>"b",'Planning Allocations'!$F60=""), $F60&" (100.00%)", MID('Planning Allocations'!$F60,1,LEN('Planning Allocations'!$F60)-2) ) -> PSEG (100.00%) | T60: =IF(OR(LEFT($B60,1)<>"b",'Planning Allocations'!$E60=""), "", MID('Planning Allocations'!$E60,1,LEN('Planning Allocations'!$E60)-2) ) -> 
B61: b0063 | C61: Replace Deans 230KV circuit breaker #2-6 | D61: 2006-03-10 | E61: 0.475 | F61: PSEG | G61: =IF( ISERROR( VLOOKUP(F61,'Formula Rate Filing Information'!$A$4:$A$57,1,FALSE) ),'Formula Rate Filing Information'!$J$58, VLOOKUP(F61,'Formula Rate Filing Information'!$A$4:$J$57,'Formula Rate Filing Information'!$J$1,FALSE) ) -> 47 | H61: 10106.38298 | I61: IS | J61: 1 | K61: 0 | L61: 0.475 | M61: 2005-05-09 | N61: Baseline Load Growth Deliverability & Reliability | O61: 2005-05-09 | P61: =IF(LEFT($B61,1)<>"b","N/A",'Planning Allocations'!B61) -> N/A | Q61: =IF(LEFT($B61,1)<>"b","N/A",'Planning Allocations'!C61) -> N/A | R61: =IF(LEFT($B61,1)<>"b","N/A",'Planning Allocations'!D61) -> Single Zone | S61: =IF(OR(LEFT($B61,1)<>"b",'Planning Allocations'!$F61=""), $F61&" (100.00%)", MID('Planning Allocations'!$F61,1,LEN('Planning Allocations'!$F61)-2) ) -> PSEG (100.00%) | T61: =IF(OR(LEFT($B61,1)<>"b",'Planning Allocations'!$E61=""), "", MID('Planning Allocations'!$E61,1,LEN('Planning Allocations'!$E61)-2) ) -> 
B62: b0064 | C62: Replace Linden 230 KV breaker#1-5 | D62: 2006-05-11 | E62: 0.475 | F62: PSEG | G62: =IF( ISERROR( VLOOKUP(F62,'Formula Rate Filing Information'!$A$4:$A$57,1,FALSE) ),'Formula Rate Filing Information'!$J$58, VLOOKUP(F62,'Formula Rate Filing Information'!$A$4:$J$57,'Formula Rate Filing Information'!$J$1,FALSE) ) -> 47 | H62: 10106.38298 | I62: IS | J62: 1 | K62: 0 | L62: 0.475 | M62: 2005-05-09 | N62: Baseline Load Growth Deliverability & Reliability | O62: 2005-05-09 | P62: =IF(LEFT($B62,1)<>"b","N/A",'Planning Allocations'!B62) -> N/A | Q62: =IF(LEFT($B62,1)<>"b","N/A",'Planning Allocations'!C62) -> N/A | R62: =IF(LEFT($B62,1)<>"b","N/A",'Planning Allocations'!D62) -> Single Zone | S62: =IF(OR(LEFT($B62,1)<>"b",'Planning Allocations'!$F62=""), $F62&" (100.00%)", MID('Planning Allocations'!$F62,1,LEN('Planning Allocations'!$F62)-2) ) -> PSEG (100.00%) | T62: =IF(OR(LEFT($B62,1)<>"b",'Planning Allocations'!$E62=""), "", MID('Planning Allocations'!$E62,1,LEN('Planning Allocations'!$E62)-2) ) -> 
B63: b0065 | C63: Replace Linden 230 kV circuit breaker #1-3 | D63: 2006-04-26 | E63: 0.475 | F63: PSEG | G63: =IF( ISERROR( VLOOKUP(F63,'Formula Rate Filing Information'!$A$4:$A$57,1,FALSE) ),'Formula Rate Filing Information'!$J$58, VLOOKUP(F63,'Formula Rate Filing Information'!$A$4:$J$57,'Formula Rate Filing Information'!$J$1,FALSE) ) -> 47 | H63: 10106.38298 | I63: IS | J63: 1 | K63: 0 | L63: 0.475 | M63: 2005-05-09 | N63: Baseline Load Growth Deliverability & Reliability | O63: 2005-05-09 | P63: =IF(LEFT($B63,1)<>"b","N/A",'Planning Allocations'!B63) -> N/A | Q63: =IF(LEFT($B63,1)<>"b","N/A",'Planning Allocations'!C63) -> N/A | R63: =IF(LEFT($B63,1)<>"b","N/A",'Planning Allocations'!D63) -> Single Zone | S63: =IF(OR(LEFT($B63,1)<>"b",'Planning Allocations'!$F63=""), $F63&" (100.00%)", MID('Planning Allocations'!$F63,1,LEN('Planning Allocations'!$F63)-2) ) -> PSEG (100.00%) | T63: =IF(OR(LEFT($B63,1)<>"b",'Planning Allocations'!$E63=""), "", MID('Planning Allocations'!$E63,1,LEN('Planning Allocations'!$E63)-2) ) -> 
B64: b0066 | C64: Replace Linden 230KV circuit breaker #2-3 | D64: 2007-02-02 | E64: 0.475 | F64: PSEG | G64: =IF( ISERROR( VLOOKUP(F64,'Formula Rate Filing Information'!$A$4:$A$57,1,FALSE) ),'Formula Rate Filing Information'!$J$58, VLOOKUP(F64,'Formula Rate Filing Information'!$A$4:$J$57,'Formula Rate Filing Information'!$J$1,FALSE) ) -> 47 | H64: 10106.38298 | I64: IS | J64: 1 | K64: 0 | L64: 0.475 | M64: 2005-05-09 | N64: Baseline Load Growth Deliverability & Reliability | O64: 2005-05-09 | P64: =IF(LEFT($B64,1)<>"b","N/A",'Planning Allocations'!B64) -> N/A | Q64: =IF(LEFT($B64,1)<>"b","N/A",'Planning Allocations'!C64) -> N/A | R64: =IF(LEFT($B64,1)<>"b","N/A",'Planning Allocations'!D64) -> Single Zone | S64: =IF(OR(LEFT($B64,1)<>"b",'Planning Allocations'!$F64=""), $F64&" (100.00%)", MID('Planning Allocations'!$F64,1,LEN('Planning Allocations'!$F64)-2) ) -> PSEG (100.00%) | T64: =IF(OR(LEFT($B64,1)<>"b",'Planning Allocations'!$E64=""), "", MID('Planning Allocations'!$E64,1,LEN('Planning Allocations'!$E64)-2) ) -> 
B65: b0067 | C65: Replace a section of Jackson-Baker Tap bus | D65: 2004-12-31 | E65: 0.015 | F65: ME | G65: =IF( ISERROR( VLOOKUP(F65,'Formula Rate Filing Information'!$A$4:$A$57,1,FALSE) ),'Formula Rate Filing Information'!$J$58, VLOOKUP(F65,'Formula Rate Filing Information'!$A$4:$J$57,'Formula Rate Filing Information'!$J$1,FALSE) ) -> 45.35896734 | H65: 330.6953592 | I65: IS | J65: 1 | K65: 0 | L65: 0.015 | M65: 2005-05-09 | N65: Baseline Load Growth Deliverability & Reliability | O65: 2005-05-09 | P65: =IF(LEFT($B65,1)<>"b","N/A",'Planning Allocations'!B65) -> N/A | Q65: =IF(LEFT($B65,1)<>"b","N/A",'Planning Allocations'!C65) -> N/A | R65: =IF(LEFT($B65,1)<>"b","N/A",'Planning Allocations'!D65) -> Single Zone | S65: =IF(OR(LEFT($B65,1)<>"b",'Planning Allocations'!$F65=""), $F65&" (100.00%)", MID('Planning Allocations'!$F65,1,LEN('Planning Allocations'!$F65)-2) ) -> ME (100.00%) | T65: =IF(OR(LEFT($B65,1)<>"b",'Planning Allocations'!$E65=""), "", MID('Planning Allocations'!$E65,1,LEN('Planning Allocations'!$E65)-2) ) -> 
B66: b0069 | C66: Replace disconnect switch at Glory/Dixonville | D66: 2007-04-27 | E66: 0.1 | F66: PENELEC | G66: =IF( ISERROR( VLOOKUP(F66,'Formula Rate Filing Information'!$A$4:$A$57,1,FALSE) ),'Formula Rate Filing Information'!$J$58, VLOOKUP(F66,'Formula Rate Filing Information'!$A$4:$J$57,'Formula Rate Filing Information'!$J$1,FALSE) ) -> 45.35896734 | H66: 2204.635728 | I66: IS | J66: 1 | K66: 0 | L66: 0.1 | M66: 2005-05-09 | N66: Baseline Load Growth Deliverability & Reliability | O66: 2005-05-09 | P66: =IF(LEFT($B66,1)<>"b","N/A",'Planning Allocations'!B66) -> N/A | Q66: =IF(LEFT($B66,1)<>"b","N/A",'Planning Allocations'!C66) -> N/A | R66: =IF(LEFT($B66,1)<>"b","N/A",'Planning Allocations'!D66) -> Single Zone | S66: =IF(OR(LEFT($B66,1)<>"b",'Planning Allocations'!$F66=""), $F66&" (100.00%)", MID('Planning Allocations'!$F66,1,LEN('Planning Allocations'!$F66)-2) ) -> PENELEC (100.00%) | T66: =IF(OR(LEFT($B66,1)<>"b",'Planning Allocations'!$E66=""), "", MID('Planning Allocations'!$E66,1,LEN('Planning Allocations'!$E66)-2) ) -> 
B67: b0071 | C67: Loop the W-1323 line into the Bayway 138 kV bus | D67: 2008-07-14 | E67: 4.5 | F67: PSEG | G67: =IF( ISERROR( VLOOKUP(F67,'Formula Rate Filing Information'!$A$4:$A$57,1,FALSE) ),'Formula Rate Filing Information'!$J$58, VLOOKUP(F67,'Formula Rate Filing Information'!$A$4:$J$57,'Formula Rate Filing Information'!$J$1,FALSE) ) -> 47 | H67: 95744.68085 | I67: IS | J67: 1 | K67: 0 | L67: 4.5 | M67: 2005-05-09 | N67: Baseline Load Growth Deliverability & Reliability | O67: 2005-05-09 | P67: =IF(LEFT($B67,1)<>"b","N/A",'Planning Allocations'!B67) -> N/A | Q67: =IF(LEFT($B67,1)<>"b","N/A",'Planning Allocations'!C67) -> N/A | R67: =IF(LEFT($B67,1)<>"b","N/A",'Planning Allocations'!D67) -> Single Zone | S67: =IF(OR(LEFT($B67,1)<>"b",'Planning Allocations'!$F67=""), $F67&" (100.00%)", MID('Planning Allocations'!$F67,1,LEN('Planning Allocations'!$F67)-2) ) -> PSEG (100.00%) | T67: =IF(OR(LEFT($B67,1)<>"b",'Planning Allocations'!$E67=""), "", MID('Planning Allocations'!$E67,1,LEN('Planning Allocations'!$E67)-2) ) -> 
B68: b0073 | C68: Reconductor 605 ft of the Kearny-Turnpike "D" 138 kV circuit | D68: 2013-03-05 | E68: 0.2 | F68: PSEG | G68: =IF( ISERROR( VLOOKUP(F68,'Formula Rate Filing Information'!$A$4:$A$57,1,FALSE) ),'Formula Rate Filing Information'!$J$58, VLOOKUP(F68,'Formula Rate Filing Information'!$A$4:$J$57,'Formula Rate Filing Information'!$J$1,FALSE) ) -> 47 | H68: 4255.319149 | I68: IS | J68: 1 | K68: 0 | L68: 0.2 | M68: 2005-05-09 | N68: Baseline Load Growth Deliverability & Reliability | O68: 2005-05-09 | P68: =IF(LEFT($B68,1)<>"b","N/A",'Planning Allocations'!B68) -> N/A | Q68: =IF(LEFT($B68,1)<>"b","N/A",'Planning Allocations'!C68) -> N/A | R68: =IF(LEFT($B68,1)<>"b","N/A",'Planning Allocations'!D68) -> Single Zone | S68: =IF(OR(LEFT($B68,1)<>"b",'Planning Allocations'!$F68=""), $F68&" (100.00%)", MID('Planning Allocations'!$F68,1,LEN('Planning Allocations'!$F68)-2) ) -> PSEG (100.00%) | T68: =IF(OR(LEFT($B68,1)<>"b",'Planning Allocations'!$E68=""), "", MID('Planning Allocations'!$E68,1,LEN('Planning Allocations'!$E68)-2) ) -> 
B69: b0074 | C69: S. Akron-Berks, Double Circuit, Rebuild 12 miles of S Akron-Berks to double circuit, looping Met Ed's S Lebanon-S Reading line into Berks | D69: 2008-05-02 | E69: 48.268 | F69: PPL | G69: =IF( ISERROR( VLOOKUP(F69,'Formula Rate Filing Information'!$A$4:$A$57,1,FALSE) ),'Formula Rate Filing Information'!$J$58, VLOOKUP(F69,'Formula Rate Filing Information'!$A$4:$J$57,'Formula Rate Filing Information'!$J$1,FALSE) ) -> 42 | H69: 1149238.095 | I69: IS | J69: 1 | K69: 0 | L69: 48.268 | M69: 2005-05-09 | N69: Baseline Load Growth Deliverability & Reliability | O69: 2005-05-09 | P69: =IF(LEFT($B69,1)<>"b","N/A",'Planning Allocations'!B69) -> Appendix | Q69: =IF(LEFT($B69,1)<>"b","N/A",'Planning Allocations'!C69) -> N/A | R69: =IF(LEFT($B69,1)<>"b","N/A",'Planning Allocations'!D69) -> Single Zone | S69: =IF(OR(LEFT($B69,1)<>"b",'Planning Allocations'!$F69=""), $F69&" (100.00%)", MID('Planning Allocations'!$F69,1,LEN('Planning Allocations'!$F69)-2) ) -> PPL (100.00%) | T69: =IF(OR(LEFT($B69,1)<>"b",'Planning Allocations'!$E69=""), "", MID('Planning Allocations'!$E69,1,LEN('Planning Allocations'!$E69)-2) ) -> 
B70: b0076 | C70: Add Werner 230/115 KV transformer | D70: 2004-05-19 | E70: 0 | F70: JCPL | G70: =IF( ISERROR( VLOOKUP(F70,'Formula Rate Filing Information'!$A$4:$A$57,1,FALSE) ),'Formula Rate Filing Information'!$J$58, VLOOKUP(F70,'Formula Rate Filing Information'!$A$4:$J$57,'Formula Rate Filing Information'!$J$1,FALSE) ) -> 53 | H70: =IF(OR(I70="Cancelled",I70="On Hold"),0,1000000*E70/G70) -> 0 | I70: IS | J70: 1 | K70: 0 | L70: 0 | M70: 2005-05-09 | N70: Baseline Load Growth Deliverability & Reliability | O70: 2005-05-09 | P70: =IF(LEFT($B70,1)<>"b","N/A",'Planning Allocations'!B70) -> N/A | Q70: =IF(LEFT($B70,1)<>"b","N/A",'Planning Allocations'!C70) -> N/A | R70: =IF(LEFT($B70,1)<>"b","N/A",'Planning Allocations'!D70) -> Single Zone | S70: =IF(OR(LEFT($B70,1)<>"b",'Planning Allocations'!$F70=""), $F70&" (100.00%)", MID('Planning Allocations'!$F70,1,LEN('Planning Allocations'!$F70)-2) ) -> JCPL (100.00%) | T70: =IF(OR(LEFT($B70,1)<>"b",'Planning Allocations'!$E70=""), "", MID('Planning Allocations'!$E70,1,LEN('Planning Allocations'!$E70)-2) ) -> 
B71: b0077 | C71: Replace wavetrap on Morris Park - Gilbert 230kV | D71: 2004-05-27 | E71: 0 | F71: JCPL | G71: =IF( ISERROR( VLOOKUP(F71,'Formula Rate Filing Information'!$A$4:$A$57,1,FALSE) ),'Formula Rate Filing Information'!$J$58, VLOOKUP(F71,'Formula Rate Filing Information'!$A$4:$J$57,'Formula Rate Filing Information'!$J$1,FALSE) ) -> 53 | H71: 0 | I71: IS | J71: 1 | K71: 0 | L71: 0 | M71: 2005-05-09 | N71: Baseline Load Growth Deliverability & Reliability | O71: 2005-05-09 | P71: =IF(LEFT($B71,1)<>"b","N/A",'Planning Allocations'!B71) -> N/A | Q71: =IF(LEFT($B71,1)<>"b","N/A",'Planning Allocations'!C71) -> N/A | R71: =IF(LEFT($B71,1)<>"b","N/A",'Planning Allocations'!D71) -> Single Zone | S71: =IF(OR(LEFT($B71,1)<>"b",'Planning Allocations'!$F71=""), $F71&" (100.00%)", MID('Planning Allocations'!$F71,1,LEN('Planning Allocations'!$F71)-2) ) -> JCPL (100.00%) | T71: =IF(OR(LEFT($B71,1)<>"b",'Planning Allocations'!$E71=""), "", MID('Planning Allocations'!$E71,1,LEN('Planning Allocations'!$E71)-2) ) -> 
B72: b0078 | C72: Replace disconnect switch on Morris Park - Gilbert 230kV | D72: 2004-05-27 | E72: 0 | F72: JCPL | G72: =IF( ISERROR( VLOOKUP(F72,'Formula Rate Filing Information'!$A$4:$A$57,1,FALSE) ),'Formula Rate Filing Information'!$J$58, VLOOKUP(F72,'Formula Rate Filing Information'!$A$4:$J$57,'Formula Rate Filing Information'!$J$1,FALSE) ) -> 53 | H72: 0 | I72: IS | J72: 1 | K72: 0 | L72: 0 | M72: 2005-05-09 | N72: Baseline Load Growth Deliverability & Reliability | O72: 2005-05-09 | P72: =IF(LEFT($B72,1)<>"b","N/A",'Planning Allocations'!B72) -> N/A | Q72: =IF(LEFT($B72,1)<>"b","N/A",'Planning Allocations'!C72) -> N/A | R72: =IF(LEFT($B72,1)<>"b","N/A",'Planning Allocations'!D72) -> Single Zone | S72: =IF(OR(LEFT($B72,1)<>"b",'Planning Allocations'!$F72=""), $F72&" (100.00%)", MID('Planning Allocations'!$F72,1,LEN('Planning Allocations'!$F72)-2) ) -> JCPL (100.00%) | T72: =IF(OR(LEFT($B72,1)<>"b",'Planning Allocations'!$E72=""), "", MID('Planning Allocations'!$E72,1,LEN('Planning Allocations'!$E72)-2) ) -> 
B73: b0079 | C73: Install SPS at Branchburg | D73: 2004-06-01 | E73: 0 | F73: PSEG | G73: =IF( ISERROR( VLOOKUP(F73,'Formula Rate Filing Information'!$A$4:$A$57,1,FALSE) ),'Formula Rate Filing Information'!$J$58, VLOOKUP(F73,'Formula Rate Filing Information'!$A$4:$J$57,'Formula Rate Filing Information'!$J$1,FALSE) ) -> 47 | H73: 0 | I73: IS | J73: 1 | K73: 0 | L73: 0 | M73: 2005-05-09 | N73: Baseline Load Growth Deliverability & Reliability | O73: 2005-05-09 | P73: =IF(LEFT($B73,1)<>"b","N/A",'Planning Allocations'!B73) -> N/A | Q73: =IF(LEFT($B73,1)<>"b","N/A",'Planning Allocations'!C73) -> N/A | R73: =IF(LEFT($B73,1)<>"b","N/A",'Planning Allocations'!D73) -> Single Zone | S73: =IF(OR(LEFT($B73,1)<>"b",'Planning Allocations'!$F73=""), $F73&" (100.00%)", MID('Planning Allocations'!$F73,1,LEN('Planning Allocations'!$F73)-2) ) -> PSEG (100.00%) | T73: =IF(OR(LEFT($B73,1)<>"b",'Planning Allocations'!$E73=""), "", MID('Planning Allocations'!$E73,1,LEN('Planning Allocations'!$E73)-2) ) -> 
B74: b0080 | C74: Relay upgrade on Dresden 345/138 kV “Blue” | D74: 2004-04-16 | E74: 0.1 | F74: ComEd | G74: =IF( ISERROR( VLOOKUP(F74,'Formula Rate Filing Information'!$A$4:$A$57,1,FALSE) ),'Formula Rate Filing Information'!$J$58, VLOOKUP(F74,'Formula Rate Filing Information'!$A$4:$J$57,'Formula Rate Filing Information'!$J$1,FALSE) ) -> 42.37288136 | H74: 2360 | I74: IS | J74: 1 | K74: 0 | L74: 0.1 | M74: 2005-05-09 | N74: TO Criteria Violation | O74: 2005-05-09 | P74: =IF(LEFT($B74,1)<>"b","N/A",'Planning Allocations'!B74) -> N/A | Q74: =IF(LEFT($B74,1)<>"b","N/A",'Planning Allocations'!C74) -> N/A | R74: =IF(LEFT($B74,1)<>"b","N/A",'Planning Allocations'!D74) -> Single Zone | S74: =IF(OR(LEFT($B74,1)<>"b",'Planning Allocations'!$F74=""), $F74&" (100.00%)", MID('Planning Allocations'!$F74,1,LEN('Planning Allocations'!$F74)-2) ) -> ComEd (100.00%) | T74: =IF(OR(LEFT($B74,1)<>"b",'Planning Allocations'!$E74=""), "", MID('Planning Allocations'!$E74,1,LEN('Planning Allocations'!$E74)-2) ) -> 
B75: b0081 | C75: Reconductor Des Plaines - Howard 138 kV | D75: 2005-05-14 | E75: 1.4 | F75: ComEd | G75: =IF( ISERROR( VLOOKUP(F75,'Formula Rate Filing Information'!$A$4:$A$57,1,FALSE) ),'Formula Rate Filing Information'!$J$58, VLOOKUP(F75,'Formula Rate Filing Information'!$A$4:$J$57,'Formula Rate Filing Information'!$J$1,FALSE) ) -> 42.37288136 | H75: 33040 | I75: IS | J75: 1 | K75: 0 | L75: 1.4 | M75: 2005-05-09 | N75: Baseline Load Growth Deliverability & Reliability | O75: 2005-05-09 | P75: =IF(LEFT($B75,1)<>"b","N/A",'Planning Allocations'!B75) -> N/A | Q75: =IF(LEFT($B75,1)<>"b","N/A",'Planning Allocations'!C75) -> N/A | R75: =IF(LEFT($B75,1)<>"b","N/A",'Planning Allocations'!D75) -> Single Zone | S75: =IF(OR(LEFT($B75,1)<>"b",'Planning Allocations'!$F75=""), $F75&" (100.00%)", MID('Planning Allocations'!$F75,1,LEN('Planning Allocations'!$F75)-2) ) -> ComEd (100.00%) | T75: =IF(OR(LEFT($B75,1)<>"b",'Planning Allocations'!$E75=""), "", MID('Planning Allocations'!$E75,1,LEN('Planning Allocations'!$E75)-2) ) -> 
B76: b0085 | C76: Install third Branchburg 500/230 kV transformer | D76: 2005-04-24 | E76: 15 | F76: PSEG | G76: =IF( ISERROR( VLOOKUP(F76,'Formula Rate Filing Information'!$A$4:$A$57,1,FALSE) ),'Formula Rate Filing Information'!$J$58, VLOOKUP(F76,'Formula Rate Filing Information'!$A$4:$J$57,'Formula Rate Filing Information'!$J$1,FALSE) ) -> 47 | H76: 319148.9362 | I76: IS | J76: 1 | K76: 0 | L76: 15 | M76: 2005-05-09 | N76: Baseline Load Growth Deliverability & Reliability | O76: 2005-05-09 | P76: =IF(LEFT($B76,1)<>"b","N/A",'Planning Allocations'!B76) -> N/A | Q76: =IF(LEFT($B76,1)<>"b","N/A",'Planning Allocations'!C76) -> N/A | R76: =IF(LEFT($B76,1)<>"b","N/A",'Planning Allocations'!D76) -> Single Zone | S76: =IF(OR(LEFT($B76,1)<>"b",'Planning Allocations'!$F76=""), $F76&" (100.00%)", MID('Planning Allocations'!$F76,1,LEN('Planning Allocations'!$F76)-2) ) -> PSEG (100.00%) | T76: =IF(OR(LEFT($B76,1)<>"b",'Planning Allocations'!$E76=""), "", MID('Planning Allocations'!$E76,1,LEN('Planning Allocations'!$E76)-2) ) -> 
B77: b0086 | C77: Capacitor Additions at Cedar | D77: 2004-06-30 | E77: 0.066 | F77: AEC | G77: =IF( ISERROR( VLOOKUP(F77,'Formula Rate Filing Information'!$A$4:$A$57,1,FALSE) ),'Formula Rate Filing Information'!$J$58, VLOOKUP(F77,'Formula Rate Filing Information'!$A$4:$J$57,'Formula Rate Filing Information'!$J$1,FALSE) ) -> 35 | H77: 1885.714286 | I77: IS | J77: 1 | K77: 0 | L77: 0.066 | M77: 2005-05-09 | N77: Baseline Load Growth Deliverability & Reliability | O77: 2005-05-09 | P77: =IF(LEFT($B77,1)<>"b","N/A",'Planning Allocations'!B77) -> N/A | Q77: =IF(LEFT($B77,1)<>"b","N/A",'Planning Allocations'!C77) -> N/A | R77: =IF(LEFT($B77,1)<>"b","N/A",'Planning Allocations'!D77) -> Single Zone | S77: =IF(OR(LEFT($B77,1)<>"b",'Planning Allocations'!$F77=""), $F77&" (100.00%)", MID('Planning Allocations'!$F77,1,LEN('Planning Allocations'!$F77)-2) ) -> AEC (100.00%) | T77: =IF(OR(LEFT($B77,1)<>"b",'Planning Allocations'!$E77=""), "", MID('Planning Allocations'!$E77,1,LEN('Planning Allocations'!$E77)-2) ) -> 
B78: b0087 | C78: Capacitor Additions at Motts Farm | D78: 2004-06-29 | E78: 0.76 | F78: AEC | G78: =IF( ISERROR( VLOOKUP(F78,'Formula Rate Filing Information'!$A$4:$A$57,1,FALSE) ),'Formula Rate Filing Information'!$J$58, VLOOKUP(F78,'Formula Rate Filing Information'!$A$4:$J$57,'Formula Rate Filing Information'!$J$1,FALSE) ) -> 35 | H78: 21714.28571 | I78: IS | J78: 1 | K78: 0 | L78: 0.76 | M78: 2005-05-09 | N78: Baseline Load Growth Deliverability & Reliability | O78: 2005-05-09 | P78: =IF(LEFT($B78,1)<>"b","N/A",'Planning Allocations'!B78) -> N/A | Q78: =IF(LEFT($B78,1)<>"b","N/A",'Planning Allocations'!C78) -> N/A | R78: =IF(LEFT($B78,1)<>"b","N/A",'Planning Allocations'!D78) -> Single Zone | S78: =IF(OR(LEFT($B78,1)<>"b",'Planning Allocations'!$F78=""), $F78&" (100.00%)", MID('Planning Allocations'!$F78,1,LEN('Planning Allocations'!$F78)-2) ) -> AEC (100.00%) | T78: =IF(OR(LEFT($B78,1)<>"b",'Planning Allocations'!$E78=""), "", MID('Planning Allocations'!$E78,1,LEN('Planning Allocations'!$E78)-2) ) -> 
B79: b0088 | C79: Landis - Minotola 138kV upgrade | D79: 2004-04-21 | E79: 0.08 | F79: AEC | G79: =IF( ISERROR( VLOOKUP(F79,'Formula Rate Filing Information'!$A$4:$A$57,1,FALSE) ),'Formula Rate Filing Information'!$J$58, VLOOKUP(F79,'Formula Rate Filing Information'!$A$4:$J$57,'Formula Rate Filing Information'!$J$1,FALSE) ) -> 35 | H79: 2285.714286 | I79: IS | J79: 1 | K79: 0 | L79: 0.08 | M79: 2005-05-09 | N79: Baseline Load Growth Deliverability & Reliability | O79: 2005-05-09 | P79: =IF(LEFT($B79,1)<>"b","N/A",'Planning Allocations'!B79) -> N/A | Q79: =IF(LEFT($B79,1)<>"b","N/A",'Planning Allocations'!C79) -> N/A | R79: =IF(LEFT($B79,1)<>"b","N/A",'Planning Allocations'!D79) -> Single Zone | S79: =IF(OR(LEFT($B79,1)<>"b",'Planning Allocations'!$F79=""), $F79&" (100.00%)", MID('Planning Allocations'!$F79,1,LEN('Planning Allocations'!$F79)-2) ) -> AEC (100.00%) | T79: =IF(OR(LEFT($B79,1)<>"b",'Planning Allocations'!$E79=""), "", MID('Planning Allocations'!$E79,1,LEN('Planning Allocations'!$E79)-2) ) -> 
B80: b0089 | C80: Load reconfiguration at Motts Farm | D80: 2004-06-30 | E80: 0 | F80: AEC | G80: =IF( ISERROR( VLOOKUP(F80,'Formula Rate Filing Information'!$A$4:$A$57,1,FALSE) ),'Formula Rate Filing Information'!$J$58, VLOOKUP(F80,'Formula Rate Filing Information'!$A$4:$J$57,'Formula Rate Filing Information'!$J$1,FALSE) ) -> 35 | H80: 0 | I80: IS | J80: 1 | K80: 0 | L80: 0 | M80: 2005-05-09 | N80: Baseline Load Growth Deliverability & Reliability | O80: 2005-05-09 | P80: =IF(LEFT($B80,1)<>"b","N/A",'Planning Allocations'!B80) -> N/A | Q80: =IF(LEFT($B80,1)<>"b","N/A",'Planning Allocations'!C80) -> N/A | R80: =IF(LEFT($B80,1)<>"b","N/A",'Planning Allocations'!D80) -> Single Zone | S80: =IF(OR(LEFT($B80,1)<>"b",'Planning Allocations'!$F80=""), $F80&" (100.00%)", MID('Planning Allocations'!$F80,1,LEN('Planning Allocations'!$F80)-2) ) -> AEC (100.00%) | T80: =IF(OR(LEFT($B80,1)<>"b",'Planning Allocations'!$E80=""), "", MID('Planning Allocations'!$E80,1,LEN('Planning Allocations'!$E80)-2) ) -> 
B81: b0090 | C81: Add 150 MVAR capacitor at Camden 230 kV | D81: 2005-07-14 | E81: 1.25 | F81: PSEG | G81: =IF( ISERROR( VLOOKUP(F81,'Formula Rate Filing Information'!$A$4:$A$57,1,FALSE) ),'Formula Rate Filing Information'!$J$58, VLOOKUP(F81,'Formula Rate Filing Information'!$A$4:$J$57,'Formula Rate Filing Information'!$J$1,FALSE) ) -> 47 | H81: 26595.74468 | I81: IS | J81: 1 | K81: 0 | L81: 1.25 | M81: 2005-05-09 | N81: Baseline Load Growth Deliverability & Reliability | O81: 2005-05-09 | P81: =IF(LEFT($B81,1)<>"b","N/A",'Planning Allocations'!B81) -> Appendix | Q81: =IF(LEFT($B81,1)<>"b","N/A",'Planning Allocations'!C81) -> N/A | R81: =IF(LEFT($B81,1)<>"b","N/A",'Planning Allocations'!D81) -> Single Zone | S81: =IF(OR(LEFT($B81,1)<>"b",'Planning Allocations'!$F81=""), $F81&" (100.00%)", MID('Planning Allocations'!$F81,1,LEN('Planning Allocations'!$F81)-2) ) -> PSEG (100.00%) | T81: =IF(OR(LEFT($B81,1)<>"b",'Planning Allocations'!$E81=""), "", MID('Planning Allocations'!$E81,1,LEN('Planning Allocations'!$E81)-2) ) -> 
B82: b0091 | C82: Replace Wavetrap on Doubs - Montgomery Tap 230 kV | D82: 2005-05-06 | E82: 0.05 | F82: APS | G82: =IF( ISERROR( VLOOKUP(F82,'Formula Rate Filing Information'!$A$4:$A$57,1,FALSE) ),'Formula Rate Filing Information'!$J$58, VLOOKUP(F82,'Formula Rate Filing Information'!$A$4:$J$57,'Formula Rate Filing Information'!$J$1,FALSE) ) -> 51.94436374 | H82: 962.5683403 | I82: IS | J82: 1 | K82: 0 | L82: 0.05 | M82: 2005-05-09 | N82: Baseline Load Growth Deliverability & Reliability | O82: 2005-05-09 | P82: =IF(LEFT($B82,1)<>"b","N/A",'Planning Allocations'!B82) -> N/A | Q82: =IF(LEFT($B82,1)<>"b","N/A",'Planning Allocations'!C82) -> N/A | R82: =IF(LEFT($B82,1)<>"b","N/A",'Planning Allocations'!D82) -> Single Zone | S82: =IF(OR(LEFT($B82,1)<>"b",'Planning Allocations'!$F82=""), $F82&" (100.00%)", MID('Planning Allocations'!$F82,1,LEN('Planning Allocations'!$F82)-2) ) -> APS (100.00%) | T82: =IF(OR(LEFT($B82,1)<>"b",'Planning Allocations'!$E82=""), "", MID('Planning Allocations'!$E82,1,LEN('Planning Allocations'!$E82)-2) ) -> 
B83: b0098 | C83: Install Silver Lake - Pleasant Valley 345 kV and Pleasant Valley 345/138 kV | D83: 2005-05-25 | E83: 13.5 | F83: ComEd | G83: =IF( ISERROR( VLOOKUP(F83,'Formula Rate Filing Information'!$A$4:$A$57,1,FALSE) ),'Formula Rate Filing Information'!$J$58, VLOOKUP(F83,'Formula Rate Filing Information'!$A$4:$J$57,'Formula Rate Filing Information'!$J$1,FALSE) ) -> 42.37288136 | H83: 318600 | I83: IS | J83: 1 | K83: 0 | L83: 13.5 | M83: 2005-05-09 | N83: Baseline Load Growth Deliverability & Reliability | O83: 2005-05-09 | P83: =IF(LEFT($B83,1)<>"b","N/A",'Planning Allocations'!B83) -> N/A | Q83: =IF(LEFT($B83,1)<>"b","N/A",'Planning Allocations'!C83) -> N/A | R83: =IF(LEFT($B83,1)<>"b","N/A",'Planning Allocations'!D83) -> Single Zone | S83: =IF(OR(LEFT($B83,1)<>"b",'Planning Allocations'!$F83=""), $F83&" (100.00%)", MID('Planning Allocations'!$F83,1,LEN('Planning Allocations'!$F83)-2) ) -> ComEd (100.00%) | T83: =IF(OR(LEFT($B83,1)<>"b",'Planning Allocations'!$E83=""), "", MID('Planning Allocations'!$E83,1,LEN('Planning Allocations'!$E83)-2) ) -> 
B84: b0099 | C84: Install third Nelson 345/138 kV | D84: 2008-03-29 | E84: 5 | F84: ComEd | G84: =IF( ISERROR( VLOOKUP(F84,'Formula Rate Filing Information'!$A$4:$A$57,1,FALSE) ),'Formula Rate Filing Information'!$J$58, VLOOKUP(F84,'Formula Rate Filing Information'!$A$4:$J$57,'Formula Rate Filing Information'!$J$1,FALSE) ) -> 42.37288136 | H84: 118000 | I84: IS | J84: 1 | K84: 0 | L84: 5 | M84: 2005-05-09 | N84: Baseline Load Growth Deliverability & Reliability | O84: 2005-05-09 | P84: =IF(LEFT($B84,1)<>"b","N/A",'Planning Allocations'!B84) -> N/A | Q84: =IF(LEFT($B84,1)<>"b","N/A",'Planning Allocations'!C84) -> N/A | R84: =IF(LEFT($B84,1)<>"b","N/A",'Planning Allocations'!D84) -> Single Zone | S84: =IF(OR(LEFT($B84,1)<>"b",'Planning Allocations'!$F84=""), $F84&" (100.00%)", MID('Planning Allocations'!$F84,1,LEN('Planning Allocations'!$F84)-2) ) -> ComEd (100.00%) | T84: =IF(OR(LEFT($B84,1)<>"b",'Planning Allocations'!$E84=""), "", MID('Planning Allocations'!$E84,1,LEN('Planning Allocations'!$E84)-2) ) -> 
B85: b0101 | C85: Install auto-close scheme at Waukegan | D85: 2005-05-25 | E85: 0.05 | F85: ComEd | G85: =IF( ISERROR( VLOOKUP(F85,'Formula Rate Filing Information'!$A$4:$A$57,1,FALSE) ),'Formula Rate Filing Information'!$J$58, VLOOKUP(F85,'Formula Rate Filing Information'!$A$4:$J$57,'Formula Rate Filing Information'!$J$1,FALSE) ) -> 42.37288136 | H85: 1180 | I85: IS | J85: 1 | K85: 0 | L85: 0.05 | M85: 2005-05-09 | N85: Baseline Load Growth Deliverability & Reliability | O85: 2005-05-09 | P85: =IF(LEFT($B85,1)<>"b","N/A",'Planning Allocations'!B85) -> N/A | Q85: =IF(LEFT($B85,1)<>"b","N/A",'Planning Allocations'!C85) -> N/A | R85: =IF(LEFT($B85,1)<>"b","N/A",'Planning Allocations'!D85) -> Single Zone | S85: =IF(OR(LEFT($B85,1)<>"b",'Planning Allocations'!$F85=""), $F85&" (100.00%)", MID('Planning Allocations'!$F85,1,LEN('Planning Allocations'!$F85)-2) ) -> ComEd (100.00%) | T85: =IF(OR(LEFT($B85,1)<>"b",'Planning Allocations'!$E85=""), "", MID('Planning Allocations'!$E85,1,LEN('Planning Allocations'!$E85)-2) ) -> 
B86: b0104 | C86: Install a 345/138 kV transformer at East Frankfort and reconductor East Frankfort - Mokena Tap 138 kV | D86: 2006-05-26 | E86: 15 | F86: ComEd | G86: =IF( ISERROR( VLOOKUP(F86,'Formula Rate Filing Information'!$A$4:$A$57,1,FALSE) ),'Formula Rate Filing Information'!$J$58, VLOOKUP(F86,'Formula Rate Filing Information'!$A$4:$J$57,'Formula Rate Filing Information'!$J$1,FALSE) ) -> 42.37288136 | H86: 354000 | I86: IS | J86: 1 | K86: 0 | L86: 15 | M86: 2005-05-09 | N86: Baseline Load Growth Deliverability & Reliability | O86: 2005-05-09 | P86: =IF(LEFT($B86,1)<>"b","N/A",'Planning Allocations'!B86) -> N/A | Q86: =IF(LEFT($B86,1)<>"b","N/A",'Planning Allocations'!C86) -> N/A | R86: =IF(LEFT($B86,1)<>"b","N/A",'Planning Allocations'!D86) -> Single Zone | S86: =IF(OR(LEFT($B86,1)<>"b",'Planning Allocations'!$F86=""), $F86&" (100.00%)", MID('Planning Allocations'!$F86,1,LEN('Planning Allocations'!$F86)-2) ) -> ComEd (100.00%) | T86: =IF(OR(LEFT($B86,1)<>"b",'Planning Allocations'!$E86=""), "", MID('Planning Allocations'!$E86,1,LEN('Planning Allocations'!$E86)-2) ) -> 
B87: b0105 | C87: Install new 138 kV line 11107 from Electric Junction to Warrenville | D87: 2006-05-27 | E87: 1.04 | F87: ComEd | G87: =IF( ISERROR( VLOOKUP(F87,'Formula Rate Filing Information'!$A$4:$A$57,1,FALSE) ),'Formula Rate Filing Information'!$J$58, VLOOKUP(F87,'Formula Rate Filing Information'!$A$4:$J$57,'Formula Rate Filing Information'!$J$1,FALSE) ) -> 42.37288136 | H87: 24544 | I87: IS | J87: 1 | K87: 0 | L87: 1.04 | M87: 2005-05-09 | N87: Baseline Load Growth Deliverability & Reliability | O87: 2005-05-09 | P87: =IF(LEFT($B87,1)<>"b","N/A",'Planning Allocations'!B87) -> N/A | Q87: =IF(LEFT($B87,1)<>"b","N/A",'Planning Allocations'!C87) -> N/A | R87: =IF(LEFT($B87,1)<>"b","N/A",'Planning Allocations'!D87) -> Single Zone | S87: =IF(OR(LEFT($B87,1)<>"b",'Planning Allocations'!$F87=""), $F87&" (100.00%)", MID('Planning Allocations'!$F87,1,LEN('Planning Allocations'!$F87)-2) ) -> ComEd (100.00%) | T87: =IF(OR(LEFT($B87,1)<>"b",'Planning Allocations'!$E87=""), "", MID('Planning Allocations'!$E87,1,LEN('Planning Allocations'!$E87)-2) ) -> 
B88: b0108 | C88: Replace Deans 230 kV breaker #7-8 | D88: 2006-05-05 | E88: 0.475 | F88: PSEG | G88: =IF( ISERROR( VLOOKUP(F88,'Formula Rate Filing Information'!$A$4:$A$57,1,FALSE) ),'Formula Rate Filing Information'!$J$58, VLOOKUP(F88,'Formula Rate Filing Information'!$A$4:$J$57,'Formula Rate Filing Information'!$J$1,FALSE) ) -> 47 | H88: 10106.38298 | I88: IS | J88: 1 | K88: 0 | L88: 0.475 | M88: 2005-05-09 | N88: Baseline Load Growth Deliverability & Reliability | O88: 2005-05-09 | P88: =IF(LEFT($B88,1)<>"b","N/A",'Planning Allocations'!B88) -> N/A | Q88: =IF(LEFT($B88,1)<>"b","N/A",'Planning Allocations'!C88) -> N/A | R88: =IF(LEFT($B88,1)<>"b","N/A",'Planning Allocations'!D88) -> Single Zone | S88: =IF(OR(LEFT($B88,1)<>"b",'Planning Allocations'!$F88=""), $F88&" (100.00%)", MID('Planning Allocations'!$F88,1,LEN('Planning Allocations'!$F88)-2) ) -> PSEG (100.00%) | T88: =IF(OR(LEFT($B88,1)<>"b",'Planning Allocations'!$E88=""), "", MID('Planning Allocations'!$E88,1,LEN('Planning Allocations'!$E88)-2) ) -> 
B89: b0109 | C89: Install SPS at Wylie Ridge | D89: 2005-03-31 | E89: 0 | F89: APS | G89: =IF( ISERROR( VLOOKUP(F89,'Formula Rate Filing Information'!$A$4:$A$57,1,FALSE) ),'Formula Rate Filing Information'!$J$58, VLOOKUP(F89,'Formula Rate Filing Information'!$A$4:$J$57,'Formula Rate Filing Information'!$J$1,FALSE) ) -> 51.94436374 | H89: 0 | I89: IS | J89: 1 | K89: 0 | L89: 0 | M89: 2005-05-09 | N89: Operational Performance | O89: 2005-05-09 | P89: =IF(LEFT($B89,1)<>"b","N/A",'Planning Allocations'!B89) -> N/A | Q89: =IF(LEFT($B89,1)<>"b","N/A",'Planning Allocations'!C89) -> N/A | R89: =IF(LEFT($B89,1)<>"b","N/A",'Planning Allocations'!D89) -> Single Zone | S89: =IF(OR(LEFT($B89,1)<>"b",'Planning Allocations'!$F89=""), $F89&" (100.00%)", MID('Planning Allocations'!$F89,1,LEN('Planning Allocations'!$F89)-2) ) -> APS (100.00%) | T89: =IF(OR(LEFT($B89,1)<>"b",'Planning Allocations'!$E89=""), "", MID('Planning Allocations'!$E89,1,LEN('Planning Allocations'!$E89)-2) ) -> 
B90: b0110 | C90: Purchase spare 500/230 kV transformer for Doubs | D90: 2005-10-22 | E90: 0 | F90: APS | G90: =IF( ISERROR( VLOOKUP(F90,'Formula Rate Filing Information'!$A$4:$A$57,1,FALSE) ),'Formula Rate Filing Information'!$J$58, VLOOKUP(F90,'Formula Rate Filing Information'!$A$4:$J$57,'Formula Rate Filing Information'!$J$1,FALSE) ) -> 51.94436374 | H90: 0 | I90: IS | J90: 1 | K90: 0 | L90: 0 | M90: 2005-05-09 | N90: Baseline Load Growth Deliverability & Reliability | O90: 2005-05-09 | P90: =IF(LEFT($B90,1)<>"b","N/A",'Planning Allocations'!B90) -> N/A | Q90: =IF(LEFT($B90,1)<>"b","N/A",'Planning Allocations'!C90) -> N/A | R90: =IF(LEFT($B90,1)<>"b","N/A",'Planning Allocations'!D90) -> Single Zone | S90: =IF(OR(LEFT($B90,1)<>"b",'Planning Allocations'!$F90=""), $F90&" (100.00%)", MID('Planning Allocations'!$F90,1,LEN('Planning Allocations'!$F90)-2) ) -> APS (100.00%) | T90: =IF(OR(LEFT($B90,1)<>"b",'Planning Allocations'!$E90=""), "", MID('Planning Allocations'!$E90,1,LEN('Planning Allocations'!$E90)-2) ) -> 
B91: b0113 | C91: Roberts Station / Bixby, LSII 138kV/Bixby, Install new 345/138 kV transformer at Roberts Station; Reconductor Bixby- LSII 138 kV line; Upgrade 138 kV breakers at Bixby Substation | D91: 2007-11-08 | E91: 14.2 | F91: AEP | G91: =IF( ISERROR( VLOOKUP(F91,'Formula Rate Filing Information'!$A$4:$A$57,1,FALSE) ),'Formula Rate Filing Information'!$J$58, VLOOKUP(F91,'Formula Rate Filing Information'!$A$4:$J$57,'Formula Rate Filing Information'!$J$1,FALSE) ) -> 38.75438545 | H91: 366410.1452 | I91: IS | J91: 1 | K91: 0 | L91: 14.2 | M91: 2005-05-09 | N91: Baseline Load Growth Deliverability & Reliability | O91: 2005-05-09 | P91: =IF(LEFT($B91,1)<>"b","N/A",'Planning Allocations'!B91) -> N/A | Q91: =IF(LEFT($B91,1)<>"b","N/A",'Planning Allocations'!C91) -> N/A | R91: =IF(LEFT($B91,1)<>"b","N/A",'Planning Allocations'!D91) -> Single Zone | S91: =IF(OR(LEFT($B91,1)<>"b",'Planning Allocations'!$F91=""), $F91&" (100.00%)", MID('Planning Allocations'!$F91,1,LEN('Planning Allocations'!$F91)-2) ) -> AEP (100.00%) | T91: =IF(OR(LEFT($B91,1)<>"b",'Planning Allocations'!$E91=""), "", MID('Planning Allocations'!$E91,1,LEN('Planning Allocations'!$E91)-2) ) -> 
B92: b0114 | C92: Install new 345/138 kV transformer at existing Don Marquis Station and reconfigure 138 kV system in Waverly-Sargents 138 kV area | D92: 2010-11-14 | E92: 35.232 | F92: AEP | G92: =IF( ISERROR( VLOOKUP(F92,'Formula Rate Filing Information'!$A$4:$A$57,1,FALSE) ),'Formula Rate Filing Information'!$J$58, VLOOKUP(F92,'Formula Rate Filing Information'!$A$4:$J$57,'Formula Rate Filing Information'!$J$1,FALSE) ) -> 38.75438545 | H92: 909110.0165 | I92: IS | J92: 1 | K92: 0 | L92: 35.232 | M92: 2005-05-09 | N92: Baseline Load Growth Deliverability & Reliability | O92: 2005-05-09 | P92: =IF(LEFT($B92,1)<>"b","N/A",'Planning Allocations'!B92) -> N/A | Q92: =IF(LEFT($B92,1)<>"b","N/A",'Planning Allocations'!C92) -> N/A | R92: =IF(LEFT($B92,1)<>"b","N/A",'Planning Allocations'!D92) -> Single Zone | S92: =IF(OR(LEFT($B92,1)<>"b",'Planning Allocations'!$F92=""), $F92&" (100.00%)", MID('Planning Allocations'!$F92,1,LEN('Planning Allocations'!$F92)-2) ) -> AEP (100.00%) | T92: =IF(OR(LEFT($B92,1)<>"b",'Planning Allocations'!$E92=""), "", MID('Planning Allocations'!$E92,1,LEN('Planning Allocations'!$E92)-2) ) -> 
B93: b0115 | C93: Install 5% series reactor at Hyatt Station and install 29 MVAR capacitor at Trent 138 kV Station | D93: 2005-07-12 | E93: 0.9 | F93: AEP | G93: =IF( ISERROR( VLOOKUP(F93,'Formula Rate Filing Information'!$A$4:$A$57,1,FALSE) ),'Formula Rate Filing Information'!$J$58, VLOOKUP(F93,'Formula Rate Filing Information'!$A$4:$J$57,'Formula Rate Filing Information'!$J$1,FALSE) ) -> 38.75438545 | H93: 23223.17821 | I93: IS | J93: 1 | K93: 0 | L93: 0.9 | M93: 2005-05-09 | N93: Baseline Load Growth Deliverability & Reliability | O93: 2005-05-09 | P93: =IF(LEFT($B93,1)<>"b","N/A",'Planning Allocations'!B93) -> N/A | Q93: =IF(LEFT($B93,1)<>"b","N/A",'Planning Allocations'!C93) -> N/A | R93: =IF(LEFT($B93,1)<>"b","N/A",'Planning Allocations'!D93) -> Single Zone | S93: =IF(OR(LEFT($B93,1)<>"b",'Planning Allocations'!$F93=""), $F93&" (100.00%)", MID('Planning Allocations'!$F93,1,LEN('Planning Allocations'!$F93)-2) ) -> AEP (100.00%) | T93: =IF(OR(LEFT($B93,1)<>"b",'Planning Allocations'!$E93=""), "", MID('Planning Allocations'!$E93,1,LEN('Planning Allocations'!$E93)-2) ) -> 
B94: b0116 | C94: Replace breakers K, K2, and M at Cook 345 kV Station | D94: 2005-06-24 | E94: 4.1 | F94: AEP | G94: =IF( ISERROR( VLOOKUP(F94,'Formula Rate Filing Information'!$A$4:$A$57,1,FALSE) ),'Formula Rate Filing Information'!$J$58, VLOOKUP(F94,'Formula Rate Filing Information'!$A$4:$J$57,'Formula Rate Filing Information'!$J$1,FALSE) ) -> 38.75438545 | H94: 105794.4785 | I94: IS | J94: 1 | K94: 0 | L94: 4.1 | M94: 2005-05-09 | N94: Baseline Load Growth Deliverability & Reliability | O94: 2005-05-09 | P94: =IF(LEFT($B94,1)<>"b","N/A",'Planning Allocations'!B94) -> N/A | Q94: =IF(LEFT($B94,1)<>"b","N/A",'Planning Allocations'!C94) -> N/A | R94: =IF(LEFT($B94,1)<>"b","N/A",'Planning Allocations'!D94) -> Single Zone | S94: =IF(OR(LEFT($B94,1)<>"b",'Planning Allocations'!$F94=""), $F94&" (100.00%)", MID('Planning Allocations'!$F94,1,LEN('Planning Allocations'!$F94)-2) ) -> AEP (100.00%) | T94: =IF(OR(LEFT($B94,1)<>"b",'Planning Allocations'!$E94=""), "", MID('Planning Allocations'!$E94,1,LEN('Planning Allocations'!$E94)-2) ) -> 
B95: b0117 | C95: Replace breakers E, E1, E2, F, F1 and F2 at Dumont 345 kV Station | D95: 2005-05-20 | E95: 3.3 | F95: AEP | G95: =IF( ISERROR( VLOOKUP(F95,'Formula Rate Filing Information'!$A$4:$A$57,1,FALSE) ),'Formula Rate Filing Information'!$J$58, VLOOKUP(F95,'Formula Rate Filing Information'!$A$4:$J$57,'Formula Rate Filing Information'!$J$1,FALSE) ) -> 38.75438545 | H95: 85151.65345 | I95: IS | J95: 1 | K95: 0 | L95: 3.3 | M95: 2005-05-09 | N95: Baseline Load Growth Deliverability & Reliability | O95: 2005-05-09 | P95: =IF(LEFT($B95,1)<>"b","N/A",'Planning Allocations'!B95) -> N/A | Q95: =IF(LEFT($B95,1)<>"b","N/A",'Planning Allocations'!C95) -> N/A | R95: =IF(LEFT($B95,1)<>"b","N/A",'Planning Allocations'!D95) -> Single Zone | S95: =IF(OR(LEFT($B95,1)<>"b",'Planning Allocations'!$F95=""), $F95&" (100.00%)", MID('Planning Allocations'!$F95,1,LEN('Planning Allocations'!$F95)-2) ) -> AEP (100.00%) | T95: =IF(OR(LEFT($B95,1)<>"b",'Planning Allocations'!$E95=""), "", MID('Planning Allocations'!$E95,1,LEN('Planning Allocations'!$E95)-2) ) -> 
B96: b0118 | C96: Replacement of AA and AA1 breakers at Tidd 345 KV substation | D96: 2004-11-11 | E96: 1.3 | F96: AEP | G96: =IF( ISERROR( VLOOKUP(F96,'Formula Rate Filing Information'!$A$4:$A$57,1,FALSE) ),'Formula Rate Filing Information'!$J$58, VLOOKUP(F96,'Formula Rate Filing Information'!$A$4:$J$57,'Formula Rate Filing Information'!$J$1,FALSE) ) -> 38.75438545 | H96: 33544.59075 | I96: IS | J96: 1 | K96: 0 | L96: 1.3 | M96: 2005-05-09 | N96: Baseline Load Growth Deliverability & Reliability | O96: 2005-05-09 | P96: =IF(LEFT($B96,1)<>"b","N/A",'Planning Allocations'!B96) -> N/A | Q96: =IF(LEFT($B96,1)<>"b","N/A",'Planning Allocations'!C96) -> N/A | R96: =IF(LEFT($B96,1)<>"b","N/A",'Planning Allocations'!D96) -> Single Zone | S96: =IF(OR(LEFT($B96,1)<>"b",'Planning Allocations'!$F96=""), $F96&" (100.00%)", MID('Planning Allocations'!$F96,1,LEN('Planning Allocations'!$F96)-2) ) -> AEP (100.00%) | T96: =IF(OR(LEFT($B96,1)<>"b",'Planning Allocations'!$E96=""), "", MID('Planning Allocations'!$E96,1,LEN('Planning Allocations'!$E96)-2) ) -> 
B97: b0119 | C97: Replace breakers FF1 and FF2 at Tidd 345 kV Station | D97: 2006-06-18 | E97: 1.3 | F97: Buckeye Power | G97: =IF( ISERROR( VLOOKUP(F97,'Formula Rate Filing Information'!$A$4:$A$57,1,FALSE) ),'Formula Rate Filing Information'!$J$58, VLOOKUP(F97,'Formula Rate Filing Information'!$A$4:$J$57,'Formula Rate Filing Information'!$J$1,FALSE) ) -> 43.78717133 | H97: 29689.06098 | I97: IS | J97: 1 | K97: 0 | L97: 1.3 | M97: 2005-05-09 | N97: Baseline Load Growth Deliverability & Reliability | O97: 2005-05-09 | P97: =IF(LEFT($B97,1)<>"b","N/A",'Planning Allocations'!B97) -> N/A | Q97: =IF(LEFT($B97,1)<>"b","N/A",'Planning Allocations'!C97) -> N/A | R97: =IF(LEFT($B97,1)<>"b","N/A",'Planning Allocations'!D97) -> N/A | S97: =IF(OR(LEFT($B97,1)<>"b",'Planning Allocations'!$F97=""), $F97&" (100.00%)", MID('Planning Allocations'!$F97,1,LEN('Planning Allocations'!$F97)-2) ) -> Buckeye Power (100.00%) | T97: =IF(OR(LEFT($B97,1)<>"b",'Planning Allocations'!$E97=""), "", MID('Planning Allocations'!$E97,1,LEN('Planning Allocations'!$E97)-2) ) -> 
B98: b0121 | C98: Add 150 MVAR capacitor at Aldene 230 kV | D98: 2005-07-07 | E98: 1.25 | F98: PSEG | G98: =IF( ISERROR( VLOOKUP(F98,'Formula Rate Filing Information'!$A$4:$A$57,1,FALSE) ),'Formula Rate Filing Information'!$J$58, VLOOKUP(F98,'Formula Rate Filing Information'!$A$4:$J$57,'Formula Rate Filing Information'!$J$1,FALSE) ) -> 47 | H98: 26595.74468 | I98: IS | J98: 1 | K98: 0 | L98: 1.25 | M98: 2005-05-09 | N98: Baseline Load Growth Deliverability & Reliability | O98: 2005-05-09 | P98: =IF(LEFT($B98,1)<>"b","N/A",'Planning Allocations'!B98) -> Appendix | Q98: =IF(LEFT($B98,1)<>"b","N/A",'Planning Allocations'!C98) -> N/A | R98: =IF(LEFT($B98,1)<>"b","N/A",'Planning Allocations'!D98) -> Single Zone | S98: =IF(OR(LEFT($B98,1)<>"b",'Planning Allocations'!$F98=""), $F98&" (100.00%)", MID('Planning Allocations'!$F98,1,LEN('Planning Allocations'!$F98)-2) ) -> PSEG (100.00%) | T98: =IF(OR(LEFT($B98,1)<>"b",'Planning Allocations'!$E98=""), "", MID('Planning Allocations'!$E98,1,LEN('Planning Allocations'!$E98)-2) ) -> 
B99: b0122 | C99: Bypass the Essex 138 kV series reactors | D99: 2005-05-14 | E99: 0.5 | F99: PSEG | G99: =IF( ISERROR( VLOOKUP(F99,'Formula Rate Filing Information'!$A$4:$A$57,1,FALSE) ),'Formula Rate Filing Information'!$J$58, VLOOKUP(F99,'Formula Rate Filing Information'!$A$4:$J$57,'Formula Rate Filing Information'!$J$1,FALSE) ) -> 47 | H99: 10638.29787 | I99: IS | J99: 1 | K99: 0 | L99: 0.5 | M99: 2005-05-09 | N99: Generator Deactivation | O99: 2005-05-09 | P99: =IF(LEFT($B99,1)<>"b","N/A",'Planning Allocations'!B99) -> Appendix | Q99: =IF(LEFT($B99,1)<>"b","N/A",'Planning Allocations'!C99) -> N/A | R99: =IF(LEFT($B99,1)<>"b","N/A",'Planning Allocations'!D99) -> Single Zone | S99: =IF(OR(LEFT($B99,1)<>"b",'Planning Allocations'!$F99=""), $F99&" (100.00%)", MID('Planning Allocations'!$F99,1,LEN('Planning Allocations'!$F99)-2) ) -> PSEG (100.00%) | T99: =IF(OR(LEFT($B99,1)<>"b",'Planning Allocations'!$E99=""), "", MID('Planning Allocations'!$E99,1,LEN('Planning Allocations'!$E99)-2) ) -> 
B100: b0123 | C100: Add 180 MVAR of distributed capacitors in JCP&L. 65 MVAR are being added in northern JCP&L and 115 MVAR are being added to southern | D100: 2005-08-01 | E100: 2.7 | F100: JCPL | G100: =IF( ISERROR( VLOOKUP(F100,'Formula Rate Filing Information'!$A$4:$A$57,1,FALSE) ),'Formula Rate Filing Information'!$J$58, VLOOKUP(F100,'Formula Rate Filing Information'!$A$4:$J$57,'Formula Rate Filing Information'!$J$1,FALSE) ) -> 53 | H100: 50943.39623 | I100: IS | J100: 1 | K100: 0 | L100: 2.7 | M100: 2005-05-09 | N100: Generator Deactivation | O100: 2005-05-09 | P100: =IF(LEFT($B100,1)<>"b","N/A",'Planning Allocations'!B100) -> Appendix | Q100: =IF(LEFT($B100,1)<>"b","N/A",'Planning Allocations'!C100) -> N/A | R100: =IF(LEFT($B100,1)<>"b","N/A",'Planning Allocations'!D100) -> Single Zone | S100: =IF(OR(LEFT($B100,1)<>"b",'Planning Allocations'!$F100=""), $F100&" (100.00%)", MID('Planning Allocations'!$F100,1,LEN('Planning Allocations'!$F100)-2) ) -> JCPL (100.00%) | T100: =IF(OR(LEFT($B100,1)<>"b",'Planning Allocations'!$E100=""), "", MID('Planning Allocations'!$E100,1,LEN('Planning Allocations'!$E100)-2) ) -> 
B101: b0124.1 | C101: Add a 72 MVAR capacitor at Kittatinny 230 kV | D101: 2005-08-10 | E101: 0.8 | F101: JCPL | G101: =IF( ISERROR( VLOOKUP(F101,'Formula Rate Filing Information'!$A$4:$A$57,1,FALSE) ),'Formula Rate Filing Information'!$J$58, VLOOKUP(F101,'Formula Rate Filing Information'!$A$4:$J$57,'Formula Rate Filing Information'!$J$1,FALSE) ) -> 53 | H101: 15094.33962 | I101: IS | J101: 1 | K101: 0 | L101: 0.8 | M101: 2005-05-09 | N101: Generator Deactivation | O101: 2005-05-09 | P101: =IF(LEFT($B101,1)<>"b","N/A",'Planning Allocations'!B101) -> Appendix | Q101: =IF(LEFT($B101,1)<>"b","N/A",'Planning Allocations'!C101) -> N/A | R101: =IF(LEFT($B101,1)<>"b","N/A",'Planning Allocations'!D101) -> Single Zone | S101: =IF(OR(LEFT($B101,1)<>"b",'Planning Allocations'!$F101=""), $F101&" (100.00%)", MID('Planning Allocations'!$F101,1,LEN('Planning Allocations'!$F101)-2) ) -> JCPL (100.00%) | T101: =IF(OR(LEFT($B101,1)<>"b",'Planning Allocations'!$E101=""), "", MID('Planning Allocations'!$E101,1,LEN('Planning Allocations'!$E101)-2) ) -> 
B102: b0124.2 | C102: Add a 130 MVAR capacitor at Manitou 230 kV | D102: 2006-04-10 | E102: 1 | F102: JCPL | G102: =IF( ISERROR( VLOOKUP(F102,'Formula Rate Filing Information'!$A$4:$A$57,1,FALSE) ),'Formula Rate Filing Information'!$J$58, VLOOKUP(F102,'Formula Rate Filing Information'!$A$4:$J$57,'Formula Rate Filing Information'!$J$1,FALSE) ) -> 53 | H102: 18867.92453 | I102: IS | J102: 1 | K102: 0 | L102: 1 | M102: 2005-05-09 | N102: Generator Deactivation | O102: 2005-05-09 | P102: =IF(LEFT($B102,1)<>"b","N/A",'Planning Allocations'!B102) -> Appendix | Q102: =IF(LEFT($B102,1)<>"b","N/A",'Planning Allocations'!C102) -> N/A | R102: =IF(LEFT($B102,1)<>"b","N/A",'Planning Allocations'!D102) -> Single Zone | S102: =IF(OR(LEFT($B102,1)<>"b",'Planning Allocations'!$F102=""), $F102&" (100.00%)", MID('Planning Allocations'!$F102,1,LEN('Planning Allocations'!$F102)-2) ) -> JCPL (100.00%) | T102: =IF(OR(LEFT($B102,1)<>"b",'Planning Allocations'!$E102=""), "", MID('Planning Allocations'!$E102,1,LEN('Planning Allocations'!$E102)-2) ) -> 
B103: b0125 | C103: Add Special Protection Scheme at Bridgewater to automatically open 230 kV breaker for outage of Branchburg – Deans 500 kV and Deans 500/230 kV #1 transformer | D103: 2005-07-29 | E103: 0.1 | F103: PSEG | G103: =IF( ISERROR( VLOOKUP(F103,'Formula Rate Filing Information'!$A$4:$A$57,1,FALSE) ),'Formula Rate Filing Information'!$J$58, VLOOKUP(F103,'Formula Rate Filing Information'!$A$4:$J$57,'Formula Rate Filing Information'!$J$1,FALSE) ) -> 47 | H103: 2127.659574 | I103: IS | J103: 1 | K103: 0 | L103: 0.1 | M103: 2005-05-09 | N103: Generator Deactivation | O103: 2005-05-09 | P103: =IF(LEFT($B103,1)<>"b","N/A",'Planning Allocations'!B103) -> Appendix | Q103: =IF(LEFT($B103,1)<>"b","N/A",'Planning Allocations'!C103) -> N/A | R103: =IF(LEFT($B103,1)<>"b","N/A",'Planning Allocations'!D103) -> Single Zone | S103: =IF(OR(LEFT($B103,1)<>"b",'Planning Allocations'!$F103=""), $F103&" (100.00%)", MID('Planning Allocations'!$F103,1,LEN('Planning Allocations'!$F103)-2) ) -> PSEG (100.00%) | T103: =IF(OR(LEFT($B103,1)<>"b",'Planning Allocations'!$E103=""), "", MID('Planning Allocations'!$E103,1,LEN('Planning Allocations'!$E103)-2) ) -> 
B104: b0126 | C104: Replace wavetrap on Branchburg – Flagtown 230 kV | D104: 2005-05-24 | E104: 0.5 | F104: PSEG | G104: =IF( ISERROR( VLOOKUP(F104,'Formula Rate Filing Information'!$A$4:$A$57,1,FALSE) ),'Formula Rate Filing Information'!$J$58, VLOOKUP(F104,'Formula Rate Filing Information'!$A$4:$J$57,'Formula Rate Filing Information'!$J$1,FALSE) ) -> 47 | H104: 10638.29787 | I104: IS | J104: 1 | K104: 0 | L104: 0.5 | M104: 2005-05-09 | N104: Generator Deactivation | O104: 2005-05-09 | P104: =IF(LEFT($B104,1)<>"b","N/A",'Planning Allocations'!B104) -> Appendix | Q104: =IF(LEFT($B104,1)<>"b","N/A",'Planning Allocations'!C104) -> N/A | R104: =IF(LEFT($B104,1)<>"b","N/A",'Planning Allocations'!D104) -> Single Zone | S104: =IF(OR(LEFT($B104,1)<>"b",'Planning Allocations'!$F104=""), $F104&" (100.00%)", MID('Planning Allocations'!$F104,1,LEN('Planning Allocations'!$F104)-2) ) -> PSEG (100.00%) | T104: =IF(OR(LEFT($B104,1)<>"b",'Planning Allocations'!$E104=""), "", MID('Planning Allocations'!$E104,1,LEN('Planning Allocations'!$E104)-2) ) -> 
B105: b0127 | C105: Replace terminal equipment to increase Brunswick – Adams – Bennetts Lane 230 kV to conductor rating | D105: 2005-05-28 | E105: 0.5 | F105: PSEG | G105: =IF( ISERROR( VLOOKUP(F105,'Formula Rate Filing Information'!$A$4:$A$57,1,FALSE) ),'Formula Rate Filing Information'!$J$58, VLOOKUP(F105,'Formula Rate Filing Information'!$A$4:$J$57,'Formula Rate Filing Information'!$J$1,FALSE) ) -> 47 | H105: 10638.29787 | I105: IS | J105: 1 | K105: 0 | L105: 0.5 | M105: 2005-05-09 | N105: Generator Deactivation | O105: 2005-05-09 | P105: =IF(LEFT($B105,1)<>"b","N/A",'Planning Allocations'!B105) -> Appendix | Q105: =IF(LEFT($B105,1)<>"b","N/A",'Planning Allocations'!C105) -> N/A | R105: =IF(LEFT($B105,1)<>"b","N/A",'Planning Allocations'!D105) -> Single Zone | S105: =IF(OR(LEFT($B105,1)<>"b",'Planning Allocations'!$F105=""), $F105&" (100.00%)", MID('Planning Allocations'!$F105,1,LEN('Planning Allocations'!$F105)-2) ) -> PSEG (100.00%) | T105: =IF(OR(LEFT($B105,1)<>"b",'Planning Allocations'!$E105=""), "", MID('Planning Allocations'!$E105,1,LEN('Planning Allocations'!$E105)-2) ) -> 
B106: b0128 | C106: Reconductor 500 ft section of Electric Junction – North Aurora 138 kV | D106: 2005-05-12 | E106: 0.4 | F106: ComEd | G106: =IF( ISERROR( VLOOKUP(F106,'Formula Rate Filing Information'!$A$4:$A$57,1,FALSE) ),'Formula Rate Filing Information'!$J$58, VLOOKUP(F106,'Formula Rate Filing Information'!$A$4:$J$57,'Formula Rate Filing Information'!$J$1,FALSE) ) -> 42.37288136 | H106: 9440 | I106: IS | J106: 1 | K106: 0 | L106: 0.4 | M106: 2005-05-09 | N106: Baseline Load Growth Deliverability & Reliability | O106: 2005-05-09 | P106: =IF(LEFT($B106,1)<>"b","N/A",'Planning Allocations'!B106) -> N/A | Q106: =IF(LEFT($B106,1)<>"b","N/A",'Planning Allocations'!C106) -> N/A | R106: =IF(LEFT($B106,1)<>"b","N/A",'Planning Allocations'!D106) -> Single Zone | S106: =IF(OR(LEFT($B106,1)<>"b",'Planning Allocations'!$F106=""), $F106&" (100.00%)", MID('Planning Allocations'!$F106,1,LEN('Planning Allocations'!$F106)-2) ) -> ComEd (100.00%) | T106: =IF(OR(LEFT($B106,1)<>"b",'Planning Allocations'!$E106=""), "", MID('Planning Allocations'!$E106,1,LEN('Planning Allocations'!$E106)-2) ) -> 
B107: b0129 | C107: Replace wavetrap on Flagtown – Somerville 230 kV C-2203 line | D107: 2006-05-25 | E107: 0.5 | F107: PSEG | G107: =IF( ISERROR( VLOOKUP(F107,'Formula Rate Filing Information'!$A$4:$A$57,1,FALSE) ),'Formula Rate Filing Information'!$J$58, VLOOKUP(F107,'Formula Rate Filing Information'!$A$4:$J$57,'Formula Rate Filing Information'!$J$1,FALSE) ) -> 47 | H107: 10638.29787 | I107: IS | J107: 1 | K107: 0 | L107: 0.5 | M107: 2005-05-09 | N107: Generator Deactivation | O107: 2005-05-09 | P107: =IF(LEFT($B107,1)<>"b","N/A",'Planning Allocations'!B107) -> Appendix | Q107: =IF(LEFT($B107,1)<>"b","N/A",'Planning Allocations'!C107) -> N/A | R107: =IF(LEFT($B107,1)<>"b","N/A",'Planning Allocations'!D107) -> Single Zone | S107: =IF(OR(LEFT($B107,1)<>"b",'Planning Allocations'!$F107=""), $F107&" (100.00%)", MID('Planning Allocations'!$F107,1,LEN('Planning Allocations'!$F107)-2) ) -> PSEG (100.00%) | T107: =IF(OR(LEFT($B107,1)<>"b",'Planning Allocations'!$E107=""), "", MID('Planning Allocations'!$E107,1,LEN('Planning Allocations'!$E107)-2) ) -> 
B108: b0130 | C108: Replace all de-rated Branchburg 500/230 kV transformers | D108: 2006-05-19 | E108: 20 | F108: PSEG | G108: =IF( ISERROR( VLOOKUP(F108,'Formula Rate Filing Information'!$A$4:$A$57,1,FALSE) ),'Formula Rate Filing Information'!$J$58, VLOOKUP(F108,'Formula Rate Filing Information'!$A$4:$J$57,'Formula Rate Filing Information'!$J$1,FALSE) ) -> 47 | H108: 425531.9149 | I108: IS | J108: 1 | K108: 0 | L108: 20 | M108: 2005-05-09 | N108: Baseline Load Growth Deliverability & Reliability | O108: 2005-05-09 | P108: =IF(LEFT($B108,1)<>"b","N/A",'Planning Allocations'!B108) -> Appendix | Q108: =IF(LEFT($B108,1)<>"b","N/A",'Planning Allocations'!C108) -> N/A | R108: =IF(LEFT($B108,1)<>"b","N/A",'Planning Allocations'!D108) -> 100% Violation-Based DFAX | S108: =IF(OR(LEFT($B108,1)<>"b",'Planning Allocations'!$F108=""), $F108&" (100.00%)", MID('Planning Allocations'!$F108,1,LEN('Planning Allocations'!$F108)-2) ) -> AEC (1.36%) / JCPL (47.76%) / PSEG (50.88%) | T108: =IF(OR(LEFT($B108,1)<>"b",'Planning Allocations'!$E108=""), "", MID('Planning Allocations'!$E108,1,LEN('Planning Allocations'!$E108)-2) ) -> 
B109: b0132 | C109: Reconductor Portland - Kittatinny 230kV with 1590ACSS | D109: 2007-05-31 | E109: 4.4 | F109: JCPL | G109: =IF( ISERROR( VLOOKUP(F109,'Formula Rate Filing Information'!$A$4:$A$57,1,FALSE) ),'Formula Rate Filing Information'!$J$58, VLOOKUP(F109,'Formula Rate Filing Information'!$A$4:$J$57,'Formula Rate Filing Information'!$J$1,FALSE) ) -> 53 | H109: 83018.86792 | I109: IS | J109: 1 | K109: 0 | L109: 4.4 | M109: 2005-05-09 | N109: Baseline Load Growth Deliverability & Reliability | O109: 2005-05-09 | P109: =IF(LEFT($B109,1)<>"b","N/A",'Planning Allocations'!B109) -> Appendix | Q109: =IF(LEFT($B109,1)<>"b","N/A",'Planning Allocations'!C109) -> N/A | R109: =IF(LEFT($B109,1)<>"b","N/A",'Planning Allocations'!D109) -> Single Zone | S109: =IF(OR(LEFT($B109,1)<>"b",'Planning Allocations'!$F109=""), $F109&" (100.00%)", MID('Planning Allocations'!$F109,1,LEN('Planning Allocations'!$F109)-2) ) -> JCPL (100.00%) | T109: =IF(OR(LEFT($B109,1)<>"b",'Planning Allocations'!$E109=""), "", MID('Planning Allocations'!$E109,1,LEN('Planning Allocations'!$E109)-2) ) -> 
B110: b0132.1 | C110: Replace terminal equipment on the Portland - Kittatinny 230kV and CB at the Kittatinny bus | E110: 1 | F110: JCPL | G110: =IF( ISERROR( VLOOKUP(F110,'Formula Rate Filing Information'!$A$4:$A$57,1,FALSE) ),'Formula Rate Filing Information'!$J$58, VLOOKUP(F110,'Formula Rate Filing Information'!$A$4:$J$57,'Formula Rate Filing Information'!$J$1,FALSE) ) -> 53 | H110: 0 | I110: Cancelled | J110: 1 | K110: 0 | L110: 1 | M110: 2006-05-23 | N110: Baseline Load Growth Deliverability & Reliability | O110: 2006-05-23 | P110: =IF(LEFT($B110,1)<>"b","N/A",'Planning Allocations'!B110) -> Appendix | Q110: =IF(LEFT($B110,1)<>"b","N/A",'Planning Allocations'!C110) -> N/A | R110: =IF(LEFT($B110,1)<>"b","N/A",'Planning Allocations'!D110) -> Cancelled | S110: =IF(OR(LEFT($B110,1)<>"b",'Planning Allocations'!$F110=""), $F110&" (100.00%)", MID('Planning Allocations'!$F110,1,LEN('Planning Allocations'!$F110)-2) ) -> JCPL (100.00%) | T110: =IF(OR(LEFT($B110,1)<>"b",'Planning Allocations'!$E110=""), "", MID('Planning Allocations'!$E110,1,LEN('Planning Allocations'!$E110)-2) ) -> 
B111: b0132.2 | C111: Replace terminal equipment on the Portland - Kittatinny 230kV and CB at the Portland bus | E111: 0.38 | F111: JCPL | G111: =IF( ISERROR( VLOOKUP(F111,'Formula Rate Filing Information'!$A$4:$A$57,1,FALSE) ),'Formula Rate Filing Information'!$J$58, VLOOKUP(F111,'Formula Rate Filing Information'!$A$4:$J$57,'Formula Rate Filing Information'!$J$1,FALSE) ) -> 53 | H111: 0 | I111: Cancelled | J111: 1 | K111: 0 | L111: 0.38 | M111: 2006-05-23 | N111: Baseline Load Growth Deliverability & Reliability | O111: 2006-05-23 | P111: =IF(LEFT($B111,1)<>"b","N/A",'Planning Allocations'!B111) -> Appendix | Q111: =IF(LEFT($B111,1)<>"b","N/A",'Planning Allocations'!C111) -> N/A | R111: =IF(LEFT($B111,1)<>"b","N/A",'Planning Allocations'!D111) -> Cancelled | S111: =IF(OR(LEFT($B111,1)<>"b",'Planning Allocations'!$F111=""), $F111&" (100.00%)", MID('Planning Allocations'!$F111,1,LEN('Planning Allocations'!$F111)-2) ) -> JCPL (100.00%) | T111: =IF(OR(LEFT($B111,1)<>"b",'Planning Allocations'!$E111=""), "", MID('Planning Allocations'!$E111,1,LEN('Planning Allocations'!$E111)-2) ) -> 
B112: b0132.3 | C112: Replace disconnect switch at Portland on the Portland-Kittatinny 230 kV circuit | D112: 2011-10-28 | E112: 0.1 | F112: ME | G112: =IF( ISERROR( VLOOKUP(F112,'Formula Rate Filing Information'!$A$4:$A$57,1,FALSE) ),'Formula Rate Filing Information'!$J$58, VLOOKUP(F112,'Formula Rate Filing Information'!$A$4:$J$57,'Formula Rate Filing Information'!$J$1,FALSE) ) -> 45.35896734 | H112: 2204.635728 | I112: IS | J112: 1 | K112: 0 | L112: 0.1 | M112: 2006-05-23 | N112: Baseline Load Growth Deliverability & Reliability | O112: 2009-12-02 | P112: =IF(LEFT($B112,1)<>"b","N/A",'Planning Allocations'!B112) -> Appendix | Q112: =IF(LEFT($B112,1)<>"b","N/A",'Planning Allocations'!C112) -> N/A | R112: =IF(LEFT($B112,1)<>"b","N/A",'Planning Allocations'!D112) -> 100% Violation-Based DFAX | S112: =IF(OR(LEFT($B112,1)<>"b",'Planning Allocations'!$F112=""), $F112&" (100.00%)", MID('Planning Allocations'!$F112,1,LEN('Planning Allocations'!$F112)-2) ) -> ME (100.00%) | T112: =IF(OR(LEFT($B112,1)<>"b",'Planning Allocations'!$E112=""), "", MID('Planning Allocations'!$E112,1,LEN('Planning Allocations'!$E112)-2) ) -> 
B113: b0134 | C113: Upgrade or re-tension PSEG portion of Kittatinny – Newton 230 kV circuit | D113: 2007-05-15 | E113: 20 | F113: PSEG | G113: =IF( ISERROR( VLOOKUP(F113,'Formula Rate Filing Information'!$A$4:$A$57,1,FALSE) ),'Formula Rate Filing Information'!$J$58, VLOOKUP(F113,'Formula Rate Filing Information'!$A$4:$J$57,'Formula Rate Filing Information'!$J$1,FALSE) ) -> 47 | H113: 425531.9149 | I113: IS | J113: 1 | K113: 0 | L113: 20 | M113: 2005-05-09 | N113: Baseline Load Growth Deliverability & Reliability | O113: 2005-05-09 | P113: =IF(LEFT($B113,1)<>"b","N/A",'Planning Allocations'!B113) -> Appendix | Q113: =IF(LEFT($B113,1)<>"b","N/A",'Planning Allocations'!C113) -> N/A | R113: =IF(LEFT($B113,1)<>"b","N/A",'Planning Allocations'!D113) -> 100% Violation-Based DFAX | S113: =IF(OR(LEFT($B113,1)<>"b",'Planning Allocations'!$F113=""), $F113&" (100.00%)", MID('Planning Allocations'!$F113,1,LEN('Planning Allocations'!$F113)-2) ) -> JCPL (51.11%) / PSEG (45.96%) / RE (2.93%) | T113: =IF(OR(LEFT($B113,1)<>"b",'Planning Allocations'!$E113=""), "", MID('Planning Allocations'!$E113,1,LEN('Planning Allocations'!$E113)-2) ) -> 
B114: b0135 | C114: Cumberland – Dennis, Build new Cumberland – Dennis 230 kV circuit which replaces existing Cumberland – Corson 138 kV | D114: 2007-12-24 | E114: 17.05 | F114: AEC | G114: =IF( ISERROR( VLOOKUP(F114,'Formula Rate Filing Information'!$A$4:$A$57,1,FALSE) ),'Formula Rate Filing Information'!$J$58, VLOOKUP(F114,'Formula Rate Filing Information'!$A$4:$J$57,'Formula Rate Filing Information'!$J$1,FALSE) ) -> 35 | H114: 487142.8571 | I114: IS | J114: 1 | K114: 0 | L114: 17.05 | M114: 2005-05-09 | N114: Generator Deactivation | O114: 2005-05-09 | P114: =IF(LEFT($B114,1)<>"b","N/A",'Planning Allocations'!B114) -> Appendix | Q114: =IF(LEFT($B114,1)<>"b","N/A",'Planning Allocations'!C114) -> N/A | R114: =IF(LEFT($B114,1)<>"b","N/A",'Planning Allocations'!D114) -> Single Zone | S114: =IF(OR(LEFT($B114,1)<>"b",'Planning Allocations'!$F114=""), $F114&" (100.00%)", MID('Planning Allocations'!$F114,1,LEN('Planning Allocations'!$F114)-2) ) -> AEC (100.00%) | T114: =IF(OR(LEFT($B114,1)<>"b",'Planning Allocations'!$E114=""), "", MID('Planning Allocations'!$E114,1,LEN('Planning Allocations'!$E114)-2) ) -> 
B115: b0136 | C115: Dennis, Install Dennis 230/138 kV, Dennis 150 MVAR SVC and 50 MVAR capacitor | D115: 2008-02-28 | E115: 27.45 | F115: AEC | G115: =IF( ISERROR( VLOOKUP(F115,'Formula Rate Filing Information'!$A$4:$A$57,1,FALSE) ),'Formula Rate Filing Information'!$J$58, VLOOKUP(F115,'Formula Rate Filing Information'!$A$4:$J$57,'Formula Rate Filing Information'!$J$1,FALSE) ) -> 35 | H115: 784285.7143 | I115: IS | J115: 1 | K115: 0 | L115: 27.45 | M115: 2005-05-09 | N115: Generator Deactivation | O115: 2005-05-09 | P115: =IF(LEFT($B115,1)<>"b","N/A",'Planning Allocations'!B115) -> Appendix | Q115: =IF(LEFT($B115,1)<>"b","N/A",'Planning Allocations'!C115) -> N/A | R115: =IF(LEFT($B115,1)<>"b","N/A",'Planning Allocations'!D115) -> Single Zone | S115: =IF(OR(LEFT($B115,1)<>"b",'Planning Allocations'!$F115=""), $F115&" (100.00%)", MID('Planning Allocations'!$F115,1,LEN('Planning Allocations'!$F115)-2) ) -> AEC (100.00%) | T115: =IF(OR(LEFT($B115,1)<>"b",'Planning Allocations'!$E115=""), "", MID('Planning Allocations'!$E115,1,LEN('Planning Allocations'!$E115)-2) ) -> 
B116: b0137 | C116: Dennis – Corson, Build new Dennis – Corson 138 kV circuit | D116: 2007-12-15 | E116: 1.16 | F116: AEC | G116: =IF( ISERROR( VLOOKUP(F116,'Formula Rate Filing Information'!$A$4:$A$57,1,FALSE) ),'Formula Rate Filing Information'!$J$58, VLOOKUP(F116,'Formula Rate Filing Information'!$A$4:$J$57,'Formula Rate Filing Information'!$J$1,FALSE) ) -> 35 | H116: 33142.85714 | I116: IS | J116: 1 | K116: 0 | L116: 1.16 | M116: 2005-05-09 | N116: Generator Deactivation | O116: 2005-05-09 | P116: =IF(LEFT($B116,1)<>"b","N/A",'Planning Allocations'!B116) -> Appendix | Q116: =IF(LEFT($B116,1)<>"b","N/A",'Planning Allocations'!C116) -> N/A | R116: =IF(LEFT($B116,1)<>"b","N/A",'Planning Allocations'!D116) -> Single Zone | S116: =IF(OR(LEFT($B116,1)<>"b",'Planning Allocations'!$F116=""), $F116&" (100.00%)", MID('Planning Allocations'!$F116,1,LEN('Planning Allocations'!$F116)-2) ) -> AEC (100.00%) | T116: =IF(OR(LEFT($B116,1)<>"b",'Planning Allocations'!$E116=""), "", MID('Planning Allocations'!$E116,1,LEN('Planning Allocations'!$E116)-2) ) -> 
B117: b0138 | C117: Install Cardiff 230/138 kV transformer and a 50 MVAR capacitor at Cardiff | D117: 2008-03-31 | E117: 8.069 | F117: AEC | G117: =IF( ISERROR( VLOOKUP(F117,'Formula Rate Filing Information'!$A$4:$A$57,1,FALSE) ),'Formula Rate Filing Information'!$J$58, VLOOKUP(F117,'Formula Rate Filing Information'!$A$4:$J$57,'Formula Rate Filing Information'!$J$1,FALSE) ) -> 35 | H117: 230542.8571 | I117: IS | J117: 1 | K117: 0 | L117: 8.069 | M117: 2005-05-09 | N117: Generator Deactivation | O117: 2005-05-09 | P117: =IF(LEFT($B117,1)<>"b","N/A",'Planning Allocations'!B117) -> Appendix | Q117: =IF(LEFT($B117,1)<>"b","N/A",'Planning Allocations'!C117) -> N/A | R117: =IF(LEFT($B117,1)<>"b","N/A",'Planning Allocations'!D117) -> Single Zone | S117: =IF(OR(LEFT($B117,1)<>"b",'Planning Allocations'!$F117=""), $F117&" (100.00%)", MID('Planning Allocations'!$F117,1,LEN('Planning Allocations'!$F117)-2) ) -> AEC (100.00%) | T117: =IF(OR(LEFT($B117,1)<>"b",'Planning Allocations'!$E117=""), "", MID('Planning Allocations'!$E117,1,LEN('Planning Allocations'!$E117)-2) ) -> 
B118: b0139 | C118: Build new Cardiff – Lewis 138 kV circuit | D118: 2007-12-24 | E118: 3.69 | F118: AEC | G118: =IF( ISERROR( VLOOKUP(F118,'Formula Rate Filing Information'!$A$4:$A$57,1,FALSE) ),'Formula Rate Filing Information'!$J$58, VLOOKUP(F118,'Formula Rate Filing Information'!$A$4:$J$57,'Formula Rate Filing Information'!$J$1,FALSE) ) -> 35 | H118: 105428.5714 | I118: IS | J118: 1 | K118: 0 | L118: 3.69 | M118: 2005-05-09 | N118: Generator Deactivation | O118: 2005-05-09 | P118: =IF(LEFT($B118,1)<>"b","N/A",'Planning Allocations'!B118) -> Appendix | Q118: =IF(LEFT($B118,1)<>"b","N/A",'Planning Allocations'!C118) -> N/A | R118: =IF(LEFT($B118,1)<>"b","N/A",'Planning Allocations'!D118) -> Single Zone | S118: =IF(OR(LEFT($B118,1)<>"b",'Planning Allocations'!$F118=""), $F118&" (100.00%)", MID('Planning Allocations'!$F118,1,LEN('Planning Allocations'!$F118)-2) ) -> AEC (100.00%) | T118: =IF(OR(LEFT($B118,1)<>"b",'Planning Allocations'!$E118=""), "", MID('Planning Allocations'!$E118,1,LEN('Planning Allocations'!$E118)-2) ) -> 
B119: b0140 | C119: Reconductor Laurel – Woodstown 69 kV | D119: 2007-01-15 | E119: 4.99 | F119: AEC | G119: =IF( ISERROR( VLOOKUP(F119,'Formula Rate Filing Information'!$A$4:$A$57,1,FALSE) ),'Formula Rate Filing Information'!$J$58, VLOOKUP(F119,'Formula Rate Filing Information'!$A$4:$J$57,'Formula Rate Filing Information'!$J$1,FALSE) ) -> 35 | H119: 142571.4286 | I119: IS | J119: 1 | K119: 0 | L119: 4.99 | M119: 2005-05-09 | N119: Generator Deactivation | O119: 2005-05-09 | P119: =IF(LEFT($B119,1)<>"b","N/A",'Planning Allocations'!B119) -> Appendix | Q119: =IF(LEFT($B119,1)<>"b","N/A",'Planning Allocations'!C119) -> N/A | R119: =IF(LEFT($B119,1)<>"b","N/A",'Planning Allocations'!D119) -> Single Zone | S119: =IF(OR(LEFT($B119,1)<>"b",'Planning Allocations'!$F119=""), $F119&" (100.00%)", MID('Planning Allocations'!$F119,1,LEN('Planning Allocations'!$F119)-2) ) -> AEC (100.00%) | T119: =IF(OR(LEFT($B119,1)<>"b",'Planning Allocations'!$E119=""), "", MID('Planning Allocations'!$E119,1,LEN('Planning Allocations'!$E119)-2) ) -> 
B120: b0141 | C120: Reconductor Monroe – North Central 69 kV | D120: 2006-03-14 | E120: 4.9 | F120: AEC | G120: =IF( ISERROR( VLOOKUP(F120,'Formula Rate Filing Information'!$A$4:$A$57,1,FALSE) ),'Formula Rate Filing Information'!$J$58, VLOOKUP(F120,'Formula Rate Filing Information'!$A$4:$J$57,'Formula Rate Filing Information'!$J$1,FALSE) ) -> 35 | H120: 140000 | I120: IS | J120: 1 | K120: 0 | L120: 4.9 | M120: 2005-05-09 | N120: Generator Deactivation | O120: 2005-05-09 | P120: =IF(LEFT($B120,1)<>"b","N/A",'Planning Allocations'!B120) -> Appendix | Q120: =IF(LEFT($B120,1)<>"b","N/A",'Planning Allocations'!C120) -> N/A | R120: =IF(LEFT($B120,1)<>"b","N/A",'Planning Allocations'!D120) -> Single Zone | S120: =IF(OR(LEFT($B120,1)<>"b",'Planning Allocations'!$F120=""), $F120&" (100.00%)", MID('Planning Allocations'!$F120,1,LEN('Planning Allocations'!$F120)-2) ) -> AEC (100.00%) | T120: =IF(OR(LEFT($B120,1)<>"b",'Planning Allocations'!$E120=""), "", MID('Planning Allocations'!$E120,1,LEN('Planning Allocations'!$E120)-2) ) -> 
B121: b0142 | C121: Reconductor Landis – Minotola 138 kV | D121: 2006-04-28 | E121: 1.93 | F121: AEC | G121: =IF( ISERROR( VLOOKUP(F121,'Formula Rate Filing Information'!$A$4:$A$57,1,FALSE) ),'Formula Rate Filing Information'!$J$58, VLOOKUP(F121,'Formula Rate Filing Information'!$A$4:$J$57,'Formula Rate Filing Information'!$J$1,FALSE) ) -> 35 | H121: 55142.85714 | I121: IS | J121: 1 | K121: 0 | L121: 1.93 | M121: 2005-05-09 | N121: Generator Deactivation | O121: 2005-05-09 | P121: =IF(LEFT($B121,1)<>"b","N/A",'Planning Allocations'!B121) -> Appendix | Q121: =IF(LEFT($B121,1)<>"b","N/A",'Planning Allocations'!C121) -> N/A | R121: =IF(LEFT($B121,1)<>"b","N/A",'Planning Allocations'!D121) -> Single Zone | S121: =IF(OR(LEFT($B121,1)<>"b",'Planning Allocations'!$F121=""), $F121&" (100.00%)", MID('Planning Allocations'!$F121,1,LEN('Planning Allocations'!$F121)-2) ) -> AEC (100.00%) | T121: =IF(OR(LEFT($B121,1)<>"b",'Planning Allocations'!$E121=""), "", MID('Planning Allocations'!$E121,1,LEN('Planning Allocations'!$E121)-2) ) -> 
B122: b0143 | C122: Reconductor Beckett – Paulsboro 69 kV | D122: 2007-12-15 | E122: 1.63 | F122: AEC | G122: =IF( ISERROR( VLOOKUP(F122,'Formula Rate Filing Information'!$A$4:$A$57,1,FALSE) ),'Formula Rate Filing Information'!$J$58, VLOOKUP(F122,'Formula Rate Filing Information'!$A$4:$J$57,'Formula Rate Filing Information'!$J$1,FALSE) ) -> 35 | H122: 46571.42857 | I122: IS | J122: 1 | K122: 0 | L122: 1.63 | M122: 2005-05-09 | N122: Generator Deactivation | O122: 2005-05-09 | P122: =IF(LEFT($B122,1)<>"b","N/A",'Planning Allocations'!B122) -> Appendix | Q122: =IF(LEFT($B122,1)<>"b","N/A",'Planning Allocations'!C122) -> N/A | R122: =IF(LEFT($B122,1)<>"b","N/A",'Planning Allocations'!D122) -> Single Zone | S122: =IF(OR(LEFT($B122,1)<>"b",'Planning Allocations'!$F122=""), $F122&" (100.00%)", MID('Planning Allocations'!$F122,1,LEN('Planning Allocations'!$F122)-2) ) -> AEC (100.00%) | T122: =IF(OR(LEFT($B122,1)<>"b",'Planning Allocations'!$E122=""), "", MID('Planning Allocations'!$E122,1,LEN('Planning Allocations'!$E122)-2) ) -> 
B123: b0144.1 | C123: Build new Red Lion – Milford – Indian River 230 kV circuit | D123: 2006-06-20 | E123: 44.909 | F123: DPL | G123: =IF( ISERROR( VLOOKUP(F123,'Formula Rate Filing Information'!$A$4:$A$57,1,FALSE) ),'Formula Rate Filing Information'!$J$58, VLOOKUP(F123,'Formula Rate Filing Information'!$A$4:$J$57,'Formula Rate Filing Information'!$J$1,FALSE) ) -> 35 | H123: 1283114.286 | I123: IS | J123: 1 | K123: 0 | L123: 44.909 | M123: 2005-05-09 | N123: Baseline Load Growth Deliverability & Reliability | O123: 2005-05-09 | P123: =IF(LEFT($B123,1)<>"b","N/A",'Planning Allocations'!B123) -> Appendix | Q123: =IF(LEFT($B123,1)<>"b","N/A",'Planning Allocations'!C123) -> N/A | R123: =IF(LEFT($B123,1)<>"b","N/A",'Planning Allocations'!D123) -> Single Zone | S123: =IF(OR(LEFT($B123,1)<>"b",'Planning Allocations'!$F123=""), $F123&" (100.00%)", MID('Planning Allocations'!$F123,1,LEN('Planning Allocations'!$F123)-2) ) -> DPL (100.00%) | T123: =IF(OR(LEFT($B123,1)<>"b",'Planning Allocations'!$E123=""), "", MID('Planning Allocations'!$E123,1,LEN('Planning Allocations'!$E123)-2) ) -> 
B124: b0144.2 | C124: Indian River Sub - 230kV Terminal Position | D124: 2006-06-20 | E124: 7.465 | F124: DPL | G124: =IF( ISERROR( VLOOKUP(F124,'Formula Rate Filing Information'!$A$4:$A$57,1,FALSE) ),'Formula Rate Filing Information'!$J$58, VLOOKUP(F124,'Formula Rate Filing Information'!$A$4:$J$57,'Formula Rate Filing Information'!$J$1,FALSE) ) -> 35 | H124: 213285.7143 | I124: IS | J124: 1 | K124: 0 | L124: 7.465 | M124: 2005-05-09 | N124: TO Criteria Violation | O124: 2005-05-09 | P124: =IF(LEFT($B124,1)<>"b","N/A",'Planning Allocations'!B124) -> Appendix | Q124: =IF(LEFT($B124,1)<>"b","N/A",'Planning Allocations'!C124) -> N/A | R124: =IF(LEFT($B124,1)<>"b","N/A",'Planning Allocations'!D124) -> Single Zone | S124: =IF(OR(LEFT($B124,1)<>"b",'Planning Allocations'!$F124=""), $F124&" (100.00%)", MID('Planning Allocations'!$F124,1,LEN('Planning Allocations'!$F124)-2) ) -> DPL (100.00%) | T124: =IF(OR(LEFT($B124,1)<>"b",'Planning Allocations'!$E124=""), "", MID('Planning Allocations'!$E124,1,LEN('Planning Allocations'!$E124)-2) ) -> 
B125: b0144.3 | C125: Red Lion Sub - 230kV Terminal Position | D125: 2005-11-15 | E125: 0.969 | F125: DPL | G125: =IF( ISERROR( VLOOKUP(F125,'Formula Rate Filing Information'!$A$4:$A$57,1,FALSE) ),'Formula Rate Filing Information'!$J$58, VLOOKUP(F125,'Formula Rate Filing Information'!$A$4:$J$57,'Formula Rate Filing Information'!$J$1,FALSE) ) -> 35 | H125: 27685.71429 | I125: IS | J125: 1 | K125: 0 | L125: 0.969 | M125: 2005-05-09 | N125: TO Criteria Violation | O125: 2005-05-09 | P125: =IF(LEFT($B125,1)<>"b","N/A",'Planning Allocations'!B125) -> Appendix | Q125: =IF(LEFT($B125,1)<>"b","N/A",'Planning Allocations'!C125) -> N/A | R125: =IF(LEFT($B125,1)<>"b","N/A",'Planning Allocations'!D125) -> Single Zone | S125: =IF(OR(LEFT($B125,1)<>"b",'Planning Allocations'!$F125=""), $F125&" (100.00%)", MID('Planning Allocations'!$F125,1,LEN('Planning Allocations'!$F125)-2) ) -> DPL (100.00%) | T125: =IF(OR(LEFT($B125,1)<>"b",'Planning Allocations'!$E125=""), "", MID('Planning Allocations'!$E125,1,LEN('Planning Allocations'!$E125)-2) ) -> 
B126: b0144.4 | C126: Milford Sub - (2) 230kV Terminal Positions | D126: 2005-12-23 | E126: 2.104 | F126: DPL | G126: =IF( ISERROR( VLOOKUP(F126,'Formula Rate Filing Information'!$A$4:$A$57,1,FALSE) ),'Formula Rate Filing Information'!$J$58, VLOOKUP(F126,'Formula Rate Filing Information'!$A$4:$J$57,'Formula Rate Filing Information'!$J$1,FALSE) ) -> 35 | H126: 60114.28571 | I126: IS | J126: 1 | K126: 0 | L126: 2.104 | M126: 2005-05-09 | N126: Baseline Load Growth Deliverability & Reliability | O126: 2006-11-01 | P126: =IF(LEFT($B126,1)<>"b","N/A",'Planning Allocations'!B126) -> Appendix | Q126: =IF(LEFT($B126,1)<>"b","N/A",'Planning Allocations'!C126) -> N/A | R126: =IF(LEFT($B126,1)<>"b","N/A",'Planning Allocations'!D126) -> Single Zone | S126: =IF(OR(LEFT($B126,1)<>"b",'Planning Allocations'!$F126=""), $F126&" (100.00%)", MID('Planning Allocations'!$F126,1,LEN('Planning Allocations'!$F126)-2) ) -> DPL (100.00%) | T126: =IF(OR(LEFT($B126,1)<>"b",'Planning Allocations'!$E126=""), "", MID('Planning Allocations'!$E126,1,LEN('Planning Allocations'!$E126)-2) ) -> 
B127: b0144.5 | C127: Indian River - 138kV Transmission Line for AT-20 | D127: 2006-05-26 | E127: 0.119 | F127: DPL | G127: =IF( ISERROR( VLOOKUP(F127,'Formula Rate Filing Information'!$A$4:$A$57,1,FALSE) ),'Formula Rate Filing Information'!$J$58, VLOOKUP(F127,'Formula Rate Filing Information'!$A$4:$J$57,'Formula Rate Filing Information'!$J$1,FALSE) ) -> 35 | H127: 3400 | I127: IS | J127: 1 | K127: 0 | L127: 0.119 | M127: 2005-05-09 | N127: Baseline Load Growth Deliverability & Reliability | O127: 2006-11-01 | P127: =IF(LEFT($B127,1)<>"b","N/A",'Planning Allocations'!B127) -> Appendix | Q127: =IF(LEFT($B127,1)<>"b","N/A",'Planning Allocations'!C127) -> N/A | R127: =IF(LEFT($B127,1)<>"b","N/A",'Planning Allocations'!D127) -> Single Zone | S127: =IF(OR(LEFT($B127,1)<>"b",'Planning Allocations'!$F127=""), $F127&" (100.00%)", MID('Planning Allocations'!$F127,1,LEN('Planning Allocations'!$F127)-2) ) -> DPL (100.00%) | T127: =IF(OR(LEFT($B127,1)<>"b",'Planning Allocations'!$E127=""), "", MID('Planning Allocations'!$E127,1,LEN('Planning Allocations'!$E127)-2) ) -> 
B128: b0144.6 | C128: Indian River - 138 & 69kV Transmission Ckts. Undergrounding | D128: 2006-04-18 | E128: 3.654 | F128: DPL | G128: =IF( ISERROR( VLOOKUP(F128,'Formula Rate Filing Information'!$A$4:$A$57,1,FALSE) ),'Formula Rate Filing Information'!$J$58, VLOOKUP(F128,'Formula Rate Filing Information'!$A$4:$J$57,'Formula Rate Filing Information'!$J$1,FALSE) ) -> 35 | H128: 104400 | I128: IS | J128: 1 | K128: 0 | L128: 3.654 | M128: 2005-05-09 | N128: Baseline Load Growth Deliverability & Reliability | O128: 2006-11-01 | P128: =IF(LEFT($B128,1)<>"b","N/A",'Planning Allocations'!B128) -> Appendix | Q128: =IF(LEFT($B128,1)<>"b","N/A",'Planning Allocations'!C128) -> N/A | R128: =IF(LEFT($B128,1)<>"b","N/A",'Planning Allocations'!D128) -> Single Zone | S128: =IF(OR(LEFT($B128,1)<>"b",'Planning Allocations'!$F128=""), $F128&" (100.00%)", MID('Planning Allocations'!$F128,1,LEN('Planning Allocations'!$F128)-2) ) -> DPL (100.00%) | T128: =IF(OR(LEFT($B128,1)<>"b",'Planning Allocations'!$E128=""), "", MID('Planning Allocations'!$E128,1,LEN('Planning Allocations'!$E128)-2) ) -> 
B129: b0144.7 | C129: Indian River - (2) 230kV bus ties | D129: 2006-11-11 | E129: 1.232 | F129: DPL | G129: =IF( ISERROR( VLOOKUP(F129,'Formula Rate Filing Information'!$A$4:$A$57,1,FALSE) ),'Formula Rate Filing Information'!$J$58, VLOOKUP(F129,'Formula Rate Filing Information'!$A$4:$J$57,'Formula Rate Filing Information'!$J$1,FALSE) ) -> 35 | H129: 35200 | I129: IS | J129: 1 | K129: 0 | L129: 1.232 | M129: 2005-05-09 | N129: Baseline Load Growth Deliverability & Reliability | O129: 2006-11-01 | P129: =IF(LEFT($B129,1)<>"b","N/A",'Planning Allocations'!B129) -> Appendix | Q129: =IF(LEFT($B129,1)<>"b","N/A",'Planning Allocations'!C129) -> N/A | R129: =IF(LEFT($B129,1)<>"b","N/A",'Planning Allocations'!D129) -> Single Zone | S129: =IF(OR(LEFT($B129,1)<>"b",'Planning Allocations'!$F129=""), $F129&" (100.00%)", MID('Planning Allocations'!$F129,1,LEN('Planning Allocations'!$F129)-2) ) -> DPL (100.00%) | T129: =IF(OR(LEFT($B129,1)<>"b",'Planning Allocations'!$E129=""), "", MID('Planning Allocations'!$E129,1,LEN('Planning Allocations'!$E129)-2) ) -> 
B130: b0145 | C130: Build new Essex - Aldene 230kV cable connected through a phase angle regulator at Essex | D130: 2007-06-05 | E130: 65 | F130: PSEG | G130: =IF( ISERROR( VLOOKUP(F130,'Formula Rate Filing Information'!$A$4:$A$57,1,FALSE) ),'Formula Rate Filing Information'!$J$58, VLOOKUP(F130,'Formula Rate Filing Information'!$A$4:$J$57,'Formula Rate Filing Information'!$J$1,FALSE) ) -> 47 | H130: 1382978.723 | I130: IS | J130: 1 | K130: 0 | L130: 65 | M130: 2005-05-09 | N130: Baseline Load Growth Deliverability & Reliability | O130: 2005-05-09 | P130: =IF(LEFT($B130,1)<>"b","N/A",'Planning Allocations'!B130) -> Appendix | Q130: =IF(LEFT($B130,1)<>"b","N/A",'Planning Allocations'!C130) -> N/A | R130: =IF(LEFT($B130,1)<>"b","N/A",'Planning Allocations'!D130) -> 100% Violation-Based DFAX | S130: =IF(OR(LEFT($B130,1)<>"b",'Planning Allocations'!$F130=""), $F130&" (100.00%)", MID('Planning Allocations'!$F130,1,LEN('Planning Allocations'!$F130)-2) ) -> JCPL (73.45%) / PSEG (21.78%) / RE (4.77%) | T130: =IF(OR(LEFT($B130,1)<>"b",'Planning Allocations'!$E130=""), "", MID('Planning Allocations'!$E130,1,LEN('Planning Allocations'!$E130)-2) ) -> 
B131: b0146.1 | C131: Replace Quince Orchard 230kV circuit breaker for line 23029 | D131: 2006-05-19 | E131: 1.75 | F131: PEPCO | G131: =IF( ISERROR( VLOOKUP(F131,'Formula Rate Filing Information'!$A$4:$A$57,1,FALSE) ),'Formula Rate Filing Information'!$J$58, VLOOKUP(F131,'Formula Rate Filing Information'!$A$4:$J$57,'Formula Rate Filing Information'!$J$1,FALSE) ) -> 35 | H131: 50000 | I131: IS | J131: 1 | K131: 0 | L131: 1.75 | M131: 2005-05-09 | N131: Baseline Load Growth Deliverability & Reliability | O131: 2006-11-01 | P131: =IF(LEFT($B131,1)<>"b","N/A",'Planning Allocations'!B131) -> N/A | Q131: =IF(LEFT($B131,1)<>"b","N/A",'Planning Allocations'!C131) -> N/A | R131: =IF(LEFT($B131,1)<>"b","N/A",'Planning Allocations'!D131) -> Single Zone | S131: =IF(OR(LEFT($B131,1)<>"b",'Planning Allocations'!$F131=""), $F131&" (100.00%)", MID('Planning Allocations'!$F131,1,LEN('Planning Allocations'!$F131)-2) ) -> PEPCO (100.00%) | T131: =IF(OR(LEFT($B131,1)<>"b",'Planning Allocations'!$E131=""), "", MID('Planning Allocations'!$E131,1,LEN('Planning Allocations'!$E131)-2) ) -> 
B132: b0146.2 | C132: Installation of two additional 230kV circuit breakers at Quince Orchard substation on circuits 23028 and 23029 | D132: 2006-12-19 | E132: 3.04 | F132: PEPCO | G132: =IF( ISERROR( VLOOKUP(F132,'Formula Rate Filing Information'!$A$4:$A$57,1,FALSE) ),'Formula Rate Filing Information'!$J$58, VLOOKUP(F132,'Formula Rate Filing Information'!$A$4:$J$57,'Formula Rate Filing Information'!$J$1,FALSE) ) -> 35 | H132: 86857.14286 | I132: IS | J132: 1 | K132: 0 | L132: 3.04 | M132: 2005-05-09 | N132: Baseline Load Growth Deliverability & Reliability | O132: 2006-11-01 | P132: =IF(LEFT($B132,1)<>"b","N/A",'Planning Allocations'!B132) -> N/A | Q132: =IF(LEFT($B132,1)<>"b","N/A",'Planning Allocations'!C132) -> N/A | R132: =IF(LEFT($B132,1)<>"b","N/A",'Planning Allocations'!D132) -> Single Zone | S132: =IF(OR(LEFT($B132,1)<>"b",'Planning Allocations'!$F132=""), $F132&" (100.00%)", MID('Planning Allocations'!$F132,1,LEN('Planning Allocations'!$F132)-2) ) -> PEPCO (100.00%) | T132: =IF(OR(LEFT($B132,1)<>"b",'Planning Allocations'!$E132=""), "", MID('Planning Allocations'!$E132,1,LEN('Planning Allocations'!$E132)-2) ) -> 
B133: b0148 | C133: Re-rate Glasgow - Mt. Pleasant 138 kV and North Seaford - S. Harrington 138 kV | D133: 2004-08-23 | E133: 0 | F133: DPL | G133: =IF( ISERROR( VLOOKUP(F133,'Formula Rate Filing Information'!$A$4:$A$57,1,FALSE) ),'Formula Rate Filing Information'!$J$58, VLOOKUP(F133,'Formula Rate Filing Information'!$A$4:$J$57,'Formula Rate Filing Information'!$J$1,FALSE) ) -> 35 | H133: 0 | I133: IS | J133: 1 | K133: 0 | L133: 0 | M133: 2005-05-09 | N133: Baseline Load Growth Deliverability & Reliability | O133: 2005-05-09 | P133: =IF(LEFT($B133,1)<>"b","N/A",'Planning Allocations'!B133) -> Appendix | Q133: =IF(LEFT($B133,1)<>"b","N/A",'Planning Allocations'!C133) -> N/A | R133: =IF(LEFT($B133,1)<>"b","N/A",'Planning Allocations'!D133) -> Single Zone | S133: =IF(OR(LEFT($B133,1)<>"b",'Planning Allocations'!$F133=""), $F133&" (100.00%)", MID('Planning Allocations'!$F133,1,LEN('Planning Allocations'!$F133)-2) ) -> DPL (100.00%) | T133: =IF(OR(LEFT($B133,1)<>"b",'Planning Allocations'!$E133=""), "", MID('Planning Allocations'!$E133,1,LEN('Planning Allocations'!$E133)-2) ) -> 
B134: b0149 | C134: Complete structure work to increase rating of Cheswald - Jones REA 138 kV | D134: 2004-12-14 | E134: 0 | F134: DPL | G134: =IF( ISERROR( VLOOKUP(F134,'Formula Rate Filing Information'!$A$4:$A$57,1,FALSE) ),'Formula Rate Filing Information'!$J$58, VLOOKUP(F134,'Formula Rate Filing Information'!$A$4:$J$57,'Formula Rate Filing Information'!$J$1,FALSE) ) -> 35 | H134: =IF(OR(I134="Cancelled",I134="On Hold"),0,1000000*E134/G134) -> 0 | I134: IS | J134: 1 | K134: 0 | L134: 0 | M134: 2005-05-09 | N134: Baseline Load Growth Deliverability & Reliability | O134: 2005-05-09 | P134: =IF(LEFT($B134,1)<>"b","N/A",'Planning Allocations'!B134) -> Appendix | Q134: =IF(LEFT($B134,1)<>"b","N/A",'Planning Allocations'!C134) -> N/A | R134: =IF(LEFT($B134,1)<>"b","N/A",'Planning Allocations'!D134) -> Single Zone | S134: =IF(OR(LEFT($B134,1)<>"b",'Planning Allocations'!$F134=""), $F134&" (100.00%)", MID('Planning Allocations'!$F134,1,LEN('Planning Allocations'!$F134)-2) ) -> DPL (100.00%) | T134: =IF(OR(LEFT($B134,1)<>"b",'Planning Allocations'!$E134=""), "", MID('Planning Allocations'!$E134,1,LEN('Planning Allocations'!$E134)-2) ) -> 
B135: b0150 | C135: Modify fixed tap settings of Waugh Chapel 500/230 kV transformers | D135: 2005-06-01 | E135: 0 | F135: BGE | G135: =IF( ISERROR( VLOOKUP(F135,'Formula Rate Filing Information'!$A$4:$A$57,1,FALSE) ),'Formula Rate Filing Information'!$J$58, VLOOKUP(F135,'Formula Rate Filing Information'!$A$4:$J$57,'Formula Rate Filing Information'!$J$1,FALSE) ) -> 44 | H135: 0 | I135: IS | J135: 1 | K135: 0 | L135: 0 | M135: 2005-05-09 | N135: Baseline Load Growth Deliverability & Reliability | O135: 2005-05-09 | P135: =IF(LEFT($B135,1)<>"b","N/A",'Planning Allocations'!B135) -> N/A | Q135: =IF(LEFT($B135,1)<>"b","N/A",'Planning Allocations'!C135) -> N/A | R135: =IF(LEFT($B135,1)<>"b","N/A",'Planning Allocations'!D135) -> Single Zone | S135: =IF(OR(LEFT($B135,1)<>"b",'Planning Allocations'!$F135=""), $F135&" (100.00%)", MID('Planning Allocations'!$F135,1,LEN('Planning Allocations'!$F135)-2) ) -> BGE (100.00%) | T135: =IF(OR(LEFT($B135,1)<>"b",'Planning Allocations'!$E135=""), "", MID('Planning Allocations'!$E135,1,LEN('Planning Allocations'!$E135)-2) ) -> 
B136: b0152.1 | C136: Add 1-230 kV breakers at High Ridge | D136: 2005-06-01 | E136: 0.59 | F136: BGE | G136: =IF( ISERROR( VLOOKUP(F136,'Formula Rate Filing Information'!$A$4:$A$57,1,FALSE) ),'Formula Rate Filing Information'!$J$58, VLOOKUP(F136,'Formula Rate Filing Information'!$A$4:$J$57,'Formula Rate Filing Information'!$J$1,FALSE) ) -> 44 | H136: 13409.09091 | I136: IS | J136: 1 | K136: 0 | L136: 0.59 | M136: 2005-05-09 | N136: Baseline Load Growth Deliverability & Reliability | O136: 2006-11-01 | P136: =IF(LEFT($B136,1)<>"b","N/A",'Planning Allocations'!B136) -> N/A | Q136: =IF(LEFT($B136,1)<>"b","N/A",'Planning Allocations'!C136) -> N/A | R136: =IF(LEFT($B136,1)<>"b","N/A",'Planning Allocations'!D136) -> Single Zone | S136: =IF(OR(LEFT($B136,1)<>"b",'Planning Allocations'!$F136=""), $F136&" (100.00%)", MID('Planning Allocations'!$F136,1,LEN('Planning Allocations'!$F136)-2) ) -> BGE (100.00%) | T136: =IF(OR(LEFT($B136,1)<>"b",'Planning Allocations'!$E136=""), "", MID('Planning Allocations'!$E136,1,LEN('Planning Allocations'!$E136)-2) ) -> 
B137: b0152.2 | C137: Install 230kV breaker at High Ridge for line 2338 | D137: 2006-05-15 | E137: 0.59 | F137: BGE | G137: =IF( ISERROR( VLOOKUP(F137,'Formula Rate Filing Information'!$A$4:$A$57,1,FALSE) ),'Formula Rate Filing Information'!$J$58, VLOOKUP(F137,'Formula Rate Filing Information'!$A$4:$J$57,'Formula Rate Filing Information'!$J$1,FALSE) ) -> 44 | H137: 13409.09091 | I137: IS | J137: 1 | K137: 0 | L137: 0.59 | M137: 2005-05-09 | N137: Baseline Load Growth Deliverability & Reliability | O137: 2006-11-01 | P137: =IF(LEFT($B137,1)<>"b","N/A",'Planning Allocations'!B137) -> N/A | Q137: =IF(LEFT($B137,1)<>"b","N/A",'Planning Allocations'!C137) -> N/A | R137: =IF(LEFT($B137,1)<>"b","N/A",'Planning Allocations'!D137) -> Single Zone | S137: =IF(OR(LEFT($B137,1)<>"b",'Planning Allocations'!$F137=""), $F137&" (100.00%)", MID('Planning Allocations'!$F137,1,LEN('Planning Allocations'!$F137)-2) ) -> BGE (100.00%) | T137: =IF(OR(LEFT($B137,1)<>"b",'Planning Allocations'!$E137=""), "", MID('Planning Allocations'!$E137,1,LEN('Planning Allocations'!$E137)-2) ) -> 
B138: b0153 | C138: Replace Hudson 230 KV breaker BS2-3 | D138: 2007-03-18 | E138: 0.475 | F138: PSEG | G138: =IF( ISERROR( VLOOKUP(F138,'Formula Rate Filing Information'!$A$4:$A$57,1,FALSE) ),'Formula Rate Filing Information'!$J$58, VLOOKUP(F138,'Formula Rate Filing Information'!$A$4:$J$57,'Formula Rate Filing Information'!$J$1,FALSE) ) -> 47 | H138: 10106.38298 | I138: IS | J138: 1 | K138: 0 | L138: 0.475 | M138: 2005-05-09 | N138: Baseline Load Growth Deliverability & Reliability | O138: 2005-05-09 | P138: =IF(LEFT($B138,1)<>"b","N/A",'Planning Allocations'!B138) -> N/A | Q138: =IF(LEFT($B138,1)<>"b","N/A",'Planning Allocations'!C138) -> N/A | R138: =IF(LEFT($B138,1)<>"b","N/A",'Planning Allocations'!D138) -> Single Zone | S138: =IF(OR(LEFT($B138,1)<>"b",'Planning Allocations'!$F138=""), $F138&" (100.00%)", MID('Planning Allocations'!$F138,1,LEN('Planning Allocations'!$F138)-2) ) -> PSEG (100.00%) | T138: =IF(OR(LEFT($B138,1)<>"b",'Planning Allocations'!$E138=""), "", MID('Planning Allocations'!$E138,1,LEN('Planning Allocations'!$E138)-2) ) -> 
B139: b0155 | C139: Replace Linden 230 KV breaker BS5-6 | D139: 2007-02-28 | E139: 0.475 | F139: PSEG | G139: =IF( ISERROR( VLOOKUP(F139,'Formula Rate Filing Information'!$A$4:$A$57,1,FALSE) ),'Formula Rate Filing Information'!$J$58, VLOOKUP(F139,'Formula Rate Filing Information'!$A$4:$J$57,'Formula Rate Filing Information'!$J$1,FALSE) ) -> 47 | H139: 10106.38298 | I139: IS | J139: 1 | K139: 0 | L139: 0.475 | M139: 2005-05-09 | N139: Baseline Load Growth Deliverability & Reliability | O139: 2005-05-09 | P139: =IF(LEFT($B139,1)<>"b","N/A",'Planning Allocations'!B139) -> N/A | Q139: =IF(LEFT($B139,1)<>"b","N/A",'Planning Allocations'!C139) -> N/A | R139: =IF(LEFT($B139,1)<>"b","N/A",'Planning Allocations'!D139) -> Single Zone | S139: =IF(OR(LEFT($B139,1)<>"b",'Planning Allocations'!$F139=""), $F139&" (100.00%)", MID('Planning Allocations'!$F139,1,LEN('Planning Allocations'!$F139)-2) ) -> PSEG (100.00%) | T139: =IF(OR(LEFT($B139,1)<>"b",'Planning Allocations'!$E139=""), "", MID('Planning Allocations'!$E139,1,LEN('Planning Allocations'!$E139)-2) ) -> 
B140: b0157 | C140: Add 100MVAR capacitor at West Orange 138kV substation | D140: 2007-06-29 | E140: 2 | F140: PSEG | G140: =IF( ISERROR( VLOOKUP(F140,'Formula Rate Filing Information'!$A$4:$A$57,1,FALSE) ),'Formula Rate Filing Information'!$J$58, VLOOKUP(F140,'Formula Rate Filing Information'!$A$4:$J$57,'Formula Rate Filing Information'!$J$1,FALSE) ) -> 47 | H140: 42553.19149 | I140: IS | J140: 1 | K140: 0 | L140: 2 | M140: 2005-05-09 | N140: Generator Deactivation | O140: 2005-05-09 | P140: =IF(LEFT($B140,1)<>"b","N/A",'Planning Allocations'!B140) -> Appendix | Q140: =IF(LEFT($B140,1)<>"b","N/A",'Planning Allocations'!C140) -> N/A | R140: =IF(LEFT($B140,1)<>"b","N/A",'Planning Allocations'!D140) -> Single Zone | S140: =IF(OR(LEFT($B140,1)<>"b",'Planning Allocations'!$F140=""), $F140&" (100.00%)", MID('Planning Allocations'!$F140,1,LEN('Planning Allocations'!$F140)-2) ) -> PSEG (100.00%) | T140: =IF(OR(LEFT($B140,1)<>"b",'Planning Allocations'!$E140=""), "", MID('Planning Allocations'!$E140,1,LEN('Planning Allocations'!$E140)-2) ) -> 
B141: b0158 | C141: Close the Sunnymeade "C" and "F" bus tie | D141: 2009-05-21 | E141: 4.63 | F141: PSEG | G141: =IF( ISERROR( VLOOKUP(F141,'Formula Rate Filing Information'!$A$4:$A$57,1,FALSE) ),'Formula Rate Filing Information'!$J$58, VLOOKUP(F141,'Formula Rate Filing Information'!$A$4:$J$57,'Formula Rate Filing Information'!$J$1,FALSE) ) -> 47 | H141: 98510.6383 | I141: IS | J141: 1 | K141: 0 | L141: 4.63 | M141: 2005-05-09 | N141: Generator Deactivation | O141: 2005-05-09 | P141: =IF(LEFT($B141,1)<>"b","N/A",'Planning Allocations'!B141) -> Appendix | Q141: =IF(LEFT($B141,1)<>"b","N/A",'Planning Allocations'!C141) -> N/A | R141: =IF(LEFT($B141,1)<>"b","N/A",'Planning Allocations'!D141) -> Single Zone | S141: =IF(OR(LEFT($B141,1)<>"b",'Planning Allocations'!$F141=""), $F141&" (100.00%)", MID('Planning Allocations'!$F141,1,LEN('Planning Allocations'!$F141)-2) ) -> PSEG (100.00%) | T141: =IF(OR(LEFT($B141,1)<>"b",'Planning Allocations'!$E141=""), "", MID('Planning Allocations'!$E141,1,LEN('Planning Allocations'!$E141)-2) ) -> 
B142: b0159 | C142: Make the Bayonne reactor permanent installation | D142: 2009-05-29 | E142: 2 | F142: PSEG | G142: =IF( ISERROR( VLOOKUP(F142,'Formula Rate Filing Information'!$A$4:$A$57,1,FALSE) ),'Formula Rate Filing Information'!$J$58, VLOOKUP(F142,'Formula Rate Filing Information'!$A$4:$J$57,'Formula Rate Filing Information'!$J$1,FALSE) ) -> 47 | H142: 42553.19149 | I142: IS | J142: 1 | K142: 0 | L142: 2 | M142: 2005-05-09 | N142: Generator Deactivation | O142: 2005-05-09 | P142: =IF(LEFT($B142,1)<>"b","N/A",'Planning Allocations'!B142) -> Appendix | Q142: =IF(LEFT($B142,1)<>"b","N/A",'Planning Allocations'!C142) -> N/A | R142: =IF(LEFT($B142,1)<>"b","N/A",'Planning Allocations'!D142) -> Single Zone | S142: =IF(OR(LEFT($B142,1)<>"b",'Planning Allocations'!$F142=""), $F142&" (100.00%)", MID('Planning Allocations'!$F142,1,LEN('Planning Allocations'!$F142)-2) ) -> PSEG (100.00%) | T142: =IF(OR(LEFT($B142,1)<>"b",'Planning Allocations'!$E142=""), "", MID('Planning Allocations'!$E142,1,LEN('Planning Allocations'!$E142)-2) ) -> 
B143: b0160 | C143: Relocate the X-2250 circuit from Hudson 1-6 bus to Hudson 7-12 bus | E143: 3 | F143: PSEG | G143: =IF( ISERROR( VLOOKUP(F143,'Formula Rate Filing Information'!$A$4:$A$57,1,FALSE) ),'Formula Rate Filing Information'!$J$58, VLOOKUP(F143,'Formula Rate Filing Information'!$A$4:$J$57,'Formula Rate Filing Information'!$J$1,FALSE) ) -> 47 | H143: 0 | I143: Cancelled | J143: 0 | K143: 0 | L143: 3 | M143: 2005-05-09 | N143: Generator Deactivation | O143: 2005-05-09 | P143: =IF(LEFT($B143,1)<>"b","N/A",'Planning Allocations'!B143) -> Appendix | Q143: =IF(LEFT($B143,1)<>"b","N/A",'Planning Allocations'!C143) -> N/A | R143: =IF(LEFT($B143,1)<>"b","N/A",'Planning Allocations'!D143) -> Cancelled | S143: =IF(OR(LEFT($B143,1)<>"b",'Planning Allocations'!$F143=""), $F143&" (100.00%)", MID('Planning Allocations'!$F143,1,LEN('Planning Allocations'!$F143)-2) ) -> PSEG (100.00%) | T143: =IF(OR(LEFT($B143,1)<>"b",'Planning Allocations'!$E143=""), "", MID('Planning Allocations'!$E143,1,LEN('Planning Allocations'!$E143)-2) ) -> 
B144: b0161 | C144: Install 230/138kV transformer at Metuchen substation | D144: 2009-05-29 | E144: 29 | F144: PSEG | G144: =IF( ISERROR( VLOOKUP(F144,'Formula Rate Filing Information'!$A$4:$A$57,1,FALSE) ),'Formula Rate Filing Information'!$J$58, VLOOKUP(F144,'Formula Rate Filing Information'!$A$4:$J$57,'Formula Rate Filing Information'!$J$1,FALSE) ) -> 47 | H144: 617021.2766 | I144: IS | J144: 1 | K144: 0 | L144: 29 | M144: 2005-05-09 | N144: Generator Deactivation | O144: 2005-05-09 | P144: =IF(LEFT($B144,1)<>"b","N/A",'Planning Allocations'!B144) -> Appendix | Q144: =IF(LEFT($B144,1)<>"b","N/A",'Planning Allocations'!C144) -> N/A | R144: =IF(LEFT($B144,1)<>"b","N/A",'Planning Allocations'!D144) -> 100% Violation-Based DFAX | S144: =IF(OR(LEFT($B144,1)<>"b",'Planning Allocations'!$F144=""), $F144&" (100.00%)", MID('Planning Allocations'!$F144,1,LEN('Planning Allocations'!$F144)-2) ) -> PSEG (99.80%) / RE (0.20%) | T144: =IF(OR(LEFT($B144,1)<>"b",'Planning Allocations'!$E144=""), "", MID('Planning Allocations'!$E144,1,LEN('Planning Allocations'!$E144)-2) ) -> 
B145: b0162 | C145: Upgrade the Edison – Meadow Rd 138kV “Q” circuit | D145: 2008-12-01 | E145: 1 | F145: PSEG | G145: =IF( ISERROR( VLOOKUP(F145,'Formula Rate Filing Information'!$A$4:$A$57,1,FALSE) ),'Formula Rate Filing Information'!$J$58, VLOOKUP(F145,'Formula Rate Filing Information'!$A$4:$J$57,'Formula Rate Filing Information'!$J$1,FALSE) ) -> 47 | H145: 21276.59574 | I145: IS | J145: 1 | K145: 0 | L145: 1 | M145: 2005-05-09 | N145: Generator Deactivation | O145: 2005-05-09 | P145: =IF(LEFT($B145,1)<>"b","N/A",'Planning Allocations'!B145) -> Appendix | Q145: =IF(LEFT($B145,1)<>"b","N/A",'Planning Allocations'!C145) -> N/A | R145: =IF(LEFT($B145,1)<>"b","N/A",'Planning Allocations'!D145) -> Single Zone | S145: =IF(OR(LEFT($B145,1)<>"b",'Planning Allocations'!$F145=""), $F145&" (100.00%)", MID('Planning Allocations'!$F145,1,LEN('Planning Allocations'!$F145)-2) ) -> PSEG (100.00%) | T145: =IF(OR(LEFT($B145,1)<>"b",'Planning Allocations'!$E145=""), "", MID('Planning Allocations'!$E145,1,LEN('Planning Allocations'!$E145)-2) ) -> 
B146: b0163 | C146: Upgrade the Edison – Meadow Rd 138kV “R” circuit | D146: 2009-04-22 | E146: 1 | F146: PSEG | G146: =IF( ISERROR( VLOOKUP(F146,'Formula Rate Filing Information'!$A$4:$A$57,1,FALSE) ),'Formula Rate Filing Information'!$J$58, VLOOKUP(F146,'Formula Rate Filing Information'!$A$4:$J$57,'Formula Rate Filing Information'!$J$1,FALSE) ) -> 47 | H146: 21276.59574 | I146: IS | J146: 1 | K146: 0 | L146: 1 | M146: 2005-05-09 | N146: Generator Deactivation | O146: 2005-05-09 | P146: =IF(LEFT($B146,1)<>"b","N/A",'Planning Allocations'!B146) -> Appendix | Q146: =IF(LEFT($B146,1)<>"b","N/A",'Planning Allocations'!C146) -> N/A | R146: =IF(LEFT($B146,1)<>"b","N/A",'Planning Allocations'!D146) -> Single Zone | S146: =IF(OR(LEFT($B146,1)<>"b",'Planning Allocations'!$F146=""), $F146&" (100.00%)", MID('Planning Allocations'!$F146,1,LEN('Planning Allocations'!$F146)-2) ) -> PSEG (100.00%) | T146: =IF(OR(LEFT($B146,1)<>"b",'Planning Allocations'!$E146=""), "", MID('Planning Allocations'!$E146,1,LEN('Planning Allocations'!$E146)-2) ) -> 
B147: b0164 | C147: Increase capacity of Wolfs - Oswego 138kV line 14302 | D147: 2006-05-13 | E147: 2 | F147: ComEd | G147: =IF( ISERROR( VLOOKUP(F147,'Formula Rate Filing Information'!$A$4:$A$57,1,FALSE) ),'Formula Rate Filing Information'!$J$58, VLOOKUP(F147,'Formula Rate Filing Information'!$A$4:$J$57,'Formula Rate Filing Information'!$J$1,FALSE) ) -> 42.37288136 | H147: 47200 | I147: IS | J147: 1 | K147: 0 | L147: 2 | M147: 2005-05-09 | N147: Baseline Load Growth Deliverability & Reliability | O147: 2005-05-09 | P147: =IF(LEFT($B147,1)<>"b","N/A",'Planning Allocations'!B147) -> Appendix | Q147: =IF(LEFT($B147,1)<>"b","N/A",'Planning Allocations'!C147) -> N/A | R147: =IF(LEFT($B147,1)<>"b","N/A",'Planning Allocations'!D147) -> Single Zone | S147: =IF(OR(LEFT($B147,1)<>"b",'Planning Allocations'!$F147=""), $F147&" (100.00%)", MID('Planning Allocations'!$F147,1,LEN('Planning Allocations'!$F147)-2) ) -> ComEd (100.00%) | T147: =IF(OR(LEFT($B147,1)<>"b",'Planning Allocations'!$E147=""), "", MID('Planning Allocations'!$E147,1,LEN('Planning Allocations'!$E147)-2) ) -> 
B148: b0167 | C148: Upgrade Oak Grove 230kV Breaker 13C | D148: 2005-10-14 | E148: 0.2 | F148: PEPCO | G148: =IF( ISERROR( VLOOKUP(F148,'Formula Rate Filing Information'!$A$4:$A$57,1,FALSE) ),'Formula Rate Filing Information'!$J$58, VLOOKUP(F148,'Formula Rate Filing Information'!$A$4:$J$57,'Formula Rate Filing Information'!$J$1,FALSE) ) -> 35 | H148: 5714.285714 | I148: IS | J148: 1 | K148: 0 | L148: 0.2 | M148: 2005-05-09 | N148: Baseline Load Growth Deliverability & Reliability | O148: 2005-05-09 | P148: =IF(LEFT($B148,1)<>"b","N/A",'Planning Allocations'!B148) -> N/A | Q148: =IF(LEFT($B148,1)<>"b","N/A",'Planning Allocations'!C148) -> N/A | R148: =IF(LEFT($B148,1)<>"b","N/A",'Planning Allocations'!D148) -> Single Zone | S148: =IF(OR(LEFT($B148,1)<>"b",'Planning Allocations'!$F148=""), $F148&" (100.00%)", MID('Planning Allocations'!$F148,1,LEN('Planning Allocations'!$F148)-2) ) -> PEPCO (100.00%) | T148: =IF(OR(LEFT($B148,1)<>"b",'Planning Allocations'!$E148=""), "", MID('Planning Allocations'!$E148,1,LEN('Planning Allocations'!$E148)-2) ) -> 
B149: b0168 | C149: Upgrade Oak Grove 230kV Breaker 5C | D149: 2006-12-19 | E149: 0.212 | F149: PEPCO | G149: =IF( ISERROR( VLOOKUP(F149,'Formula Rate Filing Information'!$A$4:$A$57,1,FALSE) ),'Formula Rate Filing Information'!$J$58, VLOOKUP(F149,'Formula Rate Filing Information'!$A$4:$J$57,'Formula Rate Filing Information'!$J$1,FALSE) ) -> 35 | H149: 6057.142857 | I149: IS | J149: 1 | K149: 0 | L149: 0.212 | M149: 2005-05-09 | N149: Baseline Load Growth Deliverability & Reliability | O149: 2005-05-09 | P149: =IF(LEFT($B149,1)<>"b","N/A",'Planning Allocations'!B149) -> N/A | Q149: =IF(LEFT($B149,1)<>"b","N/A",'Planning Allocations'!C149) -> N/A | R149: =IF(LEFT($B149,1)<>"b","N/A",'Planning Allocations'!D149) -> Single Zone | S149: =IF(OR(LEFT($B149,1)<>"b",'Planning Allocations'!$F149=""), $F149&" (100.00%)", MID('Planning Allocations'!$F149,1,LEN('Planning Allocations'!$F149)-2) ) -> PEPCO (100.00%) | T149: =IF(OR(LEFT($B149,1)<>"b",'Planning Allocations'!$E149=""), "", MID('Planning Allocations'!$E149,1,LEN('Planning Allocations'!$E149)-2) ) -> 
B150: b0169 | C150: Build a new 230 kV section from Branchburg – Flagtown and move the Flagtown - Somerville 230 kV circuit to the new section | D150: 2009-05-20 | E150: 17 | F150: PSEG | G150: =IF( ISERROR( VLOOKUP(F150,'Formula Rate Filing Information'!$A$4:$A$57,1,FALSE) ),'Formula Rate Filing Information'!$J$58, VLOOKUP(F150,'Formula Rate Filing Information'!$A$4:$J$57,'Formula Rate Filing Information'!$J$1,FALSE) ) -> 47 | H150: 361702.1277 | I150: IS | J150: 1 | K150: 0 | L150: 17 | M150: 2005-05-09 | N150: Baseline Load Growth Deliverability & Reliability | O150: 2005-05-09 | P150: =IF(LEFT($B150,1)<>"b","N/A",'Planning Allocations'!B150) -> Appendix | Q150: =IF(LEFT($B150,1)<>"b","N/A",'Planning Allocations'!C150) -> N/A | R150: =IF(LEFT($B150,1)<>"b","N/A",'Planning Allocations'!D150) -> 100% Violation-Based DFAX | S150: =IF(OR(LEFT($B150,1)<>"b",'Planning Allocations'!$F150=""), $F150&" (100.00%)", MID('Planning Allocations'!$F150,1,LEN('Planning Allocations'!$F150)-2) ) -> AEC (1.72%) / ECP (2.13%) / JCPL (25.94%) / Neptune (10.62%) / PSEG (59.59%) | T150: =IF(OR(LEFT($B150,1)<>"b",'Planning Allocations'!$E150=""), "", MID('Planning Allocations'!$E150,1,LEN('Planning Allocations'!$E150)-2) ) -> 
B151: b0170 | C151: Reconductor the Flagtown-Somerville-Bridgewater 230 kV circuit with 1590 ACSS | D151: 2009-05-07 | E151: 12 | F151: PSEG | G151: =IF( ISERROR( VLOOKUP(F151,'Formula Rate Filing Information'!$A$4:$A$57,1,FALSE) ),'Formula Rate Filing Information'!$J$58, VLOOKUP(F151,'Formula Rate Filing Information'!$A$4:$J$57,'Formula Rate Filing Information'!$J$1,FALSE) ) -> 47 | H151: 255319.1489 | I151: IS | J151: 1 | K151: 0 | L151: 12 | M151: 2005-05-09 | N151: Baseline Load Growth Deliverability & Reliability | O151: 2005-05-09 | P151: =IF(LEFT($B151,1)<>"b","N/A",'Planning Allocations'!B151) -> Appendix | Q151: =IF(LEFT($B151,1)<>"b","N/A",'Planning Allocations'!C151) -> N/A | R151: =IF(LEFT($B151,1)<>"b","N/A",'Planning Allocations'!D151) -> 100% Violation-Based DFAX | S151: =IF(OR(LEFT($B151,1)<>"b",'Planning Allocations'!$F151=""), $F151&" (100.00%)", MID('Planning Allocations'!$F151,1,LEN('Planning Allocations'!$F151)-2) ) -> JCPL (42.95%) / Neptune (17.90%) / PSEG (38.36%) / RE (0.79%) | T151: =IF(OR(LEFT($B151,1)<>"b",'Planning Allocations'!$E151=""), "", MID('Planning Allocations'!$E151,1,LEN('Planning Allocations'!$E151)-2) ) -> 
B152: b0171.1 | C152: Replace two 500 kV circuit breakers and two wave traps at Elroy substation to increase rating of Elroy - Hosensack 500kV | D152: 2008-04-18 | E152: 2.2 | F152: PECO | G152: =IF( ISERROR( VLOOKUP(F152,'Formula Rate Filing Information'!$A$4:$A$57,1,FALSE) ),'Formula Rate Filing Information'!$J$58, VLOOKUP(F152,'Formula Rate Filing Information'!$A$4:$J$57,'Formula Rate Filing Information'!$J$1,FALSE) ) -> 68.97724685 | H152: 31894.57539 | I152: IS | J152: 1 | K152: 0 | L152: 2.2 | M152: 2005-05-09 | N152: Baseline Load Growth Deliverability & Reliability | O152: 2005-05-09 | P152: =IF(LEFT($B152,1)<>"b","N/A",'Planning Allocations'!B152) -> Appendix | Q152: =IF(LEFT($B152,1)<>"b","N/A",'Planning Allocations'!C152) -> (b)(i) Regional Facility | R152: =IF(LEFT($B152,1)<>"b","N/A",'Planning Allocations'!D152) -> 50% LRS & 50% SBDFAX | S152: =IF(OR(LEFT($B152,1)<>"b",'Planning Allocations'!$F152=""), $F152&" (100.00%)", MID('Planning Allocations'!$F152,1,LEN('Planning Allocations'!$F152)-2) ) -> AEC (5.82%) / DPL (6.74%) / JCPL (13.58%) / Neptune (0.32%) / PECO (47.42%) / PSEG (25.11%) / RE (1.01%) | T152: =IF(OR(LEFT($B152,1)<>"b",'Planning Allocations'!$E152=""), "", MID('Planning Allocations'!$E152,1,LEN('Planning Allocations'!$E152)-2) ) -> AEC (1.65%) / AEP (13.68%) / APS (5.77%) / ATSI (8.04%) / BGE (4.11%) / ComEd (13.39%) / Dayton (2.12%) / DEOK (3.25%) / DL (1.71%) / Dominion (13.32%) / DPL (2.60%) / EKPC (1.89%) / JCPL (3.86%) / ME (1.90%) / Neptune (0.42%) / OVEC (0.08%) / PECO (5.41%) / PENELEC (1.78%) / PEPCO (3.67%) / PPL (4.72%) / PSEG (6.39%) / RE (0.26%)
B153: b0171.2 | C153: Replace wavetrap at Hosensack 500kV substation to increase rating of Elroy - Hosensack 500kV | D153: 2008-04-18 | E153: 0.126 | F153: PPL | G153: =IF( ISERROR( VLOOKUP(F153,'Formula Rate Filing Information'!$A$4:$A$57,1,FALSE) ),'Formula Rate Filing Information'!$J$58, VLOOKUP(F153,'Formula Rate Filing Information'!$A$4:$J$57,'Formula Rate Filing Information'!$J$1,FALSE) ) -> 42 | H153: 3000 | I153: IS | J153: 1 | K153: 0 | L153: 0.126 | M153: 2005-05-09 | N153: Baseline Load Growth Deliverability & Reliability | O153: 2005-05-09 | P153: =IF(LEFT($B153,1)<>"b","N/A",'Planning Allocations'!B153) -> Appendix | Q153: =IF(LEFT($B153,1)<>"b","N/A",'Planning Allocations'!C153) -> (b)(i) Regional Facility | R153: =IF(LEFT($B153,1)<>"b","N/A",'Planning Allocations'!D153) -> 50% LRS & 50% SBDFAX | S153: =IF(OR(LEFT($B153,1)<>"b",'Planning Allocations'!$F153=""), $F153&" (100.00%)", MID('Planning Allocations'!$F153,1,LEN('Planning Allocations'!$F153)-2) ) -> AEC (5.64%) / DPL (6.53%) / JCPL (13.15%) / Neptune (0.32%) / PECO (45.93%) / PPL (3.13%) / PSEG (24.32%) / RE (0.98%) | T153: =IF(OR(LEFT($B153,1)<>"b",'Planning Allocations'!$E153=""), "", MID('Planning Allocations'!$E153,1,LEN('Planning Allocations'!$E153)-2) ) -> AEC (1.65%) / AEP (13.68%) / APS (5.77%) / ATSI (8.04%) / BGE (4.11%) / ComEd (13.39%) / Dayton (2.12%) / DEOK (3.25%) / DL (1.71%) / Dominion (13.32%) / DPL (2.60%) / EKPC (1.89%) / JCPL (3.86%) / ME (1.90%) / Neptune (0.42%) / OVEC (0.08%) / PECO (5.41%) / PENELEC (1.78%) / PEPCO (3.67%) / PPL (4.72%) / PSEG (6.39%) / RE (0.26%)
B154: b0172.1 | C154: Replace wave trap at Alburtis 500kV substation | D154: 2008-05-21 | E154: 0.07 | F154: PPL | G154: =IF( ISERROR( VLOOKUP(F154,'Formula Rate Filing Information'!$A$4:$A$57,1,FALSE) ),'Formula Rate Filing Information'!$J$58, VLOOKUP(F154,'Formula Rate Filing Information'!$A$4:$J$57,'Formula Rate Filing Information'!$J$1,FALSE) ) -> 42 | H154: 1666.666667 | I154: IS | J154: 1 | K154: 0 | L154: 0.07 | M154: 2005-05-09 | N154: Baseline Load Growth Deliverability & Reliability | O154: 2006-11-01 | P154: =IF(LEFT($B154,1)<>"b","N/A",'Planning Allocations'!B154) -> Appendix | Q154: =IF(LEFT($B154,1)<>"b","N/A",'Planning Allocations'!C154) -> (b)(i) Regional Facility | R154: =IF(LEFT($B154,1)<>"b","N/A",'Planning Allocations'!D154) -> 50% LRS & 50% SBDFAX | S154: =IF(OR(LEFT($B154,1)<>"b",'Planning Allocations'!$F154=""), $F154&" (100.00%)", MID('Planning Allocations'!$F154,1,LEN('Planning Allocations'!$F154)-2) ) -> AEC (6.34%) / JCPL (28.54%) / Neptune (4.96%) / PECO (10.40%) / PSEG (47.83%) / RE (1.93%) | T154: =IF(OR(LEFT($B154,1)<>"b",'Planning Allocations'!$E154=""), "", MID('Planning Allocations'!$E154,1,LEN('Planning Allocations'!$E154)-2) ) -> AEC (1.65%) / AEP (13.68%) / APS (5.77%) / ATSI (8.04%) / BGE (4.11%) / ComEd (13.39%) / Dayton (2.12%) / DEOK (3.25%) / DL (1.71%) / Dominion (13.32%) / DPL (2.60%) / EKPC (1.89%) / JCPL (3.86%) / ME (1.90%) / Neptune (0.42%) / OVEC (0.08%) / PECO (5.41%) / PENELEC (1.78%) / PEPCO (3.67%) / PPL (4.72%) / PSEG (6.39%) / RE (0.26%)
B155: b0172.2 | C155: Replace wave trap on 5016 line at Branchburg 500kV substation | D155: 2008-05-20 | E155: 0.05 | F155: PSEG | G155: =IF( ISERROR( VLOOKUP(F155,'Formula Rate Filing Information'!$A$4:$A$57,1,FALSE) ),'Formula Rate Filing Information'!$J$58, VLOOKUP(F155,'Formula Rate Filing Information'!$A$4:$J$57,'Formula Rate Filing Information'!$J$1,FALSE) ) -> 47 | H155: 1063.829787 | I155: IS | J155: 1 | K155: 0 | L155: 0.05 | M155: 2005-05-09 | N155: Baseline Load Growth Deliverability & Reliability | O155: 2006-11-01 | P155: =IF(LEFT($B155,1)<>"b","N/A",'Planning Allocations'!B155) -> Appendix | Q155: =IF(LEFT($B155,1)<>"b","N/A",'Planning Allocations'!C155) -> (b)(i) Regional Facility | R155: =IF(LEFT($B155,1)<>"b","N/A",'Planning Allocations'!D155) -> 50% LRS & 50% SBDFAX | S155: =IF(OR(LEFT($B155,1)<>"b",'Planning Allocations'!$F155=""), $F155&" (100.00%)", MID('Planning Allocations'!$F155,1,LEN('Planning Allocations'!$F155)-2) ) -> AEC (6.34%) / JCPL (28.54%) / Neptune (4.96%) / PECO (10.40%) / PSEG (47.83%) / RE (1.93%) | T155: =IF(OR(LEFT($B155,1)<>"b",'Planning Allocations'!$E155=""), "", MID('Planning Allocations'!$E155,1,LEN('Planning Allocations'!$E155)-2) ) -> AEC (1.65%) / AEP (13.68%) / APS (5.77%) / ATSI (8.04%) / BGE (4.11%) / ComEd (13.39%) / Dayton (2.12%) / DEOK (3.25%) / DL (1.71%) / Dominion (13.32%) / DPL (2.60%) / EKPC (1.89%) / JCPL (3.86%) / ME (1.90%) / Neptune (0.42%) / OVEC (0.08%) / PECO (5.41%) / PENELEC (1.78%) / PEPCO (3.67%) / PPL (4.72%) / PSEG (6.39%) / RE (0.26%)
B156: b0173 | C156: Replace a line trap at Kittatinny 230kV substation for the Kittatinny-Newton 230kV circuit | D156: 2008-10-08 | E156: 0.1 | F156: JCPL | G156: =IF( ISERROR( VLOOKUP(F156,'Formula Rate Filing Information'!$A$4:$A$57,1,FALSE) ),'Formula Rate Filing Information'!$J$58, VLOOKUP(F156,'Formula Rate Filing Information'!$A$4:$J$57,'Formula Rate Filing Information'!$J$1,FALSE) ) -> 53 | H156: 1886.792453 | I156: IS | J156: 1 | K156: 0 | L156: 0.1 | M156: 2005-05-09 | N156: Baseline Load Growth Deliverability & Reliability | O156: 2005-05-09 | P156: =IF(LEFT($B156,1)<>"b","N/A",'Planning Allocations'!B156) -> Appendix | Q156: =IF(LEFT($B156,1)<>"b","N/A",'Planning Allocations'!C156) -> N/A | R156: =IF(LEFT($B156,1)<>"b","N/A",'Planning Allocations'!D156) -> Single Zone | S156: =IF(OR(LEFT($B156,1)<>"b",'Planning Allocations'!$F156=""), $F156&" (100.00%)", MID('Planning Allocations'!$F156,1,LEN('Planning Allocations'!$F156)-2) ) -> JCPL (100.00%) | T156: =IF(OR(LEFT($B156,1)<>"b",'Planning Allocations'!$E156=""), "", MID('Planning Allocations'!$E156,1,LEN('Planning Allocations'!$E156)-2) ) -> 
B157: b0174 | C157: Upgrade the Portland – Greystone 230kV circuit | D157: 2008-05-07 | E157: 20 | F157: JCPL | G157: =IF( ISERROR( VLOOKUP(F157,'Formula Rate Filing Information'!$A$4:$A$57,1,FALSE) ),'Formula Rate Filing Information'!$J$58, VLOOKUP(F157,'Formula Rate Filing Information'!$A$4:$J$57,'Formula Rate Filing Information'!$J$1,FALSE) ) -> 53 | H157: 377358.4906 | I157: IS | J157: 1 | K157: 0 | L157: 20 | M157: 2005-05-09 | N157: Baseline Load Growth Deliverability & Reliability | O157: 2005-05-09 | P157: =IF(LEFT($B157,1)<>"b","N/A",'Planning Allocations'!B157) -> Appendix | Q157: =IF(LEFT($B157,1)<>"b","N/A",'Planning Allocations'!C157) -> N/A | R157: =IF(LEFT($B157,1)<>"b","N/A",'Planning Allocations'!D157) -> 100% Violation-Based DFAX | S157: =IF(OR(LEFT($B157,1)<>"b",'Planning Allocations'!$F157=""), $F157&" (100.00%)", MID('Planning Allocations'!$F157,1,LEN('Planning Allocations'!$F157)-2) ) -> ECP (1.62%) / JCPL (35.40%) / Neptune (5.67%) / PSEG (54.37%) / RE (2.94%) | T157: =IF(OR(LEFT($B157,1)<>"b",'Planning Allocations'!$E157=""), "", MID('Planning Allocations'!$E157,1,LEN('Planning Allocations'!$E157)-2) ) -> 
B158: b0175 | C158: Circuit Breaker Upgrades at Whitpain - 230kV bus breakers #125 and #215 | D158: 2005-05-31 | E158: 0.5 | F158: PECO | G158: =IF( ISERROR( VLOOKUP(F158,'Formula Rate Filing Information'!$A$4:$A$57,1,FALSE) ),'Formula Rate Filing Information'!$J$58, VLOOKUP(F158,'Formula Rate Filing Information'!$A$4:$J$57,'Formula Rate Filing Information'!$J$1,FALSE) ) -> 68.97724685 | H158: 7248.767135 | I158: IS | J158: 1 | K158: 0 | L158: 0.5 | M158: 2005-05-09 | N158: Baseline Load Growth Deliverability & Reliability | O158: 2005-05-09 | P158: =IF(LEFT($B158,1)<>"b","N/A",'Planning Allocations'!B158) -> N/A | Q158: =IF(LEFT($B158,1)<>"b","N/A",'Planning Allocations'!C158) -> N/A | R158: =IF(LEFT($B158,1)<>"b","N/A",'Planning Allocations'!D158) -> Single Zone | S158: =IF(OR(LEFT($B158,1)<>"b",'Planning Allocations'!$F158=""), $F158&" (100.00%)", MID('Planning Allocations'!$F158,1,LEN('Planning Allocations'!$F158)-2) ) -> PECO (100.00%) | T158: =IF(OR(LEFT($B158,1)<>"b",'Planning Allocations'!$E158=""), "", MID('Planning Allocations'!$E158,1,LEN('Planning Allocations'!$E158)-2) ) -> 
B159: b0180 | C159: Replace Whitpain 230kV circuit breaker #165 | D159: 2006-09-15 | E159: 0.25 | F159: PECO | G159: =IF( ISERROR( VLOOKUP(F159,'Formula Rate Filing Information'!$A$4:$A$57,1,FALSE) ),'Formula Rate Filing Information'!$J$58, VLOOKUP(F159,'Formula Rate Filing Information'!$A$4:$J$57,'Formula Rate Filing Information'!$J$1,FALSE) ) -> 68.97724685 | H159: 3624.383567 | I159: IS | J159: 1 | K159: 0 | L159: 0.25 | M159: 2005-05-09 | N159: Baseline Load Growth Deliverability & Reliability | O159: 2005-05-09 | P159: =IF(LEFT($B159,1)<>"b","N/A",'Planning Allocations'!B159) -> Appendix | Q159: =IF(LEFT($B159,1)<>"b","N/A",'Planning Allocations'!C159) -> N/A | R159: =IF(LEFT($B159,1)<>"b","N/A",'Planning Allocations'!D159) -> Single Zone | S159: =IF(OR(LEFT($B159,1)<>"b",'Planning Allocations'!$F159=""), $F159&" (100.00%)", MID('Planning Allocations'!$F159,1,LEN('Planning Allocations'!$F159)-2) ) -> PECO (100.00%) | T159: =IF(OR(LEFT($B159,1)<>"b",'Planning Allocations'!$E159=""), "", MID('Planning Allocations'!$E159,1,LEN('Planning Allocations'!$E159)-2) ) -> 
B160: b0181 | C160: Replace Whitpain 230kV circuit breaker #J105 | D160: 2006-12-15 | E160: 0.44 | F160: PECO | G160: =IF( ISERROR( VLOOKUP(F160,'Formula Rate Filing Information'!$A$4:$A$57,1,FALSE) ),'Formula Rate Filing Information'!$J$58, VLOOKUP(F160,'Formula Rate Filing Information'!$A$4:$J$57,'Formula Rate Filing Information'!$J$1,FALSE) ) -> 68.97724685 | H160: 6378.915078 | I160: IS | J160: 1 | K160: 0 | L160: 0.44 | M160: 2005-05-09 | N160: Baseline Load Growth Deliverability & Reliability | O160: 2005-05-09 | P160: =IF(LEFT($B160,1)<>"b","N/A",'Planning Allocations'!B160) -> Appendix | Q160: =IF(LEFT($B160,1)<>"b","N/A",'Planning Allocations'!C160) -> N/A | R160: =IF(LEFT($B160,1)<>"b","N/A",'Planning Allocations'!D160) -> Single Zone | S160: =IF(OR(LEFT($B160,1)<>"b",'Planning Allocations'!$F160=""), $F160&" (100.00%)", MID('Planning Allocations'!$F160,1,LEN('Planning Allocations'!$F160)-2) ) -> PECO (100.00%) | T160: =IF(OR(LEFT($B160,1)<>"b",'Planning Allocations'!$E160=""), "", MID('Planning Allocations'!$E160,1,LEN('Planning Allocations'!$E160)-2) ) -> 
B161: b0182 | C161: Upgrade Plymouth Meeting 230kV circuit breaker #125 | D161: 2006-12-15 | E161: 0.1 | F161: PECO | G161: =IF( ISERROR( VLOOKUP(F161,'Formula Rate Filing Information'!$A$4:$A$57,1,FALSE) ),'Formula Rate Filing Information'!$J$58, VLOOKUP(F161,'Formula Rate Filing Information'!$A$4:$J$57,'Formula Rate Filing Information'!$J$1,FALSE) ) -> 68.97724685 | H161: 1449.753427 | I161: IS | J161: 1 | K161: 0 | L161: 0.1 | M161: 2005-05-09 | N161: Baseline Load Growth Deliverability & Reliability | O161: 2005-05-09 | P161: =IF(LEFT($B161,1)<>"b","N/A",'Planning Allocations'!B161) -> Appendix | Q161: =IF(LEFT($B161,1)<>"b","N/A",'Planning Allocations'!C161) -> N/A | R161: =IF(LEFT($B161,1)<>"b","N/A",'Planning Allocations'!D161) -> Single Zone | S161: =IF(OR(LEFT($B161,1)<>"b",'Planning Allocations'!$F161=""), $F161&" (100.00%)", MID('Planning Allocations'!$F161,1,LEN('Planning Allocations'!$F161)-2) ) -> PECO (100.00%) | T161: =IF(OR(LEFT($B161,1)<>"b",'Planning Allocations'!$E161=""), "", MID('Planning Allocations'!$E161,1,LEN('Planning Allocations'!$E161)-2) ) -> 
B162: b0184 | C162: Replace Hudson 230kV circuit breakers #1-2 | D162: 2008-12-08 | E162: 0.475 | F162: PSEG | G162: =IF( ISERROR( VLOOKUP(F162,'Formula Rate Filing Information'!$A$4:$A$57,1,FALSE) ),'Formula Rate Filing Information'!$J$58, VLOOKUP(F162,'Formula Rate Filing Information'!$A$4:$J$57,'Formula Rate Filing Information'!$J$1,FALSE) ) -> 47 | H162: 10106.38298 | I162: IS | J162: 1 | K162: 0 | L162: 0.475 | M162: 2005-09-22 | N162: Baseline Load Growth Deliverability & Reliability | O162: 2005-09-22 | P162: =IF(LEFT($B162,1)<>"b","N/A",'Planning Allocations'!B162) -> Appendix | Q162: =IF(LEFT($B162,1)<>"b","N/A",'Planning Allocations'!C162) -> N/A | R162: =IF(LEFT($B162,1)<>"b","N/A",'Planning Allocations'!D162) -> Single Zone | S162: =IF(OR(LEFT($B162,1)<>"b",'Planning Allocations'!$F162=""), $F162&" (100.00%)", MID('Planning Allocations'!$F162,1,LEN('Planning Allocations'!$F162)-2) ) -> PSEG (100.00%) | T162: =IF(OR(LEFT($B162,1)<>"b",'Planning Allocations'!$E162=""), "", MID('Planning Allocations'!$E162,1,LEN('Planning Allocations'!$E162)-2) ) -> 
B163: b0185 | C163: Replace Deans 230kV circuit breakers #9-10 | D163: 2006-05-19 | E163: 0.475 | F163: PSEG | G163: =IF( ISERROR( VLOOKUP(F163,'Formula Rate Filing Information'!$A$4:$A$57,1,FALSE) ),'Formula Rate Filing Information'!$J$58, VLOOKUP(F163,'Formula Rate Filing Information'!$A$4:$J$57,'Formula Rate Filing Information'!$J$1,FALSE) ) -> 47 | H163: 10106.38298 | I163: IS | J163: 1 | K163: 0 | L163: 0.475 | M163: 2005-09-22 | N163: Baseline Load Growth Deliverability & Reliability | O163: 2005-09-22 | P163: =IF(LEFT($B163,1)<>"b","N/A",'Planning Allocations'!B163) -> Appendix | Q163: =IF(LEFT($B163,1)<>"b","N/A",'Planning Allocations'!C163) -> N/A | R163: =IF(LEFT($B163,1)<>"b","N/A",'Planning Allocations'!D163) -> Single Zone | S163: =IF(OR(LEFT($B163,1)<>"b",'Planning Allocations'!$F163=""), $F163&" (100.00%)", MID('Planning Allocations'!$F163,1,LEN('Planning Allocations'!$F163)-2) ) -> PSEG (100.00%) | T163: =IF(OR(LEFT($B163,1)<>"b",'Planning Allocations'!$E163=""), "", MID('Planning Allocations'!$E163,1,LEN('Planning Allocations'!$E163)-2) ) -> 
B164: b0186 | C164: Replace Essex 230kV circuit breaker #5-6 | D164: 2008-12-14 | E164: 0.475 | F164: PSEG | G164: =IF( ISERROR( VLOOKUP(F164,'Formula Rate Filing Information'!$A$4:$A$57,1,FALSE) ),'Formula Rate Filing Information'!$J$58, VLOOKUP(F164,'Formula Rate Filing Information'!$A$4:$J$57,'Formula Rate Filing Information'!$J$1,FALSE) ) -> 47 | H164: 10106.38298 | I164: IS | J164: 1 | K164: 0 | L164: 0.475 | M164: 2005-09-22 | N164: Baseline Load Growth Deliverability & Reliability | O164: 2005-09-22 | P164: =IF(LEFT($B164,1)<>"b","N/A",'Planning Allocations'!B164) -> Appendix | Q164: =IF(LEFT($B164,1)<>"b","N/A",'Planning Allocations'!C164) -> N/A | R164: =IF(LEFT($B164,1)<>"b","N/A",'Planning Allocations'!D164) -> Single Zone | S164: =IF(OR(LEFT($B164,1)<>"b",'Planning Allocations'!$F164=""), $F164&" (100.00%)", MID('Planning Allocations'!$F164,1,LEN('Planning Allocations'!$F164)-2) ) -> PSEG (100.00%) | T164: =IF(OR(LEFT($B164,1)<>"b",'Planning Allocations'!$E164=""), "", MID('Planning Allocations'!$E164,1,LEN('Planning Allocations'!$E164)-2) ) -> 
B165: b0187 | C165: Upgrade Dickerson Station "D" 230kV 1A | D165: 2006-06-01 | E165: 0.212 | F165: PEPCO | G165: =IF( ISERROR( VLOOKUP(F165,'Formula Rate Filing Information'!$A$4:$A$57,1,FALSE) ),'Formula Rate Filing Information'!$J$58, VLOOKUP(F165,'Formula Rate Filing Information'!$A$4:$J$57,'Formula Rate Filing Information'!$J$1,FALSE) ) -> 35 | H165: 6057.142857 | I165: IS | J165: 1 | K165: 0 | L165: 0.212 | M165: 2005-09-22 | N165: Baseline Load Growth Deliverability & Reliability | O165: 2005-09-22 | P165: =IF(LEFT($B165,1)<>"b","N/A",'Planning Allocations'!B165) -> N/A | Q165: =IF(LEFT($B165,1)<>"b","N/A",'Planning Allocations'!C165) -> N/A | R165: =IF(LEFT($B165,1)<>"b","N/A",'Planning Allocations'!D165) -> Single Zone | S165: =IF(OR(LEFT($B165,1)<>"b",'Planning Allocations'!$F165=""), $F165&" (100.00%)", MID('Planning Allocations'!$F165,1,LEN('Planning Allocations'!$F165)-2) ) -> PEPCO (100.00%) | T165: =IF(OR(LEFT($B165,1)<>"b",'Planning Allocations'!$E165=""), "", MID('Planning Allocations'!$E165,1,LEN('Planning Allocations'!$E165)-2) ) -> 
B166: b0188 | C166: Upgrade Dickerson Station “D” 230 kV 1B | D166: 2006-06-01 | E166: 0.212 | F166: PEPCO | G166: =IF( ISERROR( VLOOKUP(F166,'Formula Rate Filing Information'!$A$4:$A$57,1,FALSE) ),'Formula Rate Filing Information'!$J$58, VLOOKUP(F166,'Formula Rate Filing Information'!$A$4:$J$57,'Formula Rate Filing Information'!$J$1,FALSE) ) -> 35 | H166: 6057.142857 | I166: IS | J166: 1 | K166: 0 | L166: 0.212 | M166: 2005-09-22 | N166: Baseline Load Growth Deliverability & Reliability | O166: 2005-09-22 | P166: =IF(LEFT($B166,1)<>"b","N/A",'Planning Allocations'!B166) -> N/A | Q166: =IF(LEFT($B166,1)<>"b","N/A",'Planning Allocations'!C166) -> N/A | R166: =IF(LEFT($B166,1)<>"b","N/A",'Planning Allocations'!D166) -> Single Zone | S166: =IF(OR(LEFT($B166,1)<>"b",'Planning Allocations'!$F166=""), $F166&" (100.00%)", MID('Planning Allocations'!$F166,1,LEN('Planning Allocations'!$F166)-2) ) -> PEPCO (100.00%) | T166: =IF(OR(LEFT($B166,1)<>"b",'Planning Allocations'!$E166=""), "", MID('Planning Allocations'!$E166,1,LEN('Planning Allocations'!$E166)-2) ) -> 
B167: b0189 | C167: Upgrade Dickerson Station “D” 230 kV 2A | D167: 2006-06-01 | E167: 0.212 | F167: PEPCO | G167: =IF( ISERROR( VLOOKUP(F167,'Formula Rate Filing Information'!$A$4:$A$57,1,FALSE) ),'Formula Rate Filing Information'!$J$58, VLOOKUP(F167,'Formula Rate Filing Information'!$A$4:$J$57,'Formula Rate Filing Information'!$J$1,FALSE) ) -> 35 | H167: 6057.142857 | I167: IS | J167: 1 | K167: 0 | L167: 0.212 | M167: 2005-09-22 | N167: Baseline Load Growth Deliverability & Reliability | O167: 2005-09-22 | P167: =IF(LEFT($B167,1)<>"b","N/A",'Planning Allocations'!B167) -> N/A | Q167: =IF(LEFT($B167,1)<>"b","N/A",'Planning Allocations'!C167) -> N/A | R167: =IF(LEFT($B167,1)<>"b","N/A",'Planning Allocations'!D167) -> Single Zone | S167: =IF(OR(LEFT($B167,1)<>"b",'Planning Allocations'!$F167=""), $F167&" (100.00%)", MID('Planning Allocations'!$F167,1,LEN('Planning Allocations'!$F167)-2) ) -> PEPCO (100.00%) | T167: =IF(OR(LEFT($B167,1)<>"b",'Planning Allocations'!$E167=""), "", MID('Planning Allocations'!$E167,1,LEN('Planning Allocations'!$E167)-2) ) -> 
B168: b0190 | C168: Upgrade Dickerson Station “D” 230 kV 2B | D168: 2006-06-01 | E168: 0.212 | F168: PEPCO | G168: =IF( ISERROR( VLOOKUP(F168,'Formula Rate Filing Information'!$A$4:$A$57,1,FALSE) ),'Formula Rate Filing Information'!$J$58, VLOOKUP(F168,'Formula Rate Filing Information'!$A$4:$J$57,'Formula Rate Filing Information'!$J$1,FALSE) ) -> 35 | H168: 6057.142857 | I168: IS | J168: 1 | K168: 0 | L168: 0.212 | M168: 2005-09-22 | N168: Baseline Load Growth Deliverability & Reliability | O168: 2005-09-22 | P168: =IF(LEFT($B168,1)<>"b","N/A",'Planning Allocations'!B168) -> N/A | Q168: =IF(LEFT($B168,1)<>"b","N/A",'Planning Allocations'!C168) -> N/A | R168: =IF(LEFT($B168,1)<>"b","N/A",'Planning Allocations'!D168) -> Single Zone | S168: =IF(OR(LEFT($B168,1)<>"b",'Planning Allocations'!$F168=""), $F168&" (100.00%)", MID('Planning Allocations'!$F168,1,LEN('Planning Allocations'!$F168)-2) ) -> PEPCO (100.00%) | T168: =IF(OR(LEFT($B168,1)<>"b",'Planning Allocations'!$E168=""), "", MID('Planning Allocations'!$E168,1,LEN('Planning Allocations'!$E168)-2) ) -> 
B169: b0191 | C169: Upgrade Dickerson Station “D” 230 kV 3A | D169: 2006-06-01 | E169: 0.212 | F169: PEPCO | G169: =IF( ISERROR( VLOOKUP(F169,'Formula Rate Filing Information'!$A$4:$A$57,1,FALSE) ),'Formula Rate Filing Information'!$J$58, VLOOKUP(F169,'Formula Rate Filing Information'!$A$4:$J$57,'Formula Rate Filing Information'!$J$1,FALSE) ) -> 35 | H169: 6057.142857 | I169: IS | J169: 1 | K169: 0 | L169: 0.212 | M169: 2005-09-22 | N169: Baseline Load Growth Deliverability & Reliability | O169: 2005-09-22 | P169: =IF(LEFT($B169,1)<>"b","N/A",'Planning Allocations'!B169) -> N/A | Q169: =IF(LEFT($B169,1)<>"b","N/A",'Planning Allocations'!C169) -> N/A | R169: =IF(LEFT($B169,1)<>"b","N/A",'Planning Allocations'!D169) -> Single Zone | S169: =IF(OR(LEFT($B169,1)<>"b",'Planning Allocations'!$F169=""), $F169&" (100.00%)", MID('Planning Allocations'!$F169,1,LEN('Planning Allocations'!$F169)-2) ) -> PEPCO (100.00%) | T169: =IF(OR(LEFT($B169,1)<>"b",'Planning Allocations'!$E169=""), "", MID('Planning Allocations'!$E169,1,LEN('Planning Allocations'!$E169)-2) ) -> 
B170: b0192 | C170: Upgrade Dickerson Station “D” 230 kV 3B | D170: 2006-06-01 | E170: 0.212 | F170: PEPCO | G170: =IF( ISERROR( VLOOKUP(F170,'Formula Rate Filing Information'!$A$4:$A$57,1,FALSE) ),'Formula Rate Filing Information'!$J$58, VLOOKUP(F170,'Formula Rate Filing Information'!$A$4:$J$57,'Formula Rate Filing Information'!$J$1,FALSE) ) -> 35 | H170: 6057.142857 | I170: IS | J170: 1 | K170: 0 | L170: 0.212 | M170: 2005-09-22 | N170: Baseline Load Growth Deliverability & Reliability | O170: 2005-09-22 | P170: =IF(LEFT($B170,1)<>"b","N/A",'Planning Allocations'!B170) -> N/A | Q170: =IF(LEFT($B170,1)<>"b","N/A",'Planning Allocations'!C170) -> N/A | R170: =IF(LEFT($B170,1)<>"b","N/A",'Planning Allocations'!D170) -> Single Zone | S170: =IF(OR(LEFT($B170,1)<>"b",'Planning Allocations'!$F170=""), $F170&" (100.00%)", MID('Planning Allocations'!$F170,1,LEN('Planning Allocations'!$F170)-2) ) -> PEPCO (100.00%) | T170: =IF(OR(LEFT($B170,1)<>"b",'Planning Allocations'!$E170=""), "", MID('Planning Allocations'!$E170,1,LEN('Planning Allocations'!$E170)-2) ) -> 
B171: b0193 | C171: Upgrade Dickerson Station “D” 230 kV 5A | D171: 2006-12-19 | E171: 0.212 | F171: PEPCO | G171: =IF( ISERROR( VLOOKUP(F171,'Formula Rate Filing Information'!$A$4:$A$57,1,FALSE) ),'Formula Rate Filing Information'!$J$58, VLOOKUP(F171,'Formula Rate Filing Information'!$A$4:$J$57,'Formula Rate Filing Information'!$J$1,FALSE) ) -> 35 | H171: 6057.142857 | I171: IS | J171: 1 | K171: 0 | L171: 0.212 | M171: 2005-09-22 | N171: Baseline Load Growth Deliverability & Reliability | O171: 2005-09-22 | P171: =IF(LEFT($B171,1)<>"b","N/A",'Planning Allocations'!B171) -> N/A | Q171: =IF(LEFT($B171,1)<>"b","N/A",'Planning Allocations'!C171) -> N/A | R171: =IF(LEFT($B171,1)<>"b","N/A",'Planning Allocations'!D171) -> Single Zone | S171: =IF(OR(LEFT($B171,1)<>"b",'Planning Allocations'!$F171=""), $F171&" (100.00%)", MID('Planning Allocations'!$F171,1,LEN('Planning Allocations'!$F171)-2) ) -> PEPCO (100.00%) | T171: =IF(OR(LEFT($B171,1)<>"b",'Planning Allocations'!$E171=""), "", MID('Planning Allocations'!$E171,1,LEN('Planning Allocations'!$E171)-2) ) -> 
B172: b0194 | C172: Upgrade Dickerson Station “D” 230 kV 6C | D172: 2006-12-19 | E172: 0.212 | F172: PEPCO | G172: =IF( ISERROR( VLOOKUP(F172,'Formula Rate Filing Information'!$A$4:$A$57,1,FALSE) ),'Formula Rate Filing Information'!$J$58, VLOOKUP(F172,'Formula Rate Filing Information'!$A$4:$J$57,'Formula Rate Filing Information'!$J$1,FALSE) ) -> 35 | H172: 6057.142857 | I172: IS | J172: 1 | K172: 0 | L172: 0.212 | M172: 2005-09-22 | N172: Baseline Load Growth Deliverability & Reliability | O172: 2005-09-22 | P172: =IF(LEFT($B172,1)<>"b","N/A",'Planning Allocations'!B172) -> N/A | Q172: =IF(LEFT($B172,1)<>"b","N/A",'Planning Allocations'!C172) -> N/A | R172: =IF(LEFT($B172,1)<>"b","N/A",'Planning Allocations'!D172) -> Single Zone | S172: =IF(OR(LEFT($B172,1)<>"b",'Planning Allocations'!$F172=""), $F172&" (100.00%)", MID('Planning Allocations'!$F172,1,LEN('Planning Allocations'!$F172)-2) ) -> PEPCO (100.00%) | T172: =IF(OR(LEFT($B172,1)<>"b",'Planning Allocations'!$E172=""), "", MID('Planning Allocations'!$E172,1,LEN('Planning Allocations'!$E172)-2) ) -> 
B173: b0195 | C173: Upgrade Dickerson Station “D” 230 kV 1C | D173: 2007-03-15 | E173: 0.5914 | F173: PEPCO | G173: =IF( ISERROR( VLOOKUP(F173,'Formula Rate Filing Information'!$A$4:$A$57,1,FALSE) ),'Formula Rate Filing Information'!$J$58, VLOOKUP(F173,'Formula Rate Filing Information'!$A$4:$J$57,'Formula Rate Filing Information'!$J$1,FALSE) ) -> 35 | H173: 16897.14286 | I173: IS | J173: 1 | K173: 0 | L173: 0.5914 | M173: 2005-09-22 | N173: Baseline Load Growth Deliverability & Reliability | O173: 2005-09-22 | P173: =IF(LEFT($B173,1)<>"b","N/A",'Planning Allocations'!B173) -> N/A | Q173: =IF(LEFT($B173,1)<>"b","N/A",'Planning Allocations'!C173) -> N/A | R173: =IF(LEFT($B173,1)<>"b","N/A",'Planning Allocations'!D173) -> Single Zone | S173: =IF(OR(LEFT($B173,1)<>"b",'Planning Allocations'!$F173=""), $F173&" (100.00%)", MID('Planning Allocations'!$F173,1,LEN('Planning Allocations'!$F173)-2) ) -> PEPCO (100.00%) | T173: =IF(OR(LEFT($B173,1)<>"b",'Planning Allocations'!$E173=""), "", MID('Planning Allocations'!$E173,1,LEN('Planning Allocations'!$E173)-2) ) -> 
B174: b0196 | C174: Upgrade Dickerson Station “D” 230 kV 2C | D174: 2007-03-15 | E174: 0.5914 | F174: PEPCO | G174: =IF( ISERROR( VLOOKUP(F174,'Formula Rate Filing Information'!$A$4:$A$57,1,FALSE) ),'Formula Rate Filing Information'!$J$58, VLOOKUP(F174,'Formula Rate Filing Information'!$A$4:$J$57,'Formula Rate Filing Information'!$J$1,FALSE) ) -> 35 | H174: 16897.14286 | I174: IS | J174: 1 | K174: 0 | L174: 0.5914 | M174: 2005-09-22 | N174: Baseline Load Growth Deliverability & Reliability | O174: 2005-09-22 | P174: =IF(LEFT($B174,1)<>"b","N/A",'Planning Allocations'!B174) -> N/A | Q174: =IF(LEFT($B174,1)<>"b","N/A",'Planning Allocations'!C174) -> N/A | R174: =IF(LEFT($B174,1)<>"b","N/A",'Planning Allocations'!D174) -> Single Zone | S174: =IF(OR(LEFT($B174,1)<>"b",'Planning Allocations'!$F174=""), $F174&" (100.00%)", MID('Planning Allocations'!$F174,1,LEN('Planning Allocations'!$F174)-2) ) -> PEPCO (100.00%) | T174: =IF(OR(LEFT($B174,1)<>"b",'Planning Allocations'!$E174=""), "", MID('Planning Allocations'!$E174,1,LEN('Planning Allocations'!$E174)-2) ) -> 
B175: b0197 | C175: Upgrade Dickerson Station “D” 230 kV 3C | D175: 2007-03-15 | E175: 0.5914 | F175: PEPCO | G175: =IF( ISERROR( VLOOKUP(F175,'Formula Rate Filing Information'!$A$4:$A$57,1,FALSE) ),'Formula Rate Filing Information'!$J$58, VLOOKUP(F175,'Formula Rate Filing Information'!$A$4:$J$57,'Formula Rate Filing Information'!$J$1,FALSE) ) -> 35 | H175: 16897.14286 | I175: IS | J175: 1 | K175: 0 | L175: 0.5914 | M175: 2005-09-22 | N175: Baseline Load Growth Deliverability & Reliability | O175: 2005-09-22 | P175: =IF(LEFT($B175,1)<>"b","N/A",'Planning Allocations'!B175) -> N/A | Q175: =IF(LEFT($B175,1)<>"b","N/A",'Planning Allocations'!C175) -> N/A | R175: =IF(LEFT($B175,1)<>"b","N/A",'Planning Allocations'!D175) -> Single Zone | S175: =IF(OR(LEFT($B175,1)<>"b",'Planning Allocations'!$F175=""), $F175&" (100.00%)", MID('Planning Allocations'!$F175,1,LEN('Planning Allocations'!$F175)-2) ) -> PEPCO (100.00%) | T175: =IF(OR(LEFT($B175,1)<>"b",'Planning Allocations'!$E175=""), "", MID('Planning Allocations'!$E175,1,LEN('Planning Allocations'!$E175)-2) ) -> 
B176: b0199 | C176: Greystone 230kV substation: Change Tap of limiting CT and replace wavetrap on the Greystone - Whippany (Q1031) 230kV line | D176: 2009-02-19 | E176: 0.35 | F176: JCPL | G176: =IF( ISERROR( VLOOKUP(F176,'Formula Rate Filing Information'!$A$4:$A$57,1,FALSE) ),'Formula Rate Filing Information'!$J$58, VLOOKUP(F176,'Formula Rate Filing Information'!$A$4:$J$57,'Formula Rate Filing Information'!$J$1,FALSE) ) -> 53 | H176: 6603.773585 | I176: IS | J176: 1 | K176: 0 | L176: 0.35 | M176: 2005-09-22 | N176: Baseline Load Growth Deliverability & Reliability | O176: 2005-09-22 | P176: =IF(LEFT($B176,1)<>"b","N/A",'Planning Allocations'!B176) -> Appendix | Q176: =IF(LEFT($B176,1)<>"b","N/A",'Planning Allocations'!C176) -> N/A | R176: =IF(LEFT($B176,1)<>"b","N/A",'Planning Allocations'!D176) -> Single Zone | S176: =IF(OR(LEFT($B176,1)<>"b",'Planning Allocations'!$F176=""), $F176&" (100.00%)", MID('Planning Allocations'!$F176,1,LEN('Planning Allocations'!$F176)-2) ) -> JCPL (100.00%) | T176: =IF(OR(LEFT($B176,1)<>"b",'Planning Allocations'!$E176=""), "", MID('Planning Allocations'!$E176,1,LEN('Planning Allocations'!$E176)-2) ) -> 
B177: b0200 | C177: Greystone 230kV substation: Change Tap of limiting CT on the West Wharton - Greystone (E1045) 230kV line | D177: 2008-10-08 | E177: 0.005 | F177: JCPL | G177: =IF( ISERROR( VLOOKUP(F177,'Formula Rate Filing Information'!$A$4:$A$57,1,FALSE) ),'Formula Rate Filing Information'!$J$58, VLOOKUP(F177,'Formula Rate Filing Information'!$A$4:$J$57,'Formula Rate Filing Information'!$J$1,FALSE) ) -> 53 | H177: 94.33962264 | I177: IS | J177: 1 | K177: 0 | L177: 0.005 | M177: 2005-09-22 | N177: Baseline Load Growth Deliverability & Reliability | O177: 2005-09-22 | P177: =IF(LEFT($B177,1)<>"b","N/A",'Planning Allocations'!B177) -> Appendix | Q177: =IF(LEFT($B177,1)<>"b","N/A",'Planning Allocations'!C177) -> N/A | R177: =IF(LEFT($B177,1)<>"b","N/A",'Planning Allocations'!D177) -> Single Zone | S177: =IF(OR(LEFT($B177,1)<>"b",'Planning Allocations'!$F177=""), $F177&" (100.00%)", MID('Planning Allocations'!$F177,1,LEN('Planning Allocations'!$F177)-2) ) -> JCPL (100.00%) | T177: =IF(OR(LEFT($B177,1)<>"b",'Planning Allocations'!$E177=""), "", MID('Planning Allocations'!$E177,1,LEN('Planning Allocations'!$E177)-2) ) -> 
B178: b0201 | C178: Branchburg substation: replace wave trap on M-2265 Branchburg - Readington 230kV circuit | D178: 2008-05-23 | E178: 0.5 | F178: PSEG | G178: =IF( ISERROR( VLOOKUP(F178,'Formula Rate Filing Information'!$A$4:$A$57,1,FALSE) ),'Formula Rate Filing Information'!$J$58, VLOOKUP(F178,'Formula Rate Filing Information'!$A$4:$J$57,'Formula Rate Filing Information'!$J$1,FALSE) ) -> 47 | H178: 10638.29787 | I178: IS | J178: 1 | K178: 0 | L178: 0.5 | M178: 2005-09-22 | N178: Baseline Load Growth Deliverability & Reliability | O178: 2005-09-22 | P178: =IF(LEFT($B178,1)<>"b","N/A",'Planning Allocations'!B178) -> Appendix | Q178: =IF(LEFT($B178,1)<>"b","N/A",'Planning Allocations'!C178) -> N/A | R178: =IF(LEFT($B178,1)<>"b","N/A",'Planning Allocations'!D178) -> Single Zone | S178: =IF(OR(LEFT($B178,1)<>"b",'Planning Allocations'!$F178=""), $F178&" (100.00%)", MID('Planning Allocations'!$F178,1,LEN('Planning Allocations'!$F178)-2) ) -> PSEG (100.00%) | T178: =IF(OR(LEFT($B178,1)<>"b",'Planning Allocations'!$E178=""), "", MID('Planning Allocations'!$E178,1,LEN('Planning Allocations'!$E178)-2) ) -> 
B179: b0202 | C179: Kittatinny 230kV substation: Replace line trap on Kittatinny - Pohatcong (L2012) 230kV line; Pohatcong 230kV substation: Change Tap of limiting CT on Kittatinny - Pohatcong (L2012) 230kV line | D179: 2008-10-08 | E179: 0.035 | F179: JCPL | G179: =IF( ISERROR( VLOOKUP(F179,'Formula Rate Filing Information'!$A$4:$A$57,1,FALSE) ),'Formula Rate Filing Information'!$J$58, VLOOKUP(F179,'Formula Rate Filing Information'!$A$4:$J$57,'Formula Rate Filing Information'!$J$1,FALSE) ) -> 53 | H179: 660.3773585 | I179: IS | J179: 1 | K179: 0 | L179: 0.035 | M179: 2005-09-22 | N179: Baseline Load Growth Deliverability & Reliability | O179: 2005-09-22 | P179: =IF(LEFT($B179,1)<>"b","N/A",'Planning Allocations'!B179) -> Appendix | Q179: =IF(LEFT($B179,1)<>"b","N/A",'Planning Allocations'!C179) -> N/A | R179: =IF(LEFT($B179,1)<>"b","N/A",'Planning Allocations'!D179) -> Single Zone | S179: =IF(OR(LEFT($B179,1)<>"b",'Planning Allocations'!$F179=""), $F179&" (100.00%)", MID('Planning Allocations'!$F179,1,LEN('Planning Allocations'!$F179)-2) ) -> JCPL (100.00%) | T179: =IF(OR(LEFT($B179,1)<>"b",'Planning Allocations'!$E179=""), "", MID('Planning Allocations'!$E179,1,LEN('Planning Allocations'!$E179)-2) ) -> 
B180: b0203 | C180: Smithburg 230kV Substation: Replace line trap on the East Windsor - Smithburg (E2005) 230kV line; East Windsor 230kV substation: Replace line trap on the East Windsor - Smithburg (E2005) 230kV line | D180: 2008-05-30 | E180: 0.08 | F180: JCPL | G180: =IF( ISERROR( VLOOKUP(F180,'Formula Rate Filing Information'!$A$4:$A$57,1,FALSE) ),'Formula Rate Filing Information'!$J$58, VLOOKUP(F180,'Formula Rate Filing Information'!$A$4:$J$57,'Formula Rate Filing Information'!$J$1,FALSE) ) -> 53 | H180: 1509.433962 | I180: IS | J180: 1 | K180: 0 | L180: 0.08 | M180: 2005-09-22 | N180: Baseline Load Growth Deliverability & Reliability | O180: 2005-09-22 | P180: =IF(LEFT($B180,1)<>"b","N/A",'Planning Allocations'!B180) -> Appendix | Q180: =IF(LEFT($B180,1)<>"b","N/A",'Planning Allocations'!C180) -> N/A | R180: =IF(LEFT($B180,1)<>"b","N/A",'Planning Allocations'!D180) -> Single Zone | S180: =IF(OR(LEFT($B180,1)<>"b",'Planning Allocations'!$F180=""), $F180&" (100.00%)", MID('Planning Allocations'!$F180,1,LEN('Planning Allocations'!$F180)-2) ) -> JCPL (100.00%) | T180: =IF(OR(LEFT($B180,1)<>"b",'Planning Allocations'!$E180=""), "", MID('Planning Allocations'!$E180,1,LEN('Planning Allocations'!$E180)-2) ) -> 
B181: b0204 | C181: Install 72MVAR capacitor at Cookstown 230kV substation | D181: 2006-05-31 | E181: 0.955 | F181: JCPL | G181: =IF( ISERROR( VLOOKUP(F181,'Formula Rate Filing Information'!$A$4:$A$57,1,FALSE) ),'Formula Rate Filing Information'!$J$58, VLOOKUP(F181,'Formula Rate Filing Information'!$A$4:$J$57,'Formula Rate Filing Information'!$J$1,FALSE) ) -> 53 | H181: 18018.86792 | I181: IS | J181: 1 | K181: 0 | L181: 0.955 | M181: 2005-09-22 | N181: Baseline Load Growth Deliverability & Reliability | O181: 2005-09-22 | P181: =IF(LEFT($B181,1)<>"b","N/A",'Planning Allocations'!B181) -> Appendix | Q181: =IF(LEFT($B181,1)<>"b","N/A",'Planning Allocations'!C181) -> N/A | R181: =IF(LEFT($B181,1)<>"b","N/A",'Planning Allocations'!D181) -> Single Zone | S181: =IF(OR(LEFT($B181,1)<>"b",'Planning Allocations'!$F181=""), $F181&" (100.00%)", MID('Planning Allocations'!$F181,1,LEN('Planning Allocations'!$F181)-2) ) -> JCPL (100.00%) | T181: =IF(OR(LEFT($B181,1)<>"b",'Planning Allocations'!$E181=""), "", MID('Planning Allocations'!$E181,1,LEN('Planning Allocations'!$E181)-2) ) -> 
B182: b0205 | C182: Install three 28.8MVAR capacitors at Planebrook 35kV substation | D182: 2008-05-31 | E182: 2.2 | F182: PECO | G182: =IF( ISERROR( VLOOKUP(F182,'Formula Rate Filing Information'!$A$4:$A$57,1,FALSE) ),'Formula Rate Filing Information'!$J$58, VLOOKUP(F182,'Formula Rate Filing Information'!$A$4:$J$57,'Formula Rate Filing Information'!$J$1,FALSE) ) -> 68.97724685 | H182: 31894.57539 | I182: IS | J182: 1 | K182: 0 | L182: 2.2 | M182: 2005-09-22 | N182: Baseline Load Growth Deliverability & Reliability | O182: 2005-09-22 | P182: =IF(LEFT($B182,1)<>"b","N/A",'Planning Allocations'!B182) -> Appendix | Q182: =IF(LEFT($B182,1)<>"b","N/A",'Planning Allocations'!C182) -> N/A | R182: =IF(LEFT($B182,1)<>"b","N/A",'Planning Allocations'!D182) -> Single Zone | S182: =IF(OR(LEFT($B182,1)<>"b",'Planning Allocations'!$F182=""), $F182&" (100.00%)", MID('Planning Allocations'!$F182,1,LEN('Planning Allocations'!$F182)-2) ) -> PECO (100.00%) | T182: =IF(OR(LEFT($B182,1)<>"b",'Planning Allocations'!$E182=""), "", MID('Planning Allocations'!$E182,1,LEN('Planning Allocations'!$E182)-2) ) -> 
B183: b0206 | C183: Install 161MVAR capacitor at Planebrook 230kV substation | D183: 2007-05-22 | E183: 2 | F183: PECO | G183: =IF( ISERROR( VLOOKUP(F183,'Formula Rate Filing Information'!$A$4:$A$57,1,FALSE) ),'Formula Rate Filing Information'!$J$58, VLOOKUP(F183,'Formula Rate Filing Information'!$A$4:$J$57,'Formula Rate Filing Information'!$J$1,FALSE) ) -> 68.97724685 | H183: 28995.06854 | I183: IS | J183: 1 | K183: 0 | L183: 2 | M183: 2005-09-22 | N183: Baseline Load Growth Deliverability & Reliability | O183: 2005-09-22 | P183: =IF(LEFT($B183,1)<>"b","N/A",'Planning Allocations'!B183) -> Appendix | Q183: =IF(LEFT($B183,1)<>"b","N/A",'Planning Allocations'!C183) -> N/A | R183: =IF(LEFT($B183,1)<>"b","N/A",'Planning Allocations'!D183) -> 100% Violation-Based DFAX | S183: =IF(OR(LEFT($B183,1)<>"b",'Planning Allocations'!$F183=""), $F183&" (100.00%)", MID('Planning Allocations'!$F183,1,LEN('Planning Allocations'!$F183)-2) ) -> AEC (14.20%) / DPL (24.39%) / PECO (57.94%) / PSEG (3.47%) | T183: =IF(OR(LEFT($B183,1)<>"b",'Planning Allocations'!$E183=""), "", MID('Planning Allocations'!$E183,1,LEN('Planning Allocations'!$E183)-2) ) -> 
B184: b0207 | C184: Install 161MVAR capacitor at Newlinville 230kV substation | D184: 2008-05-25 | E184: 2 | F184: PECO | G184: =IF( ISERROR( VLOOKUP(F184,'Formula Rate Filing Information'!$A$4:$A$57,1,FALSE) ),'Formula Rate Filing Information'!$J$58, VLOOKUP(F184,'Formula Rate Filing Information'!$A$4:$J$57,'Formula Rate Filing Information'!$J$1,FALSE) ) -> 68.97724685 | H184: 28995.06854 | I184: IS | J184: 1 | K184: 0 | L184: 2 | M184: 2005-09-22 | N184: Baseline Load Growth Deliverability & Reliability | O184: 2005-09-22 | P184: =IF(LEFT($B184,1)<>"b","N/A",'Planning Allocations'!B184) -> Appendix | Q184: =IF(LEFT($B184,1)<>"b","N/A",'Planning Allocations'!C184) -> N/A | R184: =IF(LEFT($B184,1)<>"b","N/A",'Planning Allocations'!D184) -> 100% Violation-Based DFAX | S184: =IF(OR(LEFT($B184,1)<>"b",'Planning Allocations'!$F184=""), $F184&" (100.00%)", MID('Planning Allocations'!$F184,1,LEN('Planning Allocations'!$F184)-2) ) -> AEC (14.20%) / DPL (24.39%) / PECO (57.94%) / PSEG (3.47%) | T184: =IF(OR(LEFT($B184,1)<>"b",'Planning Allocations'!$E184=""), "", MID('Planning Allocations'!$E184,1,LEN('Planning Allocations'!$E184)-2) ) -> 
B185: b0208 | C185: Install 161MVAR capacitor Heaton 230kV substation | D185: 2008-04-12 | E185: 2 | F185: PECO | G185: =IF( ISERROR( VLOOKUP(F185,'Formula Rate Filing Information'!$A$4:$A$57,1,FALSE) ),'Formula Rate Filing Information'!$J$58, VLOOKUP(F185,'Formula Rate Filing Information'!$A$4:$J$57,'Formula Rate Filing Information'!$J$1,FALSE) ) -> 68.97724685 | H185: 28995.06854 | I185: IS | J185: 1 | K185: 0 | L185: 2 | M185: 2005-09-22 | N185: Baseline Load Growth Deliverability & Reliability | O185: 2005-09-22 | P185: =IF(LEFT($B185,1)<>"b","N/A",'Planning Allocations'!B185) -> Appendix | Q185: =IF(LEFT($B185,1)<>"b","N/A",'Planning Allocations'!C185) -> N/A | R185: =IF(LEFT($B185,1)<>"b","N/A",'Planning Allocations'!D185) -> 100% Violation-Based DFAX | S185: =IF(OR(LEFT($B185,1)<>"b",'Planning Allocations'!$F185=""), $F185&" (100.00%)", MID('Planning Allocations'!$F185,1,LEN('Planning Allocations'!$F185)-2) ) -> AEC (14.20%) / DPL (24.39%) / PECO (57.94%) / PSEG (3.47%) | T185: =IF(OR(LEFT($B185,1)<>"b",'Planning Allocations'!$E185=""), "", MID('Planning Allocations'!$E185,1,LEN('Planning Allocations'!$E185)-2) ) -> 
B186: b0209 | C186: Install 2% series reactor at Chichester substation on the Chichester - Mickleton 230kV circuit | D186: 2008-03-27 | E186: 3 | F186: PECO | G186: =IF( ISERROR( VLOOKUP(F186,'Formula Rate Filing Information'!$A$4:$A$57,1,FALSE) ),'Formula Rate Filing Information'!$J$58, VLOOKUP(F186,'Formula Rate Filing Information'!$A$4:$J$57,'Formula Rate Filing Information'!$J$1,FALSE) ) -> 68.97724685 | H186: 43492.60281 | I186: IS | J186: 1 | K186: 0 | L186: 3 | M186: 2005-09-22 | N186: Baseline Load Growth Deliverability & Reliability | O186: 2005-09-22 | P186: =IF(LEFT($B186,1)<>"b","N/A",'Planning Allocations'!B186) -> Appendix | Q186: =IF(LEFT($B186,1)<>"b","N/A",'Planning Allocations'!C186) -> N/A | R186: =IF(LEFT($B186,1)<>"b","N/A",'Planning Allocations'!D186) -> 100% Violation-Based DFAX | S186: =IF(OR(LEFT($B186,1)<>"b",'Planning Allocations'!$F186=""), $F186&" (100.00%)", MID('Planning Allocations'!$F186,1,LEN('Planning Allocations'!$F186)-2) ) -> AEC (65.23%) / JCPL (25.87%) / Neptune (2.55%) / PSEG (6.35%) | T186: =IF(OR(LEFT($B186,1)<>"b",'Planning Allocations'!$E186=""), "", MID('Planning Allocations'!$E186,1,LEN('Planning Allocations'!$E186)-2) ) -> 
B187: b0210 | C187: Install a new 500/230kV substation in AE area, the high side will be tapped on the Salem - East Windsor 500kV circuit and one of the 2 230kV circuits installed from Orchard-Cumberland 230kV circuit. (500 kV elements of the project) | D187: 2008-05-07 | E187: 37.09 | F187: AEC | G187: =IF( ISERROR( VLOOKUP(F187,'Formula Rate Filing Information'!$A$4:$A$57,1,FALSE) ),'Formula Rate Filing Information'!$J$58, VLOOKUP(F187,'Formula Rate Filing Information'!$A$4:$J$57,'Formula Rate Filing Information'!$J$1,FALSE) ) -> 35 | H187: 1059714.286 | I187: IS | J187: 1 | K187: 0 | L187: 37.09 | M187: 2005-09-22 | N187: Baseline Load Growth Deliverability & Reliability | O187: 2005-09-22 | P187: =IF(LEFT($B187,1)<>"b","N/A",'Planning Allocations'!B187) -> Appendix | Q187: =IF(LEFT($B187,1)<>"b","N/A",'Planning Allocations'!C187) -> (b)(i) Regional Facility | R187: =IF(LEFT($B187,1)<>"b","N/A",'Planning Allocations'!D187) -> 50% LRS & 50% SBDFAX | S187: =IF(OR(LEFT($B187,1)<>"b",'Planning Allocations'!$F187=""), $F187&" (100.00%)", MID('Planning Allocations'!$F187,1,LEN('Planning Allocations'!$F187)-2) ) -> AEC (81.71%) / JCPL (18.29%) | T187: =IF(OR(LEFT($B187,1)<>"b",'Planning Allocations'!$E187=""), "", MID('Planning Allocations'!$E187,1,LEN('Planning Allocations'!$E187)-2) ) -> AEC (1.65%) / AEP (13.68%) / APS (5.77%) / ATSI (8.04%) / BGE (4.11%) / ComEd (13.39%) / Dayton (2.12%) / DEOK (3.25%) / DL (1.71%) / Dominion (13.32%) / DPL (2.60%) / EKPC (1.89%) / JCPL (3.86%) / ME (1.90%) / Neptune (0.42%) / OVEC (0.08%) / PECO (5.41%) / PENELEC (1.78%) / PEPCO (3.67%) / PPL (4.72%) / PSEG (6.39%) / RE (0.26%)
B188: b0210.1 | C188: Orchard-Cumberland - Install second 230kV line | D188: 2016-12-31 | E188: 13 | F188: AEC | G188: =IF( ISERROR( VLOOKUP(F188,'Formula Rate Filing Information'!$A$4:$A$57,1,FALSE) ),'Formula Rate Filing Information'!$J$58, VLOOKUP(F188,'Formula Rate Filing Information'!$A$4:$J$57,'Formula Rate Filing Information'!$J$1,FALSE) ) -> 35 | H188: 371428.5714 | I188: IS | J188: 1 | K188: 0 | L188: 13 | M188: 2005-09-22 | N188: Baseline Load Growth Deliverability & Reliability | O188: 2009-12-02 | P188: =IF(LEFT($B188,1)<>"b","N/A",'Planning Allocations'!B188) -> Appendix | Q188: =IF(LEFT($B188,1)<>"b","N/A",'Planning Allocations'!C188) -> N/A | R188: =IF(LEFT($B188,1)<>"b","N/A",'Planning Allocations'!D188) -> 100% Violation-Based DFAX | S188: =IF(OR(LEFT($B188,1)<>"b",'Planning Allocations'!$F188=""), $F188&" (100.00%)", MID('Planning Allocations'!$F188,1,LEN('Planning Allocations'!$F188)-2) ) -> AEC (65.23%) / JCPL (25.87%) / Neptune (2.55%) / PSEG (6.35%) | T188: =IF(OR(LEFT($B188,1)<>"b",'Planning Allocations'!$E188=""), "", MID('Planning Allocations'!$E188,1,LEN('Planning Allocations'!$E188)-2) ) -> 
B189: b0210.2 | C189: Install a new 500/230kV substation in AEC area, the high side will be tapped on the Salem - East Windsor 500kV circuit and the low side will be tapped on the Churchtown - Cumberland 230kV circuit. (Below 500 kV elements of the project) | D189: 2008-05-07 | E189: 15 | F189: AEC | G189: =IF( ISERROR( VLOOKUP(F189,'Formula Rate Filing Information'!$A$4:$A$57,1,FALSE) ),'Formula Rate Filing Information'!$J$58, VLOOKUP(F189,'Formula Rate Filing Information'!$A$4:$J$57,'Formula Rate Filing Information'!$J$1,FALSE) ) -> 35 | H189: 428571.4286 | I189: IS | J189: 1 | K189: 0 | L189: 15 | M189: 2005-09-22 | N189: Baseline Load Growth Deliverability & Reliability | O189: 00:00:00 | P189: =IF(LEFT($B189,1)<>"b","N/A",'Planning Allocations'!B189) -> Appendix | Q189: =IF(LEFT($B189,1)<>"b","N/A",'Planning Allocations'!C189) -> N/A | R189: =IF(LEFT($B189,1)<>"b","N/A",'Planning Allocations'!D189) -> 100% Violation-Based DFAX | S189: =IF(OR(LEFT($B189,1)<>"b",'Planning Allocations'!$F189=""), $F189&" (100.00%)", MID('Planning Allocations'!$F189,1,LEN('Planning Allocations'!$F189)-2) ) -> AEC (65.23%) / JCPL (25.87%) / Neptune (2.55%) / PSEG (6.35%) | T189: =IF(OR(LEFT($B189,1)<>"b",'Planning Allocations'!$E189=""), "", MID('Planning Allocations'!$E189,1,LEN('Planning Allocations'!$E189)-2) ) -> 
B190: b0211 | C190: Reconductor Union - Corson 138kV circuit | D190: 2008-02-15 | E190: 6.22 | F190: AEC | G190: =IF( ISERROR( VLOOKUP(F190,'Formula Rate Filing Information'!$A$4:$A$57,1,FALSE) ),'Formula Rate Filing Information'!$J$58, VLOOKUP(F190,'Formula Rate Filing Information'!$A$4:$J$57,'Formula Rate Filing Information'!$J$1,FALSE) ) -> 35 | H190: 177714.2857 | I190: IS | J190: 1 | K190: 0 | L190: 6.22 | M190: 2005-09-22 | N190: Baseline Load Growth Deliverability & Reliability | O190: 2005-09-22 | P190: =IF(LEFT($B190,1)<>"b","N/A",'Planning Allocations'!B190) -> Appendix | Q190: =IF(LEFT($B190,1)<>"b","N/A",'Planning Allocations'!C190) -> N/A | R190: =IF(LEFT($B190,1)<>"b","N/A",'Planning Allocations'!D190) -> 100% Violation-Based DFAX | S190: =IF(OR(LEFT($B190,1)<>"b",'Planning Allocations'!$F190=""), $F190&" (100.00%)", MID('Planning Allocations'!$F190,1,LEN('Planning Allocations'!$F190)-2) ) -> AEC (65.23%) / JCPL (25.87%) / Neptune (2.55%) / PSEG (6.35%) | T190: =IF(OR(LEFT($B190,1)<>"b",'Planning Allocations'!$E190=""), "", MID('Planning Allocations'!$E190,1,LEN('Planning Allocations'!$E190)-2) ) -> 
B191: b0212 | C191: Corson upgrade 138kV line trap | D191: 2008-02-28 | E191: 0.07 | F191: AEC | G191: =IF( ISERROR( VLOOKUP(F191,'Formula Rate Filing Information'!$A$4:$A$57,1,FALSE) ),'Formula Rate Filing Information'!$J$58, VLOOKUP(F191,'Formula Rate Filing Information'!$A$4:$J$57,'Formula Rate Filing Information'!$J$1,FALSE) ) -> 35 | H191: 2000 | I191: IS | J191: 1 | K191: 0 | L191: 0.07 | M191: 2005-09-22 | N191: Baseline Load Growth Deliverability & Reliability | O191: 2005-09-22 | P191: =IF(LEFT($B191,1)<>"b","N/A",'Planning Allocations'!B191) -> Appendix | Q191: =IF(LEFT($B191,1)<>"b","N/A",'Planning Allocations'!C191) -> N/A | R191: =IF(LEFT($B191,1)<>"b","N/A",'Planning Allocations'!D191) -> 100% Violation-Based DFAX | S191: =IF(OR(LEFT($B191,1)<>"b",'Planning Allocations'!$F191=""), $F191&" (100.00%)", MID('Planning Allocations'!$F191,1,LEN('Planning Allocations'!$F191)-2) ) -> AEC (65.23%) / JCPL (25.87%) / Neptune (2.55%) / PSEG (6.35%) | T191: =IF(OR(LEFT($B191,1)<>"b",'Planning Allocations'!$E191=""), "", MID('Planning Allocations'!$E191,1,LEN('Planning Allocations'!$E191)-2) ) -> 
B192: b0213.1 | C192: Replace New Freedom 230kV breaker BS2-6 | D192: 2007-04-13 | E192: 0.375 | F192: PSEG | G192: =IF( ISERROR( VLOOKUP(F192,'Formula Rate Filing Information'!$A$4:$A$57,1,FALSE) ),'Formula Rate Filing Information'!$J$58, VLOOKUP(F192,'Formula Rate Filing Information'!$A$4:$J$57,'Formula Rate Filing Information'!$J$1,FALSE) ) -> 47 | H192: 7978.723404 | I192: IS | J192: 1 | K192: 0 | L192: 0.375 | M192: 2006-10-30 | N192: Baseline Load Growth Deliverability & Reliability | O192: 2006-11-01 | P192: =IF(LEFT($B192,1)<>"b","N/A",'Planning Allocations'!B192) -> Appendix | Q192: =IF(LEFT($B192,1)<>"b","N/A",'Planning Allocations'!C192) -> N/A | R192: =IF(LEFT($B192,1)<>"b","N/A",'Planning Allocations'!D192) -> Single Zone | S192: =IF(OR(LEFT($B192,1)<>"b",'Planning Allocations'!$F192=""), $F192&" (100.00%)", MID('Planning Allocations'!$F192,1,LEN('Planning Allocations'!$F192)-2) ) -> PSEG (100.00%) | T192: =IF(OR(LEFT($B192,1)<>"b",'Planning Allocations'!$E192=""), "", MID('Planning Allocations'!$E192,1,LEN('Planning Allocations'!$E192)-2) ) -> 
B193: b0213.3 | C193: Replace New Freedom 230kV breaker BS2-8 | D193: 2007-03-29 | E193: 0.375 | F193: PSEG | G193: =IF( ISERROR( VLOOKUP(F193,'Formula Rate Filing Information'!$A$4:$A$57,1,FALSE) ),'Formula Rate Filing Information'!$J$58, VLOOKUP(F193,'Formula Rate Filing Information'!$A$4:$J$57,'Formula Rate Filing Information'!$J$1,FALSE) ) -> 47 | H193: 7978.723404 | I193: IS | J193: 1 | K193: 0 | L193: 0.375 | M193: 2006-10-30 | N193: Baseline Load Growth Deliverability & Reliability | O193: 2006-11-01 | P193: =IF(LEFT($B193,1)<>"b","N/A",'Planning Allocations'!B193) -> Appendix | Q193: =IF(LEFT($B193,1)<>"b","N/A",'Planning Allocations'!C193) -> N/A | R193: =IF(LEFT($B193,1)<>"b","N/A",'Planning Allocations'!D193) -> Single Zone | S193: =IF(OR(LEFT($B193,1)<>"b",'Planning Allocations'!$F193=""), $F193&" (100.00%)", MID('Planning Allocations'!$F193,1,LEN('Planning Allocations'!$F193)-2) ) -> PSEG (100.00%) | T193: =IF(OR(LEFT($B193,1)<>"b",'Planning Allocations'!$E193=""), "", MID('Planning Allocations'!$E193,1,LEN('Planning Allocations'!$E193)-2) ) -> 
B194: b0214 | C194: Install 50 MVAR capacitor at Cardiff 230kV substation | D194: 2009-02-28 | E194: 2.65 | F194: AEC | G194: =IF( ISERROR( VLOOKUP(F194,'Formula Rate Filing Information'!$A$4:$A$57,1,FALSE) ),'Formula Rate Filing Information'!$J$58, VLOOKUP(F194,'Formula Rate Filing Information'!$A$4:$J$57,'Formula Rate Filing Information'!$J$1,FALSE) ) -> 35 | H194: 75714.28571 | I194: IS | J194: 1 | K194: 0 | L194: 2.65 | M194: 2005-09-22 | N194: Baseline Load Growth Deliverability & Reliability | O194: 2005-09-22 | P194: =IF(LEFT($B194,1)<>"b","N/A",'Planning Allocations'!B194) -> Appendix | Q194: =IF(LEFT($B194,1)<>"b","N/A",'Planning Allocations'!C194) -> N/A | R194: =IF(LEFT($B194,1)<>"b","N/A",'Planning Allocations'!D194) -> Single Zone | S194: =IF(OR(LEFT($B194,1)<>"b",'Planning Allocations'!$F194=""), $F194&" (100.00%)", MID('Planning Allocations'!$F194,1,LEN('Planning Allocations'!$F194)-2) ) -> AEC (100.00%) | T194: =IF(OR(LEFT($B194,1)<>"b",'Planning Allocations'!$E194=""), "", MID('Planning Allocations'!$E194,1,LEN('Planning Allocations'!$E194)-2) ) -> 
B195: b0215 | C195: Install 230kV series reactor and 2-100MVAR PLC switched capacitors at Hunterstown, install a protection scheme that trips the 230/115 kV transformer with the outage of Hunterstown-Jackson 230kV | D195: 2008-06-01 | E195: 10 | F195: ME | G195: =IF( ISERROR( VLOOKUP(F195,'Formula Rate Filing Information'!$A$4:$A$57,1,FALSE) ),'Formula Rate Filing Information'!$J$58, VLOOKUP(F195,'Formula Rate Filing Information'!$A$4:$J$57,'Formula Rate Filing Information'!$J$1,FALSE) ) -> 45.35896734 | H195: 220463.5728 | I195: IS | J195: 1 | K195: 0 | L195: 10 | M195: 2005-09-22 | N195: Baseline Load Growth Deliverability & Reliability | O195: 2005-09-22 | P195: =IF(LEFT($B195,1)<>"b","N/A",'Planning Allocations'!B195) -> Appendix | Q195: =IF(LEFT($B195,1)<>"b","N/A",'Planning Allocations'!C195) -> N/A | R195: =IF(LEFT($B195,1)<>"b","N/A",'Planning Allocations'!D195) -> 100% Violation-Based DFAX | S195: =IF(OR(LEFT($B195,1)<>"b",'Planning Allocations'!$F195=""), $F195&" (100.00%)", MID('Planning Allocations'!$F195,1,LEN('Planning Allocations'!$F195)-2) ) -> AEC (6.71%) / APS (3.97%) / DPL (9.10%) / ECP (0.64%) / JCPL (16.85%) / ME (10.53%) / Neptune (1.69%) / PECO (19.00%) / PPL (8.50%) / PSEG (22.67%) / RE (0.34%) | T195: =IF(OR(LEFT($B195,1)<>"b",'Planning Allocations'!$E195=""), "", MID('Planning Allocations'!$E195,1,LEN('Planning Allocations'!$E195)-2) ) -> 
B196: b0216 | C196: Black Oak Install -100/+525 MVAR dynamic reactive device | D196: 2007-12-05 | E196: 50 | F196: APS | G196: =IF( ISERROR( VLOOKUP(F196,'Formula Rate Filing Information'!$A$4:$A$57,1,FALSE) ),'Formula Rate Filing Information'!$J$58, VLOOKUP(F196,'Formula Rate Filing Information'!$A$4:$J$57,'Formula Rate Filing Information'!$J$1,FALSE) ) -> 51.94436374 | H196: 962568.3403 | I196: IS | J196: 1 | K196: 0 | L196: 50 | M196: 2005-09-22 | N196: Baseline Load Growth Deliverability & Reliability | O196: 2005-09-22 | P196: =IF(LEFT($B196,1)<>"b","N/A",'Planning Allocations'!B196) -> Appendix | Q196: =IF(LEFT($B196,1)<>"b","N/A",'Planning Allocations'!C196) -> (b)(i) Regional Facility | R196: =IF(LEFT($B196,1)<>"b","N/A",'Planning Allocations'!D196) -> 50% LRS & 50% SBDFAX | S196: =IF(OR(LEFT($B196,1)<>"b",'Planning Allocations'!$F196=""), $F196&" (100.00%)", MID('Planning Allocations'!$F196,1,LEN('Planning Allocations'!$F196)-2) ) -> APS (30.46%) / BGE (10.86%) / Dominion (42.56%) / PEPCO (16.12%) | T196: =IF(OR(LEFT($B196,1)<>"b",'Planning Allocations'!$E196=""), "", MID('Planning Allocations'!$E196,1,LEN('Planning Allocations'!$E196)-2) ) -> AEC (1.65%) / AEP (13.68%) / APS (5.77%) / ATSI (8.04%) / BGE (4.11%) / ComEd (13.39%) / Dayton (2.12%) / DEOK (3.25%) / DL (1.71%) / Dominion (13.32%) / DPL (2.60%) / EKPC (1.89%) / JCPL (3.86%) / ME (1.90%) / Neptune (0.42%) / OVEC (0.08%) / PECO (5.41%) / PENELEC (1.78%) / PEPCO (3.67%) / PPL (4.72%) / PSEG (6.39%) / RE (0.26%)
B197: b0217 | C197: Upgrade Mt. Storm - Doubs 500kV | D197: 2006-06-03 | E197: 1.7 | F197: Dominion | G197: =IF( ISERROR( VLOOKUP(F197,'Formula Rate Filing Information'!$A$4:$A$57,1,FALSE) ),'Formula Rate Filing Information'!$J$58, VLOOKUP(F197,'Formula Rate Filing Information'!$A$4:$J$57,'Formula Rate Filing Information'!$J$1,FALSE) ) -> 45.9 | H197: 37037.03704 | I197: IS | J197: 1 | K197: 0 | L197: 1.7 | M197: 2005-09-22 | N197: Baseline Load Growth Deliverability & Reliability | O197: 2005-09-22 | P197: =IF(LEFT($B197,1)<>"b","N/A",'Planning Allocations'!B197) -> Appendix | Q197: =IF(LEFT($B197,1)<>"b","N/A",'Planning Allocations'!C197) -> (b)(i) Regional Facility | R197: =IF(LEFT($B197,1)<>"b","N/A",'Planning Allocations'!D197) -> 50% LRS & 50% SBDFAX | S197: =IF(OR(LEFT($B197,1)<>"b",'Planning Allocations'!$F197=""), $F197&" (100.00%)", MID('Planning Allocations'!$F197,1,LEN('Planning Allocations'!$F197)-2) ) -> APS (16.11%) / BGE (13.32%) / Dominion (55.42%) / PEPCO (15.15%) | T197: =IF(OR(LEFT($B197,1)<>"b",'Planning Allocations'!$E197=""), "", MID('Planning Allocations'!$E197,1,LEN('Planning Allocations'!$E197)-2) ) -> AEC (1.65%) / AEP (13.68%) / APS (5.77%) / ATSI (8.04%) / BGE (4.11%) / ComEd (13.39%) / Dayton (2.12%) / DEOK (3.25%) / DL (1.71%) / Dominion (13.32%) / DPL (2.60%) / EKPC (1.89%) / JCPL (3.86%) / ME (1.90%) / Neptune (0.42%) / OVEC (0.08%) / PECO (5.41%) / PENELEC (1.78%) / PEPCO (3.67%) / PPL (4.72%) / PSEG (6.39%) / RE (0.26%)
B198: b0218 | C198: Install third & forth Wylie Ridge 500/345kV transformer | D198: 2007-12-20 | E198: 14.5 | F198: APS | G198: =IF( ISERROR( VLOOKUP(F198,'Formula Rate Filing Information'!$A$4:$A$57,1,FALSE) ),'Formula Rate Filing Information'!$J$58, VLOOKUP(F198,'Formula Rate Filing Information'!$A$4:$J$57,'Formula Rate Filing Information'!$J$1,FALSE) ) -> 51.94436374 | H198: =IF(OR(I198="Cancelled",I198="On Hold"),0,1000000*E198/G198) -> 279144.8187 | I198: IS | J198: 1 | K198: 0 | L198: 14.5 | M198: 2005-09-22 | N198: Operational Performance | O198: 2005-09-22 | P198: =IF(LEFT($B198,1)<>"b","N/A",'Planning Allocations'!B198) -> Appendix | Q198: =IF(LEFT($B198,1)<>"b","N/A",'Planning Allocations'!C198) -> N/A | R198: =IF(LEFT($B198,1)<>"b","N/A",'Planning Allocations'!D198) -> 100% Violation-Based DFAX | S198: =IF(OR(LEFT($B198,1)<>"b",'Planning Allocations'!$F198=""), $F198&" (100.00%)", MID('Planning Allocations'!$F198,1,LEN('Planning Allocations'!$F198)-2) ) -> AEC (11.83%) / Dominion (13.81%) / DPL (19.40%) / JCPL (15.56%) / PECO (39.40%) | T198: =IF(OR(LEFT($B198,1)<>"b",'Planning Allocations'!$E198=""), "", MID('Planning Allocations'!$E198,1,LEN('Planning Allocations'!$E198)-2) ) -> 
B199: b0219 | C199: Install two new 230kV circuits between Palmers Corner and Blue Plains | D199: 2007-07-01 | E199: 90.997 | F199: PEPCO | G199: =IF( ISERROR( VLOOKUP(F199,'Formula Rate Filing Information'!$A$4:$A$57,1,FALSE) ),'Formula Rate Filing Information'!$J$58, VLOOKUP(F199,'Formula Rate Filing Information'!$A$4:$J$57,'Formula Rate Filing Information'!$J$1,FALSE) ) -> 35 | H199: 2599914.286 | I199: IS | J199: 1 | K199: 0 | L199: 90.997 | M199: 2005-09-22 | N199: Baseline Load Growth Deliverability & Reliability | O199: 2005-09-22 | P199: =IF(LEFT($B199,1)<>"b","N/A",'Planning Allocations'!B199) -> Appendix | Q199: =IF(LEFT($B199,1)<>"b","N/A",'Planning Allocations'!C199) -> N/A | R199: =IF(LEFT($B199,1)<>"b","N/A",'Planning Allocations'!D199) -> Single Zone | S199: =IF(OR(LEFT($B199,1)<>"b",'Planning Allocations'!$F199=""), $F199&" (100.00%)", MID('Planning Allocations'!$F199,1,LEN('Planning Allocations'!$F199)-2) ) -> PEPCO (100.00%) | T199: =IF(OR(LEFT($B199,1)<>"b",'Planning Allocations'!$E199=""), "", MID('Planning Allocations'!$E199,1,LEN('Planning Allocations'!$E199)-2) ) -> 
B200: b0220 | C200: Upgrade coolers on Wylie Ridge 500/345kV #7 | D200: 2006-04-18 | E200: 0.36 | F200: APS | G200: =IF( ISERROR( VLOOKUP(F200,'Formula Rate Filing Information'!$A$4:$A$57,1,FALSE) ),'Formula Rate Filing Information'!$J$58, VLOOKUP(F200,'Formula Rate Filing Information'!$A$4:$J$57,'Formula Rate Filing Information'!$J$1,FALSE) ) -> 51.94436374 | H200: 6930.49205 | I200: IS | J200: 1 | K200: 0 | L200: 0.36 | M200: 2005-11-15 | N200: Operational Performance | O200: 2005-11-15 | P200: =IF(LEFT($B200,1)<>"b","N/A",'Planning Allocations'!B200) -> Appendix | Q200: =IF(LEFT($B200,1)<>"b","N/A",'Planning Allocations'!C200) -> N/A | R200: =IF(LEFT($B200,1)<>"b","N/A",'Planning Allocations'!D200) -> 100% Violation-Based DFAX | S200: =IF(OR(LEFT($B200,1)<>"b",'Planning Allocations'!$F200=""), $F200&" (100.00%)", MID('Planning Allocations'!$F200,1,LEN('Planning Allocations'!$F200)-2) ) -> AEC (11.83%) / Dominion (13.81%) / DPL (19.40%) / JCPL (15.56%) / PECO (39.40%) | T200: =IF(OR(LEFT($B200,1)<>"b",'Planning Allocations'!$E200=""), "", MID('Planning Allocations'!$E200,1,LEN('Planning Allocations'!$E200)-2) ) -> 
B201: b0221 | C201: Replace disconnect switch on Edgewood - N. Salisbury 69kV | D201: 2006-03-29 | E201: 0.02 | F201: DPL | G201: =IF( ISERROR( VLOOKUP(F201,'Formula Rate Filing Information'!$A$4:$A$57,1,FALSE) ),'Formula Rate Filing Information'!$J$58, VLOOKUP(F201,'Formula Rate Filing Information'!$A$4:$J$57,'Formula Rate Filing Information'!$J$1,FALSE) ) -> 35 | H201: 571.4285714 | I201: IS | J201: 1 | K201: 0 | L201: 0.02 | M201: 2005-11-15 | N201: Baseline Load Growth Deliverability & Reliability | O201: 2005-11-15 | P201: =IF(LEFT($B201,1)<>"b","N/A",'Planning Allocations'!B201) -> Appendix | Q201: =IF(LEFT($B201,1)<>"b","N/A",'Planning Allocations'!C201) -> N/A | R201: =IF(LEFT($B201,1)<>"b","N/A",'Planning Allocations'!D201) -> Single Zone | S201: =IF(OR(LEFT($B201,1)<>"b",'Planning Allocations'!$F201=""), $F201&" (100.00%)", MID('Planning Allocations'!$F201,1,LEN('Planning Allocations'!$F201)-2) ) -> DPL (100.00%) | T201: =IF(OR(LEFT($B201,1)<>"b",'Planning Allocations'!$E201=""), "", MID('Planning Allocations'!$E201,1,LEN('Planning Allocations'!$E201)-2) ) -> 
B202: b0222 | C202: Install 150 MVAR capacitor at Loudoun 500kV | D202: 2006-05-31 | E202: 1.5 | F202: Dominion | G202: =IF( ISERROR( VLOOKUP(F202,'Formula Rate Filing Information'!$A$4:$A$57,1,FALSE) ),'Formula Rate Filing Information'!$J$58, VLOOKUP(F202,'Formula Rate Filing Information'!$A$4:$J$57,'Formula Rate Filing Information'!$J$1,FALSE) ) -> 45.9 | H202: 32679.73856 | I202: IS | J202: 1 | K202: 0 | L202: 1.5 | M202: 2005-11-15 | N202: Baseline Load Growth Deliverability & Reliability | O202: 2005-11-15 | P202: =IF(LEFT($B202,1)<>"b","N/A",'Planning Allocations'!B202) -> Appendix | Q202: =IF(LEFT($B202,1)<>"b","N/A",'Planning Allocations'!C202) -> (b)(i) Regional Facility | R202: =IF(LEFT($B202,1)<>"b","N/A",'Planning Allocations'!D202) -> 50% LRS & 50% SBDFAX | S202: =IF(OR(LEFT($B202,1)<>"b",'Planning Allocations'!$F202=""), $F202&" (100.00%)", MID('Planning Allocations'!$F202,1,LEN('Planning Allocations'!$F202)-2) ) -> BGE (7.61%) / Dominion (80.37%) / PEPCO (12.02%) | T202: =IF(OR(LEFT($B202,1)<>"b",'Planning Allocations'!$E202=""), "", MID('Planning Allocations'!$E202,1,LEN('Planning Allocations'!$E202)-2) ) -> AEC (1.65%) / AEP (13.68%) / APS (5.77%) / ATSI (8.04%) / BGE (4.11%) / ComEd (13.39%) / Dayton (2.12%) / DEOK (3.25%) / DL (1.71%) / Dominion (13.32%) / DPL (2.60%) / EKPC (1.89%) / JCPL (3.86%) / ME (1.90%) / Neptune (0.42%) / OVEC (0.08%) / PECO (5.41%) / PENELEC (1.78%) / PEPCO (3.67%) / PPL (4.72%) / PSEG (6.39%) / RE (0.26%)
B203: b0223 | C203: Install 150 MVAR capacitor at Ashburn 230kV | D203: 2006-05-31 | E203: 1 | F203: Dominion | G203: =IF( ISERROR( VLOOKUP(F203,'Formula Rate Filing Information'!$A$4:$A$57,1,FALSE) ),'Formula Rate Filing Information'!$J$58, VLOOKUP(F203,'Formula Rate Filing Information'!$A$4:$J$57,'Formula Rate Filing Information'!$J$1,FALSE) ) -> 45.9 | H203: 21786.49237 | I203: IS | J203: 1 | K203: 0 | L203: 1 | M203: 2005-11-15 | N203: Baseline Load Growth Deliverability & Reliability | O203: 2005-11-15 | P203: =IF(LEFT($B203,1)<>"b","N/A",'Planning Allocations'!B203) -> Appendix | Q203: =IF(LEFT($B203,1)<>"b","N/A",'Planning Allocations'!C203) -> N/A | R203: =IF(LEFT($B203,1)<>"b","N/A",'Planning Allocations'!D203) -> Single Zone | S203: =IF(OR(LEFT($B203,1)<>"b",'Planning Allocations'!$F203=""), $F203&" (100.00%)", MID('Planning Allocations'!$F203,1,LEN('Planning Allocations'!$F203)-2) ) -> Dominion (100.00%) | T203: =IF(OR(LEFT($B203,1)<>"b",'Planning Allocations'!$E203=""), "", MID('Planning Allocations'!$E203,1,LEN('Planning Allocations'!$E203)-2) ) -> 
... 359 more rows

Sheet Network Service Peak Loads
B2: Responsible Zone | D2: NSPLs (MW) | E2: LRS (%)
B3: AEC | C3: Atlantic City Electric Company | D3: 2614 | E3: =D3/SUM($D$3:$D$26) -> 0.0164625122
B4: AEP | C4: AEP East Zone | D4: 21717.1 | E4: 0.1367704758
B5: APS | C5: Allegheny Power | D5: 9154.3 | E5: 0.05765217117
B6: ATSI | C6: American Transmission Systems, Inc. | D6: 12771.1 | E6: 0.08043014139
B7: BGE | C7: Baltimore Gas & Electric Company | D7: 6520 | E7: 0.04106181314
B8: ComEd | C8: Commonwealth Edison Company | D8: 21262.3 | E8: 0.1339062254
B9: Dayton | C9: The Dayton Power & Light Company | D9: 3361.6 | E9: 0.0211707655
B10: DEOK | C10: Duke Energy Ohio, Inc. & Duke Energy Kentucky, Inc. | D10: 5166.1 | E10: 0.03253518909
B11: DL | C11: Duquesne Light Company | D11: 2714.7 | E11: 0.01709670309
B12: Dominion | C12: Virginia Electric & Power Company | D12: 21156.3 | E12: 0.133238656
B13: DPL | C13: Delmarva Power & Light Company | D13: 4125.3 | E13: 0.02598041377
B14: ECP | C14: East Coast Power, LLC | D14: 0 | E14: 0
B15: EKPC | C15: East Kentucky Power Cooperative, Inc. | D15: 2993.5 | E15: 0.01885253645
B16: HTP | C16: Hudson Transmission Partners, LLC | D16: 0 | E16: 0
B17: JCPL | C17: Jersey Central Power & Light Company | D17: 6122.9 | E17: 0.03856094719
B18: ME | C18: Metropolitan Edison Company | D18: 3021.3 | E18: 0.01902761596
B19: Neptune | C19: Neptune Regional Transmission System, LLC | D19: 673.8 | E19: 0.00424347388
B20: OVEC | C20: Ohio Valley Electric Corporation | D20: 121 | E20: 0.0007620367163
B21: PECO | C21: PECO Energy Company | D21: 8582.6 | E21: 0.05405170514
B22: PENELEC | C22: Pennsylvania Electric Company | D22: 2830.3 | E22: 0.01782473156
B23: PEPCO | C23: Potomac Electric Power Company | D23: 5833.8 | E23: 0.03674024624
B24: PPL | C24: PPL Electric Utilities Corporation | D24: 7488.6 | E24: 0.04716188557
B25: PSEG | C25: Public Service Electric & Gas Company | D25: 10147 | E25: 0.06390402116
B26: RE | C26: Rockland Electric Compnay | D26: 407.4 | E26: 0.002565733539

Sheet Planning Allocations
H2: T O T A L C O S T A L L O C A T I O N B Y R E S P O N S I B L E Z O N E | AJ2: L O A D - R A T I O - S H A R E C O S T A L L O C A T I O N B Y R E S P O N S I B L E Z O N E | BL2: N O N - L O A D - R A T I O - S H A R E C O S T A L L O C A T I O N B Y R E S P O N S I B L E Z O N E
A4: Upgrade ID | B4: Schedule 12 Location | C4: Schedule 12 Section For Cost Allocation | D4: Allocation Type | E4: Load-Ratio Share Allocation | F4: Non-Load-Ratio Share Allocation | H4: AEC | I4: AEP | J4: APS | K4: ATSI | L4: BGE | M4: ComEd | N4: Dayton | O4: DEOK | P4: DL | Q4: Dominion | R4: DPL | S4: ECP | T4: EKPC | U4: HTP | V4: JCPL | W4: ME | X4: Neptune | Y4: OVEC | Z4: PECO | AA4: PENELEC | AB4: PEPCO | AC4: PPL | AD4: PSEG | AE4: RE | AF4: MISO | AG4: TOTAL | AI4: Upgrade ID | AJ4: AEC | AK4: AEP | AL4: APS | AM4: ATSI | AN4: BGE | AO4: ComEd | AP4: Dayton | AQ4: DEOK | AR4: DL | AS4: Dominion | AT4: DPL | AU4: ECP | AV4: EKPC | AW4: HTP | AX4: JCPL | AY4: ME | AZ4: Neptune | BA4: OVEC | BB4: PECO | BC4: PENELEC | BD4: PEPCO | BE4: PPL | BF4: PSEG | BG4: RE | BH4: MISO | BI4: Total | BK4: Upgrade ID | BL4: AEC | BM4: AEP | BN4: APS | BO4: ATSI | BP4: BGE | BQ4: ComEd | BR4: Dayton | BS4: DEOK | BT4: DL | BU4: Dominion | BV4: DPL | BW4: ECP | BX4: EKPC | BY4: HTP | BZ4: JCPL | CA4: ME | CB4: Neptune | CC4: OVEC | CD4: PECO | CE4: PENELEC | CF4: PEPCO | CG4: PPL | CH4: PSEG | CI4: RE | CJ4: MISO | CK4: Total
